Workbook

Sheet Dev Flag (hidden)
A1: Developer Flag
A2: FALSE

Sheet Introduction
A1: DRVE (Dashboard for Rapid Vehicle Electrification)
A2: The tool will launch automatically. If the tool does not appear, please enable editing above, and launch the tool by clicking the button below.

Sheet Likelihood Sort Order (hidden)
A1: Likelihood | B1: Order
A2: Nearly Impossible | B2: 1
A3: Very Unlikely | B3: 2
A4: Unlikely | B4: 3
A5: Neither Likely Nor Unlikely | B5: 4
A6: Likely | B6: 5
A7: Very Likely | B7: 6

Sheet Decode Contents (hidden)
A1: DecodeContents
A2: makeid,modelid,manufacturerid,vin,batteryinfo,batterytype,bedtype,bodycabtype,bodyclass,enginecylinders,destinationmarket,displacementcc,displacementci,displacementl,doors,drivetype,driverassist,enginecycles,enginemodel,enginekw,entertainmentsystem,fueltypeprimary,gvwr,make,manufacturer,model,modelyear,plantcity,seats,series,steeringlocation,transmissionstyle,trim,vehicletype,windows,axles,brakesystemtype,batterycells,bedlengthin,brakesystemdesc,curbweightlb,airbagloccurtain,airbaglocseatcushion,batterya,batteryv,batterykwh,wheelbasetype,seatrows,valvetraindesign,transmissionspeeds,engineconfiguration,airbaglocfront,fueltypesecondary,fuelinjectiontype,airbaglocknee,enginehp,evdriveunit,plantcountry,plantcompanyname,plantstate,pretensioner,seatbeltsall,adaptivecruisecontrol,adaptiveheadlights,abs,cib,blindspotmon,ncsabodytype,ncsamake,ncsamodel,esc,tractioncontrol,forwardcollisionwarning,lanedeparturewarning,lanekeepsystem,rearvisibilitysystem,parkassist,airbaglocside,trim2,series2,wheelbaseshort,wheelbaselong,note,wheels,trailertype,trailerbodytype,trailerlength,wheelsizefront,wheelsizerear,otherrestraintsysteminfo,coolingtype,enginehp_to,electrificationlevel,chargerlevel,chargerpowerkw,otherengineinfo,batterya_to,batteryv_to,batterykwh_to,turbo,baseprice,batterymodules,batterypacks,topspeedmph,suggestedvin,errorcode,possiblevalues,axleconfiguration,enginemanufacturer,buslength,busfloorconfigtype,bustype,otherbusinfo,custommotorcycletype,motorcyclesuspensiontype,motorcyclechassistype,othermotorcycleinfo,othertrailerinfo,additionalerrortext,cashforclunkers,trackwidth,tpms,activesafetysysnote,dynamicbrakesupport,pedestrianautomaticemergencybraking,autoreversesystem,automaticpedestrianalertingsound,can_aacn,edr,keylessignition,daytimerunninglight,lowerbeamheadlamplightsource,semiautomaticheadlampbeamswitching,adaptivedrivingbeam,saeautomationlevel,saeautomationlevel_to,rearcrosstrafficalert,gcwr,gcwr_to,ncsanote,ncsamappingexception,ncsamapexcapprovedon,ncsamapexcapprovedby,gvwr_to,errortext,rearautomaticemergencybraking,blindspotintervention,lanecenteringassistance,nonlanduse,vehicledescriptor 554,2867,1118,15GGD301*C,,,Not Applicable,Not Applicable,Bus,,,6700.0,409,6.7,,,,,Diesel ISB,,,Diesel,"Class 7: 26,001 - 33,000 lb (11,794 - 14,969 kg)",GILLIG,GILLIG LLC,Low Floor Bus,2012,,,,,,,BUS,,,Air,,,,,,,,,,,,,,,,,,,,,,,,,,,,,,,,,,,,,,,,,,,,,,"GVWR: 26,000 lb and above",,Not Applicable,Not Applicable,,,,,,,,,,,,,,,,,,,"15GGD301*C! ","4,6,14",(11:12),,Cummins,40,,,,Not Applicable,Not Applicable,Not Applicable,,,"In the Possible values section, the Numeric value before the : indicates the position in error and the values after the : indicate the possible values that are allowed in this position. Unused position(s): 11; The Model Year decoded for this VIN may be incorrect. If you know the Model year, please enter it and decode again to get more accurate information.",,,,,,,,,,,,,,,,,,,,,,,,,"Class 8: 33,001 lb and above (14,969 kg and above)","4 - VIN corrected, error in one position only (indicated by ! in Suggested VIN), multiple matches found; 6 - Incomplete VIN; 14 - Unable to provide information for some of the characters in the VIN, based on the manufacturer submission.",,,,,15GGD301*C*
A3: makeid,modelid,manufacturerid,vin,batteryinfo,batterytype,bedtype,bodycabtype,bodyclass,enginecylinders,destinationmarket,displacementcc,displacementci,displacementl,doors,drivetype,driverassist,enginecycles,enginemodel,enginekw,entertainmentsystem,fueltypeprimary,gvwr,make,manufacturer,model,modelyear,plantcity,seats,series,steeringlocation,transmissionstyle,trim,vehicletype,windows,axles,brakesystemtype,batterycells,bedlengthin,brakesystemdesc,curbweightlb,airbagloccurtain,airbaglocseatcushion,batterya,batteryv,batterykwh,wheelbasetype,seatrows,valvetraindesign,transmissionspeeds,engineconfiguration,airbaglocfront,fueltypesecondary,fuelinjectiontype,airbaglocknee,enginehp,evdriveunit,plantcountry,plantcompanyname,plantstate,pretensioner,seatbeltsall,adaptivecruisecontrol,adaptiveheadlights,abs,cib,blindspotmon,ncsabodytype,ncsamake,ncsamodel,esc,tractioncontrol,forwardcollisionwarning,lanedeparturewarning,lanekeepsystem,rearvisibilitysystem,parkassist,airbaglocside,trim2,series2,wheelbaseshort,wheelbaselong,note,wheels,trailertype,trailerbodytype,trailerlength,wheelsizefront,wheelsizerear,otherrestraintsysteminfo,coolingtype,enginehp_to,electrificationlevel,chargerlevel,chargerpowerkw,otherengineinfo,batterya_to,batteryv_to,batterykwh_to,turbo,baseprice,batterymodules,batterypacks,topspeedmph,suggestedvin,errorcode,possiblevalues,axleconfiguration,enginemanufacturer,buslength,busfloorconfigtype,bustype,otherbusinfo,custommotorcycletype,motorcyclesuspensiontype,motorcyclechassistype,othermotorcycleinfo,othertrailerinfo,additionalerrortext,cashforclunkers,trackwidth,tpms,activesafetysysnote,dynamicbrakesupport,pedestrianautomaticemergencybraking,autoreversesystem,automaticpedestrianalertingsound,can_aacn,edr,keylessignition,daytimerunninglight,lowerbeamheadlamplightsource,semiautomaticheadlampbeamswitching,adaptivedrivingbeam,saeautomationlevel,saeautomationlevel_to,rearcrosstrafficalert,gcwr,gcwr_to,ncsanote,ncsamappingexception,ncsamapexcapprovedon,ncsamapexcapprovedby,gvwr_to,errortext,rearautomaticemergencybraking,blindspotintervention,lanecenteringassistance,nonlanduse,vehicledescriptor 448,2208,1145,5YFEPRAE*L,,,Not Applicable,Not Applicable,Sedan/Saloon,4,,1798,109.84273937051,1.8,4,4x2,,4,2ZR-FAE,103.6523,,Gasoline,,TOYOTA,"TOYOTA MOTOR MANUFACTURING, MISSISSIPPI, INC.",Corolla,2020,,5,ZRE212L-DEXLPA,Left-Hand Drive (LHD),,LE,PASSENGER CAR,,2,,,,,,All Rows,Passenger Seat Only,,,,,2,Dual Overhead Cam (DOHC),,In-Line,1st Row (Driver and Passenger),,Sequential Fuel Injection (SFI),Driver Seat Only,139,,,,,,Manual,Standard,,Standard,Standard,,,,,Standard,Standard,Standard,Standard,Standard,Standard,,1st Row (Driver and Passenger),,,,,,4,Not Applicable,Not Applicable,,,,,,148,,,,PORT,,,,,,,,,"5YFEPRAE*L! ","4,6,14",(11:0129CJPZ),,Toyota,,Not Applicable,Not Applicable,,Not Applicable,Not Applicable,Not Applicable,,,"In the Possible values section, the Numeric value before the : indicates the position in error and the values after the : indicate the possible values that are allowed in this position. Unused position(s): 11;",,,Direct,,Standard,Standard,Standard,,,,,Standard,,Standard,Standard,,,,,,,,,,,"4 - VIN corrected, error in one position only (indicated by ! in Suggested VIN), multiple matches found; 6 - Incomplete VIN; 14 - Unable to provide information for some of the characters in the VIN, based on the manufacturer submission.",,,,,5YFEPRAE*L*
A4: makeid,modelid,manufacturerid,vin,batteryinfo,batterytype,bedtype,bodycabtype,bodyclass,enginecylinders,destinationmarket,displacementcc,displacementci,displacementl,doors,drivetype,driverassist,enginecycles,enginemodel,enginekw,entertainmentsystem,fueltypeprimary,gvwr,make,manufacturer,model,modelyear,plantcity,seats,series,steeringlocation,transmissionstyle,trim,vehicletype,windows,axles,brakesystemtype,batterycells,bedlengthin,brakesystemdesc,curbweightlb,airbagloccurtain,airbaglocseatcushion,batterya,batteryv,batterykwh,wheelbasetype,seatrows,valvetraindesign,transmissionspeeds,engineconfiguration,airbaglocfront,fueltypesecondary,fuelinjectiontype,airbaglocknee,enginehp,evdriveunit,plantcountry,plantcompanyname,plantstate,pretensioner,seatbeltsall,adaptivecruisecontrol,adaptiveheadlights,abs,cib,blindspotmon,ncsabodytype,ncsamake,ncsamodel,esc,tractioncontrol,forwardcollisionwarning,lanedeparturewarning,lanekeepsystem,rearvisibilitysystem,parkassist,airbaglocside,trim2,series2,wheelbaseshort,wheelbaselong,note,wheels,trailertype,trailerbodytype,trailerlength,wheelsizefront,wheelsizerear,otherrestraintsysteminfo,coolingtype,enginehp_to,electrificationlevel,chargerlevel,chargerpowerkw,otherengineinfo,batterya_to,batteryv_to,batterykwh_to,turbo,baseprice,batterymodules,batterypacks,topspeedmph,suggestedvin,errorcode,possiblevalues,axleconfiguration,enginemanufacturer,buslength,busfloorconfigtype,bustype,otherbusinfo,custommotorcycletype,motorcyclesuspensiontype,motorcyclechassistype,othermotorcycleinfo,othertrailerinfo,additionalerrortext,cashforclunkers,trackwidth,tpms,activesafetysysnote,dynamicbrakesupport,pedestrianautomaticemergencybraking,autoreversesystem,automaticpedestrianalertingsound,can_aacn,edr,keylessignition,daytimerunninglight,lowerbeamheadlamplightsource,semiautomaticheadlampbeamswitching,adaptivedrivingbeam,saeautomationlevel,saeautomationlevel_to,rearcrosstrafficalert,gcwr,gcwr_to,ncsanote,ncsamappingexception,ncsamapexcapprovedon,ncsamapexcapprovedby,gvwr_to,errortext,rearautomaticemergencybraking,blindspotintervention,lanecenteringassistance,nonlanduse,vehicledescriptor 460,1803,976,1FTYR14V*3,,,,Extra/Super/Quad/Double/King/Extended,Pickup,6,,3000.0,183.07123228419,3.0,2,4x2,,,,114.8378,,Gasoline,"Class 1C: 4,001 - 5,000 lb (1,814 - 2,268 kg)",FORD,"FORD MOTOR COMPANY, USA",Ranger,2003,,,,,,,"TRUCK ",,,Hydraulic,,,,,,,,,,,,,,V-Shaped,1st Row (Driver and Passenger),Ethanol (E85),,,154,,,,,,Manual,,,,,,,,,,,,,,,,,,,,,,,Not Applicable,Not Applicable,,,,,,,,,,EFI-FFV,,,,,,,,,"1FTYR14V*3! ","4,6,14",(11:0CEHKMNPT),,Ford,,Not Applicable,Not Applicable,,Not Applicable,Not Applicable,Not Applicable,,,"In the Possible values section, the Numeric value before the : indicates the position in error and the values after the : indicate the possible values that are allowed in this position. Unused position(s): 11;",,,,,,,,,,,,,,,,,,,,,,,,,,"4 - VIN corrected, error in one position only (indicated by ! in Suggested VIN), multiple matches found; 6 - Incomplete VIN; 14 - Unable to provide information for some of the characters in the VIN, based on the manufacturer submission.",,,,,1FTYR14V*3*
A5: makeid,modelid,manufacturerid,vin,batteryinfo,batterytype,bedtype,bodycabtype,bodyclass,enginecylinders,destinationmarket,displacementcc,displacementci,displacementl,doors,drivetype,driverassist,enginecycles,enginemodel,enginekw,entertainmentsystem,fueltypeprimary,gvwr,make,manufacturer,model,modelyear,plantcity,seats,series,steeringlocation,transmissionstyle,trim,vehicletype,windows,axles,brakesystemtype,batterycells,bedlengthin,brakesystemdesc,curbweightlb,airbagloccurtain,airbaglocseatcushion,batterya,batteryv,batterykwh,wheelbasetype,seatrows,valvetraindesign,transmissionspeeds,engineconfiguration,airbaglocfront,fueltypesecondary,fuelinjectiontype,airbaglocknee,enginehp,evdriveunit,plantcountry,plantcompanyname,plantstate,pretensioner,seatbeltsall,adaptivecruisecontrol,adaptiveheadlights,abs,cib,blindspotmon,ncsabodytype,ncsamake,ncsamodel,esc,tractioncontrol,forwardcollisionwarning,lanedeparturewarning,lanekeepsystem,rearvisibilitysystem,parkassist,airbaglocside,trim2,series2,wheelbaseshort,wheelbaselong,note,wheels,trailertype,trailerbodytype,trailerlength,wheelsizefront,wheelsizerear,otherrestraintsysteminfo,coolingtype,enginehp_to,electrificationlevel,chargerlevel,chargerpowerkw,otherengineinfo,batterya_to,batteryv_to,batterykwh_to,turbo,baseprice,batterymodules,batterypacks,topspeedmph,suggestedvin,errorcode,possiblevalues,axleconfiguration,enginemanufacturer,buslength,busfloorconfigtype,bustype,otherbusinfo,custommotorcycletype,motorcyclesuspensiontype,motorcyclechassistype,othermotorcycleinfo,othertrailerinfo,additionalerrortext,cashforclunkers,trackwidth,tpms,activesafetysysnote,dynamicbrakesupport,pedestrianautomaticemergencybraking,autoreversesystem,automaticpedestrianalertingsound,can_aacn,edr,keylessignition,daytimerunninglight,lowerbeamheadlamplightsource,semiautomaticheadlampbeamswitching,adaptivedrivingbeam,saeautomationlevel,saeautomationlevel_to,rearcrosstrafficalert,gcwr,gcwr_to,ncsanote,ncsamappingexception,ncsamapexcapprovedon,ncsamapexcapprovedby,gvwr_to,errortext,rearautomaticemergencybraking,blindspotintervention,lanecenteringassistance,nonlanduse,vehicledescriptor 467,11483,984,1GCCS145*2,,,,,Pickup,,,2200.0,134.25223700841,2.2,2,4x2,,,L43,,,Ethanol (E85),"Class 1C: 4,001 - 5,000 lb (1,814 - 2,268 kg)",CHEVROLET,GENERAL MOTORS LLC,S-10 Pickup,2002,,,,,,1/2 Ton,"TRUCK ",,,Hydraulic,,,,,,,,,,,,,,,,Flexible Fuel Vehicle (FFV),,,,,,,,,,,,,,,,,,,,,,,,,,,,,,,,Not Applicable,Not Applicable,,,,,,,,,,,,,,,,,,,"1GCCS145*2! ","4,6,14",(11:1268BDEFJKLRSTUXZ),,,,Not Applicable,Not Applicable,,Not Applicable,Not Applicable,Not Applicable,,,"In the Possible values section, the Numeric value before the : indicates the position in error and the values after the : indicate the possible values that are allowed in this position. Unused position(s): 11;",,,,,,,,,,,,,,,,,,,,,,,,,,"4 - VIN corrected, error in one position only (indicated by ! in Suggested VIN), multiple matches found; 6 - Incomplete VIN; 14 - Unable to provide information for some of the characters in the VIN, based on the manufacturer submission.",,,,,1GCCS145*2*
A6: makeid,modelid,manufacturerid,vin,batteryinfo,batterytype,bedtype,bodycabtype,bodyclass,enginecylinders,destinationmarket,displacementcc,displacementci,displacementl,doors,drivetype,driverassist,enginecycles,enginemodel,enginekw,entertainmentsystem,fueltypeprimary,gvwr,make,manufacturer,model,modelyear,plantcity,seats,series,steeringlocation,transmissionstyle,trim,vehicletype,windows,axles,brakesystemtype,batterycells,bedlengthin,brakesystemdesc,curbweightlb,airbagloccurtain,airbaglocseatcushion,batterya,batteryv,batterykwh,wheelbasetype,seatrows,valvetraindesign,transmissionspeeds,engineconfiguration,airbaglocfront,fueltypesecondary,fuelinjectiontype,airbaglocknee,enginehp,evdriveunit,plantcountry,plantcompanyname,plantstate,pretensioner,seatbeltsall,adaptivecruisecontrol,adaptiveheadlights,abs,cib,blindspotmon,ncsabodytype,ncsamake,ncsamodel,esc,tractioncontrol,forwardcollisionwarning,lanedeparturewarning,lanekeepsystem,rearvisibilitysystem,parkassist,airbaglocside,trim2,series2,wheelbaseshort,wheelbaselong,note,wheels,trailertype,trailerbodytype,trailerlength,wheelsizefront,wheelsizerear,otherrestraintsysteminfo,coolingtype,enginehp_to,electrificationlevel,chargerlevel,chargerpowerkw,otherengineinfo,batterya_to,batteryv_to,batterykwh_to,turbo,baseprice,batterymodules,batterypacks,topspeedmph,suggestedvin,errorcode,possiblevalues,axleconfiguration,enginemanufacturer,buslength,busfloorconfigtype,bustype,otherbusinfo,custommotorcycletype,motorcyclesuspensiontype,motorcyclechassistype,othermotorcycleinfo,othertrailerinfo,additionalerrortext,cashforclunkers,trackwidth,tpms,activesafetysysnote,dynamicbrakesupport,pedestrianautomaticemergencybraking,autoreversesystem,automaticpedestrianalertingsound,can_aacn,edr,keylessignition,daytimerunninglight,lowerbeamheadlamplightsource,semiautomaticheadlampbeamswitching,adaptivedrivingbeam,saeautomationlevel,saeautomationlevel_to,rearcrosstrafficalert,gcwr,gcwr_to,ncsanote,ncsamappingexception,ncsamapexcapprovedon,ncsamapexcapprovedby,gvwr_to,errortext,rearautomaticemergencybraking,blindspotintervention,lanecenteringassistance,nonlanduse,vehicledescriptor 467,4086,984,1GCGTBEN*L,,,,Crew/Super Crew/Crew Max,Pickup,6,,3600.0,219.68547874103,3.6,4,4WD/4-Wheel Drive/4x4,,,"LG2 - DI: Direct Injection, VVT: Variable Valve Timing, ALUM, VAR2, GEN2",,,Gasoline,"Class 1D: 5,001 - 6,000 lb (2,268 - 2,722 kg)",CHEVROLET,GENERAL MOTORS LLC,Colorado,2020,,2,Work Truck,Left-Hand Drive (LHD),Automatic,,"TRUCK ",,2,,,,,,All Rows,,,,,,1,Dual Overhead Cam (DOHC),,V-Shaped,1st Row (Driver and Passenger),,,,,,,,,,Manual,,,Standard,,,,,,Standard,Standard,,,,Standard,,1st Row (Driver and Passenger),,,,,,4,Not Applicable,Not Applicable,,16,16,,,,,,,,,,,,,,,,"1GCGTBEN*L! ","4,6,14",(11:1FGNZ),,,,Not Applicable,Not Applicable,,Not Applicable,Not Applicable,Not Applicable,,,"In the Possible values section, the Numeric value before the : indicates the position in error and the values after the : indicate the possible values that are allowed in this position. Unused position(s): 11; The Model Year decoded for this VIN may be incorrect. If you know the Model year, please enter it and decode again to get more accurate information.",,,Indirect,,Standard,,Standard,,,,,Standard,Halogen,Standard,,,,,,,,,,,,"4 - VIN corrected, error in one position only (indicated by ! in Suggested VIN), multiple matches found; 6 - Incomplete VIN; 14 - Unable to provide information for some of the characters in the VIN, based on the manufacturer submission.",,,,,1GCGTBEN*L*
A7: makeid,modelid,manufacturerid,vin,batteryinfo,batterytype,bedtype,bodycabtype,bodyclass,enginecylinders,destinationmarket,displacementcc,displacementci,displacementl,doors,drivetype,driverassist,enginecycles,enginemodel,enginekw,entertainmentsystem,fueltypeprimary,gvwr,make,manufacturer,model,modelyear,plantcity,seats,series,steeringlocation,transmissionstyle,trim,vehicletype,windows,axles,brakesystemtype,batterycells,bedlengthin,brakesystemdesc,curbweightlb,airbagloccurtain,airbaglocseatcushion,batterya,batteryv,batterykwh,wheelbasetype,seatrows,valvetraindesign,transmissionspeeds,engineconfiguration,airbaglocfront,fueltypesecondary,fuelinjectiontype,airbaglocknee,enginehp,evdriveunit,plantcountry,plantcompanyname,plantstate,pretensioner,seatbeltsall,adaptivecruisecontrol,adaptiveheadlights,abs,cib,blindspotmon,ncsabodytype,ncsamake,ncsamodel,esc,tractioncontrol,forwardcollisionwarning,lanedeparturewarning,lanekeepsystem,rearvisibilitysystem,parkassist,airbaglocside,trim2,series2,wheelbaseshort,wheelbaselong,note,wheels,trailertype,trailerbodytype,trailerlength,wheelsizefront,wheelsizerear,otherrestraintsysteminfo,coolingtype,enginehp_to,electrificationlevel,chargerlevel,chargerpowerkw,otherengineinfo,batterya_to,batteryv_to,batterykwh_to,turbo,baseprice,batterymodules,batterypacks,topspeedmph,suggestedvin,errorcode,possiblevalues,axleconfiguration,enginemanufacturer,buslength,busfloorconfigtype,bustype,otherbusinfo,custommotorcycletype,motorcyclesuspensiontype,motorcyclechassistype,othermotorcycleinfo,othertrailerinfo,additionalerrortext,cashforclunkers,trackwidth,tpms,activesafetysysnote,dynamicbrakesupport,pedestrianautomaticemergencybraking,autoreversesystem,automaticpedestrianalertingsound,can_aacn,edr,keylessignition,daytimerunninglight,lowerbeamheadlamplightsource,semiautomaticheadlampbeamswitching,adaptivedrivingbeam,saeautomationlevel,saeautomationlevel_to,rearcrosstrafficalert,gcwr,gcwr_to,ncsanote,ncsamappingexception,ncsamapexcapprovedon,ncsamapexcapprovedby,gvwr_to,errortext,rearautomaticemergencybraking,blindspotintervention,lanecenteringassistance,nonlanduse,vehicledescriptor 460,1803,976,1FTYR10V*X,,,,Regular,Pickup,6,,3000.0,183.07123228419,3.0,,4x2,,,,113.3464,,Gasoline,"Class 1C: 4,001 - 5,000 lb (1,814 - 2,268 kg)",FORD,"FORD MOTOR COMPANY, USA",Ranger,1999,,,,,,,"TRUCK ",,,Hydraulic,,,,,,,,,,,,,,V-Shaped,1st Row (Driver and Passenger),Ethanol (E85),Sequential Fuel Injection (SFI),,152,,,,,,Manual,,,,,,,,,,,,,,,,,,,,,,,Not Applicable,Not Applicable,,,,2nd gen front airbag,,,,,,SEFI: Sequential Electronic Fuel Injection - FFV: Flexible Fuel Vehicle,,,,,,,,,"1FTYR10V*X! ","4,6,14",(11:5ABCDEFGHJKLMNPRTUWXYZ),,Ford,,Not Applicable,Not Applicable,,Not Applicable,Not Applicable,Not Applicable,,,"In the Possible values section, the Numeric value before the : indicates the position in error and the values after the : indicate the possible values that are allowed in this position. Unused position(s): 11;",,,,,,,,,,,,,,,,,,,,,,,,,,"4 - VIN corrected, error in one position only (indicated by ! in Suggested VIN), multiple matches found; 6 - Incomplete VIN; 14 - Unable to provide information for some of the characters in the VIN, based on the manufacturer submission.",,,,,1FTYR10V*X*
A8: makeid,modelid,manufacturerid,vin,batteryinfo,batterytype,bedtype,bodycabtype,bodyclass,enginecylinders,destinationmarket,displacementcc,displacementci,displacementl,doors,drivetype,driverassist,enginecycles,enginemodel,enginekw,entertainmentsystem,fueltypeprimary,gvwr,make,manufacturer,model,modelyear,plantcity,seats,series,steeringlocation,transmissionstyle,trim,vehicletype,windows,axles,brakesystemtype,batterycells,bedlengthin,brakesystemdesc,curbweightlb,airbagloccurtain,airbaglocseatcushion,batterya,batteryv,batterykwh,wheelbasetype,seatrows,valvetraindesign,transmissionspeeds,engineconfiguration,airbaglocfront,fueltypesecondary,fuelinjectiontype,airbaglocknee,enginehp,evdriveunit,plantcountry,plantcompanyname,plantstate,pretensioner,seatbeltsall,adaptivecruisecontrol,adaptiveheadlights,abs,cib,blindspotmon,ncsabodytype,ncsamake,ncsamodel,esc,tractioncontrol,forwardcollisionwarning,lanedeparturewarning,lanekeepsystem,rearvisibilitysystem,parkassist,airbaglocside,trim2,series2,wheelbaseshort,wheelbaselong,note,wheels,trailertype,trailerbodytype,trailerlength,wheelsizefront,wheelsizerear,otherrestraintsysteminfo,coolingtype,enginehp_to,electrificationlevel,chargerlevel,chargerpowerkw,otherengineinfo,batterya_to,batteryv_to,batterykwh_to,turbo,baseprice,batterymodules,batterypacks,topspeedmph,suggestedvin,errorcode,possiblevalues,axleconfiguration,enginemanufacturer,buslength,busfloorconfigtype,bustype,otherbusinfo,custommotorcycletype,motorcyclesuspensiontype,motorcyclechassistype,othermotorcycleinfo,othertrailerinfo,additionalerrortext,cashforclunkers,trackwidth,tpms,activesafetysysnote,dynamicbrakesupport,pedestrianautomaticemergencybraking,autoreversesystem,automaticpedestrianalertingsound,can_aacn,edr,keylessignition,daytimerunninglight,lowerbeamheadlamplightsource,semiautomaticheadlampbeamswitching,adaptivedrivingbeam,saeautomationlevel,saeautomationlevel_to,rearcrosstrafficalert,gcwr,gcwr_to,ncsanote,ncsamappingexception,ncsamapexcapprovedon,ncsamapexcapprovedby,gvwr_to,errortext,rearautomaticemergencybraking,blindspotintervention,lanecenteringassistance,nonlanduse,vehicledescriptor 460,1809,976,1FDNF6AY*H,,,,Regular,Truck,10,,6800.0,414.96145984417,6.8,,4x2,,,,246.0810,,Gasoline,"Class 6: 19,501 - 26,000 lb (8,845 - 11,794 kg)",FORD,"FORD MOTOR COMPANY, USA",F-650,2017,,,Super Duty - Dual Rear Wheel,,,Gas,INCOMPLETE VEHICLE,,,Hydraulic,,,,,,,,,,,,,,V-Shaped,,,,,330,,,,,,Manual,,,,,,,,,,,,,,,,,,,,,Body Type: Straight Frame,,Not Applicable,Not Applicable,,,,,,,,,,Fuel: Gas/ Gaseous Prep. Torque: 440,,,,,,,,,"1FDNF6AY*H! ","4,6,14",(11:DEK),,Ford,,,,,Not Applicable,Not Applicable,Not Applicable,,,"In the Possible values section, the Numeric value before the : indicates the position in error and the values after the : indicate the possible values that are allowed in this position. Unused position(s): 11; The Model Year decoded for this VIN may be incorrect. If you know the Model year, please enter it and decode again to get more accurate information.",,,,,,,,,,,,,,,,,,,,,,,,,,"4 - VIN corrected, error in one position only (indicated by ! in Suggested VIN), multiple matches found; 6 - Incomplete VIN; 14 - Unable to provide information for some of the characters in the VIN, based on the manufacturer submission.",,,,,1FDNF6AY*H*
A9: makeid,modelid,manufacturerid,vin,batteryinfo,batterytype,bedtype,bodycabtype,bodyclass,enginecylinders,destinationmarket,displacementcc,displacementci,displacementl,doors,drivetype,driverassist,enginecycles,enginemodel,enginekw,entertainmentsystem,fueltypeprimary,gvwr,make,manufacturer,model,modelyear,plantcity,seats,series,steeringlocation,transmissionstyle,trim,vehicletype,windows,axles,brakesystemtype,batterycells,bedlengthin,brakesystemdesc,curbweightlb,airbagloccurtain,airbaglocseatcushion,batterya,batteryv,batterykwh,wheelbasetype,seatrows,valvetraindesign,transmissionspeeds,engineconfiguration,airbaglocfront,fueltypesecondary,fuelinjectiontype,airbaglocknee,enginehp,evdriveunit,plantcountry,plantcompanyname,plantstate,pretensioner,seatbeltsall,adaptivecruisecontrol,adaptiveheadlights,abs,cib,blindspotmon,ncsabodytype,ncsamake,ncsamodel,esc,tractioncontrol,forwardcollisionwarning,lanedeparturewarning,lanekeepsystem,rearvisibilitysystem,parkassist,airbaglocside,trim2,series2,wheelbaseshort,wheelbaselong,note,wheels,trailertype,trailerbodytype,trailerlength,wheelsizefront,wheelsizerear,otherrestraintsysteminfo,coolingtype,enginehp_to,electrificationlevel,chargerlevel,chargerpowerkw,otherengineinfo,batterya_to,batteryv_to,batterykwh_to,turbo,baseprice,batterymodules,batterypacks,topspeedmph,suggestedvin,errorcode,possiblevalues,axleconfiguration,enginemanufacturer,buslength,busfloorconfigtype,bustype,otherbusinfo,custommotorcycletype,motorcyclesuspensiontype,motorcyclechassistype,othermotorcycleinfo,othertrailerinfo,additionalerrortext,cashforclunkers,trackwidth,tpms,activesafetysysnote,dynamicbrakesupport,pedestrianautomaticemergencybraking,autoreversesystem,automaticpedestrianalertingsound,can_aacn,edr,keylessignition,daytimerunninglight,lowerbeamheadlamplightsource,semiautomaticheadlampbeamswitching,adaptivedrivingbeam,saeautomationlevel,saeautomationlevel_to,rearcrosstrafficalert,gcwr,gcwr_to,ncsanote,ncsamappingexception,ncsamapexcapprovedon,ncsamapexcapprovedby,gvwr_to,errortext,rearautomaticemergencybraking,blindspotintervention,lanecenteringassistance,nonlanduse,vehicledescriptor 460,1819,976,1FDXE4FS*D,,,,,Incomplete - Cutaway,10,,6800.0,414.96145984417,6.8,,RWD/Rear-Wheel Drive,,,Ford,227.4385,,Gasoline,"Class 4: 14,001 - 16,000 lb (6,350 - 7,258 kg)",FORD,"FORD MOTOR COMPANY, USA",E-450,2013,,,Econoline/E-series,,,,INCOMPLETE VEHICLE,,,Hydraulic,,,,,,,,,,,,,,V-Shaped,1st Row (Driver and Passenger),,,,305,,,,,,Manual,,,,,,,,,,,,,,,,,,,,,Single Rear Wheel/Dual Rear Wheel,,Not Applicable,Not Applicable,,,,,,,,,,Displacement is 6.8L 2V,,,,,,,,,"1FDXE4FS*D! ","4,6,14",(11:DE),,,,,,,Not Applicable,Not Applicable,Not Applicable,,,"In the Possible values section, the Numeric value before the : indicates the position in error and the values after the : indicate the possible values that are allowed in this position. Unused position(s): 11; The Model Year decoded for this VIN may be incorrect. If you know the Model year, please enter it and decode again to get more accurate information.",,,,,,,,,,,,,,,,,,,,,,,,,,"4 - VIN corrected, error in one position only (indicated by ! in Suggested VIN), multiple matches found; 6 - Incomplete VIN; 14 - Unable to provide information for some of the characters in the VIN, based on the manufacturer submission.",,,,,1FDXE4FS*D*
A10: makeid,modelid,manufacturerid,vin,batteryinfo,batterytype,bedtype,bodycabtype,bodyclass,enginecylinders,destinationmarket,displacementcc,displacementci,displacementl,doors,drivetype,driverassist,enginecycles,enginemodel,enginekw,entertainmentsystem,fueltypeprimary,gvwr,make,manufacturer,model,modelyear,plantcity,seats,series,steeringlocation,transmissionstyle,trim,vehicletype,windows,axles,brakesystemtype,batterycells,bedlengthin,brakesystemdesc,curbweightlb,airbagloccurtain,airbaglocseatcushion,batterya,batteryv,batterykwh,wheelbasetype,seatrows,valvetraindesign,transmissionspeeds,engineconfiguration,airbaglocfront,fueltypesecondary,fuelinjectiontype,airbaglocknee,enginehp,evdriveunit,plantcountry,plantcompanyname,plantstate,pretensioner,seatbeltsall,adaptivecruisecontrol,adaptiveheadlights,abs,cib,blindspotmon,ncsabodytype,ncsamake,ncsamodel,esc,tractioncontrol,forwardcollisionwarning,lanedeparturewarning,lanekeepsystem,rearvisibilitysystem,parkassist,airbaglocside,trim2,series2,wheelbaseshort,wheelbaselong,note,wheels,trailertype,trailerbodytype,trailerlength,wheelsizefront,wheelsizerear,otherrestraintsysteminfo,coolingtype,enginehp_to,electrificationlevel,chargerlevel,chargerpowerkw,otherengineinfo,batterya_to,batteryv_to,batterykwh_to,turbo,baseprice,batterymodules,batterypacks,topspeedmph,suggestedvin,errorcode,possiblevalues,axleconfiguration,enginemanufacturer,buslength,busfloorconfigtype,bustype,otherbusinfo,custommotorcycletype,motorcyclesuspensiontype,motorcyclechassistype,othermotorcycleinfo,othertrailerinfo,additionalerrortext,cashforclunkers,trackwidth,tpms,activesafetysysnote,dynamicbrakesupport,pedestrianautomaticemergencybraking,autoreversesystem,automaticpedestrianalertingsound,can_aacn,edr,keylessignition,daytimerunninglight,lowerbeamheadlamplightsource,semiautomaticheadlampbeamswitching,adaptivedrivingbeam,saeautomationlevel,saeautomationlevel_to,rearcrosstrafficalert,gcwr,gcwr_to,ncsanote,ncsamappingexception,ncsamapexcapprovedon,ncsamapexcapprovedby,gvwr_to,errortext,rearautomaticemergencybraking,blindspotintervention,lanecenteringassistance,nonlanduse,vehicledescriptor 460,1782,976,1FAFP53U*5,,,Not Applicable,Not Applicable,Sedan/Saloon,6,,3000.0,183.07123228419,3.0,4,,,,,115.5835,,,,FORD,"FORD MOTOR COMPANY, USA",Taurus,2005,,,SE,,,,PASSENGER CAR,,,,,,,,,,,,,,,,,V-Shaped,1st Row (Driver and Passenger),,,,155,,,,,,Manual,,,,,,,,,,,,,,,,,,,,,,,Not Applicable,Not Applicable,,,,,,,,,,ELECTRONIC FUEL INJECTION,,,,,,,,,"1FAFP53U*5! ","4,6,14",(11:AGWY),,,,Not Applicable,Not Applicable,,Not Applicable,Not Applicable,Not Applicable,,,"In the Possible values section, the Numeric value before the : indicates the position in error and the values after the : indicate the possible values that are allowed in this position. Unused position(s): 11;",,,,,,,,,,,,,,,,,,,,,,,,,,"4 - VIN corrected, error in one position only (indicated by ! in Suggested VIN), multiple matches found; 6 - Incomplete VIN; 14 - Unable to provide information for some of the characters in the VIN, based on the manufacturer submission.",,,,,1FAFP53U*5*
A11: makeid,modelid,manufacturerid,vin,batteryinfo,batterytype,bedtype,bodycabtype,bodyclass,enginecylinders,destinationmarket,displacementcc,displacementci,displacementl,doors,drivetype,driverassist,enginecycles,enginemodel,enginekw,entertainmentsystem,fueltypeprimary,gvwr,make,manufacturer,model,modelyear,plantcity,seats,series,steeringlocation,transmissionstyle,trim,vehicletype,windows,axles,brakesystemtype,batterycells,bedlengthin,brakesystemdesc,curbweightlb,airbagloccurtain,airbaglocseatcushion,batterya,batteryv,batterykwh,wheelbasetype,seatrows,valvetraindesign,transmissionspeeds,engineconfiguration,airbaglocfront,fueltypesecondary,fuelinjectiontype,airbaglocknee,enginehp,evdriveunit,plantcountry,plantcompanyname,plantstate,pretensioner,seatbeltsall,adaptivecruisecontrol,adaptiveheadlights,abs,cib,blindspotmon,ncsabodytype,ncsamake,ncsamodel,esc,tractioncontrol,forwardcollisionwarning,lanedeparturewarning,lanekeepsystem,rearvisibilitysystem,parkassist,airbaglocside,trim2,series2,wheelbaseshort,wheelbaselong,note,wheels,trailertype,trailerbodytype,trailerlength,wheelsizefront,wheelsizerear,otherrestraintsysteminfo,coolingtype,enginehp_to,electrificationlevel,chargerlevel,chargerpowerkw,otherengineinfo,batterya_to,batteryv_to,batterykwh_to,turbo,baseprice,batterymodules,batterypacks,topspeedmph,suggestedvin,errorcode,possiblevalues,axleconfiguration,enginemanufacturer,buslength,busfloorconfigtype,bustype,otherbusinfo,custommotorcycletype,motorcyclesuspensiontype,motorcyclechassistype,othermotorcycleinfo,othertrailerinfo,additionalerrortext,cashforclunkers,trackwidth,tpms,activesafetysysnote,dynamicbrakesupport,pedestrianautomaticemergencybraking,autoreversesystem,automaticpedestrianalertingsound,can_aacn,edr,keylessignition,daytimerunninglight,lowerbeamheadlamplightsource,semiautomaticheadlampbeamswitching,adaptivedrivingbeam,saeautomationlevel,saeautomationlevel_to,rearcrosstrafficalert,gcwr,gcwr_to,ncsanote,ncsamappingexception,ncsamapexcapprovedon,ncsamapexcapprovedby,gvwr_to,errortext,rearautomaticemergencybraking,blindspotintervention,lanecenteringassistance,nonlanduse,vehicledescriptor 467,1850,984,1GCNKNEH*H,,,,Regular,Pickup,6,,4300.0,262.40209960734,4.3,2,4WD/4-Wheel Drive/4x4,,,"LV3 - GEN 5, SIDI, VVT: Variable Valve Timing, E85 MAX, ALUM",,,Gasoline,"Class 2E: 6,001 - 7,000 lb (2,722 - 3,175 kg)",CHEVROLET,GENERAL MOTORS LLC,Silverado,2017,,3,1500,Left-Hand Drive (LHD),,Work Truck/LS/Fleet/Base,"TRUCK ",,2,Hydraulic,,,,,All Rows,,,,,,1,Overhead Valve (OHV),,V-Shaped,1st Row (Driver and Passenger),Ethanol (E85),,,,,,,,,Manual,,,Standard,,,,,,Standard,Standard,,,,Optional,,1st Row (Driver and Passenger),,,119.00,,,4,Not Applicable,Not Applicable,,17,17,,,,,,,,,,,,27785.00,,,99,"1GCNKNEH*H! ","4,6,14",(11:1FGZ),,,,Not Applicable,Not Applicable,,Not Applicable,Not Applicable,Not Applicable,,,"In the Possible values section, the Numeric value before the : indicates the position in error and the values after the : indicate the possible values that are allowed in this position. Unused position(s): 11; The Model Year decoded for this VIN may be incorrect. If you know the Model year, please enter it and decode again to get more accurate information.",,,Direct,"Automatic Crash Notification: Optional for Work Truck, Standard for LS",Standard,,Standard,,,,,Standard,,Standard,,,,,,,,,,,,"4 - VIN corrected, error in one position only (indicated by ! in Suggested VIN), multiple matches found; 6 - Incomplete VIN; 14 - Unable to provide information for some of the characters in the VIN, based on the manufacturer submission.",,,,,1GCNKNEH*H*
A12: makeid,modelid,manufacturerid,vin,batteryinfo,batterytype,bedtype,bodycabtype,bodyclass,enginecylinders,destinationmarket,displacementcc,displacementci,displacementl,doors,drivetype,driverassist,enginecycles,enginemodel,enginekw,entertainmentsystem,fueltypeprimary,gvwr,make,manufacturer,model,modelyear,plantcity,seats,series,steeringlocation,transmissionstyle,trim,vehicletype,windows,axles,brakesystemtype,batterycells,bedlengthin,brakesystemdesc,curbweightlb,airbagloccurtain,airbaglocseatcushion,batterya,batteryv,batterykwh,wheelbasetype,seatrows,valvetraindesign,transmissionspeeds,engineconfiguration,airbaglocfront,fueltypesecondary,fuelinjectiontype,airbaglocknee,enginehp,evdriveunit,plantcountry,plantcompanyname,plantstate,pretensioner,seatbeltsall,adaptivecruisecontrol,adaptiveheadlights,abs,cib,blindspotmon,ncsabodytype,ncsamake,ncsamodel,esc,tractioncontrol,forwardcollisionwarning,lanedeparturewarning,lanekeepsystem,rearvisibilitysystem,parkassist,airbaglocside,trim2,series2,wheelbaseshort,wheelbaselong,note,wheels,trailertype,trailerbodytype,trailerlength,wheelsizefront,wheelsizerear,otherrestraintsysteminfo,coolingtype,enginehp_to,electrificationlevel,chargerlevel,chargerpowerkw,otherengineinfo,batterya_to,batteryv_to,batterykwh_to,turbo,baseprice,batterymodules,batterypacks,topspeedmph,suggestedvin,errorcode,possiblevalues,axleconfiguration,enginemanufacturer,buslength,busfloorconfigtype,bustype,otherbusinfo,custommotorcycletype,motorcyclesuspensiontype,motorcyclechassistype,othermotorcycleinfo,othertrailerinfo,additionalerrortext,cashforclunkers,trackwidth,tpms,activesafetysysnote,dynamicbrakesupport,pedestrianautomaticemergencybraking,autoreversesystem,automaticpedestrianalertingsound,can_aacn,edr,keylessignition,daytimerunninglight,lowerbeamheadlamplightsource,semiautomaticheadlampbeamswitching,adaptivedrivingbeam,saeautomationlevel,saeautomationlevel_to,rearcrosstrafficalert,gcwr,gcwr_to,ncsanote,ncsamappingexception,ncsamapexcapprovedon,ncsamapexcapprovedby,gvwr_to,errortext,rearautomaticemergencybraking,blindspotintervention,lanecenteringassistance,nonlanduse,vehicledescriptor 460,1800,976,1FM5K8FW*L,,,,,Sport Utility Vehicle (SUV)/Multi-Purpose Vehicle (MPV),4,,3300.0,201.37835551261,3.3,4,4WD/4-Wheel Drive/4x4,,,,,,Gasoline,"Class 2E: 6,001 - 7,000 lb (2,722 - 3,175 kg)",FORD,"FORD MOTOR COMPANY, USA",Explorer,2020,,7,Limited,Left-Hand Drive (LHD),Automatic,,MULTIPURPOSE PASSENGER VEHICLE (MPV),,2,Hydraulic,,,,,,,,,,,3,,10,,1st Row (Driver and Passenger),Electric,,1st Row (Driver and Passenger),,,,,,,Manual,Standard,,Standard,Standard,Standard,,,,Standard,Standard,Standard,Standard,Standard,Standard,,1st and 2nd and 3rd Rows,,,119.1,,,4,Not Applicable,Not Applicable,,20,20,,,,HEV (Hybrid Electric Vehicle) - Level Unknown,,,Ti-VCT,,,,,,,,,"1FM5K8FW*L! ","4,6,14",(11:EGKU),,Ford,,Not Applicable,Not Applicable,,Not Applicable,Not Applicable,Not Applicable,,,"In the Possible values section, the Numeric value before the : indicates the position in error and the values after the : indicate the possible values that are allowed in this position. Unused position(s): 11;",,,Indirect,,Standard,Standard,Standard,,Standard,,Standard,Standard,LED,Standard,,,,Standard,,,,,,,,"4 - VIN corrected, error in one position only (indicated by ! in Suggested VIN), multiple matches found; 6 - Incomplete VIN; 14 - Unable to provide information for some of the characters in the VIN, based on the manufacturer submission.",,,,,1FM5K8FW*L*
A13: makeid,modelid,manufacturerid,vin,batteryinfo,batterytype,bedtype,bodycabtype,bodyclass,enginecylinders,destinationmarket,displacementcc,displacementci,displacementl,doors,drivetype,driverassist,enginecycles,enginemodel,enginekw,entertainmentsystem,fueltypeprimary,gvwr,make,manufacturer,model,modelyear,plantcity,seats,series,steeringlocation,transmissionstyle,trim,vehicletype,windows,axles,brakesystemtype,batterycells,bedlengthin,brakesystemdesc,curbweightlb,airbagloccurtain,airbaglocseatcushion,batterya,batteryv,batterykwh,wheelbasetype,seatrows,valvetraindesign,transmissionspeeds,engineconfiguration,airbaglocfront,fueltypesecondary,fuelinjectiontype,airbaglocknee,enginehp,evdriveunit,plantcountry,plantcompanyname,plantstate,pretensioner,seatbeltsall,adaptivecruisecontrol,adaptiveheadlights,abs,cib,blindspotmon,ncsabodytype,ncsamake,ncsamodel,esc,tractioncontrol,forwardcollisionwarning,lanedeparturewarning,lanekeepsystem,rearvisibilitysystem,parkassist,airbaglocside,trim2,series2,wheelbaseshort,wheelbaselong,note,wheels,trailertype,trailerbodytype,trailerlength,wheelsizefront,wheelsizerear,otherrestraintsysteminfo,coolingtype,enginehp_to,electrificationlevel,chargerlevel,chargerpowerkw,otherengineinfo,batterya_to,batteryv_to,batterykwh_to,turbo,baseprice,batterymodules,batterypacks,topspeedmph,suggestedvin,errorcode,possiblevalues,axleconfiguration,enginemanufacturer,buslength,busfloorconfigtype,bustype,otherbusinfo,custommotorcycletype,motorcyclesuspensiontype,motorcyclechassistype,othermotorcycleinfo,othertrailerinfo,additionalerrortext,cashforclunkers,trackwidth,tpms,activesafetysysnote,dynamicbrakesupport,pedestrianautomaticemergencybraking,autoreversesystem,automaticpedestrianalertingsound,can_aacn,edr,keylessignition,daytimerunninglight,lowerbeamheadlamplightsource,semiautomaticheadlampbeamswitching,adaptivedrivingbeam,saeautomationlevel,saeautomationlevel_to,rearcrosstrafficalert,gcwr,gcwr_to,ncsanote,ncsamappingexception,ncsamapexcapprovedon,ncsamapexcapprovedby,gvwr_to,errortext,rearautomaticemergencybraking,blindspotintervention,lanecenteringassistance,nonlanduse,vehicledescriptor 526,9526,1028,1HTSCAAM*W,,,,,Truck,6,,7636.371824,466,7.636371824,,4x2,,,International DT466 / Maxxforce DT,,,Diesel,"Class 6: 19,501 - 26,000 lb (8,845 - 11,794 kg)",INTERNATIONAL,"NAVISTAR, INC.",4700,1998,,,,,,,INCOMPLETE VEHICLE,,,Hydraulic,,,,,,,,,,,,,,,,,,,,,,,,,,,,,,,,,,,,,,,,,,,,,,Chassis: 80 Inch Wide Steel Cab 68 ABC,,Not Applicable,Not Applicable,,,,,,,,,,,,,,,,,,,"1HTSCAAM*W! ","4,6,14",(11:ABCDEGHJKLNRTUWXY),,International,,,,,Not Applicable,Not Applicable,Not Applicable,,,"In the Possible values section, the Numeric value before the : indicates the position in error and the values after the : indicate the possible values that are allowed in this position. Unused position(s): 11;",,,,,,,,,,,,,,,,,,,,,,,,,,"4 - VIN corrected, error in one position only (indicated by ! in Suggested VIN), multiple matches found; 6 - Incomplete VIN; 14 - Unable to provide information for some of the characters in the VIN, based on the manufacturer submission.",,,,,1HTSCAAM*W*
A14: makeid,modelid,manufacturerid,vin,batteryinfo,batterytype,bedtype,bodycabtype,bodyclass,enginecylinders,destinationmarket,displacementcc,displacementci,displacementl,doors,drivetype,driverassist,enginecycles,enginemodel,enginekw,entertainmentsystem,fueltypeprimary,gvwr,make,manufacturer,model,modelyear,plantcity,seats,series,steeringlocation,transmissionstyle,trim,vehicletype,windows,axles,brakesystemtype,batterycells,bedlengthin,brakesystemdesc,curbweightlb,airbagloccurtain,airbaglocseatcushion,batterya,batteryv,batterykwh,wheelbasetype,seatrows,valvetraindesign,transmissionspeeds,engineconfiguration,airbaglocfront,fueltypesecondary,fuelinjectiontype,airbaglocknee,enginehp,evdriveunit,plantcountry,plantcompanyname,plantstate,pretensioner,seatbeltsall,adaptivecruisecontrol,adaptiveheadlights,abs,cib,blindspotmon,ncsabodytype,ncsamake,ncsamodel,esc,tractioncontrol,forwardcollisionwarning,lanedeparturewarning,lanekeepsystem,rearvisibilitysystem,parkassist,airbaglocside,trim2,series2,wheelbaseshort,wheelbaselong,note,wheels,trailertype,trailerbodytype,trailerlength,wheelsizefront,wheelsizerear,otherrestraintsysteminfo,coolingtype,enginehp_to,electrificationlevel,chargerlevel,chargerpowerkw,otherengineinfo,batterya_to,batteryv_to,batterykwh_to,turbo,baseprice,batterymodules,batterypacks,topspeedmph,suggestedvin,errorcode,possiblevalues,axleconfiguration,enginemanufacturer,buslength,busfloorconfigtype,bustype,otherbusinfo,custommotorcycletype,motorcyclesuspensiontype,motorcyclechassistype,othermotorcycleinfo,othertrailerinfo,additionalerrortext,cashforclunkers,trackwidth,tpms,activesafetysysnote,dynamicbrakesupport,pedestrianautomaticemergencybraking,autoreversesystem,automaticpedestrianalertingsound,can_aacn,edr,keylessignition,daytimerunninglight,lowerbeamheadlamplightsource,semiautomaticheadlampbeamswitching,adaptivedrivingbeam,saeautomationlevel,saeautomationlevel_to,rearcrosstrafficalert,gcwr,gcwr_to,ncsanote,ncsamappingexception,ncsamapexcapprovedon,ncsamapexcapprovedby,gvwr_to,errortext,rearautomaticemergencybraking,blindspotintervention,lanecenteringassistance,nonlanduse,vehicledescriptor 460,1805,976,1FTNX21L*4,,,,Extra/Super/Quad/Double/King/Extended,Pickup,8,,5400.0,329.52821811155,5.4,,4WD/4-Wheel Drive/4x4,,,,186.4250,,Gasoline,"Class 2G: 8,001 - 9,000 lb (3,629 - 4,082 kg)",FORD,"FORD MOTOR COMPANY, USA",F-250,2004,,,,,,F-Series,"TRUCK ",,,Hydraulic,,,,,,,,,,,,,,V-Shaped,1st Row (Driver and Passenger),,,,250,,,,,,Manual,,,,,,,,,,,,,,,,,,,,,Single Rear Wheel,,Not Applicable,Not Applicable,,,,,,,,,,EFI,,,,,,,,,"1FTNX21L*4! ","4,6,14",(11:EFHKMNPT),,Ford,,Not Applicable,Not Applicable,,Not Applicable,Not Applicable,Not Applicable,,,"In the Possible values section, the Numeric value before the : indicates the position in error and the values after the : indicate the possible values that are allowed in this position. Unused position(s): 11;",,,,,,,,,,,,,,,,,,,,,,,,,,"4 - VIN corrected, error in one position only (indicated by ! in Suggested VIN), multiple matches found; 6 - Incomplete VIN; 14 - Unable to provide information for some of the characters in the VIN, based on the manufacturer submission.",,,,,1FTNX21L*4*
A15: makeid,modelid,manufacturerid,vin,batteryinfo,batterytype,bedtype,bodycabtype,bodyclass,enginecylinders,destinationmarket,displacementcc,displacementci,displacementl,doors,drivetype,driverassist,enginecycles,enginemodel,enginekw,entertainmentsystem,fueltypeprimary,gvwr,make,manufacturer,model,modelyear,plantcity,seats,series,steeringlocation,transmissionstyle,trim,vehicletype,windows,axles,brakesystemtype,batterycells,bedlengthin,brakesystemdesc,curbweightlb,airbagloccurtain,airbaglocseatcushion,batterya,batteryv,batterykwh,wheelbasetype,seatrows,valvetraindesign,transmissionspeeds,engineconfiguration,airbaglocfront,fueltypesecondary,fuelinjectiontype,airbaglocknee,enginehp,evdriveunit,plantcountry,plantcompanyname,plantstate,pretensioner,seatbeltsall,adaptivecruisecontrol,adaptiveheadlights,abs,cib,blindspotmon,ncsabodytype,ncsamake,ncsamodel,esc,tractioncontrol,forwardcollisionwarning,lanedeparturewarning,lanekeepsystem,rearvisibilitysystem,parkassist,airbaglocside,trim2,series2,wheelbaseshort,wheelbaselong,note,wheels,trailertype,trailerbodytype,trailerlength,wheelsizefront,wheelsizerear,otherrestraintsysteminfo,coolingtype,enginehp_to,electrificationlevel,chargerlevel,chargerpowerkw,otherengineinfo,batterya_to,batteryv_to,batterykwh_to,turbo,baseprice,batterymodules,batterypacks,topspeedmph,suggestedvin,errorcode,possiblevalues,axleconfiguration,enginemanufacturer,buslength,busfloorconfigtype,bustype,otherbusinfo,custommotorcycletype,motorcyclesuspensiontype,motorcyclechassistype,othermotorcycleinfo,othertrailerinfo,additionalerrortext,cashforclunkers,trackwidth,tpms,activesafetysysnote,dynamicbrakesupport,pedestrianautomaticemergencybraking,autoreversesystem,automaticpedestrianalertingsound,can_aacn,edr,keylessignition,daytimerunninglight,lowerbeamheadlamplightsource,semiautomaticheadlampbeamswitching,adaptivedrivingbeam,saeautomationlevel,saeautomationlevel_to,rearcrosstrafficalert,gcwr,gcwr_to,ncsanote,ncsamappingexception,ncsamapexcapprovedon,ncsamapexcapprovedby,gvwr_to,errortext,rearautomaticemergencybraking,blindspotintervention,lanecenteringassistance,nonlanduse,vehicledescriptor 476,14832,995,2C4RDGBG*K,,,,,Minivan,6,,3600.0,219.68547874103,3.6,4,FWD/Front-Wheel Drive,,,,211.0331,,Gasoline,"Class 2E: 6,001 - 7,000 lb (2,722 - 3,175 kg)",DODGE,FCA CANADA INC.,Grand Caravan,2019,,,SE,Left-Hand Drive (LHD),,,MULTIPURPOSE PASSENGER VEHICLE (MPV),,,Hydraulic,,,,,,,,,,,,,,V-Shaped,1st Row (Driver and Passenger),,,,283,,,,,,Manual,,,,,,,,,,,,,,,,All Rows,,,,,,,Not Applicable,Not Applicable,,,,,,,,,,,,,,,,,,,"2C4RDGBG*K! ","4,6,14",(11:CDEGLNRSTW),,FCA,,Not Applicable,Not Applicable,,Not Applicable,Not Applicable,Not Applicable,,,"In the Possible values section, the Numeric value before the : indicates the position in error and the values after the : indicate the possible values that are allowed in this position. Unused position(s): 11;",,,Direct,,,,,,,,,,,,,,,,,,,,,,,"4 - VIN corrected, error in one position only (indicated by ! in Suggested VIN), multiple matches found; 6 - Incomplete VIN; 14 - Unable to provide information for some of the characters in the VIN, based on the manufacturer submission.",,,,,2C4RDGBG*K*

Sheet Initial Mapping Table (hidden)
A1: Full Vehicle Name | B1: Index | C1: Vehicle Scenario | D1: Map | E1: FPAT Vehicle Name | F1: Drivetrain Type | G1: Vehicle Class | H1: Year | I1: Make | J1: Model | K1: Fuel Economy Electric City (MPGe) | L1: Fuel Economy Electric Hwy (MPGe) | M1: Fuel Economy Gas/Diesel City (MPG) | N1: Fuel Economy Gas/Diesel Hwy (MPG) | O1: MSRP | P1: Electric Range | Q1: Base_V1_Maint_Repair_Cost_Year_1 | R1: Base_V1_Maint_Repair_Cost_Year_5 | S1: Base_V1_Insurance_Cost | T1: Base_V1_Federal_Tax_Incentives | U1: Base_V1_State_Tax_Incentives | V1: Count
A2: CHEVROLET Colorado | B2: 1 | C2: Conventional | D2: Pickup Truck | E2: 2020 Chevrolet Colorado 2WD ICE | F2: ICE | G2: Passenger Vehicles (Light-Duty) | H2: 2020 | I2: Chevrolet | J2: Colorado 2WD | M2: 18 | N2: 25 | O2: 21300 | P2: 0 | Q2: 0.08 | R2: 0.104 | S2: 1194 | T2: 0 | U2: 0 | V2: 1
A3: CHEVROLET Colorado | B3: 1 | C3: EV Alternative | D3: Pickup Truck | E3: 2022 Ford F-150 Lightning (Standard Range) BEV | F3: BEV | G3: Passenger Vehicles (Light-Duty) | H3: 2022 | I3: Ford | J3: F-150 Lightning (Standard Range) | K3: 75 | L3: 65 | O3: 39974 | P3: 230 | Q3: 0.04 | R3: 0.052 | S3: 1194 | T3: 0 | U3: 0 | V3: 1
A4: CHEVROLET S-10 Pickup | B4: 2 | C4: Conventional | D4: Pickup Truck | E4: 2020 Chevrolet Colorado 2WD ICE | F4: ICE | G4: Passenger Vehicles (Light-Duty) | H4: 2020 | I4: Chevrolet | J4: Colorado 2WD | M4: 18 | N4: 25 | O4: 21300 | P4: 0 | Q4: 0.08 | R4: 0.104 | S4: 1194 | T4: 0 | U4: 0 | V4: 1
A5: CHEVROLET S-10 Pickup | B5: 2 | C5: EV Alternative | D5: Pickup Truck | E5: 2022 Ford F-150 Lightning (Standard Range) BEV | F5: BEV | G5: Passenger Vehicles (Light-Duty) | H5: 2022 | I5: Ford | J5: F-150 Lightning (Standard Range) | K5: 75 | L5: 65 | O5: 39974 | P5: 230 | Q5: 0.04 | R5: 0.052 | S5: 1194 | T5: 0 | U5: 0 | V5: 1
A6: CHEVROLET Silverado | B6: 3 | C6: Conventional | D6: Pickup Truck | E6: 2020 Chevrolet Silverado 2WD ICE | F6: ICE | G6: Passenger Vehicles (Light-Duty) | H6: 2020 | I6: Chevrolet | J6: Silverado 2WD | M6: 17 | N6: 23 | O6: 28300 | P6: 0 | Q6: 0.08 | R6: 0.104 | S6: 1194 | T6: 0 | U6: 0 | V6: 15
A7: CHEVROLET Silverado | B7: 3 | C7: EV Alternative | D7: Pickup Truck | E7: 2022 Ford F-150 Lightning (Standard Range) BEV | F7: BEV | G7: Passenger Vehicles (Light-Duty) | H7: 2022 | I7: Ford | J7: F-150 Lightning (Standard Range) | K7: 75 | L7: 65 | O7: 39974 | P7: 230 | Q7: 0.04 | R7: 0.052 | S7: 1194 | T7: 0 | U7: 0 | V7: 15
A8: DODGE Grand Caravan | B8: 4 | C8: Conventional | D8: Minivan | E8: 2020 Dodge Grand Caravan ICE | F8: ICE | G8: Passenger Vehicles (Light-Duty) | H8: 2020 | I8: Dodge | J8: Grand Caravan | M8: 17 | N8: 25 | O8: 27530 | P8: 0 | Q8: 0.08 | R8: 0.104 | S8: 1194 | T8: 0 | U8: 0 | V8: 13
A9: DODGE Grand Caravan | B9: 4 | C9: EV Alternative | D9: Minivan | E9: 2020 Chrysler Pacifica Hybrid PHEV | F9: PHEV | G9: Passenger Vehicles (Light-Duty) | H9: 2020 | I9: Chrysler | J9: Pacifica Hybrid | K9: 87 | L9: 76 | M9: 29 | N9: 30 | O9: 39995 | P9: 32 | Q9: 0.07 | R9: 0.091 | S9: 1194 | T9: 7500 | U9: 0 | V9: 13
A10: FORD E-450 | B10: 5 | C10: Conventional | D10: Vans | E10: 2019 Ford E-450 ICE | F10: ICE | G10: Medium Duty Vehicles (Class 3-6) | H10: 2019 | I10: Ford | J10: E-450 | M10: 9 | N10: 9 | O10: 33860 | Q10: 0.201 | R10: 0.2613 | S10: 4000 | T10: 0 | U10: 0 | V10: 2
A11: FORD E-450 | B11: 5 | C11: EV Alternative | D11: Vans | E11: 2019 Lightning Systems E450 Cab & Chassis BEV | F11: BEV | G11: Medium Duty Vehicles (Class 3-6) | H11: 2019 | I11: Lightning Systems | J11: E450 Cab & Chassis | K11: 35 | L11: 25 | O11: 138805 | P11: 86 | Q11: 0.142 | R11: 0.1846 | S11: 4000 | T11: 0 | U11: 0 | V11: 2
A12: FORD Explorer | B12: 6 | C12: Conventional | D12: SUV | E12: 2020 Ford Explorer AWD ICE | F12: ICE | G12: Passenger Vehicles (Light-Duty) | H12: 2020 | I12: Ford | J12: Explorer AWD | M12: 18 | N12: 24 | O12: 34765 | P12: 0 | Q12: 0.08 | R12: 0.104 | S12: 1194 | T12: 0 | U12: 0 | V12: 21
A13: FORD Explorer | B13: 6 | C13: EV Alternative | D13: SUV | E13: 2021 Ford Mustang Mach-E BEV | F13: BEV | G13: Passenger Vehicles (Light-Duty) | H13: 2021 | I13: Ford | J13: Mustang Mach-E | K13: 114 | L13: 98 | O13: 42895 | P13: 230 | Q13: 0.04 | R13: 0.052 | S13: 1194 | T13: 7500 | U13: 0 | V13: 21
A14: FORD F-250 | B14: 7 | C14: Conventional | D14: Work Truck | E14: 2019 Ford F-250 Service Body ICE | F14: ICE | G14: Medium Duty Vehicles (Class 3-6) | H14: 2019 | I14: Ford | J14: F-250 Service Body | M14: 12 | N14: 12 | O14: 35559 | Q14: 0.201 | R14: 0.2613 | S14: 4000 | T14: 0 | U14: 0 | V14: 16
A15: FORD F-250 | B15: 7 | C15: EV Alternative | D15: Work Truck | E15: 2019 Phoenix Motorcars Z400 - Work Truck BEV | F15: BEV | G15: Medium Duty Vehicles (Class 3-6) | H15: 2019 | I15: Phoenix Motorcars | J15: Z400 - Work Truck | K15: 39 | L15: 24 | O15: 213299 | P15: 110 | Q15: 0.142 | R15: 0.1846 | S15: 4000 | T15: 0 | U15: 0 | V15: 16
A16: FORD F-650 | B16: 8 | C16: Conventional | D16: Work Truck | E16: 2019 Ford F-550 XL Chassis Cab ICE | F16: ICE | G16: Medium Duty Vehicles (Class 3-6) | H16: 2019 | I16: Ford | J16: F-550 XL Chassis Cab | M16: 8 | N16: 8 | O16: 55997 | Q16: 0.201 | R16: 0.2613 | S16: 4000 | T16: 0 | U16: 0 | V16: 1
A17: FORD F-650 | B17: 8 | C17: EV Alternative | D17: Work Truck | E17: 2019 Phoenix Motorcars Z400 - Work Truck BEV | F17: BEV | G17: Medium Duty Vehicles (Class 3-6) | H17: 2019 | I17: Phoenix Motorcars | J17: Z400 - Work Truck | K17: 39 | L17: 24 | O17: 213299 | P17: 110 | Q17: 0.142 | R17: 0.1846 | S17: 4000 | T17: 0 | U17: 0 | V17: 1
A18: FORD Ranger | B18: 9 | C18: Conventional | D18: Pickup Truck | E18: 2020 Ford Ranger 2WD ICE | F18: ICE | G18: Passenger Vehicles (Light-Duty) | H18: 2020 | I18: Ford | J18: Ranger 2WD | M18: 21 | N18: 26 | O18: 24410 | P18: 0 | Q18: 0.08 | R18: 0.104 | S18: 1194 | T18: 0 | U18: 0 | V18: 2
A19: FORD Ranger | B19: 9 | C19: EV Alternative | D19: Pickup Truck | E19: 2022 Ford F-150 Lightning (Standard Range) BEV | F19: BEV | G19: Passenger Vehicles (Light-Duty) | H19: 2022 | I19: Ford | J19: F-150 Lightning (Standard Range) | K19: 75 | L19: 65 | O19: 39974 | P19: 230 | Q19: 0.04 | R19: 0.052 | S19: 1194 | T19: 0 | U19: 0 | V19: 2
A20: FORD Taurus | B20: 10 | C20: Conventional | D20: Sedan | E20: 2019 Ford Taurus AWD ICE | F20: ICE | G20: Passenger Vehicles (Light-Duty) | H20: 2019 | I20: Ford | J20: Taurus AWD | M20: 16 | N20: 24 | O20: 32080 | P20: 0 | Q20: 0.08 | R20: 0.104 | S20: 1194 | T20: 0 | U20: 0 | V20: 11
A21: FORD Taurus | B21: 10 | C21: EV Alternative | D21: Sedan | E21: 2020 Chevrolet Bolt EV BEV | F21: BEV | G21: Passenger Vehicles (Light-Duty) | H21: 2020 | I21: Chevrolet | J21: Bolt EV | K21: 127 | L21: 108 | O21: 36620 | P21: 259 | Q21: 0.04 | R21: 0.052 | S21: 1194 | T21: 0 | U21: 0 | V21: 11
A22: GILLIG Low Floor Bus | B22: 11 | C22: Conventional | D22: Transit/Coach Bus | E22: 2019 Gillig Low Floor 29' ICE | F22: ICE | G22: Heavy-Duty Vehicles (Class 7-8) | H22: 2019 | I22: Gillig | J22: Low Floor 29' | M22: 6 | N22: 12 | O22: 471500 | Q22: 0.199 | R22: 0.2587 | S22: 10000 | T22: 0 | U22: 0 | V22: 2
A23: GILLIG Low Floor Bus | B23: 11 | C23: EV Alternative | D23: Transit/Coach Bus | E23: 2020 BYD C8M 35' All-Electric Coach Bus BEV | F23: BEV | G23: Heavy-Duty Vehicles (Class 7-8) | H23: 2020 | I23: BYD | J23: C8M 35' All-Electric Coach Bus | K23: 16 | L23: 17 | O23: 512500 | P23: 200 | Q23: 0.168 | R23: 0.2184 | S23: 10000 | T23: 0 | U23: 0 | V23: 2
A24: INTERNATIONAL 4700 | B24: 12 | C24: Conventional | D24: Delivery Truck | E24: 2019 International MV607 ICE | F24: ICE | G24: Medium Duty Vehicles (Class 3-6) | H24: 2019 | I24: International | J24: MV607 | M24: 8 | N24: 8 | O24: 75000 | Q24: 0.201 | R24: 0.2613 | S24: 4000 | T24: 0 | U24: 0 | V24: 10
A25: INTERNATIONAL 4700 | B25: 12 | C25: EV Alternative | D25: Delivery Truck | E25: 2020 Freightliner eM2 BEV | F25: BEV | G25: Medium Duty Vehicles (Class 3-6) | H25: 2020 | I25: Freightliner | J25: eM2 | K25: 23 | L25: 21 | O25: 190000 | P25: 230 | Q25: 0.142 | R25: 0.1846 | S25: 4000 | T25: 0 | U25: 0 | V25: 10
A26: TOYOTA Corolla | B26: 13 | C26: Conventional | D26: Sedan | E26: 2020 Toyota Corolla ICE | F26: ICE | G26: Passenger Vehicles (Light-Duty) | H26: 2020 | I26: Toyota | J26: Corolla | M26: 29 | N26: 36 | O26: 19600 | P26: 0 | Q26: 0.08 | R26: 0.104 | S26: 1194 | T26: 0 | U26: 0 | V26: 5
A27: TOYOTA Corolla | B27: 13 | C27: EV Alternative | D27: Sedan | E27: 2020 Chevrolet Bolt EV BEV | F27: BEV | G27: Passenger Vehicles (Light-Duty) | H27: 2020 | I27: Chevrolet | J27: Bolt EV | K27: 127 | L27: 108 | O27: 36620 | P27: 259 | Q27: 0.04 | R27: 0.052 | S27: 1194 | T27: 0 | U27: 0 | V27: 5

Sheet Dashboard (hidden)
A1: DRVE Results Dashboard
O9: Row Labels | P9: Average Total NPV Cost ($/Mile) | Q9: Average Total NPV Cost
O10: Delivery Truck
O11: Conventional | P11: 1.1711 | Q11: 98375.1291
O12: EV Alternative | P12: 1.9149 | Q12: 160853.8271
O13: Minivan
O14: Conventional | P14: 0.409 | Q14: 34353.0102
O15: EV Alternative | P15: 0.3183 | Q15: 26737.5315
O16: Pickup Truck
O17: Conventional | P17: 0.4089105263 | Q17: 34346.98235
O18: EV Alternative | P18: 0.4125 | Q18: 34646.7697
O19: Sedan
O20: Conventional | P20: 0.399125 | Q20: 33528.00236
O21: EV Alternative | P21: 0.3603 | Q21: 30264.7607
O22: SUV
O23: Conventional | P23: 0.4177 | Q23: 35090.4081
O24: EV Alternative | P24: 0.4149 | Q24: 34855.6732
O25: Transit/Coach Bus
O26: Conventional | P26: 4.5284 | Q26: 380383.2307
O27: EV Alternative | P27: 4.7189 | Q27: 396391.6549
O28: Vans
O29: Conventional | P29: 0.7899 | Q29: 66350.8296
O30: EV Alternative | P30: 1.4454 | Q30: 121414.6017
O31: Work Truck
O32: Conventional | P32: 0.7529058824 | Q32: 63246.0865
O33: EV Alternative | P33: 2.072 | Q33: 174044.5623
O34: Grand Total | P34: 0.7827285 | Q34: 65749.60736

Sheet Report (hidden)
B2: Analysis Results
B7: Fleet Summary
B9: ='Report Parameters & Pivots'!C23 -> Overall, there are 69 light-duty vehicles in the fleet, making up 69 percent of the fleet. Medium-duty vehicles make up 29 percent of the fleet (29 vehicles). Heavy-duty vehicles make up 2 percent of the fleet (2 vehicles).
B31: TCO Analysis
B33: This analysis was conducted using a total cost of ownership (TCO) approach to project the cost of all vehicles over their expected useful lives. TCO includes vehicle purchase price, operating, and maintenance cost over the life of the vehicle, as well as charging infrastructure cost, if it was included. To project the value of each vehicle, the analysis uses the depreciated value of the vehicle at the end of its useful life. Annual depreciation is calculated using the purchase price, range, and annual mileage for each vehicle and relies on a formula developed using real world used vehicle sales data. The analysis includes a calculation of the net present value (NPV) of 100 percent electrification compared to 100 percent conventional vehicle use. This takes the NPV of the TCO of all vehicles across the fleet by vehicle class.
B44: Fleet Analysis
B46: The charts below show the average total cost of ownership on a cost-per-mile basis across each vehicles useful life. Figure 2 shows the average across each vehicle category, while figures 3 and 4 show the average across use cases for passenger vehicles and medium/heavy-duty vehicles.
B119: Figure 6 shows the average total cost of ownership per mile for each use case.
B122: Figure 6: Average Cost-Per-Mile by Use Case
C123: Original CPM | D123: EV Average CPM
B124: Delivery Truck | C124: 1.1711 | D124: 1.9149
B125: Minivan | C125: 0.409 | D125: 0.3183
B126: Pickup Truck | C126: 0.4089105263 | D126: 0.4125
B127: Sedan | C127: 0.399125 | D127: 0.3603
B128: SUV | C128: 0.4177 | D128: 0.4149
B129: Transit/Coach Bus | C129: 4.5284 | D129: 4.7189
B130: Vans | C130: 0.7899 | D130: 1.4454
B131: Work Truck | C131: 0.7529058824 | D131: 2.072
B132: Grand Total | C132: 0.63391 | D132: 0.931547
B141: Replacement Vehicles
B143: Of all the light-duty replacement options, the top 5 models shown below were found to be the most cost effect replacement vehicles compared to its conventional alternative.
B146: Vehicle Class | C146: Passenger Vehicles (Light-Duty)
B147: Figure 7: Top 5 Passenger Vehicles to Procure
B148: ICE Replacement | C148: Avg Percent Savings from EVs | D148: EV Alternative | E148: Vehicles
B149: DODGE Grand Caravan | C149: 0.2216830099 | D149: 2020 Chrysler Pacifica Hybrid PHEV | E149: 13
B150: FORD Taurus | C150: 0.1482895267 | D150: 2020 Chevrolet Bolt EV BEV | E150: 11
B151: FORD Explorer | C151: 0.006689432033 | D151: 2021 Ford Mustang Mach-E BEV | E151: 21
B152: CHEVROLET Silverado | C152: 0.003884831853 | D152: 2022 Ford F-150 Lightning (Standard Range) BEV | E152: 15
B153: TOYOTA Corolla | C153: -0.03950463821 | D153: 2020 Chevrolet Bolt EV BEV | E153: 5
B154: Grand Total | C154: 0.07055889804 | D154: 2020 Chevrolet Bolt EV BEV | E154: 65
B159: Vehicle Class | C159: (Multiple Items)
B160: Figure 8: Top 5 Medium and Heavy-Duty Vehicles to Procure
B161: ICE Replacement | C161: Avg Percent Savings from EVs | D161: EV Alternative | E161: Vehicles
B162: GILLIG Low Floor Bus | C162: -0.04208498932 | D162: 2020 BYD C8M 35' All-Electric Coach Bus BEV | E162: 2
B163: INTERNATIONAL 4700 | C163: -0.635106643 | D163: 2020 Freightliner eM2 BEV | E163: 10
B164: FORD E-450 | C164: -0.8298882234 | D164: 2019 Lightning Systems E450 Cab & Chassis BEV | E164: 2
B165: FORD F-650 | C165: -1.050219482 | D165: 2019 Phoenix Motorcars Z400 - Work Truck BEV | E165: 1
B166: FORD F-250 | C166: -1.812009815 | D166: 2019 Phoenix Motorcars Z400 - Work Truck BEV | E166: 16
B167: Grand Total | C167: -0.8977451815 | D167: 2019 Lightning Systems E450 Cab & Chassis BEV | E167: 31
B174: Shown below are the top 100 vehicles recommended for an EV replacement, based on the estimated percent savings for that vehicle, compared to it's conventional options. With the current market conditions and operational costs of these vehicles, the percent savings shown can be captured for each vehicle across each vehicles operational life.
B181: Figure 9: Top 100 Vehicles
B182: VIN | C182: EV Alternative | D182: Avg Percent Savings from EVs
B183: 2C4RDGBG9KR701005 | C183: 2020 Chrysler Pacifica Hybrid PHEV | D183: 0.2216830099
B184: 2C4RDGBG9KR701009 | C184: 2020 Chrysler Pacifica Hybrid PHEV | D184: 0.2216830099
B185: 2C4RDGBG9KR701007 | C185: 2020 Chrysler Pacifica Hybrid PHEV | D185: 0.2216830099
B186: 2C4RDGBG9KR701011 | C186: 2020 Chrysler Pacifica Hybrid PHEV | D186: 0.2216830099
B187: 2C4RDGBG9KR701004 | C187: 2020 Chrysler Pacifica Hybrid PHEV | D187: 0.2216830099
B188: 2C4RDGBG9KR701000 | C188: 2020 Chrysler Pacifica Hybrid PHEV | D188: 0.2216830099
B189: 2C4RDGBG9KR701006 | C189: 2020 Chrysler Pacifica Hybrid PHEV | D189: 0.2216830099
B190: 2C4RDGBG9KR701001 | C190: 2020 Chrysler Pacifica Hybrid PHEV | D190: 0.2216830099
B191: 2C4RDGBG9KR701008 | C191: 2020 Chrysler Pacifica Hybrid PHEV | D191: 0.2216830099
B192: 2C4RDGBG9KR701002 | C192: 2020 Chrysler Pacifica Hybrid PHEV | D192: 0.2216830099
B193: 2C4RDGBG9KR701010 | C193: 2020 Chrysler Pacifica Hybrid PHEV | D193: 0.2216830099
B194: 2C4RDGBG9KR701003 | C194: 2020 Chrysler Pacifica Hybrid PHEV | D194: 0.2216830099
B195: 2C4RDGBG9KR701012 | C195: 2020 Chrysler Pacifica Hybrid PHEV | D195: 0.2216830099
B196: 1FAFP53U05A267105 | C196: 2020 Chevrolet Bolt EV BEV | D196: 0.1482895267
B197: 1FAFP53U05A267103 | C197: 2020 Chevrolet Bolt EV BEV | D197: 0.1482895267
B198: 1FAFP53U05A267107 | C198: 2020 Chevrolet Bolt EV BEV | D198: 0.1482895267
B199: 1FAFP53U05A267100 | C199: 2020 Chevrolet Bolt EV BEV | D199: 0.1482895267
B200: 1FAFP53U05A267104 | C200: 2020 Chevrolet Bolt EV BEV | D200: 0.1482895267
B201: 1FAFP53U05A267109 | C201: 2020 Chevrolet Bolt EV BEV | D201: 0.1482895267
B202: 1FAFP53U05A267106 | C202: 2020 Chevrolet Bolt EV BEV | D202: 0.1482895267
B203: 1FAFP53U05A267101 | C203: 2020 Chevrolet Bolt EV BEV | D203: 0.1482895267
B204: 1FAFP53U05A267108 | C204: 2020 Chevrolet Bolt EV BEV | D204: 0.1482895267
B205: 1FAFP53U05A267102 | C205: 2020 Chevrolet Bolt EV BEV | D205: 0.1482895267
B206: 1FAFP53U05A267110 | C206: 2020 Chevrolet Bolt EV BEV | D206: 0.1482895267
B207: 1FM5K8FW5LGB60011 | C207: 2021 Ford Mustang Mach-E BEV | D207: 0.006689432033
B208: 1FM5K8FW5LGB60007 | C208: 2021 Ford Mustang Mach-E BEV | D208: 0.006689432033
B209: 1FM5K8FW5LGB60005 | C209: 2021 Ford Mustang Mach-E BEV | D209: 0.006689432033
B210: 1FM5K8FW5LGB60013 | C210: 2021 Ford Mustang Mach-E BEV | D210: 0.006689432033
B211: 1FM5K8FW5LGB60002 | C211: 2021 Ford Mustang Mach-E BEV | D211: 0.006689432033
B212: 1FM5K8FW5LGB60003 | C212: 2021 Ford Mustang Mach-E BEV | D212: 0.006689432033
B213: 1FM5K8FW5LGB60004 | C213: 2021 Ford Mustang Mach-E BEV | D213: 0.006689432033
B214: 1FM5K8FW5LGB60000 | C214: 2021 Ford Mustang Mach-E BEV | D214: 0.006689432033
B215: 1FM5K8FW5LGB60006 | C215: 2021 Ford Mustang Mach-E BEV | D215: 0.006689432033
B216: 1FM5K8FW5LGB60016 | C216: 2021 Ford Mustang Mach-E BEV | D216: 0.006689432033
B217: 1FM5K8FW5LGB60008 | C217: 2021 Ford Mustang Mach-E BEV | D217: 0.006689432033
B218: 1FM5K8FW5LGB60017 | C218: 2021 Ford Mustang Mach-E BEV | D218: 0.006689432033
B219: 1FM5K8FW5LGB60010 | C219: 2021 Ford Mustang Mach-E BEV | D219: 0.006689432033
B220: 1FM5K8FW5LGB60018 | C220: 2021 Ford Mustang Mach-E BEV | D220: 0.006689432033
B221: 1FM5K8FW5LGB60012 | C221: 2021 Ford Mustang Mach-E BEV | D221: 0.006689432033
B222: 1FM5K8FW5LGB60020 | C222: 2021 Ford Mustang Mach-E BEV | D222: 0.006689432033
B223: 1FM5K8FW5LGB60014 | C223: 2021 Ford Mustang Mach-E BEV | D223: 0.006689432033
B224: 1FM5K8FW5LGB60001 | C224: 2021 Ford Mustang Mach-E BEV | D224: 0.006689432033
B225: 1FM5K8FW5LGB60015 | C225: 2021 Ford Mustang Mach-E BEV | D225: 0.006689432033
B226: 1FM5K8FW5LGB60009 | C226: 2021 Ford Mustang Mach-E BEV | D226: 0.006689432033
B227: 1FM5K8FW5LGB60019 | C227: 2021 Ford Mustang Mach-E BEV | D227: 0.006689432033
B228: 1GCNKNEHXHZ250110 | C228: 2022 Ford F-150 Lightning (Standard Range) BEV | D228: 0.003884831853
B229: 1GCNKNEHXHZ250106 | C229: 2022 Ford F-150 Lightning (Standard Range) BEV | D229: 0.003884831853
B230: 1GCNKNEHXHZ250104 | C230: 2022 Ford F-150 Lightning (Standard Range) BEV | D230: 0.003884831853
B231: 1GCNKNEHXHZ250111 | C231: 2022 Ford F-150 Lightning (Standard Range) BEV | D231: 0.003884831853
B232: 1GCNKNEHXHZ250108 | C232: 2022 Ford F-150 Lightning (Standard Range) BEV | D232: 0.003884831853
B233: 1GCNKNEHXHZ250112 | C233: 2022 Ford F-150 Lightning (Standard Range) BEV | D233: 0.003884831853
B234: 1GCNKNEHXHZ250103 | C234: 2022 Ford F-150 Lightning (Standard Range) BEV | D234: 0.003884831853
B235: 1GCNKNEHXHZ250113 | C235: 2022 Ford F-150 Lightning (Standard Range) BEV | D235: 0.003884831853
B236: 1GCNKNEHXHZ250105 | C236: 2022 Ford F-150 Lightning (Standard Range) BEV | D236: 0.003884831853
B237: 1GCNKNEHXHZ250114 | C237: 2022 Ford F-150 Lightning (Standard Range) BEV | D237: 0.003884831853
B238: 1GCNKNEHXHZ250107 | C238: 2022 Ford F-150 Lightning (Standard Range) BEV | D238: 0.003884831853
B239: 1GCNKNEHXHZ250100 | C239: 2022 Ford F-150 Lightning (Standard Range) BEV | D239: 0.003884831853
B240: 1GCNKNEHXHZ250109 | C240: 2022 Ford F-150 Lightning (Standard Range) BEV | D240: 0.003884831853
B241: 1GCNKNEHXHZ250101 | C241: 2022 Ford F-150 Lightning (Standard Range) BEV | D241: 0.003884831853
B242: 1GCNKNEHXHZ250102 | C242: 2022 Ford F-150 Lightning (Standard Range) BEV | D242: 0.003884831853
B243: 5YFEPRAE2LP023101 | C243: 2020 Chevrolet Bolt EV BEV | D243: -0.03950463821
B244: 5YFEPRAE2LP021100 | C244: 2020 Chevrolet Bolt EV BEV | D244: -0.03950463821
B245: 5YFEPRAE2LP025102 | C245: 2020 Chevrolet Bolt EV BEV | D245: -0.03950463821
B246: 5YFEPRAE6LP021104 | C246: 2020 Chevrolet Bolt EV BEV | D246: -0.03950463821
B247: 5YFEPRAE4LP022103 | C247: 2020 Chevrolet Bolt EV BEV | D247: -0.03950463821
B248: 15GGD3015C1181155 | C248: 2020 BYD C8M 35' All-Electric Coach Bus BEV | D248: -0.04208498932
B249: 15GGD3013C1181123 | C249: 2020 BYD C8M 35' All-Electric Coach Bus BEV | D249: -0.04208498932
B250: 1GCGTBEN1L1185102 | C250: 2022 Ford F-150 Lightning (Standard Range) BEV | D250: -0.05135151807
B251: 1GCCS145728164101 | C251: 2022 Ford F-150 Lightning (Standard Range) BEV | D251: -0.05135151807
B252: 1FTYR10V5XTA93103 | C252: 2022 Ford F-150 Lightning (Standard Range) BEV | D252: -0.06678839287
B253: 1FTYR14V43TA39100 | C253: 2022 Ford F-150 Lightning (Standard Range) BEV | D253: -0.06678839287
B254: 1HTSCAAM9WH538106 | C254: 2020 Freightliner eM2 BEV | D254: -0.635106643
B255: 1HTSCAAM9WH538108 | C255: 2020 Freightliner eM2 BEV | D255: -0.635106643
B256: 1HTSCAAM9WH538107 | C256: 2020 Freightliner eM2 BEV | D256: -0.635106643
B257: 1HTSCAAM9WH538102 | C257: 2020 Freightliner eM2 BEV | D257: -0.635106643
B258: 1HTSCAAM9WH538103 | C258: 2020 Freightliner eM2 BEV | D258: -0.635106643
B259: 1HTSCAAM9WH538101 | C259: 2020 Freightliner eM2 BEV | D259: -0.635106643
B260: 1HTSCAAM9WH538100 | C260: 2020 Freightliner eM2 BEV | D260: -0.635106643
B261: 1HTSCAAM9WH538104 | C261: 2020 Freightliner eM2 BEV | D261: -0.635106643
B262: 1HTSCAAM9WH538105 | C262: 2020 Freightliner eM2 BEV | D262: -0.635106643
B263: 1HTSCAAM9WH538109 | C263: 2020 Freightliner eM2 BEV | D263: -0.635106643
B264: 1FDXE4FS0DDA07101 | C264: 2019 Lightning Systems E450 Cab & Chassis BEV | D264: -0.8298882234
B265: 1FDXE4FS2DDA07102 | C265: 2019 Lightning Systems E450 Cab & Chassis BEV | D265: -0.8298882234
B266: 1FDNF6AY5HDB03100 | C266: 2019 Phoenix Motorcars Z400 - Work Truck BEV | D266: -1.050219482
B267: 1FTNX21L94EC69100 | C267: 2019 Phoenix Motorcars Z400 - Work Truck BEV | D267: -1.812009815
B268: 1FTNX21L94EC69115 | C268: 2019 Phoenix Motorcars Z400 - Work Truck BEV | D268: -1.812009815
B269: 1FTNX21L94EC69102 | C269: 2019 Phoenix Motorcars Z400 - Work Truck BEV | D269: -1.812009815
B270: 1FTNX21L94EC69110 | C270: 2019 Phoenix Motorcars Z400 - Work Truck BEV | D270: -1.812009815
B271: 1FTNX21L94EC69114 | C271: 2019 Phoenix Motorcars Z400 - Work Truck BEV | D271: -1.812009815
B272: 1FTNX21L94EC69111 | C272: 2019 Phoenix Motorcars Z400 - Work Truck BEV | D272: -1.812009815
B273: 1FTNX21L94EC69101 | C273: 2019 Phoenix Motorcars Z400 - Work Truck BEV | D273: -1.812009815
B274: 1FTNX21L94EC69104 | C274: 2019 Phoenix Motorcars Z400 - Work Truck BEV | D274: -1.812009815
B275: 1FTNX21L94EC69103 | C275: 2019 Phoenix Motorcars Z400 - Work Truck BEV | D275: -1.812009815
B276: 1FTNX21L94EC69105 | C276: 2019 Phoenix Motorcars Z400 - Work Truck BEV | D276: -1.812009815
B277: 1FTNX21L94EC69107 | C277: 2019 Phoenix Motorcars Z400 - Work Truck BEV | D277: -1.812009815
B278: 1FTNX21L94EC69106 | C278: 2019 Phoenix Motorcars Z400 - Work Truck BEV | D278: -1.812009815
B279: 1FTNX21L94EC69109 | C279: 2019 Phoenix Motorcars Z400 - Work Truck BEV | D279: -1.812009815
B280: 1FTNX21L94EC69108 | C280: 2019 Phoenix Motorcars Z400 - Work Truck BEV | D280: -1.812009815
B281: 1FTNX21L94EC69113 | C281: 2019 Phoenix Motorcars Z400 - Work Truck BEV | D281: -1.812009815
B282: 1FTNX21L94EC69112 | C282: 2019 Phoenix Motorcars Z400 - Work Truck BEV | D282: -1.812009815
B283: Total Average | C283: 2019 Lightning Systems E450 Cab & Chassis BEV | D283: -0.4695006871

Sheet Inputs (hidden)
A1: Inputs - Dashboard for Rapid Vehicle Electrification | F1: *HIDDEN* | G1: *HIDDEN* | H1: *HIDDEN*
F2: Autofill Values | G2: Sensitivity Values (to model) | H2: Validation Calcs
B3: Market Inputs
B5: Market | C5: U.S. | E5: =IF(_Forecast_Start_Year<>"", SUMIFS(DB_Fuel_Prices_Future[Price],DB_Fuel_Prices_Future[Year],_Forecast_Start_Year,DB_Fuel_Prices_Future[Category],"Gasoline", DB_Fuel_Prices_Future[State],State_Ex)/SUMIFS(DB_Fuel_Prices_Future[Price],DB_Fuel_Prices_Future[Year],_Baseline_Year,DB_Fuel_Prices_Future[Category],"Gasoline", DB_Fuel_Prices_Future[State],State_Ex)-1, 0) -> 0 | F5: =IF(_Market="U.S.",IF(_Forecast_Load_Year<>"", SUMIFS(DB_Fuel_Prices_Future[Price],DB_Fuel_Prices_Future[Year],_Forecast_Load_Year,DB_Fuel_Prices_Future[Category],"Gasoline", DB_Fuel_Prices_Future[State],State_Ex), VLOOKUP(State_Ex,DB_Fuel_Prices[],3,FALSE)),VLOOKUP(Province_Ex,DB_Gasoline_Prices_Canada[],2,FALSE)) -> 3.7952 | G5: =IF(_Forecast_Start_Year<>"", _Forecast_Gasoline_Price_Change+1, 1) * Gasoline_Price -> 2.2563 | J5: Gasoline Price ($/Gallon) | K5: 2.2563
B6: ZIP Code | C6: 97035 | E6: =IF(_Forecast_Start_Year<>"", SUMIFS(DB_Fuel_Prices_Future[Price],DB_Fuel_Prices_Future[Year],_Forecast_Start_Year,DB_Fuel_Prices_Future[Category],"Diesel", DB_Fuel_Prices_Future[State],State_Ex)/SUMIFS(DB_Fuel_Prices_Future[Price],DB_Fuel_Prices_Future[Year],_Baseline_Year,DB_Fuel_Prices_Future[Category],"Diesel", DB_Fuel_Prices_Future[State],State_Ex)-1, 0) -> 0 | F6: =IF(_Market="U.S.",IF(_Forecast_Load_Year<>"", SUMIFS(DB_Fuel_Prices_Future[Price],DB_Fuel_Prices_Future[Year], _Forecast_Load_Year, DB_Fuel_Prices_Future[Category],"Diesel", DB_Fuel_Prices_Future[State],State_Ex),VLOOKUP(State_Ex,DB_Fuel_Prices[],4,FALSE)),VLOOKUP(Province_Ex,DB_Gasoline_Prices_Canada[],2,FALSE)) -> 3.8468 | G6: =IF(_Forecast_Start_Year<>"", _Forecast_Diesel_Price_Change+1, 1) * Diesel_Price -> 2.608 | J6: Diesel Price ($/Gallon) | K6: 2.608
B7: U.S. State | C7: =VLOOKUP(_Zip_Code,ZipCodeLookup[],3,FALSE) -> OR | E7: =IF(_Forecast_Start_Year<>"", SUMIFS(DB_Fuel_Prices_Future[Price],DB_Fuel_Prices_Future[Year],_Forecast_Start_Year,DB_Fuel_Prices_Future[Category],"Electricity (Commercial)", DB_Fuel_Prices_Future[State],State_Ex)/SUMIFS(DB_Fuel_Prices_Future[Price],DB_Fuel_Prices_Future[Year],_Baseline_Year,DB_Fuel_Prices_Future[Category],"Electricity (Commercial)", DB_Fuel_Prices_Future[State],State_Ex)-1, 0) -> 0 | F7: =IF(_Market="U.S.",IF(_Forecast_Load_Year<>"", SUMIFS(DB_Fuel_Prices_Future[Price],DB_Fuel_Prices_Future[Year],_Forecast_Load_Year,DB_Fuel_Prices_Future[Category],"Electricity (Commercial)", DB_Fuel_Prices_Future[State],State_Ex), VLOOKUP(State_Ex,DB_Fuel_Prices[],6,FALSE)),VLOOKUP(Province_Ex,DB_Electricity_Prices_Canada[],2,FALSE)) -> 0.094 | G7: =IF(_Forecast_Start_Year<>"", _Forecast_Electricity_Cost_Change+1, 1) * Electricity_Price -> 0.094 | J7: Electricity Cost ($/kWh) | K7: 0.094
B8: PADD Region | C8: =VLOOKUP(_Zip_Code,ZipCodeLookup[],5,FALSE) -> 5 | F8: =IF(_Market="U.S.",FV(Inflation_Rate_General, IF(_Forecast_Load_Year="", 0, _Forecast_Load_Year-_Baseline_Year), 0,-0.5), 0.5) -> 0.5 | G8: =FV(Inflation_Rate_General, IF(_Forecast_Start_Year="", 0, _Forecast_Start_Year-_Baseline_Year), 0,-Public_Charging_Price) -> 0.5 | J8: Public Charging Price ($/kWh) | K8: 0.5
B9: eGRID Region | C9: =VLOOKUP(_Zip_Code,ZipCodeLookup[],6,FALSE) -> NWPP | E9: =IF(_Forecast_Start_Year<>"", SUMIFS(DB_Fuel_Prices_Future[Price],DB_Fuel_Prices_Future[Year],_Forecast_Start_Year,DB_Fuel_Prices_Future[Category],"Electricity (Commercial)", DB_Fuel_Prices_Future[State],State_Ex)/SUMIFS(DB_Fuel_Prices_Future[Price],DB_Fuel_Prices_Future[Year],_Baseline_Year,DB_Fuel_Prices_Future[Category],"Electricity (Commercial)", DB_Fuel_Prices_Future[State],State_Ex)-1, 0) -> 0 | F9: =IF(_Market="U.S.",IF(_Forecast_Load_Year<>"", SUMIFS(DB_Fuel_Prices_Future[Price],DB_Fuel_Prices_Future[Year],_Forecast_Load_Year,DB_Fuel_Prices_Future[Category],"Electricity (Commercial)", DB_Fuel_Prices_Future[State],State_Ex), VLOOKUP(State_Ex,DB_Fuel_Prices[],6,FALSE)),VLOOKUP(Province_Ex,DB_Electricity_Prices_Canada[],2,FALSE)) -> 0.094 | G9: =IF(_Forecast_Start_Year<>"", _Forecast_En_Route_Charging_Price_Change+1, 1) * En_Route_Charging_Price -> 0.094 | J9: En Route Charging Price ($/kWh) | K9: 0.094
B10: Canadian Province | C10: British Columbia | F10: =IF(_Market="U.S.", DB_General_Inflation[Inflation (U.S.)], DB_General_Inflation[Inflation (Canada)]) -> 0.02 | G10: =Inflation_Rate_General -> 0.022 | J10: Inflation Rate (Excluding Fuel) (%/Year) | K10: 0.022
B11: Forecast Start Year | C11: 2020 | F11: =IF(_Market="U.S.",FV(Inflation_Rate_General, IF(_Forecast_Load_Year="", 0, _Forecast_Load_Year-_Baseline_Year), 0,-35), 35) -> 35 | G11: =FV(Inflation_Rate_General, IF(_Forecast_Start_Year="", 0, _Forecast_Start_Year-_Baseline_Year), 0,-Cost_of_Downtime_from_Charging) -> 30 | J11: Cost of Downtime from Public Charging ($/Hour) | K11: 30
B12: Baseline Year | C12: 2020
B13: Forecast Load Year | J13: Include Cost of Carbon? | K13: No
B14: Forecast Scenario | C14: Business-as-usual | F14: =IF(_Market="U.S.", FV(Inflation_Rate_General, IF(_Forecast_Load_Year="", 0, _Forecast_Load_Year-_Baseline_Year), 0,-DB_Carbon_Price_US), DB_Carbon_Price_Canada) -> 51 | G14: =FV(Inflation_Rate_General, IF(_Forecast_Start_Year="", 0, _Forecast_Start_Year-_Baseline_Year), 0,-Carbon_Price) -> 0 | J14: Cost of Carbon ($/Ton) | K14: 0
B17: Vehicle Inputs
B19: Vehicle Drivetrain Type | E19: BEV
B20: Vehicle Class | E20: Passenger Vehicles (Light-Duty)
B21: Vehicle Year | E21: 2021
B22: Vehicle Make | E22: Ford
B23: Vehicle Model | E23: Mustang Mach-E | H23: =_Base_V1_Vehicle_Year&" "&_Base_V1_Vehicle_Make&" "&_Base_V1_Vehicle_Model&" "&_Base_V1_Vehicle_Drivetrain -> 2021 Ford Mustang Mach-E BEV
B24: Fuel Economy Gasoline/Diesel City (MPG) | E24: 8 | F24: =IF(_Market="U.S.", VLOOKUP(Base_V1_Type_Ex,DB_Vehicles[], COLUMN(DB_Vehicles[[#Headers],[Fuel Economy Gas/Diesel City (MPG)]]),FALSE)*(1+_Forecast_Load_Vehicle_Fuel_Economy_Change), VLOOKUP(Base_V1_Type_Ex,DB_Vehicles__Canada[],COLUMN(DB_Vehicles__Canada[[#Headers],[Fuel Consumption Gas/Diesel City (L/100 km)]])-COLUMN(DB_Vehicles__Canada[[#Headers],[Selection Name]])+1,FALSE)) -> 0 | G24: =Base_V1_Fuel_Economy_Gas_City*(_Forecast_Vehicle_Fuel_Economy_Change+1) -> 8 | H24: =IF(_Forecast_Load_Year<>"", SUMIFS(DB_Vehicle_Fuel_Economy_Future[Fuel Economy (mpg)],DB_Vehicle_Fuel_Economy_Future[Drivetrain Type], _Base_V1_Vehicle_Drivetrain,DB_Vehicle_Fuel_Economy_Future[Vehicle Class], _Base_V1_Vehicle_Vehicle_Class, DB_Vehicle_Fuel_Economy_Future[Year], _Forecast_Load_Year)/SUMIFS(DB_Vehicle_Fuel_Economy_Future[Fuel Economy (mpg)],DB_Vehicle_Fuel_Economy_Future[Drivetrain Type], _Base_V1_Vehicle_Drivetrain,DB_Vehicle_Fuel_Economy_Future[Vehicle Class], _Base_V1_Vehicle_Vehicle_Class, DB_Vehicle_Fuel_Economy_Future[Year], _Baseline_Year)-1, 0) -> 0
B25: Fuel Economy Gasoline/Diesel Highway (MPG) | E25: 8 | F25: =IF(_Market="U.S.", VLOOKUP(Base_V1_Type_Ex,DB_Vehicles[], COLUMN(DB_Vehicles[[#Headers],[Fuel Economy Gas/Diesel Hwy (MPG)]]),FALSE)*(1+_Forecast_Load_Vehicle_Fuel_Economy_Change), VLOOKUP(Base_V1_Type_Ex,DB_Vehicles__Canada[],COLUMN(DB_Vehicles__Canada[[#Headers],[Fuel Consumption Gas/Diesel Hwy (L/100 km)]])-COLUMN(DB_Vehicles__Canada[[#Headers],[Selection Name]])+1,FALSE)) -> 0 | G25: =Base_V1_Fuel_Economy_Gas_Hwy*(_Forecast_Vehicle_Fuel_Economy_Change+1) -> 8 | H25: =IF(_Forecast_Start_Year<>"", SUMIFS(DB_Vehicle_Fuel_Economy_Future[Fuel Economy (mpg)],DB_Vehicle_Fuel_Economy_Future[Drivetrain Type], _Base_V1_Vehicle_Drivetrain,DB_Vehicle_Fuel_Economy_Future[Vehicle Class], _Base_V1_Vehicle_Vehicle_Class, DB_Vehicle_Fuel_Economy_Future[Year], _Forecast_Start_Year)/SUMIFS(DB_Vehicle_Fuel_Economy_Future[Fuel Economy (mpg)],DB_Vehicle_Fuel_Economy_Future[Drivetrain Type], _Base_V1_Vehicle_Drivetrain,DB_Vehicle_Fuel_Economy_Future[Vehicle Class], _Base_V1_Vehicle_Vehicle_Class, DB_Vehicle_Fuel_Economy_Future[Year], _Baseline_Year)-1, 0) -> 0
B26: Fuel Economy Electric City (MPGe) | E26: 114 | F26: =IF(_Market="U.S.", VLOOKUP(Base_V1_Type_Ex,DB_Vehicles[], COLUMN(DB_Vehicles[[#Headers],[Fuel Economy Electric City (MPGe)]]),FALSE)*(1+_Forecast_Load_Vehicle_Fuel_Economy_Change), VLOOKUP(Base_V1_Type_Ex,DB_Vehicles__Canada[],COLUMN(DB_Vehicles__Canada[[#Headers],[Fuel Consumption Electric City (Le/100 km)]])-COLUMN(DB_Vehicles__Canada[[#Headers],[Selection Name]])+1,FALSE)) -> 114 | G26: =Base_V1_Fuel_Economy_Electric_City*(_Forecast_Vehicle_Fuel_Economy_Change+1) -> 114
B27: Fuel Economy Electric Hwy (MPGe) | E27: 98 | F27: =IF(_Market="U.S.", VLOOKUP(Base_V1_Type_Ex,DB_Vehicles[], COLUMN(DB_Vehicles[[#Headers],[Fuel Economy Electric Hwy (MPGe)]]),FALSE)*(1+_Forecast_Load_Vehicle_Fuel_Economy_Change), VLOOKUP(Base_V1_Type_Ex,DB_Vehicles__Canada[],COLUMN(DB_Vehicles__Canada[[#Headers],[Fuel Consumption Electric Hwy (Le/100 km)]])-COLUMN(DB_Vehicles__Canada[[#Headers],[Selection Name]])+1,FALSE)) -> 98 | G27: =Base_V1_Fuel_Economy_Electric_Hwy*(_Forecast_Vehicle_Fuel_Economy_Change+1) -> 98
B28: Expected Years of Use/Ownership (Years) | E28: 7 | F28: =DB_Expected_Years_Of_Use_Ownership -> 7 | G28: =Base_V1_Years_Usage -> 7
B29: Annual Vehicle Mileage (VMT/Year) | E29: 12000 | F29: =IF(_Market="U.S.", DB_Annual_Mileage_US, DB_Annual_Mileage_Canada) -> 12000 | G29: =Base_V1_VMT -> 12000
B30: % of Annual Miles on Gasoline/Diesel | E30: 0 | F30: =IF(_Base_V1_Vehicle_Drivetrain<>"BEV", MAX((Base_V1_VMT/365)-IF(_Market="U.S.", VLOOKUP(Base_V1_Type_Ex,DB_Vehicles[], COLUMN(DB_Vehicles[[#Headers],[Electric Range]]),FALSE), VLOOKUP(Base_V1_Type_Ex,DB_Vehicles__Canada[], COLUMN(DB_Vehicles__Canada[[#Headers],[Electric Range]])-COLUMN(DB_Vehicles__Canada[[#Headers],[Selection Name]])+1,FALSE)),0)/(Base_V1_VMT/365), 0) -> 0 | G30: =Base_V1_Miles_Gas -> 0
B31: % of Annual Miles City Driving | E31: 0.55 | F31: =DB_Percent_Annual_Miles_City_Driving -> 0.55 | G31: =Base_V1_Miles_City -> 0.55
B32: Scale Insurance Cost to Vehicle Value? | E32: Yes | G32: =Base_V1_Insurance_Cost_Scaled_to_Vehicle_Value -> Yes
B33: Fixed Cost to Insure ($/Year) | E33: 1194 | F33: =FV(Inflation_Rate_General, IF(_Forecast_Load_Year="", 0, _Forecast_Load_Year-_Baseline_Year), 0,-SUMIFS(DB_Vehicle_Insurance_Table[Cost], DB_Vehicle_Insurance_Table[Vehicle Class], _Base_V1_Vehicle_Vehicle_Class, DB_Vehicle_Insurance_Table[Market], _Market)) -> 1194 | G33: =Base_V1_Insurance_Cost -> 1194
B34: Insurance Cost (% of Vehicle Value) | E34: 0 | G34: =Base_V1_Insurance_Cost_Scaled_Percent -> 0
B35: Use Drivetrain Default Maintenance and Repair Costs? | E35: No
B36: Maintenance and Repair Cost - Years 1 - 5 ($/Mile) | E36: 0.04 | F36: =FV(Inflation_Rate_General, IF(_Forecast_Load_Year="", 0, _Forecast_Load_Year-_Baseline_Year), 0,-SUMIFS(DB_Maint_Repair_Costs[[Year 1 ]], DB_Maint_Repair_Costs[Market], _Market, DB_Maint_Repair_Costs[Vehicle Type], _Base_V1_Vehicle_Drivetrain, DB_Maint_Repair_Costs[Vehicle Class], _Base_V1_Vehicle_Vehicle_Class)) -> 0.04 | G36: =FV(Inflation_Rate_General, IF(_Forecast_Start_Year="", 0, _Forecast_Start_Year-_Baseline_Year), 0,-Base_V1_Maint_Repair_Cost_Year_1) -> 0.04
B37: Maintenance and Repair Cost - Years 5+ ($/Mile) | E37: 0.052 | F37: =FV(Inflation_Rate_General, IF(_Forecast_Load_Year="", 0, _Forecast_Load_Year-_Baseline_Year), 0,-SUMIFS(DB_Maint_Repair_Costs[Year 6], DB_Maint_Repair_Costs[Market], _Market, DB_Maint_Repair_Costs[Vehicle Type], _Base_V1_Vehicle_Drivetrain, DB_Maint_Repair_Costs[Vehicle Class], _Base_V1_Vehicle_Vehicle_Class)) -> 0.052 | G37: =FV(Inflation_Rate_General, IF(_Forecast_Start_Year="", 0, _Forecast_Start_Year-_Baseline_Year), 0,-Base_V1_Maint_Repair_Cost_Year_5) -> 0.052
B38: Recurring Taxes and Fees ($/Year) | E38: 0 | G38: =Base_V1_Taxes_Fees -> 0
C39: Vehicle details from fueleconomy.gov
B41: Vehicle Procurement Inputs
B44: Discount Rate for NPV Calculations (%) | E44: 0 | G44: =Base_Discount_Rate -> 0
B46: Number of Vehicles to Procure (#) | E46: 1 | G46: =Base_V1_Num_Vehicles -> 1
B47: Pricing Approach (select one) | E47: MSRP Less Discounts | H47: =IF(IFERROR(FIND("MSRP",_Base_V1_Pricing_Approach,1),0)>0,TRUE,FALSE) -> TRUE
B48: MSRP ($/Vehicle) | E48: 42895 | F48: =IF(_Market="U.S.", VLOOKUP(Base_V1_Type_Ex,DB_Vehicles[],COLUMN(DB_Vehicles[[#Headers],[MSRP]]),FALSE)*(1+_Forecast_Load_Vehicle_Price_Change), VLOOKUP(Base_V1_Type_Ex, DB_Vehicles__Canada[], COLUMN(DB_Vehicles__Canada[[#Headers],[MSRP]])-COLUMN(DB_Vehicles__Canada[[#Headers],[Selection Name]])+1,FALSE)) -> 42895 | G48: =Base_V1_MSRP*(1+_Forecast_Start_Vehicle_Price_Change) -> 42895 | H48: =SUMIFS(DB_Vehicle_Prices_Future[% Change],DB_Vehicle_Prices_Future[Scenario],_Forecast_Scenario,DB_Vehicle_Prices_Future[Year],_Forecast_Load_Year, DB_Vehicle_Prices_Future[Drivetrain Type], _Base_V1_Vehicle_Drivetrain,DB_Vehicle_Prices_Future[Use Case], VLOOKUP(Base_V1_Type_Ex,DB_Vehicles[],COLUMN(DB_Vehicles[[#Headers],[NREL Use Case]]),FALSE)) -> 0
B49: Value of Negotiated Discounts off MSRP ($/Vehicle) | E49: 0 | G49: =Base_V1_Discounts -> 0 | H49: =SUMIFS(DB_Vehicle_Prices_Future[% Change],DB_Vehicle_Prices_Future[Scenario],_Forecast_Scenario,DB_Vehicle_Prices_Future[Year],_Forecast_Start_Year, DB_Vehicle_Prices_Future[Drivetrain Type], _Base_V1_Vehicle_Drivetrain,DB_Vehicle_Prices_Future[Use Case], VLOOKUP(Base_V1_Type_Ex,DB_Vehicles[],COLUMN(DB_Vehicles[[#Headers],[NREL Use Case]]),FALSE)) -> 0
B50: Dealer Triple Net Price ($/Vehicle) | E50: =Base_V1_MSRP -> 42895 | G50: =Base_V1_List_Price -> 42895
B51: Dealer Markup ($/Vehicle) | E51: 0 | G51: =Base_V1_List_Price_Markup -> 0
B52: Total Base Price | E52: =IF(IFERROR(FIND("MSRP",_Base_V1_Pricing_Approach,1),0)>0,Base_V1_MSRP_Modeled-Base_V1_Discounts_Modeled,Base_V1_List_Price_Modeled+Base_V1_List_Price_Markup_Modeled) -> 42895
B53: Value of Federal Tax Incentives ($/Vehicle) | E53: 0 | F53: =IFERROR(IF(_Market="U.S.", VLOOKUP(Base_V1_Type_Ex, DB_Vehicle_Incentives[], MATCH("Federal Tax Credit", DB_Vehicle_Incentives[#Headers],0),FALSE), 0), 0) -> 7500 | G53: =Base_V1_Federal_Tax_Incentives -> 0
B54: Value of State Tax Incentives ($/Vehicle) | E54: 0 | F54: =IFERROR(IF(_Market="U.S.", IF(VLOOKUP("Incentive Type", DB_Vehicle_Incentives[], MATCH(State_Ex, DB_Vehicle_Incentives[#Headers], 0), FALSE)="Tax", VLOOKUP(Base_V1_Type_Ex, DB_Vehicle_Incentives[], MATCH(State_Ex, DB_Vehicle_Incentives[#Headers], 0),FALSE),0), IF(VLOOKUP("Incentive Type", DB_Vehicle_Incentives__Canada[], MATCH(Province_Ex, DB_Vehicle_Incentives__Canada[#Headers], 0), FALSE)="Tax", VLOOKUP(Base_V1_Type_Ex, DB_Vehicle_Incentives__Canada[], MATCH(Province_Ex, DB_Vehicle_Incentives__Canada[#Headers], 0),FALSE),0)), 0) -> 0 | G54: =Base_V1_State_Tax_Incentives -> 0
B55: State Tax Incentive Cap ($) | E55: 0 | G55: =Base_V1_State_Tax_Incentive_Cap -> 0
B56: Value of Non-tax Incentives ($/Vehicle) | E56: 0 | F56: =IFERROR(IF(_Market="U.S.", IF(VLOOKUP("Incentive Type", DB_Vehicle_Incentives[], MATCH(State_Ex, DB_Vehicle_Incentives[#Headers], 0), FALSE)<>"Tax", VLOOKUP(Base_V1_Type_Ex, DB_Vehicle_Incentives[], MATCH(State_Ex, DB_Vehicle_Incentives[#Headers], 0),FALSE),0), IF(VLOOKUP("Incentive Type", DB_Vehicle_Incentives__Canada[], MATCH(Province_Ex, DB_Vehicle_Incentives__Canada[#Headers], 0), FALSE)<>"Tax", VLOOKUP(Base_V1_Type_Ex, DB_Vehicle_Incentives__Canada[], MATCH(Province_Ex, DB_Vehicle_Incentives__Canada[#Headers], 0),FALSE),0)), 0) -> 0 | G56: =Base_V1_Other_Incentives -> 0
B57: Initial Tax, Title, and Registration Cost ($/Vehicle) | E57: 0 | G57: =FV(Inflation_Rate_General, IF(_Forecast_Start_Year="", 0, _Forecast_Start_Year-_Baseline_Year), 0,-Base_V1_Initial_Taxes_Fees) -> 0
B58: Initial Fee as Percent of Vehicle Base Price (%) | E58: 0 | G58: =Base_V1_Initial_Percent_Base_Price -> 0
B59: Ownership Structure | E59: Purchase (Cash) | H59: =IF(IFERROR(FIND("Cash",_Base_V1_Ownership_Structure,1),0)>0,TRUE,FALSE) -> TRUE
B60: Tax Credits Can Be Monetized? (Y/N) | E60: Yes | H60: =IF(IFERROR(FIND("Loan",_Base_V1_Ownership_Structure,1),0)>0,TRUE,FALSE) -> FALSE
H61: =IF(IFERROR(FIND("Lease",_Base_V1_Ownership_Structure,1),0)>0,TRUE,FALSE) -> FALSE
B62: Down Payment ($/Vehicle) | E62: 0 | G62: =Base_V1_Down_Payment -> 0
B63: Lease
B64: Lease Term (Years) | E64: 0 | G64: =Base_V1_Lease_Term -> 0 | H64: Data validation handled in VBA
B65: Lease Interest Rate (APR - %) | E65: 0 | G65: =Base_V1_Lease_APR -> 0
B66: OR
B67: Money Factor (#) | E67: 0 | G67: =Base_V1_Lease_Money_Factor -> 0
B68: Acquisition Fee ($/Vehicle) | E68: 0 | G68: =Base_V1_Lease_Acquisition_Fee -> 0
B69: Disposition Charge ($/Vehicle) | E69: 0 | G69: =Base_V1_Lease_Disposition_Fee -> 0
B70: Negotiated Residual Value ($/Vehicle) | E70: 0 | G70: =Base_V1_Lease_Residual_Price -> 0 | H70: =IF(IFERROR(FIND("Tax-Exempt",_Base_V1_Ownership_Structure,1),0)>0,IF(Base_V1_Lease_Residual_Price=1,TRUE,FALSE),TRUE) -> TRUE
B71: Mileage Included (Closed-End Only) | E71: 0 | G71: =Base_V1_Lease_Mileage_Inc -> 0
B72: Excess Mileage Cost ($/Mile) | E72: 0 | G72: =Base_V1_Lease_Mileage_Cost -> 0
B73: Loan
B74: Loan Term (Years) | E74: 0 | G74: =Base_V1_Loan_Term -> 0 | H74: Data validation handled in VBA
B75: Loan Interest Rate (APR - %) | E75: 0 | G75: =Base_V1_Loan_APR -> 0
B78: EV Charging Infrastructure Use and Installation Inputs
B79: Procurement 1 (Baseline)
B80: % Depot/Home Charging | E80: 1 | G80: =Base_Percent_Home_Charging -> 1
B81: % Public Charging | E81: 0 | G81: =Base_Percent_Public_Charging -> 0
B82: % En Route Charging | E82: 0 | G82: =Base_Percent_En_Route_Charging_Ex -> 0
B83: Charging Level | E83: Level 2
B84: Maximum Power for Public Charging Only (kW) | E84: 50 | F84: =IF(_Base_Charging_Level="Level 2", 7.2, 50) -> 7.2 | G84: =Base_Station_Max_Power -> 50
B86: Annual % Change in Charging Equipment Cost (Between 2020 and 2030) | E86: 0
B87: Annual % Change in Construction & Equipment Installation Cost (Between 2020 and 2030) | E87: 0
B88: Annual % Change in Electric Utility Upgrades & Grid Interconnection Cost Cost (Between 2020 and 2030) | E88: 0
B90: Procurement Includes EV Charging? | E90: No
B91: Number of EV Charging Stations Needed (#) | E91: 1 | G91: =Base_Num_Stations -> 1
B92: Charging Equipment Cost ($/Station) | E92: 666.6666667 | F92: =FV(_Forecast_EVSE_Cost_Change, IF(OR(_Forecast_Load_Year="", _Forecast_Load_Year>=2030), 0, _Forecast_Load_Year-2020), 0,-SUMIFS(DB_Charging_Infrastructure[Cost],DB_Charging_Infrastructure[Charging Level], _Base_Charging_Level, DB_Charging_Infrastructure[Market], _Market, DB_Charging_Infrastructure[Description],B92)) -> 834 | G92: =FV(Inflation_Rate_General, IF(_Forecast_Start_Year="", 0, _Forecast_Start_Year-_Baseline_Year), 0,-Base_Station_Cost) -> 666.6666667 | H92: =SUM(G92:G94) -> 1666.666667
B93: Construction & Equipment Installation Cost ($/Station) | E93: 1000 | F93: =FV(_Forecast_Construction_Cost_Change, IF(OR(_Forecast_Load_Year="", _Forecast_Load_Year>=2030), 0, _Forecast_Start_Year-2020), 0,-SUMIFS(DB_Charging_Infrastructure[Cost],DB_Charging_Infrastructure[Charging Level], _Base_Charging_Level, DB_Charging_Infrastructure[Market], _Market, DB_Charging_Infrastructure[Description],B93)) -> 2180 | G93: =FV(Inflation_Rate_General, IF(_Forecast_Start_Year="", 0, _Forecast_Start_Year-_Baseline_Year), 0,-Base_Station_Construction_Cost) -> 1000
B94: Electric Utility Upgrades and Grid Interconnection Cost ($/Site) | E94: 0 | F94: =FV(_Forecast_Utility_Cost_Change, IF(OR(_Forecast_Load_Year="", _Forecast_Load_Year>=2030), 0, _Forecast_Load_Year-2020), 0,-SUMIFS(DB_Charging_Infrastructure[Cost],DB_Charging_Infrastructure[Charging Level], _Base_Charging_Level, DB_Charging_Infrastructure[Market], _Market, DB_Charging_Infrastructure[Description],B94)) -> 0 | G94: =FV(Inflation_Rate_General, IF(_Forecast_Start_Year="", 0, _Forecast_Start_Year-_Baseline_Year), 0,-Base_Station_Utility_Cost) -> 0
B95: Maintenance Cost ($/Station/Year) | E95: 20 | F95: =FV(Inflation_Rate_General, IF(_Forecast_Load_Year="", 0, _Forecast_Load_Year-_Baseline_Year), 0,-SUMIFS(DB_Charging_Infrastructure[Cost],DB_Charging_Infrastructure[Charging Level], _Base_Charging_Level, DB_Charging_Infrastructure[Market], _Market, DB_Charging_Infrastructure[Description],B95)) -> 25.02 | G95: =Base_Station_Maint_Cost -> 20
B96: Ownership Structure | E96: Purchase (Cash) | H96: =IF(IFERROR(FIND("Cash",_Base_Inf_Ownership_Structure,1),0)>0,TRUE,FALSE) -> TRUE
B97: Loan
B98: Cash Upfront / Down Payment ($) | G98: =Base_Inf_Down_Payment -> 0
B99: Loan Term (Years) | G99: =Base_Inf_Loan_Term -> 0
B100: Interest Rate (APR - %) | G100: =Base_Inf_Loan_APR -> 0

Sheet Vehicle Summary (hidden)
A1: Vehicle Summary
A3: Row Labels | B3: EV Average NPV | C3: EV Average CPM | D3: Original Average NPV | E3: Original Average CPM | F3: Avg Percent Savings from EVs | G3: Liklihood of Savings from EVs | H3: Conventional Vehicle | I3: Electric Vehicle | J3: Vehicles
A4: Delivery Truck
A5: INTERNATIONAL 4700
A6: 1HTSCAAM9WH538100 | B6: 160853.8271 | C6: 1.9149 | D6: 98375.1291 | E6: 1.1711 | F6: -0.635106643 | G6: Very Unlikely | H6: 2019 International MV607 ICE | I6: 2020 Freightliner eM2 BEV | J6: 1
A7: 1HTSCAAM9WH538101 | B7: 160853.8271 | C7: 1.9149 | D7: 98375.1291 | E7: 1.1711 | F7: -0.635106643 | G7: Very Unlikely | H7: 2019 International MV607 ICE | I7: 2020 Freightliner eM2 BEV | J7: 1
A8: 1HTSCAAM9WH538102 | B8: 160853.8271 | C8: 1.9149 | D8: 98375.1291 | E8: 1.1711 | F8: -0.635106643 | G8: Very Unlikely | H8: 2019 International MV607 ICE | I8: 2020 Freightliner eM2 BEV | J8: 1
A9: 1HTSCAAM9WH538103 | B9: 160853.8271 | C9: 1.9149 | D9: 98375.1291 | E9: 1.1711 | F9: -0.635106643 | G9: Very Unlikely | H9: 2019 International MV607 ICE | I9: 2020 Freightliner eM2 BEV | J9: 1
A10: 1HTSCAAM9WH538104 | B10: 160853.8271 | C10: 1.9149 | D10: 98375.1291 | E10: 1.1711 | F10: -0.635106643 | G10: Very Unlikely | H10: 2019 International MV607 ICE | I10: 2020 Freightliner eM2 BEV | J10: 1
A11: 1HTSCAAM9WH538105 | B11: 160853.8271 | C11: 1.9149 | D11: 98375.1291 | E11: 1.1711 | F11: -0.635106643 | G11: Very Unlikely | H11: 2019 International MV607 ICE | I11: 2020 Freightliner eM2 BEV | J11: 1
A12: 1HTSCAAM9WH538106 | B12: 160853.8271 | C12: 1.9149 | D12: 98375.1291 | E12: 1.1711 | F12: -0.635106643 | G12: Very Unlikely | H12: 2019 International MV607 ICE | I12: 2020 Freightliner eM2 BEV | J12: 1
A13: 1HTSCAAM9WH538107 | B13: 160853.8271 | C13: 1.9149 | D13: 98375.1291 | E13: 1.1711 | F13: -0.635106643 | G13: Very Unlikely | H13: 2019 International MV607 ICE | I13: 2020 Freightliner eM2 BEV | J13: 1
A14: 1HTSCAAM9WH538108 | B14: 160853.8271 | C14: 1.9149 | D14: 98375.1291 | E14: 1.1711 | F14: -0.635106643 | G14: Very Unlikely | H14: 2019 International MV607 ICE | I14: 2020 Freightliner eM2 BEV | J14: 1
A15: 1HTSCAAM9WH538109 | B15: 160853.8271 | C15: 1.9149 | D15: 98375.1291 | E15: 1.1711 | F15: -0.635106643 | G15: Very Unlikely | H15: 2019 International MV607 ICE | I15: 2020 Freightliner eM2 BEV | J15: 1
A16: Minivan
A17: DODGE Grand Caravan
A18: 2C4RDGBG9KR701000 | B18: 26737.5315 | C18: 0.3183 | D18: 34353.0102 | E18: 0.409 | F18: 0.2216830099 | G18: Very Likely | H18: 2020 Dodge Grand Caravan ICE | I18: 2020 Chrysler Pacifica Hybrid PHEV | J18: 1
A19: 2C4RDGBG9KR701001 | B19: 26737.5315 | C19: 0.3183 | D19: 34353.0102 | E19: 0.409 | F19: 0.2216830099 | G19: Very Likely | H19: 2020 Dodge Grand Caravan ICE | I19: 2020 Chrysler Pacifica Hybrid PHEV | J19: 1
A20: 2C4RDGBG9KR701002 | B20: 26737.5315 | C20: 0.3183 | D20: 34353.0102 | E20: 0.409 | F20: 0.2216830099 | G20: Very Likely | H20: 2020 Dodge Grand Caravan ICE | I20: 2020 Chrysler Pacifica Hybrid PHEV | J20: 1
A21: 2C4RDGBG9KR701003 | B21: 26737.5315 | C21: 0.3183 | D21: 34353.0102 | E21: 0.409 | F21: 0.2216830099 | G21: Very Likely | H21: 2020 Dodge Grand Caravan ICE | I21: 2020 Chrysler Pacifica Hybrid PHEV | J21: 1
A22: 2C4RDGBG9KR701004 | B22: 26737.5315 | C22: 0.3183 | D22: 34353.0102 | E22: 0.409 | F22: 0.2216830099 | G22: Very Likely | H22: 2020 Dodge Grand Caravan ICE | I22: 2020 Chrysler Pacifica Hybrid PHEV | J22: 1
A23: 2C4RDGBG9KR701005 | B23: 26737.5315 | C23: 0.3183 | D23: 34353.0102 | E23: 0.409 | F23: 0.2216830099 | G23: Very Likely | H23: 2020 Dodge Grand Caravan ICE | I23: 2020 Chrysler Pacifica Hybrid PHEV | J23: 1
A24: 2C4RDGBG9KR701006 | B24: 26737.5315 | C24: 0.3183 | D24: 34353.0102 | E24: 0.409 | F24: 0.2216830099 | G24: Very Likely | H24: 2020 Dodge Grand Caravan ICE | I24: 2020 Chrysler Pacifica Hybrid PHEV | J24: 1
A25: 2C4RDGBG9KR701007 | B25: 26737.5315 | C25: 0.3183 | D25: 34353.0102 | E25: 0.409 | F25: 0.2216830099 | G25: Very Likely | H25: 2020 Dodge Grand Caravan ICE | I25: 2020 Chrysler Pacifica Hybrid PHEV | J25: 1
A26: 2C4RDGBG9KR701008 | B26: 26737.5315 | C26: 0.3183 | D26: 34353.0102 | E26: 0.409 | F26: 0.2216830099 | G26: Very Likely | H26: 2020 Dodge Grand Caravan ICE | I26: 2020 Chrysler Pacifica Hybrid PHEV | J26: 1
A27: 2C4RDGBG9KR701009 | B27: 26737.5315 | C27: 0.3183 | D27: 34353.0102 | E27: 0.409 | F27: 0.2216830099 | G27: Very Likely | H27: 2020 Dodge Grand Caravan ICE | I27: 2020 Chrysler Pacifica Hybrid PHEV | J27: 1
A28: 2C4RDGBG9KR701010 | B28: 26737.5315 | C28: 0.3183 | D28: 34353.0102 | E28: 0.409 | F28: 0.2216830099 | G28: Very Likely | H28: 2020 Dodge Grand Caravan ICE | I28: 2020 Chrysler Pacifica Hybrid PHEV | J28: 1
A29: 2C4RDGBG9KR701011 | B29: 26737.5315 | C29: 0.3183 | D29: 34353.0102 | E29: 0.409 | F29: 0.2216830099 | G29: Very Likely | H29: 2020 Dodge Grand Caravan ICE | I29: 2020 Chrysler Pacifica Hybrid PHEV | J29: 1
A30: 2C4RDGBG9KR701012 | B30: 26737.5315 | C30: 0.3183 | D30: 34353.0102 | E30: 0.409 | F30: 0.2216830099 | G30: Very Likely | H30: 2020 Dodge Grand Caravan ICE | I30: 2020 Chrysler Pacifica Hybrid PHEV | J30: 1
A31: Pickup Truck
A32: CHEVROLET Colorado
A33: 1GCGTBEN1L1185102 | B33: 34646.7697 | C33: 0.4125 | D33: 32954.5058 | E33: 0.3923 | F33: -0.05135151807 | G33: Neither Likely Nor Unlikely | H33: 2020 Chevrolet Colorado 2WD ICE | I33: 2022 Ford F-150 Lightning (Standard Range) BEV | J33: 1
A34: CHEVROLET S-10 Pickup
A35: 1GCCS145728164101 | B35: 34646.7697 | C35: 0.4125 | D35: 32954.5058 | E35: 0.3923 | F35: -0.05135151807 | G35: Neither Likely Nor Unlikely | H35: 2020 Chevrolet Colorado 2WD ICE | I35: 2022 Ford F-150 Lightning (Standard Range) BEV | J35: 1
A36: CHEVROLET Silverado
A37: 1GCNKNEHXHZ250100 | B37: 34646.7697 | C37: 0.4125 | D37: 34781.8915 | E37: 0.4141 | F37: 0.003884831853 | G37: Likely | H37: 2020 Chevrolet Silverado 2WD ICE | I37: 2022 Ford F-150 Lightning (Standard Range) BEV | J37: 1
A38: 1GCNKNEHXHZ250101 | B38: 34646.7697 | C38: 0.4125 | D38: 34781.8915 | E38: 0.4141 | F38: 0.003884831853 | G38: Likely | H38: 2020 Chevrolet Silverado 2WD ICE | I38: 2022 Ford F-150 Lightning (Standard Range) BEV | J38: 1
A39: 1GCNKNEHXHZ250102 | B39: 34646.7697 | C39: 0.4125 | D39: 34781.8915 | E39: 0.4141 | F39: 0.003884831853 | G39: Likely | H39: 2020 Chevrolet Silverado 2WD ICE | I39: 2022 Ford F-150 Lightning (Standard Range) BEV | J39: 1
A40: 1GCNKNEHXHZ250103 | B40: 34646.7697 | C40: 0.4125 | D40: 34781.8915 | E40: 0.4141 | F40: 0.003884831853 | G40: Likely | H40: 2020 Chevrolet Silverado 2WD ICE | I40: 2022 Ford F-150 Lightning (Standard Range) BEV | J40: 1
A41: 1GCNKNEHXHZ250104 | B41: 34646.7697 | C41: 0.4125 | D41: 34781.8915 | E41: 0.4141 | F41: 0.003884831853 | G41: Likely | H41: 2020 Chevrolet Silverado 2WD ICE | I41: 2022 Ford F-150 Lightning (Standard Range) BEV | J41: 1
A42: 1GCNKNEHXHZ250105 | B42: 34646.7697 | C42: 0.4125 | D42: 34781.8915 | E42: 0.4141 | F42: 0.003884831853 | G42: Likely | H42: 2020 Chevrolet Silverado 2WD ICE | I42: 2022 Ford F-150 Lightning (Standard Range) BEV | J42: 1
A43: 1GCNKNEHXHZ250106 | B43: 34646.7697 | C43: 0.4125 | D43: 34781.8915 | E43: 0.4141 | F43: 0.003884831853 | G43: Likely | H43: 2020 Chevrolet Silverado 2WD ICE | I43: 2022 Ford F-150 Lightning (Standard Range) BEV | J43: 1
A44: 1GCNKNEHXHZ250107 | B44: 34646.7697 | C44: 0.4125 | D44: 34781.8915 | E44: 0.4141 | F44: 0.003884831853 | G44: Likely | H44: 2020 Chevrolet Silverado 2WD ICE | I44: 2022 Ford F-150 Lightning (Standard Range) BEV | J44: 1
A45: 1GCNKNEHXHZ250108 | B45: 34646.7697 | C45: 0.4125 | D45: 34781.8915 | E45: 0.4141 | F45: 0.003884831853 | G45: Likely | H45: 2020 Chevrolet Silverado 2WD ICE | I45: 2022 Ford F-150 Lightning (Standard Range) BEV | J45: 1
A46: 1GCNKNEHXHZ250109 | B46: 34646.7697 | C46: 0.4125 | D46: 34781.8915 | E46: 0.4141 | F46: 0.003884831853 | G46: Likely | H46: 2020 Chevrolet Silverado 2WD ICE | I46: 2022 Ford F-150 Lightning (Standard Range) BEV | J46: 1
A47: 1GCNKNEHXHZ250110 | B47: 34646.7697 | C47: 0.4125 | D47: 34781.8915 | E47: 0.4141 | F47: 0.003884831853 | G47: Likely | H47: 2020 Chevrolet Silverado 2WD ICE | I47: 2022 Ford F-150 Lightning (Standard Range) BEV | J47: 1
A48: 1GCNKNEHXHZ250111 | B48: 34646.7697 | C48: 0.4125 | D48: 34781.8915 | E48: 0.4141 | F48: 0.003884831853 | G48: Likely | H48: 2020 Chevrolet Silverado 2WD ICE | I48: 2022 Ford F-150 Lightning (Standard Range) BEV | J48: 1
A49: 1GCNKNEHXHZ250112 | B49: 34646.7697 | C49: 0.4125 | D49: 34781.8915 | E49: 0.4141 | F49: 0.003884831853 | G49: Likely | H49: 2020 Chevrolet Silverado 2WD ICE | I49: 2022 Ford F-150 Lightning (Standard Range) BEV | J49: 1
A50: 1GCNKNEHXHZ250113 | B50: 34646.7697 | C50: 0.4125 | D50: 34781.8915 | E50: 0.4141 | F50: 0.003884831853 | G50: Likely | H50: 2020 Chevrolet Silverado 2WD ICE | I50: 2022 Ford F-150 Lightning (Standard Range) BEV | J50: 1
A51: 1GCNKNEHXHZ250114 | B51: 34646.7697 | C51: 0.4125 | D51: 34781.8915 | E51: 0.4141 | F51: 0.003884831853 | G51: Likely | H51: 2020 Chevrolet Silverado 2WD ICE | I51: 2022 Ford F-150 Lightning (Standard Range) BEV | J51: 1
A52: FORD Ranger
A53: 1FTYR10V5XTA93103 | B53: 34646.7697 | C53: 0.4125 | D53: 32477.6403 | E53: 0.3866 | F53: -0.06678839287 | G53: Neither Likely Nor Unlikely | H53: 2020 Ford Ranger 2WD ICE | I53: 2022 Ford F-150 Lightning (Standard Range) BEV | J53: 1
A54: 1FTYR14V43TA39100 | B54: 34646.7697 | C54: 0.4125 | D54: 32477.6403 | E54: 0.3866 | F54: -0.06678839287 | G54: Neither Likely Nor Unlikely | H54: 2020 Ford Ranger 2WD ICE | I54: 2022 Ford F-150 Lightning (Standard Range) BEV | J54: 1
A55: Sedan
A56: FORD Taurus
A57: 1FAFP53U05A267100 | B57: 30264.7607 | C57: 0.3603 | D57: 35534.0948 | E57: 0.423 | F57: 0.1482895267 | G57: Likely | H57: 2019 Ford Taurus AWD ICE | I57: 2020 Chevrolet Bolt EV BEV | J57: 1
A58: 1FAFP53U05A267101 | B58: 30264.7607 | C58: 0.3603 | D58: 35534.0948 | E58: 0.423 | F58: 0.1482895267 | G58: Likely | H58: 2019 Ford Taurus AWD ICE | I58: 2020 Chevrolet Bolt EV BEV | J58: 1
A59: 1FAFP53U05A267102 | B59: 30264.7607 | C59: 0.3603 | D59: 35534.0948 | E59: 0.423 | F59: 0.1482895267 | G59: Likely | H59: 2019 Ford Taurus AWD ICE | I59: 2020 Chevrolet Bolt EV BEV | J59: 1
A60: 1FAFP53U05A267103 | B60: 30264.7607 | C60: 0.3603 | D60: 35534.0948 | E60: 0.423 | F60: 0.1482895267 | G60: Likely | H60: 2019 Ford Taurus AWD ICE | I60: 2020 Chevrolet Bolt EV BEV | J60: 1
A61: 1FAFP53U05A267104 | B61: 30264.7607 | C61: 0.3603 | D61: 35534.0948 | E61: 0.423 | F61: 0.1482895267 | G61: Likely | H61: 2019 Ford Taurus AWD ICE | I61: 2020 Chevrolet Bolt EV BEV | J61: 1
A62: 1FAFP53U05A267105 | B62: 30264.7607 | C62: 0.3603 | D62: 35534.0948 | E62: 0.423 | F62: 0.1482895267 | G62: Likely | H62: 2019 Ford Taurus AWD ICE | I62: 2020 Chevrolet Bolt EV BEV | J62: 1
A63: 1FAFP53U05A267106 | B63: 30264.7607 | C63: 0.3603 | D63: 35534.0948 | E63: 0.423 | F63: 0.1482895267 | G63: Likely | H63: 2019 Ford Taurus AWD ICE | I63: 2020 Chevrolet Bolt EV BEV | J63: 1
A64: 1FAFP53U05A267107 | B64: 30264.7607 | C64: 0.3603 | D64: 35534.0948 | E64: 0.423 | F64: 0.1482895267 | G64: Likely | H64: 2019 Ford Taurus AWD ICE | I64: 2020 Chevrolet Bolt EV BEV | J64: 1
A65: 1FAFP53U05A267108 | B65: 30264.7607 | C65: 0.3603 | D65: 35534.0948 | E65: 0.423 | F65: 0.1482895267 | G65: Likely | H65: 2019 Ford Taurus AWD ICE | I65: 2020 Chevrolet Bolt EV BEV | J65: 1
A66: 1FAFP53U05A267109 | B66: 30264.7607 | C66: 0.3603 | D66: 35534.0948 | E66: 0.423 | F66: 0.1482895267 | G66: Likely | H66: 2019 Ford Taurus AWD ICE | I66: 2020 Chevrolet Bolt EV BEV | J66: 1
A67: 1FAFP53U05A267110 | B67: 30264.7607 | C67: 0.3603 | D67: 35534.0948 | E67: 0.423 | F67: 0.1482895267 | G67: Likely | H67: 2019 Ford Taurus AWD ICE | I67: 2020 Chevrolet Bolt EV BEV | J67: 1
A68: TOYOTA Corolla
A69: 5YFEPRAE2LP021100 | B69: 30264.7607 | C69: 0.3603 | D69: 29114.599 | E69: 0.3466 | F69: -0.03950463821 | G69: Likely | H69: 2020 Toyota Corolla ICE | I69: 2020 Chevrolet Bolt EV BEV | J69: 1
A70: 5YFEPRAE2LP023101 | B70: 30264.7607 | C70: 0.3603 | D70: 29114.599 | E70: 0.3466 | F70: -0.03950463821 | G70: Likely | H70: 2020 Toyota Corolla ICE | I70: 2020 Chevrolet Bolt EV BEV | J70: 1
A71: 5YFEPRAE2LP025102 | B71: 30264.7607 | C71: 0.3603 | D71: 29114.599 | E71: 0.3466 | F71: -0.03950463821 | G71: Likely | H71: 2020 Toyota Corolla ICE | I71: 2020 Chevrolet Bolt EV BEV | J71: 1
A72: 5YFEPRAE4LP022103 | B72: 30264.7607 | C72: 0.3603 | D72: 29114.599 | E72: 0.3466 | F72: -0.03950463821 | G72: Likely | H72: 2020 Toyota Corolla ICE | I72: 2020 Chevrolet Bolt EV BEV | J72: 1
A73: 5YFEPRAE6LP021104 | B73: 30264.7607 | C73: 0.3603 | D73: 29114.599 | E73: 0.3466 | F73: -0.03950463821 | G73: Likely | H73: 2020 Toyota Corolla ICE | I73: 2020 Chevrolet Bolt EV BEV | J73: 1
A74: SUV
A75: FORD Explorer
A76: 1FM5K8FW5LGB60000 | B76: 34855.6732 | C76: 0.4149 | D76: 35090.4081 | E76: 0.4177 | F76: 0.006689432033 | G76: Likely | H76: 2020 Ford Explorer AWD ICE | I76: 2021 Ford Mustang Mach-E BEV | J76: 1
A77: 1FM5K8FW5LGB60001 | B77: 34855.6732 | C77: 0.4149 | D77: 35090.4081 | E77: 0.4177 | F77: 0.006689432033 | G77: Likely | H77: 2020 Ford Explorer AWD ICE | I77: 2021 Ford Mustang Mach-E BEV | J77: 1
A78: 1FM5K8FW5LGB60002 | B78: 34855.6732 | C78: 0.4149 | D78: 35090.4081 | E78: 0.4177 | F78: 0.006689432033 | G78: Likely | H78: 2020 Ford Explorer AWD ICE | I78: 2021 Ford Mustang Mach-E BEV | J78: 1
A79: 1FM5K8FW5LGB60003 | B79: 34855.6732 | C79: 0.4149 | D79: 35090.4081 | E79: 0.4177 | F79: 0.006689432033 | G79: Likely | H79: 2020 Ford Explorer AWD ICE | I79: 2021 Ford Mustang Mach-E BEV | J79: 1
A80: 1FM5K8FW5LGB60004 | B80: 34855.6732 | C80: 0.4149 | D80: 35090.4081 | E80: 0.4177 | F80: 0.006689432033 | G80: Likely | H80: 2020 Ford Explorer AWD ICE | I80: 2021 Ford Mustang Mach-E BEV | J80: 1
A81: 1FM5K8FW5LGB60005 | B81: 34855.6732 | C81: 0.4149 | D81: 35090.4081 | E81: 0.4177 | F81: 0.006689432033 | G81: Likely | H81: 2020 Ford Explorer AWD ICE | I81: 2021 Ford Mustang Mach-E BEV | J81: 1
A82: 1FM5K8FW5LGB60006 | B82: 34855.6732 | C82: 0.4149 | D82: 35090.4081 | E82: 0.4177 | F82: 0.006689432033 | G82: Likely | H82: 2020 Ford Explorer AWD ICE | I82: 2021 Ford Mustang Mach-E BEV | J82: 1
A83: 1FM5K8FW5LGB60007 | B83: 34855.6732 | C83: 0.4149 | D83: 35090.4081 | E83: 0.4177 | F83: 0.006689432033 | G83: Likely | H83: 2020 Ford Explorer AWD ICE | I83: 2021 Ford Mustang Mach-E BEV | J83: 1
A84: 1FM5K8FW5LGB60008 | B84: 34855.6732 | C84: 0.4149 | D84: 35090.4081 | E84: 0.4177 | F84: 0.006689432033 | G84: Likely | H84: 2020 Ford Explorer AWD ICE | I84: 2021 Ford Mustang Mach-E BEV | J84: 1
A85: 1FM5K8FW5LGB60009 | B85: 34855.6732 | C85: 0.4149 | D85: 35090.4081 | E85: 0.4177 | F85: 0.006689432033 | G85: Likely | H85: 2020 Ford Explorer AWD ICE | I85: 2021 Ford Mustang Mach-E BEV | J85: 1
A86: 1FM5K8FW5LGB60010 | B86: 34855.6732 | C86: 0.4149 | D86: 35090.4081 | E86: 0.4177 | F86: 0.006689432033 | G86: Likely | H86: 2020 Ford Explorer AWD ICE | I86: 2021 Ford Mustang Mach-E BEV | J86: 1
A87: 1FM5K8FW5LGB60011 | B87: 34855.6732 | C87: 0.4149 | D87: 35090.4081 | E87: 0.4177 | F87: 0.006689432033 | G87: Likely | H87: 2020 Ford Explorer AWD ICE | I87: 2021 Ford Mustang Mach-E BEV | J87: 1
A88: 1FM5K8FW5LGB60012 | B88: 34855.6732 | C88: 0.4149 | D88: 35090.4081 | E88: 0.4177 | F88: 0.006689432033 | G88: Likely | H88: 2020 Ford Explorer AWD ICE | I88: 2021 Ford Mustang Mach-E BEV | J88: 1
A89: 1FM5K8FW5LGB60013 | B89: 34855.6732 | C89: 0.4149 | D89: 35090.4081 | E89: 0.4177 | F89: 0.006689432033 | G89: Likely | H89: 2020 Ford Explorer AWD ICE | I89: 2021 Ford Mustang Mach-E BEV | J89: 1
A90: 1FM5K8FW5LGB60014 | B90: 34855.6732 | C90: 0.4149 | D90: 35090.4081 | E90: 0.4177 | F90: 0.006689432033 | G90: Likely | H90: 2020 Ford Explorer AWD ICE | I90: 2021 Ford Mustang Mach-E BEV | J90: 1
A91: 1FM5K8FW5LGB60015 | B91: 34855.6732 | C91: 0.4149 | D91: 35090.4081 | E91: 0.4177 | F91: 0.006689432033 | G91: Likely | H91: 2020 Ford Explorer AWD ICE | I91: 2021 Ford Mustang Mach-E BEV | J91: 1
A92: 1FM5K8FW5LGB60016 | B92: 34855.6732 | C92: 0.4149 | D92: 35090.4081 | E92: 0.4177 | F92: 0.006689432033 | G92: Likely | H92: 2020 Ford Explorer AWD ICE | I92: 2021 Ford Mustang Mach-E BEV | J92: 1
A93: 1FM5K8FW5LGB60017 | B93: 34855.6732 | C93: 0.4149 | D93: 35090.4081 | E93: 0.4177 | F93: 0.006689432033 | G93: Likely | H93: 2020 Ford Explorer AWD ICE | I93: 2021 Ford Mustang Mach-E BEV | J93: 1
A94: 1FM5K8FW5LGB60018 | B94: 34855.6732 | C94: 0.4149 | D94: 35090.4081 | E94: 0.4177 | F94: 0.006689432033 | G94: Likely | H94: 2020 Ford Explorer AWD ICE | I94: 2021 Ford Mustang Mach-E BEV | J94: 1
A95: 1FM5K8FW5LGB60019 | B95: 34855.6732 | C95: 0.4149 | D95: 35090.4081 | E95: 0.4177 | F95: 0.006689432033 | G95: Likely | H95: 2020 Ford Explorer AWD ICE | I95: 2021 Ford Mustang Mach-E BEV | J95: 1
A96: 1FM5K8FW5LGB60020 | B96: 34855.6732 | C96: 0.4149 | D96: 35090.4081 | E96: 0.4177 | F96: 0.006689432033 | G96: Likely | H96: 2020 Ford Explorer AWD ICE | I96: 2021 Ford Mustang Mach-E BEV | J96: 1
A97: Transit/Coach Bus
A98: GILLIG Low Floor Bus
A99: 15GGD3013C1181123 | B99: 396391.6549 | C99: 4.7189 | D99: 380383.2307 | E99: 4.5284 | F99: -0.04208498932 | G99: Likely | H99: 2019 Gillig Low Floor 29' ICE | I99: 2020 BYD C8M 35' All-Electric Coach Bus BEV | J99: 1
A100: 15GGD3015C1181155 | B100: 396391.6549 | C100: 4.7189 | D100: 380383.2307 | E100: 4.5284 | F100: -0.04208498932 | G100: Likely | H100: 2019 Gillig Low Floor 29' ICE | I100: 2020 BYD C8M 35' All-Electric Coach Bus BEV | J100: 1
A101: Vans
A102: FORD E-450
A103: 1FDXE4FS0DDA07101 | B103: 121414.6017 | C103: 1.4454 | D103: 66350.8296 | E103: 0.7899 | F103: -0.8298882234 | G103: Very Unlikely | H103: 2019 Ford E-450 ICE | I103: 2019 Lightning Systems E450 Cab & Chassis BEV | J103: 1
A104: 1FDXE4FS2DDA07102 | B104: 121414.6017 | C104: 1.4454 | D104: 66350.8296 | E104: 0.7899 | F104: -0.8298882234 | G104: Very Unlikely | H104: 2019 Ford E-450 ICE | I104: 2019 Lightning Systems E450 Cab & Chassis BEV | J104: 1
A105: Work Truck
A106: FORD F-250
A107: 1FTNX21L94EC69100 | B107: 174044.5623 | C107: 2.072 | D107: 61893.2983 | E107: 0.7368 | F107: -1.812009815 | G107: Very Unlikely | H107: 2019 Ford F-250 Service Body ICE | I107: 2019 Phoenix Motorcars Z400 - Work Truck BEV | J107: 1
A108: 1FTNX21L94EC69101 | B108: 174044.5623 | C108: 2.072 | D108: 61893.2983 | E108: 0.7368 | F108: -1.812009815 | G108: Very Unlikely | H108: 2019 Ford F-250 Service Body ICE | I108: 2019 Phoenix Motorcars Z400 - Work Truck BEV | J108: 1
A109: 1FTNX21L94EC69102 | B109: 174044.5623 | C109: 2.072 | D109: 61893.2983 | E109: 0.7368 | F109: -1.812009815 | G109: Very Unlikely | H109: 2019 Ford F-250 Service Body ICE | I109: 2019 Phoenix Motorcars Z400 - Work Truck BEV | J109: 1
A110: 1FTNX21L94EC69103 | B110: 174044.5623 | C110: 2.072 | D110: 61893.2983 | E110: 0.7368 | F110: -1.812009815 | G110: Very Unlikely | H110: 2019 Ford F-250 Service Body ICE | I110: 2019 Phoenix Motorcars Z400 - Work Truck BEV | J110: 1
A111: 1FTNX21L94EC69104 | B111: 174044.5623 | C111: 2.072 | D111: 61893.2983 | E111: 0.7368 | F111: -1.812009815 | G111: Very Unlikely | H111: 2019 Ford F-250 Service Body ICE | I111: 2019 Phoenix Motorcars Z400 - Work Truck BEV | J111: 1
A112: 1FTNX21L94EC69105 | B112: 174044.5623 | C112: 2.072 | D112: 61893.2983 | E112: 0.7368 | F112: -1.812009815 | G112: Very Unlikely | H112: 2019 Ford F-250 Service Body ICE | I112: 2019 Phoenix Motorcars Z400 - Work Truck BEV | J112: 1
A113: 1FTNX21L94EC69106 | B113: 174044.5623 | C113: 2.072 | D113: 61893.2983 | E113: 0.7368 | F113: -1.812009815 | G113: Very Unlikely | H113: 2019 Ford F-250 Service Body ICE | I113: 2019 Phoenix Motorcars Z400 - Work Truck BEV | J113: 1
A114: 1FTNX21L94EC69107 | B114: 174044.5623 | C114: 2.072 | D114: 61893.2983 | E114: 0.7368 | F114: -1.812009815 | G114: Very Unlikely | H114: 2019 Ford F-250 Service Body ICE | I114: 2019 Phoenix Motorcars Z400 - Work Truck BEV | J114: 1
A115: 1FTNX21L94EC69108 | B115: 174044.5623 | C115: 2.072 | D115: 61893.2983 | E115: 0.7368 | F115: -1.812009815 | G115: Very Unlikely | H115: 2019 Ford F-250 Service Body ICE | I115: 2019 Phoenix Motorcars Z400 - Work Truck BEV | J115: 1
A116: 1FTNX21L94EC69109 | B116: 174044.5623 | C116: 2.072 | D116: 61893.2983 | E116: 0.7368 | F116: -1.812009815 | G116: Very Unlikely | H116: 2019 Ford F-250 Service Body ICE | I116: 2019 Phoenix Motorcars Z400 - Work Truck BEV | J116: 1
A117: 1FTNX21L94EC69110 | B117: 174044.5623 | C117: 2.072 | D117: 61893.2983 | E117: 0.7368 | F117: -1.812009815 | G117: Very Unlikely | H117: 2019 Ford F-250 Service Body ICE | I117: 2019 Phoenix Motorcars Z400 - Work Truck BEV | J117: 1
A118: 1FTNX21L94EC69111 | B118: 174044.5623 | C118: 2.072 | D118: 61893.2983 | E118: 0.7368 | F118: -1.812009815 | G118: Very Unlikely | H118: 2019 Ford F-250 Service Body ICE | I118: 2019 Phoenix Motorcars Z400 - Work Truck BEV | J118: 1
A119: 1FTNX21L94EC69112 | B119: 174044.5623 | C119: 2.072 | D119: 61893.2983 | E119: 0.7368 | F119: -1.812009815 | G119: Very Unlikely | H119: 2019 Ford F-250 Service Body ICE | I119: 2019 Phoenix Motorcars Z400 - Work Truck BEV | J119: 1
A120: 1FTNX21L94EC69113 | B120: 174044.5623 | C120: 2.072 | D120: 61893.2983 | E120: 0.7368 | F120: -1.812009815 | G120: Very Unlikely | H120: 2019 Ford F-250 Service Body ICE | I120: 2019 Phoenix Motorcars Z400 - Work Truck BEV | J120: 1
A121: 1FTNX21L94EC69114 | B121: 174044.5623 | C121: 2.072 | D121: 61893.2983 | E121: 0.7368 | F121: -1.812009815 | G121: Very Unlikely | H121: 2019 Ford F-250 Service Body ICE | I121: 2019 Phoenix Motorcars Z400 - Work Truck BEV | J121: 1
A122: 1FTNX21L94EC69115 | B122: 174044.5623 | C122: 2.072 | D122: 61893.2983 | E122: 0.7368 | F122: -1.812009815 | G122: Very Unlikely | H122: 2019 Ford F-250 Service Body ICE | I122: 2019 Phoenix Motorcars Z400 - Work Truck BEV | J122: 1
A123: FORD F-650
A124: 1FDNF6AY5HDB03100 | B124: 174044.5623 | C124: 2.072 | D124: 84890.6977 | E124: 1.0106 | F124: -1.050219482 | G124: Very Unlikely | H124: 2019 Ford F-550 XL Chassis Cab ICE | I124: 2019 Phoenix Motorcars Z400 - Work Truck BEV | J124: 1

Sheet Sandbox (hidden)
A1: Users can use this page to create custom pivot charts and pivot tables based on the data model. Select fields from "DRVE Dashboard" to get started.
B3: Row Labels | C3: Distinct Count of VIN
B4: Delivery Truck | C4: 10
B5: Minivan | C5: 13
B6: Pickup Truck | C6: 19
B7: Sedan | C7: 16
B8: SUV | C8: 21
B9: Transit/Coach Bus | C9: 2
B10: Vans | C10: 2
B11: Work Truck | C11: 17
B12: Grand Total | C12: 100

Sheet Version
A1: Version History - DRVE
B2: Developed By
B4: Spencer Burget
B5: spencer.burget@atlaspolicy.com
B7: Version | C7: Date | D7: Author | E7: Organization | F7: Revisions
B8: 0.1 | C8: 44105 | D8: Josh Rosenberg | E8: Atlas Public Policy | F8: Initial Pre-Release of Tool
B9: 0.2 | C9: 44123 | D9: Josh Rosenberg | E9: Atlas Public Policy | F9: Minor bug fixes: Fixed bug where adding a first setting causes application to crash. Improvement: Allows users to cancel fleet processing and monitor progress.
B10: 0.3 | C10: 44131 | D10: Josh Rosenberg | E10: Atlas Public Policy | F10: Minor bug fixes: Fixed issue regarding VIN decoding timeout. Improvement: Added insurance and maintenece costs as custom fields. Allow users to select life cycle in years instead of retirement year. Added Dashboard.
B11: 0.4 | C11: 44138 | D11: Josh Rosenberg | E11: Atlas Public Policy | F11: Addressed cosmetic issues around procurement settings page.
B12: 0.5 | C12: 44138 | D12: Josh Rosenberg | E12: Atlas Public Policy | F12: Fixed refresh issue causing unexpected error when viewing results. Fixed memory allocation issue which caused program to run out of memory too early.
B13: 0.6 | C13: 44139 | D13: Josh Rosenberg | E13: Atlas Public Policy | F13: Fixed bug which didn't allow users to save the results from the dashboard.
B14: 0.7 | C14: 44166 | D14: Josh Rosenberg | E14: Atlas Public Policy | F14: Improved performance and memory usage. Added ability to set custom insurance, maintenece, and fed tax credit settings on mapping page. Added scaling feature to insurance and fed tax credit. Minor bug fixes.
B15: 1 | C15: 44237 | D15: Josh Rosenberg | E15: Atlas Public Policy | F15: Official Launch. Minor bug fixes: resolved fields that allowed for bad input. Added report feature which summarizes analysis and provides ability to export report as a PDF.
B16: 1.1 | C16: 44256 | D16: Josh Rosenberg | E16: Atlas Public Policy | F16: Bug fixes: Resolved issue causing users to be unable to import a fleet file. Added support for tranist, school, and coach buses. Next release will include optimization to VIN decoding process.
B17: 1.2 | C17: 44260 | D17: Josh Rosenberg | E17: Atlas Public Policy | F17: Bug fixes: Resolved other issue causing users to be unable to import a fleet file. Fixed bug causing application to crash upon invenotry sheet selection. Optimization to VIN decoding process where processing time will be a function of unique models. Added License
B18: 1.3 | C18: 44286 | D18: Josh Rosenberg | E18: Atlas Public Policy | F18: Increased error reporting when fleet has no valid VINs. Updated data on vehicle availability, fuel prices, energy inflation, emissions and insurance.
B19: 1.4 | C19: 44378 | D19: Josh Rosenberg | E19: Atlas Public Policy | F19: Bug fixes: Resolved issue causing buses to not be mapped. Feature updates: Added ability to set custom defaults for VMT and Years of Use. Added forecasting feature in the market settings. Added additional guidance on procurement settings. Added values for default charging procurements. Allowed users to start with all defaults pre-loaded into the tool.
B20: 1.5 | C20: 44476 | D20: Josh Rosenberg | E20: Atlas Public Policy | F20: Added functionality to overwrite dropped VINs. Added ability to add custom vehicles to use in analysis that are not present in default vehicles. Updated vehicles and incentives. Minor bug fixes and performance improvements.
B21: 1.6 | C21: 44505 | D21: Josh Rosenberg | E21: Atlas Public Policy | F21: Fixed bug which caused visuals on dashboard to not refresh. Updating Dashboard and Report page visuals. Included Sandbox page to allow users to create their own tables and visuals.
B22: 1.7 | C22: 44834 | D22: Spencer Burget, Josh Rosenberg | E22: Atlas Public Policy | F22: Updated fuel prices and available vehicles. Added ability to apply specific state incentives and rebates for a number of programs. Fixed minor bugs.
B23: 1.8 | C23: 44855 | D23: Spencer Burget | E23: Atlas Public Policy | F23: Updated available vehicles and default vehicle mappings. Fixed formula for loan calculation. Previous calculation was attempting to do monthly accrual of principal and interest payments. This was inaccurate since the model is annual. This change affected loan calculations for vehicles and infrastructure.

Sheet License (hidden)
A1: Copyright (c) 2021 Atlas Public Policy L.L.C. Permission is hereby granted, free of charge, to any person obtaining a copy of this software and associated documentation files (the "Software"), to deal in the Software without restriction, including without limitation the rights to use, copy, modify, merge, publish, distribute, sublicense, and/or sell copies of the Software, and to permit persons to whom the Software is furnished to do so, subject to the following conditions: The above copyright notice and this permission notice shall be included in all copies or substantial portions of the Software. THE SOFTWARE IS PROVIDED "AS IS", WITHOUT WARRANTY OF ANY KIND, EXPRESS OR IMPLIED, INCLUDING BUT NOT LIMITED TO THE WARRANTIES OF MERCHANTABILITY, FITNESS FOR A PARTICULAR PURPOSE AND NONINFRINGEMENT. IN NO EVENT SHALL THE AUTHORS OR COPYRIGHT HOLDERS BE LIABLE FOR ANY CLAIM, DAMAGES OR OTHER LIABILITY, WHETHER IN AN ACTION OF CONTRACT, TORT OR OTHERWISE, ARISING FROM, OUT OF OR IN CONNECTION WITH THE SOFTWARE OR THE USE OR OTHER DEALINGS IN THE SOFTWARE.

Sheet Invalid VINs (Internal) (hidden)
A1: ID | B1: vin | C1: bodyclass | D1: Full Vehicle Name

Sheet Invalid VINs (hidden)
A1: ID | B1: VIN | C1: Decoded Body Class | D1: Decoded Full Vehicle Name

Sheet VIN Counts (hidden)
A1: Invalid VIN Count | C1: Valid VIN Count
A2: 0 | C2: 100

Sheet Results Tables (hidden)
A1: Results Tables - Dashboard for Rapid Vehicle Electrification
B3: Total Cost per Vehicle
C4: =Base_V1_Type_Ex&" (Baseline)" -> 2021 Ford Mustang Mach-E BEV (Baseline) | D4: =Comp_V1_Type_Ex&" (Comparison)" -> (Comparison)
B5: Depreciation (less tax credits and incentives) | C5: =SUM('Financial Model'!D31:AC31)-SUM('Financial Model'!D19:AC19)-SUM('Financial Model'!D27:AC27) -> -28421.10104 | D5: =SUM('Financial Model'!D102:AC102)-SUM('Financial Model'!D90:AC90)-SUM('Financial Model'!D98:AC98) -> 0
B6: Financing | C6: =SUM('Financial Model'!E19:AC19)+SUM('Financial Model'!E27:AC27) -> 0 | D6: =SUM('Financial Model'!E90:AC90)+SUM('Financial Model'!E98:AC98) -> 0
B7: Fuel | C7: =SUM('Financial Model'!D34:AC34) -> -2519.862656 | D7: =SUM('Financial Model'!D105:AC105) -> 0
B8: Maintenance and Repairs | C8: =SUM('Financial Model'!D35:AC35) -> -3914.709544 | D8: =SUM('Financial Model'!D106:AC106) -> 0
B9: Taxes & Fees | C9: =SUM('Financial Model'!D36:AC36) -> 0 | D9: =SUM('Financial Model'!D107:AC107) -> 0
B10: Insurance | C10: =SUM('Financial Model'!D37:AC37) -> -8930.305257 | D10: =SUM('Financial Model'!D108:AC108) -> 0
B11: Cost of Downtime | C11: =SUM('Financial Model'!D42:AC42) -> 0 | D11: =SUM('Financial Model'!D113:AC113) -> 0
B12: Carbon | C12: =SUM('Financial Model'!D41:AC41) -> 0 | D12: =SUM('Financial Model'!D112:AC112) -> 0
B13: Vehicle Total | C13: =SUM(C5:C12) -> -43785.9785 | D13: =SUM(D5:D12) -> 0
B14: Vehicle Total - Check | C14: =SUM('Financial Model'!D46:AC46) -> -43785.9785 | D14: =SUM('Financial Model'!D117:AC117) -> 0
B15: Infrastructure per Vehicle | C15: =SUM('Financial Model'!D68:AC68)/Base_V1_Num_Vehicles_Modeled -> 0 | D15: =SUM('Financial Model'!D139:AC139)/Comp_V1_Num_Vehicles_Modeled -> 
B16: Grand Total | C16: =C13+C15 -> -43785.9785 | D16: =D13+D15 -> 
B18: Vehicle Cost per Mile
C19: =C4 -> 2021 Ford Mustang Mach-E BEV (Baseline) | D19: =D4 -> (Comparison)
B20: Depreciation (less tax credits and incentives) | C20: =-C5/(Base_V1_VMT_Modeled*Base_V1_Years_Usage_Modeled) -> 0.338346441 | D20: =-D5/(Comp_V1_VMT_Modeled*Comp_V1_Years_Usage_Modeled) -> 
B21: Financing | C21: 0
B22: Fuel | C22: 0.02999836495
B23: Maintenance and Repairs | C23: 0.04660368505
B24: Taxes & Fees | C24: 0
B25: Insurance | C25: 0.1063131578
B26: Cost of Downtime | C26: =IF(C11<>0, -C11/(Base_V1_VMT_Modeled*Base_V1_Years_Usage_Modeled), "") ->  | D26: =IF(D11<>0, -D11/(Comp_V1_VMT_Modeled*Comp_V1_Years_Usage_Modeled), "") -> 
B27: Carbon | C27: =IF(C12<>0, -C12/(Base_V1_VMT_Modeled*Base_V1_Years_Usage_Modeled), "") ->  | D27: =IF(D12<>0, -D12/(Comp_V1_VMT_Modeled*Comp_V1_Years_Usage_Modeled), "") -> 
B28: Vehicle Total | C28: =SUM(C20:C27) -> 0.5212616488 | D28: =SUM(D20:D27) -> 
B29: Vehicle Total - Check | C29: =-C14/(Base_V1_VMT_Modeled*Base_V1_Years_Usage_Modeled) -> 0.5212616488 | D29: =-D14/(Comp_V1_VMT_Modeled*Comp_V1_Years_Usage_Modeled) -> 
B30: Charging Infrastructure | C30: =-C15/(Base_V1_VMT_Modeled*Base_V1_Years_Usage_Modeled) -> 0 | D30: =-D15/(Comp_V1_VMT_Modeled*Comp_V1_Years_Usage_Modeled) -> 
B31: Grand Total | C31: =-C16/(Base_V1_VMT_Modeled*Base_V1_Years_Usage_Modeled) -> 0.5212616488 | D31: =-D16/(Comp_V1_VMT_Modeled*Comp_V1_Years_Usage_Modeled) -> 
B33: Gasoline Displaced
C34: =C4 -> 2021 Ford Mustang Mach-E BEV (Baseline) | D34: =D4 -> (Comparison)
B35: Gallons of Gasoline / Year / Vehicle | C35: =Base_V1_Gas_Diesel_Usage_Ex -> 0 | D35: =Comp_V1_Gas_Usage_Ex -> 0
B36: Number of Years | C36: =Base_V1_Years_Usage_Modeled -> 7 | D36: =Comp_V1_Years_Usage_Modeled -> 0
B37: Number of Vehicles | C37: =Base_V1_Num_Vehicles_Modeled -> 1 | D37: =Comp_V1_Num_Vehicles_Modeled -> 0
B38: Total Gasoline Consumption (Gallons) | C38: =C35*C36*C37 -> 0 | D38: =D35*D36*D37 -> 0
B39: Gasoline Consumption / Mile (Average) | C39: =C35/Base_V1_VMT_Modeled -> 0 | D39: =D35/Comp_V1_VMT_Modeled -> 
B41: Cash Flow Chart
B43: =Base_V1_Type_Ex&" (Baseline)" -> 2021 Ford Mustang Mach-E BEV (Baseline)
C44: Year 0 | D44: Year 1 | E44: Year 2 | F44: Year 3 | G44: Year 4 | H44: Year 5 | I44: Year 6 | J44: Year 7 | K44: Year 8 | L44: Year 9 | M44: Year 10 | N44: Year 11 | O44: Year 12 | P44: Year 13 | Q44: Year 14 | R44: Year 15 | S44: Year 16 | T44: Year 17 | U44: Year 18 | V44: Year 19 | W44: Year 20 | X44: Year 21 | Y44: Year 22 | Z44: Year 23 | AA44: Year 24 | AB44: Year 25 | AC44: Totals
B45: Principal (less tax credits and incentives) | C45: =('Financial Model'!D31-'Financial Model'!D27-'Financial Model'!D29)*Base_V1_Num_Vehicles_Modeled -> -42895 | D45: =('Financial Model'!E31-'Financial Model'!E27-'Financial Model'!E29)*Base_V1_Num_Vehicles_Modeled -> 0 | E45: =('Financial Model'!F31-'Financial Model'!F27-'Financial Model'!F29)*Base_V1_Num_Vehicles_Modeled -> 0 | F45: =('Financial Model'!G31-'Financial Model'!G27-'Financial Model'!G29)*Base_V1_Num_Vehicles_Modeled -> 0 | G45: =('Financial Model'!H31-'Financial Model'!H27-'Financial Model'!H29)*Base_V1_Num_Vehicles_Modeled -> 0 | H45: =('Financial Model'!I31-'Financial Model'!I27-'Financial Model'!I29)*Base_V1_Num_Vehicles_Modeled -> 0 | I45: =('Financial Model'!J31-'Financial Model'!J27-'Financial Model'!J29)*Base_V1_Num_Vehicles_Modeled -> 0 | J45: =('Financial Model'!K31-'Financial Model'!K27-'Financial Model'!K29)*Base_V1_Num_Vehicles_Modeled -> 0 | K45: =('Financial Model'!L31-'Financial Model'!L27-'Financial Model'!L29)*Base_V1_Num_Vehicles_Modeled -> 0 | L45: =('Financial Model'!M31-'Financial Model'!M27-'Financial Model'!M29)*Base_V1_Num_Vehicles_Modeled -> 0 | M45: =('Financial Model'!N31-'Financial Model'!N27-'Financial Model'!N29)*Base_V1_Num_Vehicles_Modeled -> 0 | N45: =('Financial Model'!O31-'Financial Model'!O27-'Financial Model'!O29)*Base_V1_Num_Vehicles_Modeled -> 0 | O45: =('Financial Model'!P31-'Financial Model'!P27-'Financial Model'!P29)*Base_V1_Num_Vehicles_Modeled -> 0 | P45: =('Financial Model'!Q31-'Financial Model'!Q27-'Financial Model'!Q29)*Base_V1_Num_Vehicles_Modeled -> 0 | Q45: =('Financial Model'!R31-'Financial Model'!R27-'Financial Model'!R29)*Base_V1_Num_Vehicles_Modeled -> 0 | R45: =('Financial Model'!S31-'Financial Model'!S27-'Financial Model'!S29)*Base_V1_Num_Vehicles_Modeled -> 0 | S45: =('Financial Model'!T31-'Financial Model'!T27-'Financial Model'!T29)*Base_V1_Num_Vehicles_Modeled -> 0 | T45: =('Financial Model'!U31-'Financial Model'!U27-'Financial Model'!U29)*Base_V1_Num_Vehicles_Modeled -> 0 | U45: =('Financial Model'!V31-'Financial Model'!V27-'Financial Model'!V29)*Base_V1_Num_Vehicles_Modeled -> 0 | V45: =('Financial Model'!W31-'Financial Model'!W27-'Financial Model'!W29)*Base_V1_Num_Vehicles_Modeled -> 0 | W45: =('Financial Model'!X31-'Financial Model'!X27-'Financial Model'!X29)*Base_V1_Num_Vehicles_Modeled -> 0 | X45: =('Financial Model'!Y31-'Financial Model'!Y27-'Financial Model'!Y29)*Base_V1_Num_Vehicles_Modeled -> 0 | Y45: =('Financial Model'!Z31-'Financial Model'!Z27-'Financial Model'!Z29)*Base_V1_Num_Vehicles_Modeled -> 0 | Z45: =('Financial Model'!AA31-'Financial Model'!AA27-'Financial Model'!AA29)*Base_V1_Num_Vehicles_Modeled -> 0 | AA45: =('Financial Model'!AB31-'Financial Model'!AB27-'Financial Model'!AB29)*Base_V1_Num_Vehicles_Modeled -> 0 | AB45: =('Financial Model'!AC31-'Financial Model'!AC27-'Financial Model'!AC29)*Base_V1_Num_Vehicles_Modeled -> 0 | AC45: =SUM(C45:AB45) -> -42895
B46: Financing | C46: ='Financial Model'!D27*Base_V1_Num_Vehicles_Modeled -> 0 | D46: ='Financial Model'!E27*Base_V1_Num_Vehicles_Modeled -> 0 | E46: ='Financial Model'!F27*Base_V1_Num_Vehicles_Modeled -> 0 | F46: ='Financial Model'!G27*Base_V1_Num_Vehicles_Modeled -> 0 | G46: ='Financial Model'!H27*Base_V1_Num_Vehicles_Modeled -> 0 | H46: ='Financial Model'!I27*Base_V1_Num_Vehicles_Modeled -> 0 | I46: ='Financial Model'!J27*Base_V1_Num_Vehicles_Modeled -> 0 | J46: ='Financial Model'!K27*Base_V1_Num_Vehicles_Modeled -> 0 | K46: ='Financial Model'!L27*Base_V1_Num_Vehicles_Modeled -> 0 | L46: ='Financial Model'!M27*Base_V1_Num_Vehicles_Modeled -> 0 | M46: ='Financial Model'!N27*Base_V1_Num_Vehicles_Modeled -> 0 | N46: ='Financial Model'!O27*Base_V1_Num_Vehicles_Modeled -> 0 | O46: ='Financial Model'!P27*Base_V1_Num_Vehicles_Modeled -> 0 | P46: ='Financial Model'!Q27*Base_V1_Num_Vehicles_Modeled -> 0 | Q46: ='Financial Model'!R27*Base_V1_Num_Vehicles_Modeled -> 0 | R46: ='Financial Model'!S27*Base_V1_Num_Vehicles_Modeled -> 0 | S46: ='Financial Model'!T27*Base_V1_Num_Vehicles_Modeled -> 0 | T46: ='Financial Model'!U27*Base_V1_Num_Vehicles_Modeled -> 0 | U46: ='Financial Model'!V27*Base_V1_Num_Vehicles_Modeled -> 0 | V46: ='Financial Model'!W27*Base_V1_Num_Vehicles_Modeled -> 0 | W46: ='Financial Model'!X27*Base_V1_Num_Vehicles_Modeled -> 0 | X46: ='Financial Model'!Y27*Base_V1_Num_Vehicles_Modeled -> 0 | Y46: ='Financial Model'!Z27*Base_V1_Num_Vehicles_Modeled -> 0 | Z46: ='Financial Model'!AA27*Base_V1_Num_Vehicles_Modeled -> 0 | AA46: ='Financial Model'!AB27*Base_V1_Num_Vehicles_Modeled -> 0 | AB46: ='Financial Model'!AC27*Base_V1_Num_Vehicles_Modeled -> 0 | AC46: =SUM(C46:AB46) -> 0
B47: Residual Value (Vehicle Sale) | C47: ='Financial Model'!D29*Base_V1_Num_Vehicles_Modeled -> 0 | D47: ='Financial Model'!E29*Base_V1_Num_Vehicles_Modeled -> 0 | E47: ='Financial Model'!F29*Base_V1_Num_Vehicles_Modeled -> 0 | F47: ='Financial Model'!G29*Base_V1_Num_Vehicles_Modeled -> 0 | G47: ='Financial Model'!H29*Base_V1_Num_Vehicles_Modeled -> 0 | H47: ='Financial Model'!I29*Base_V1_Num_Vehicles_Modeled -> 0 | I47: ='Financial Model'!J29*Base_V1_Num_Vehicles_Modeled -> 0 | J47: ='Financial Model'!K29*Base_V1_Num_Vehicles_Modeled -> 14473.89896 | K47: ='Financial Model'!L29*Base_V1_Num_Vehicles_Modeled -> 0 | L47: ='Financial Model'!M29*Base_V1_Num_Vehicles_Modeled -> 0 | M47: ='Financial Model'!N29*Base_V1_Num_Vehicles_Modeled -> 0 | N47: ='Financial Model'!O29*Base_V1_Num_Vehicles_Modeled -> 0 | O47: ='Financial Model'!P29*Base_V1_Num_Vehicles_Modeled -> 0 | P47: ='Financial Model'!Q29*Base_V1_Num_Vehicles_Modeled -> 0 | Q47: ='Financial Model'!R29*Base_V1_Num_Vehicles_Modeled -> 0 | R47: ='Financial Model'!S29*Base_V1_Num_Vehicles_Modeled -> 0 | S47: ='Financial Model'!T29*Base_V1_Num_Vehicles_Modeled -> 0 | T47: ='Financial Model'!U29*Base_V1_Num_Vehicles_Modeled -> 0 | U47: ='Financial Model'!V29*Base_V1_Num_Vehicles_Modeled -> 0 | V47: ='Financial Model'!W29*Base_V1_Num_Vehicles_Modeled -> 0 | W47: ='Financial Model'!X29*Base_V1_Num_Vehicles_Modeled -> 0 | X47: ='Financial Model'!Y29*Base_V1_Num_Vehicles_Modeled -> 0 | Y47: ='Financial Model'!Z29*Base_V1_Num_Vehicles_Modeled -> 0 | Z47: ='Financial Model'!AA29*Base_V1_Num_Vehicles_Modeled -> 0 | AA47: ='Financial Model'!AB29*Base_V1_Num_Vehicles_Modeled -> 0 | AB47: ='Financial Model'!AC29*Base_V1_Num_Vehicles_Modeled -> 0 | AC47: 14473.89896
B48: Fuel | C48: ='Financial Model'!D34*Base_V1_Num_Vehicles_Modeled -> 0 | D48: ='Financial Model'!E34*Base_V1_Num_Vehicles_Modeled -> -357.9511923 | E48: ='Financial Model'!F34*Base_V1_Num_Vehicles_Modeled -> -373.8595061 | F48: ='Financial Model'!G34*Base_V1_Num_Vehicles_Modeled -> -365.9255114 | G48: ='Financial Model'!H34*Base_V1_Num_Vehicles_Modeled -> -359.0069637 | H48: ='Financial Model'!I34*Base_V1_Num_Vehicles_Modeled -> -353.7101889 | I48: ='Financial Model'!J34*Base_V1_Num_Vehicles_Modeled -> -353.5583224 | J48: ='Financial Model'!K34*Base_V1_Num_Vehicles_Modeled -> -355.850971 | K48: ='Financial Model'!L34*Base_V1_Num_Vehicles_Modeled -> 0 | L48: ='Financial Model'!M34*Base_V1_Num_Vehicles_Modeled -> 0 | M48: ='Financial Model'!N34*Base_V1_Num_Vehicles_Modeled -> 0 | N48: ='Financial Model'!O34*Base_V1_Num_Vehicles_Modeled -> 0 | O48: ='Financial Model'!P34*Base_V1_Num_Vehicles_Modeled -> 0 | P48: ='Financial Model'!Q34*Base_V1_Num_Vehicles_Modeled -> 0 | Q48: ='Financial Model'!R34*Base_V1_Num_Vehicles_Modeled -> 0 | R48: ='Financial Model'!S34*Base_V1_Num_Vehicles_Modeled -> 0 | S48: ='Financial Model'!T34*Base_V1_Num_Vehicles_Modeled -> 0 | T48: ='Financial Model'!U34*Base_V1_Num_Vehicles_Modeled -> 0 | U48: ='Financial Model'!V34*Base_V1_Num_Vehicles_Modeled -> 0 | V48: ='Financial Model'!W34*Base_V1_Num_Vehicles_Modeled -> 0 | W48: ='Financial Model'!X34*Base_V1_Num_Vehicles_Modeled -> 0 | X48: ='Financial Model'!Y34*Base_V1_Num_Vehicles_Modeled -> 0 | Y48: ='Financial Model'!Z34*Base_V1_Num_Vehicles_Modeled -> 0 | Z48: ='Financial Model'!AA34*Base_V1_Num_Vehicles_Modeled -> 0 | AA48: ='Financial Model'!AB34*Base_V1_Num_Vehicles_Modeled -> 0 | AB48: ='Financial Model'!AC34*Base_V1_Num_Vehicles_Modeled -> 0 | AC48: -2519.862656
B49: Maintenance and Repairs | C49: ='Financial Model'!D35*Base_V1_Num_Vehicles_Modeled -> 0 | D49: ='Financial Model'!E35*Base_V1_Num_Vehicles_Modeled -> -480 | E49: ='Financial Model'!F35*Base_V1_Num_Vehicles_Modeled -> -490.56 | F49: ='Financial Model'!G35*Base_V1_Num_Vehicles_Modeled -> -501.35232 | G49: ='Financial Model'!H35*Base_V1_Num_Vehicles_Modeled -> -512.382071 | H49: ='Financial Model'!I35*Base_V1_Num_Vehicles_Modeled -> -523.6544766 | I49: ='Financial Model'!J35*Base_V1_Num_Vehicles_Modeled -> -695.7273376 | J49: ='Financial Model'!K35*Base_V1_Num_Vehicles_Modeled -> -711.033339 | K49: ='Financial Model'!L35*Base_V1_Num_Vehicles_Modeled -> 0 | L49: ='Financial Model'!M35*Base_V1_Num_Vehicles_Modeled -> 0 | M49: ='Financial Model'!N35*Base_V1_Num_Vehicles_Modeled -> 0 | N49: ='Financial Model'!O35*Base_V1_Num_Vehicles_Modeled -> 0 | O49: ='Financial Model'!P35*Base_V1_Num_Vehicles_Modeled -> 0 | P49: ='Financial Model'!Q35*Base_V1_Num_Vehicles_Modeled -> 0 | Q49: ='Financial Model'!R35*Base_V1_Num_Vehicles_Modeled -> 0 | R49: ='Financial Model'!S35*Base_V1_Num_Vehicles_Modeled -> 0 | S49: ='Financial Model'!T35*Base_V1_Num_Vehicles_Modeled -> 0 | T49: ='Financial Model'!U35*Base_V1_Num_Vehicles_Modeled -> 0 | U49: ='Financial Model'!V35*Base_V1_Num_Vehicles_Modeled -> 0 | V49: ='Financial Model'!W35*Base_V1_Num_Vehicles_Modeled -> 0 | W49: ='Financial Model'!X35*Base_V1_Num_Vehicles_Modeled -> 0 | X49: ='Financial Model'!Y35*Base_V1_Num_Vehicles_Modeled -> 0 | Y49: ='Financial Model'!Z35*Base_V1_Num_Vehicles_Modeled -> 0 | Z49: ='Financial Model'!AA35*Base_V1_Num_Vehicles_Modeled -> 0 | AA49: ='Financial Model'!AB35*Base_V1_Num_Vehicles_Modeled -> 0 | AB49: ='Financial Model'!AC35*Base_V1_Num_Vehicles_Modeled -> 0 | AC49: -3914.709544
B50: Taxes & Fees | C50: ='Financial Model'!D36*Base_V1_Num_Vehicles_Modeled -> 0 | D50: ='Financial Model'!E36*Base_V1_Num_Vehicles_Modeled -> 0 | E50: ='Financial Model'!F36*Base_V1_Num_Vehicles_Modeled -> 0 | F50: ='Financial Model'!G36*Base_V1_Num_Vehicles_Modeled -> 0 | G50: ='Financial Model'!H36*Base_V1_Num_Vehicles_Modeled -> 0 | H50: ='Financial Model'!I36*Base_V1_Num_Vehicles_Modeled -> 0 | I50: ='Financial Model'!J36*Base_V1_Num_Vehicles_Modeled -> 0 | J50: ='Financial Model'!K36*Base_V1_Num_Vehicles_Modeled -> 0 | K50: ='Financial Model'!L36*Base_V1_Num_Vehicles_Modeled -> 0 | L50: ='Financial Model'!M36*Base_V1_Num_Vehicles_Modeled -> 0 | M50: ='Financial Model'!N36*Base_V1_Num_Vehicles_Modeled -> 0 | N50: ='Financial Model'!O36*Base_V1_Num_Vehicles_Modeled -> 0 | O50: ='Financial Model'!P36*Base_V1_Num_Vehicles_Modeled -> 0 | P50: ='Financial Model'!Q36*Base_V1_Num_Vehicles_Modeled -> 0 | Q50: ='Financial Model'!R36*Base_V1_Num_Vehicles_Modeled -> 0 | R50: ='Financial Model'!S36*Base_V1_Num_Vehicles_Modeled -> 0 | S50: ='Financial Model'!T36*Base_V1_Num_Vehicles_Modeled -> 0 | T50: ='Financial Model'!U36*Base_V1_Num_Vehicles_Modeled -> 0 | U50: ='Financial Model'!V36*Base_V1_Num_Vehicles_Modeled -> 0 | V50: ='Financial Model'!W36*Base_V1_Num_Vehicles_Modeled -> 0 | W50: ='Financial Model'!X36*Base_V1_Num_Vehicles_Modeled -> 0 | X50: ='Financial Model'!Y36*Base_V1_Num_Vehicles_Modeled -> 0 | Y50: ='Financial Model'!Z36*Base_V1_Num_Vehicles_Modeled -> 0 | Z50: ='Financial Model'!AA36*Base_V1_Num_Vehicles_Modeled -> 0 | AA50: ='Financial Model'!AB36*Base_V1_Num_Vehicles_Modeled -> 0 | AB50: ='Financial Model'!AC36*Base_V1_Num_Vehicles_Modeled -> 0 | AC50: 0
B51: Insurance | C51: ='Financial Model'!D37*Base_V1_Num_Vehicles_Modeled -> 0 | D51: ='Financial Model'!E37*Base_V1_Num_Vehicles_Modeled -> -1194 | E51: ='Financial Model'!F37*Base_V1_Num_Vehicles_Modeled -> -1220.268 | F51: ='Financial Model'!G37*Base_V1_Num_Vehicles_Modeled -> -1247.113896 | G51: ='Financial Model'!H37*Base_V1_Num_Vehicles_Modeled -> -1274.550402 | H51: ='Financial Model'!I37*Base_V1_Num_Vehicles_Modeled -> -1302.590511 | I51: ='Financial Model'!J37*Base_V1_Num_Vehicles_Modeled -> -1331.247502 | J51: ='Financial Model'!K37*Base_V1_Num_Vehicles_Modeled -> -1360.534947 | K51: ='Financial Model'!L37*Base_V1_Num_Vehicles_Modeled -> 0 | L51: ='Financial Model'!M37*Base_V1_Num_Vehicles_Modeled -> 0 | M51: ='Financial Model'!N37*Base_V1_Num_Vehicles_Modeled -> 0 | N51: ='Financial Model'!O37*Base_V1_Num_Vehicles_Modeled -> 0 | O51: ='Financial Model'!P37*Base_V1_Num_Vehicles_Modeled -> 0 | P51: ='Financial Model'!Q37*Base_V1_Num_Vehicles_Modeled -> 0 | Q51: ='Financial Model'!R37*Base_V1_Num_Vehicles_Modeled -> 0 | R51: ='Financial Model'!S37*Base_V1_Num_Vehicles_Modeled -> 0 | S51: ='Financial Model'!T37*Base_V1_Num_Vehicles_Modeled -> 0 | T51: ='Financial Model'!U37*Base_V1_Num_Vehicles_Modeled -> 0 | U51: ='Financial Model'!V37*Base_V1_Num_Vehicles_Modeled -> 0 | V51: ='Financial Model'!W37*Base_V1_Num_Vehicles_Modeled -> 0 | W51: ='Financial Model'!X37*Base_V1_Num_Vehicles_Modeled -> 0 | X51: ='Financial Model'!Y37*Base_V1_Num_Vehicles_Modeled -> 0 | Y51: ='Financial Model'!Z37*Base_V1_Num_Vehicles_Modeled -> 0 | Z51: ='Financial Model'!AA37*Base_V1_Num_Vehicles_Modeled -> 0 | AA51: ='Financial Model'!AB37*Base_V1_Num_Vehicles_Modeled -> 0 | AB51: ='Financial Model'!AC37*Base_V1_Num_Vehicles_Modeled -> 0 | AC51: -8930.305257
B52: Carbon | C52: ='Financial Model'!D43*Base_V1_Num_Vehicles_Modeled -> 0 | D52: ='Financial Model'!E43*Base_V1_Num_Vehicles_Modeled -> 0 | E52: ='Financial Model'!F43*Base_V1_Num_Vehicles_Modeled -> 0 | F52: ='Financial Model'!G43*Base_V1_Num_Vehicles_Modeled -> 0 | G52: ='Financial Model'!H43*Base_V1_Num_Vehicles_Modeled -> 0 | H52: ='Financial Model'!I43*Base_V1_Num_Vehicles_Modeled -> 0 | I52: ='Financial Model'!J43*Base_V1_Num_Vehicles_Modeled -> 0 | J52: ='Financial Model'!K43*Base_V1_Num_Vehicles_Modeled -> 0 | K52: ='Financial Model'!L43*Base_V1_Num_Vehicles_Modeled -> 0 | L52: ='Financial Model'!M43*Base_V1_Num_Vehicles_Modeled -> 0 | M52: ='Financial Model'!N43*Base_V1_Num_Vehicles_Modeled -> 0 | N52: ='Financial Model'!O43*Base_V1_Num_Vehicles_Modeled -> 0 | O52: ='Financial Model'!P43*Base_V1_Num_Vehicles_Modeled -> 0 | P52: ='Financial Model'!Q43*Base_V1_Num_Vehicles_Modeled -> 0 | Q52: ='Financial Model'!R43*Base_V1_Num_Vehicles_Modeled -> 0 | R52: ='Financial Model'!S43*Base_V1_Num_Vehicles_Modeled -> 0 | S52: ='Financial Model'!T43*Base_V1_Num_Vehicles_Modeled -> 0 | T52: ='Financial Model'!U43*Base_V1_Num_Vehicles_Modeled -> 0 | U52: ='Financial Model'!V43*Base_V1_Num_Vehicles_Modeled -> 0 | V52: ='Financial Model'!W43*Base_V1_Num_Vehicles_Modeled -> 0 | W52: ='Financial Model'!X43*Base_V1_Num_Vehicles_Modeled -> 0 | X52: ='Financial Model'!Y43*Base_V1_Num_Vehicles_Modeled -> 0 | Y52: ='Financial Model'!Z43*Base_V1_Num_Vehicles_Modeled -> 0 | Z52: ='Financial Model'!AA43*Base_V1_Num_Vehicles_Modeled -> 0 | AA52: ='Financial Model'!AB43*Base_V1_Num_Vehicles_Modeled -> 0 | AB52: ='Financial Model'!AC43*Base_V1_Num_Vehicles_Modeled -> 0 | AC52: 0
B53: Vehicle Total | C53: =SUM(C45:C52) -> -42895 | D53: -2031.951192 | E53: -2084.687506 | F53: -2114.391727 | G53: -2145.939437 | H53: -2179.955176 | I53: -2380.533162 | J53: 12046.4797 | K53: 0 | L53: 0 | M53: 0 | N53: 0 | O53: 0 | P53: 0 | Q53: 0 | R53: 0 | S53: 0 | T53: 0 | U53: 0 | V53: 0 | W53: 0 | X53: 0 | Y53: 0 | Z53: 0 | AA53: 0 | AB53: 0 | AC53: -43785.9785
B54: Vehicle Total - Check | C54: ='Financial Model'!D46*Base_V1_Num_Vehicles_Modeled -> -42895 | D54: ='Financial Model'!E46*Base_V1_Num_Vehicles_Modeled -> -2031.951192 | E54: ='Financial Model'!F46*Base_V1_Num_Vehicles_Modeled -> -2084.687506 | F54: ='Financial Model'!G46*Base_V1_Num_Vehicles_Modeled -> -2114.391727 | G54: ='Financial Model'!H46*Base_V1_Num_Vehicles_Modeled -> -2145.939437 | H54: ='Financial Model'!I46*Base_V1_Num_Vehicles_Modeled -> -2179.955176 | I54: ='Financial Model'!J46*Base_V1_Num_Vehicles_Modeled -> -2380.533162 | J54: ='Financial Model'!K46*Base_V1_Num_Vehicles_Modeled -> 12046.4797 | K54: ='Financial Model'!L46*Base_V1_Num_Vehicles_Modeled -> 0 | L54: ='Financial Model'!M46*Base_V1_Num_Vehicles_Modeled -> 0 | M54: ='Financial Model'!N46*Base_V1_Num_Vehicles_Modeled -> 0 | N54: ='Financial Model'!O46*Base_V1_Num_Vehicles_Modeled -> 0 | O54: ='Financial Model'!P46*Base_V1_Num_Vehicles_Modeled -> 0 | P54: ='Financial Model'!Q46*Base_V1_Num_Vehicles_Modeled -> 0 | Q54: ='Financial Model'!R46*Base_V1_Num_Vehicles_Modeled -> 0 | R54: ='Financial Model'!S46*Base_V1_Num_Vehicles_Modeled -> 0 | S54: ='Financial Model'!T46*Base_V1_Num_Vehicles_Modeled -> 0 | T54: ='Financial Model'!U46*Base_V1_Num_Vehicles_Modeled -> 0 | U54: ='Financial Model'!V46*Base_V1_Num_Vehicles_Modeled -> 0 | V54: ='Financial Model'!W46*Base_V1_Num_Vehicles_Modeled -> 0 | W54: ='Financial Model'!X46*Base_V1_Num_Vehicles_Modeled -> 0 | X54: ='Financial Model'!Y46*Base_V1_Num_Vehicles_Modeled -> 0 | Y54: ='Financial Model'!Z46*Base_V1_Num_Vehicles_Modeled -> 0 | Z54: ='Financial Model'!AA46*Base_V1_Num_Vehicles_Modeled -> 0 | AA54: ='Financial Model'!AB46*Base_V1_Num_Vehicles_Modeled -> 0 | AB54: ='Financial Model'!AC46*Base_V1_Num_Vehicles_Modeled -> 0 | AC54: -43785.9785
B55: Charging Infrastructure | C55: ='Financial Model'!D68 -> 0 | D55: ='Financial Model'!E68 -> 0 | E55: ='Financial Model'!F68 -> 0 | F55: ='Financial Model'!G68 -> 0 | G55: ='Financial Model'!H68 -> 0 | H55: ='Financial Model'!I68 -> 0 | I55: ='Financial Model'!J68 -> 0 | J55: ='Financial Model'!K68 -> 0 | K55: ='Financial Model'!L68 -> 0 | L55: ='Financial Model'!M68 -> 0 | M55: ='Financial Model'!N68 -> 0 | N55: ='Financial Model'!O68 -> 0 | O55: ='Financial Model'!P68 -> 0 | P55: ='Financial Model'!Q68 -> 0 | Q55: ='Financial Model'!R68 -> 0 | R55: ='Financial Model'!S68 -> 0 | S55: ='Financial Model'!T68 -> 0 | T55: ='Financial Model'!U68 -> 0 | U55: ='Financial Model'!V68 -> 0 | V55: ='Financial Model'!W68 -> 0 | W55: ='Financial Model'!X68 -> 0 | X55: ='Financial Model'!Y68 -> 0 | Y55: ='Financial Model'!Z68 -> 0 | Z55: ='Financial Model'!AA68 -> 0 | AA55: ='Financial Model'!AB68 -> 0 | AB55: ='Financial Model'!AC68 -> 0 | AC55: 0
B56: Grand Total | C56: =C53+C55 -> -42895 | D56: =D53+D55 -> -2031.951192 | E56: -2084.687506 | F56: -2114.391727 | G56: -2145.939437 | H56: -2179.955176 | I56: -2380.533162 | J56: 12046.4797 | K56: 0 | L56: 0 | M56: 0 | N56: 0 | O56: 0 | P56: 0 | Q56: 0 | R56: 0 | S56: 0 | T56: 0 | U56: 0 | V56: 0 | W56: 0 | X56: 0 | Y56: 0 | Z56: 0 | AA56: 0 | AB56: 0 | AC56: -43785.9785
B57: Discount Factor | C57: ='Financial Model'!D47 -> 1 | D57: ='Financial Model'!E47 -> 1 | E57: ='Financial Model'!F47 -> 1 | F57: ='Financial Model'!G47 -> 1 | G57: ='Financial Model'!H47 -> 1 | H57: ='Financial Model'!I47 -> 1 | I57: ='Financial Model'!J47 -> 1 | J57: ='Financial Model'!K47 -> 1 | K57: ='Financial Model'!L47 -> 1 | L57: ='Financial Model'!M47 -> 1 | M57: ='Financial Model'!N47 -> 1 | N57: ='Financial Model'!O47 -> 1 | O57: ='Financial Model'!P47 -> 1 | P57: ='Financial Model'!Q47 -> 1 | Q57: ='Financial Model'!R47 -> 1 | R57: ='Financial Model'!S47 -> 1 | S57: ='Financial Model'!T47 -> 1 | T57: ='Financial Model'!U47 -> 1 | U57: ='Financial Model'!V47 -> 1 | V57: ='Financial Model'!W47 -> 1 | W57: ='Financial Model'!X47 -> 1 | X57: ='Financial Model'!Y47 -> 1 | Y57: ='Financial Model'!Z47 -> 1 | Z57: ='Financial Model'!AA47 -> 1 | AA57: ='Financial Model'!AB47 -> 1 | AB57: ='Financial Model'!AC47 -> 1
B58: NPV Total | C58: =C56*C57 -> -42895 | D58: =D56*D57 -> -2031.951192 | E58: -2084.687506 | F58: -2114.391727 | G58: -2145.939437 | H58: -2179.955176 | I58: -2380.533162 | J58: 12046.4797 | K58: 0 | L58: 0 | M58: 0 | N58: 0 | O58: 0 | P58: 0 | Q58: 0 | R58: 0 | S58: 0 | T58: 0 | U58: 0 | V58: 0 | W58: 0 | X58: 0 | Y58: 0 | Z58: 0 | AA58: 0 | AB58: 0 | AC58: -43785.9785
B60: =Comp_V1_Type_Ex&" (Comparison)" -> (Comparison)
C61: Year 0 | D61: Year 1 | E61: Year 2 | F61: Year 3 | G61: Year 4 | H61: Year 5 | I61: Year 6 | J61: Year 7 | K61: Year 8 | L61: Year 9 | M61: Year 10 | N61: Year 11 | O61: Year 12 | P61: Year 13 | Q61: Year 14 | R61: Year 15 | S61: Year 16 | T61: Year 17 | U61: Year 18 | V61: Year 19 | W61: Year 20 | X61: Year 21 | Y61: Year 22 | Z61: Year 23 | AA61: Year 24 | AB61: Year 25 | AC61: Totals
B62: Principal (less tax credits and incentives) | C62: =('Financial Model'!D102-'Financial Model'!D98-'Financial Model'!D100)*Comp_V1_Num_Vehicles_Modeled -> 0 | D62: =('Financial Model'!E102-'Financial Model'!E98-'Financial Model'!E100)*Comp_V1_Num_Vehicles_Modeled -> 0 | E62: =('Financial Model'!F102-'Financial Model'!F98-'Financial Model'!F100)*Comp_V1_Num_Vehicles_Modeled -> 0 | F62: =('Financial Model'!G102-'Financial Model'!G98-'Financial Model'!G100)*Comp_V1_Num_Vehicles_Modeled -> 0 | G62: =('Financial Model'!H102-'Financial Model'!H98-'Financial Model'!H100)*Comp_V1_Num_Vehicles_Modeled -> 0 | H62: =('Financial Model'!I102-'Financial Model'!I98-'Financial Model'!I100)*Comp_V1_Num_Vehicles_Modeled -> 0 | I62: =('Financial Model'!J102-'Financial Model'!J98-'Financial Model'!J100)*Comp_V1_Num_Vehicles_Modeled -> 0 | J62: =('Financial Model'!K102-'Financial Model'!K98-'Financial Model'!K100)*Comp_V1_Num_Vehicles_Modeled -> 0 | K62: =('Financial Model'!L102-'Financial Model'!L98-'Financial Model'!L100)*Comp_V1_Num_Vehicles_Modeled -> 0 | L62: =('Financial Model'!M102-'Financial Model'!M98-'Financial Model'!M100)*Comp_V1_Num_Vehicles_Modeled -> 0 | M62: =('Financial Model'!N102-'Financial Model'!N98-'Financial Model'!N100)*Comp_V1_Num_Vehicles_Modeled -> 0 | N62: =('Financial Model'!O102-'Financial Model'!O98-'Financial Model'!O100)*Comp_V1_Num_Vehicles_Modeled -> 0 | O62: =('Financial Model'!P102-'Financial Model'!P98-'Financial Model'!P100)*Comp_V1_Num_Vehicles_Modeled -> 0 | P62: =('Financial Model'!Q102-'Financial Model'!Q98-'Financial Model'!Q100)*Comp_V1_Num_Vehicles_Modeled -> 0 | Q62: =('Financial Model'!R102-'Financial Model'!R98-'Financial Model'!R100)*Comp_V1_Num_Vehicles_Modeled -> 0 | R62: =('Financial Model'!S102-'Financial Model'!S98-'Financial Model'!S100)*Comp_V1_Num_Vehicles_Modeled -> 0 | S62: =('Financial Model'!T102-'Financial Model'!T98-'Financial Model'!T100)*Comp_V1_Num_Vehicles_Modeled -> 0 | T62: =('Financial Model'!U102-'Financial Model'!U98-'Financial Model'!U100)*Comp_V1_Num_Vehicles_Modeled -> 0 | U62: =('Financial Model'!V102-'Financial Model'!V98-'Financial Model'!V100)*Comp_V1_Num_Vehicles_Modeled -> 0 | V62: =('Financial Model'!W102-'Financial Model'!W98-'Financial Model'!W100)*Comp_V1_Num_Vehicles_Modeled -> 0 | W62: =('Financial Model'!X102-'Financial Model'!X98-'Financial Model'!X100)*Comp_V1_Num_Vehicles_Modeled -> 0 | X62: =('Financial Model'!Y102-'Financial Model'!Y98-'Financial Model'!Y100)*Comp_V1_Num_Vehicles_Modeled -> 0 | Y62: =('Financial Model'!Z102-'Financial Model'!Z98-'Financial Model'!Z100)*Comp_V1_Num_Vehicles_Modeled -> 0 | Z62: =('Financial Model'!AA102-'Financial Model'!AA98-'Financial Model'!AA100)*Comp_V1_Num_Vehicles_Modeled -> 0 | AA62: =('Financial Model'!AB102-'Financial Model'!AB98-'Financial Model'!AB100)*Comp_V1_Num_Vehicles_Modeled -> 0 | AB62: =('Financial Model'!AC102-'Financial Model'!AC98-'Financial Model'!AC100)*Comp_V1_Num_Vehicles_Modeled -> 0 | AC62: =SUM(C62:AB62) -> 0
B63: Financing | C63: ='Financial Model'!D98*Comp_V1_Num_Vehicles_Modeled -> 0 | D63: ='Financial Model'!E98*Comp_V1_Num_Vehicles_Modeled -> 0 | E63: ='Financial Model'!F98*Comp_V1_Num_Vehicles_Modeled -> 0 | F63: ='Financial Model'!G98*Comp_V1_Num_Vehicles_Modeled -> 0 | G63: ='Financial Model'!H98*Comp_V1_Num_Vehicles_Modeled -> 0 | H63: ='Financial Model'!I98*Comp_V1_Num_Vehicles_Modeled -> 0 | I63: ='Financial Model'!J98*Comp_V1_Num_Vehicles_Modeled -> 0 | J63: ='Financial Model'!K98*Comp_V1_Num_Vehicles_Modeled -> 0 | K63: ='Financial Model'!L98*Comp_V1_Num_Vehicles_Modeled -> 0 | L63: ='Financial Model'!M98*Comp_V1_Num_Vehicles_Modeled -> 0 | M63: ='Financial Model'!N98*Comp_V1_Num_Vehicles_Modeled -> 0 | N63: ='Financial Model'!O98*Comp_V1_Num_Vehicles_Modeled -> 0 | O63: ='Financial Model'!P98*Comp_V1_Num_Vehicles_Modeled -> 0 | P63: ='Financial Model'!Q98*Comp_V1_Num_Vehicles_Modeled -> 0 | Q63: ='Financial Model'!R98*Comp_V1_Num_Vehicles_Modeled -> 0 | R63: ='Financial Model'!S98*Comp_V1_Num_Vehicles_Modeled -> 0 | S63: ='Financial Model'!T98*Comp_V1_Num_Vehicles_Modeled -> 0 | T63: ='Financial Model'!U98*Comp_V1_Num_Vehicles_Modeled -> 0 | U63: ='Financial Model'!V98*Comp_V1_Num_Vehicles_Modeled -> 0 | V63: ='Financial Model'!W98*Comp_V1_Num_Vehicles_Modeled -> 0 | W63: ='Financial Model'!X98*Comp_V1_Num_Vehicles_Modeled -> 0 | X63: ='Financial Model'!Y98*Comp_V1_Num_Vehicles_Modeled -> 0 | Y63: ='Financial Model'!Z98*Comp_V1_Num_Vehicles_Modeled -> 0 | Z63: ='Financial Model'!AA98*Comp_V1_Num_Vehicles_Modeled -> 0 | AA63: ='Financial Model'!AB98*Comp_V1_Num_Vehicles_Modeled -> 0 | AB63: ='Financial Model'!AC98*Comp_V1_Num_Vehicles_Modeled -> 0 | AC63: =SUM(C63:AB63) -> 0
B64: Residual Value (Vehicle Sale) | C64: ='Financial Model'!D100*Comp_V1_Num_Vehicles_Modeled -> 0 | D64: ='Financial Model'!E100*Comp_V1_Num_Vehicles_Modeled -> 0 | E64: ='Financial Model'!F100*Comp_V1_Num_Vehicles_Modeled -> 0 | F64: ='Financial Model'!G100*Comp_V1_Num_Vehicles_Modeled -> 0 | G64: ='Financial Model'!H100*Comp_V1_Num_Vehicles_Modeled -> 0 | H64: ='Financial Model'!I100*Comp_V1_Num_Vehicles_Modeled -> 0 | I64: ='Financial Model'!J100*Comp_V1_Num_Vehicles_Modeled -> 0 | J64: ='Financial Model'!K100*Comp_V1_Num_Vehicles_Modeled -> 0 | K64: ='Financial Model'!L100*Comp_V1_Num_Vehicles_Modeled -> 0 | L64: ='Financial Model'!M100*Comp_V1_Num_Vehicles_Modeled -> 0 | M64: ='Financial Model'!N100*Comp_V1_Num_Vehicles_Modeled -> 0 | N64: ='Financial Model'!O100*Comp_V1_Num_Vehicles_Modeled -> 0 | O64: ='Financial Model'!P100*Comp_V1_Num_Vehicles_Modeled -> 0 | P64: ='Financial Model'!Q100*Comp_V1_Num_Vehicles_Modeled -> 0 | Q64: ='Financial Model'!R100*Comp_V1_Num_Vehicles_Modeled -> 0 | R64: ='Financial Model'!S100*Comp_V1_Num_Vehicles_Modeled -> 0 | S64: ='Financial Model'!T100*Comp_V1_Num_Vehicles_Modeled -> 0 | T64: ='Financial Model'!U100*Comp_V1_Num_Vehicles_Modeled -> 0 | U64: ='Financial Model'!V100*Comp_V1_Num_Vehicles_Modeled -> 0 | V64: ='Financial Model'!W100*Comp_V1_Num_Vehicles_Modeled -> 0 | W64: ='Financial Model'!X100*Comp_V1_Num_Vehicles_Modeled -> 0 | X64: ='Financial Model'!Y100*Comp_V1_Num_Vehicles_Modeled -> 0 | Y64: ='Financial Model'!Z100*Comp_V1_Num_Vehicles_Modeled -> 0 | Z64: ='Financial Model'!AA100*Comp_V1_Num_Vehicles_Modeled -> 0 | AA64: ='Financial Model'!AB100*Comp_V1_Num_Vehicles_Modeled -> 0 | AB64: ='Financial Model'!AC100*Comp_V1_Num_Vehicles_Modeled -> 0 | AC64: 0
B65: Fuel | C65: ='Financial Model'!D105*Comp_V1_Num_Vehicles_Modeled -> 0 | D65: ='Financial Model'!E105*Comp_V1_Num_Vehicles_Modeled -> 0 | E65: ='Financial Model'!F105*Comp_V1_Num_Vehicles_Modeled -> 0 | F65: ='Financial Model'!G105*Comp_V1_Num_Vehicles_Modeled -> 0 | G65: ='Financial Model'!H105*Comp_V1_Num_Vehicles_Modeled -> 0 | H65: ='Financial Model'!I105*Comp_V1_Num_Vehicles_Modeled -> 0 | I65: ='Financial Model'!J105*Comp_V1_Num_Vehicles_Modeled -> 0 | J65: ='Financial Model'!K105*Comp_V1_Num_Vehicles_Modeled -> 0 | K65: ='Financial Model'!L105*Comp_V1_Num_Vehicles_Modeled -> 0 | L65: ='Financial Model'!M105*Comp_V1_Num_Vehicles_Modeled -> 0 | M65: ='Financial Model'!N105*Comp_V1_Num_Vehicles_Modeled -> 0 | N65: ='Financial Model'!O105*Comp_V1_Num_Vehicles_Modeled -> 0 | O65: ='Financial Model'!P105*Comp_V1_Num_Vehicles_Modeled -> 0 | P65: ='Financial Model'!Q105*Comp_V1_Num_Vehicles_Modeled -> 0 | Q65: ='Financial Model'!R105*Comp_V1_Num_Vehicles_Modeled -> 0 | R65: ='Financial Model'!S105*Comp_V1_Num_Vehicles_Modeled -> 0 | S65: ='Financial Model'!T105*Comp_V1_Num_Vehicles_Modeled -> 0 | T65: ='Financial Model'!U105*Comp_V1_Num_Vehicles_Modeled -> 0 | U65: ='Financial Model'!V105*Comp_V1_Num_Vehicles_Modeled -> 0 | V65: ='Financial Model'!W105*Comp_V1_Num_Vehicles_Modeled -> 0 | W65: ='Financial Model'!X105*Comp_V1_Num_Vehicles_Modeled -> 0 | X65: ='Financial Model'!Y105*Comp_V1_Num_Vehicles_Modeled -> 0 | Y65: ='Financial Model'!Z105*Comp_V1_Num_Vehicles_Modeled -> 0 | Z65: ='Financial Model'!AA105*Comp_V1_Num_Vehicles_Modeled -> 0 | AA65: ='Financial Model'!AB105*Comp_V1_Num_Vehicles_Modeled -> 0 | AB65: ='Financial Model'!AC105*Comp_V1_Num_Vehicles_Modeled -> 0 | AC65: 0
B66: Maintenance and Repairs | C66: ='Financial Model'!D106*Comp_V1_Num_Vehicles_Modeled -> 0 | D66: ='Financial Model'!E106*Comp_V1_Num_Vehicles_Modeled -> 0 | E66: ='Financial Model'!F106*Comp_V1_Num_Vehicles_Modeled -> 0 | F66: ='Financial Model'!G106*Comp_V1_Num_Vehicles_Modeled -> 0 | G66: ='Financial Model'!H106*Comp_V1_Num_Vehicles_Modeled -> 0 | H66: ='Financial Model'!I106*Comp_V1_Num_Vehicles_Modeled -> 0 | I66: ='Financial Model'!J106*Comp_V1_Num_Vehicles_Modeled -> 0 | J66: ='Financial Model'!K106*Comp_V1_Num_Vehicles_Modeled -> 0 | K66: ='Financial Model'!L106*Comp_V1_Num_Vehicles_Modeled -> 0 | L66: ='Financial Model'!M106*Comp_V1_Num_Vehicles_Modeled -> 0 | M66: ='Financial Model'!N106*Comp_V1_Num_Vehicles_Modeled -> 0 | N66: ='Financial Model'!O106*Comp_V1_Num_Vehicles_Modeled -> 0 | O66: ='Financial Model'!P106*Comp_V1_Num_Vehicles_Modeled -> 0 | P66: ='Financial Model'!Q106*Comp_V1_Num_Vehicles_Modeled -> 0 | Q66: ='Financial Model'!R106*Comp_V1_Num_Vehicles_Modeled -> 0 | R66: ='Financial Model'!S106*Comp_V1_Num_Vehicles_Modeled -> 0 | S66: ='Financial Model'!T106*Comp_V1_Num_Vehicles_Modeled -> 0 | T66: ='Financial Model'!U106*Comp_V1_Num_Vehicles_Modeled -> 0 | U66: ='Financial Model'!V106*Comp_V1_Num_Vehicles_Modeled -> 0 | V66: ='Financial Model'!W106*Comp_V1_Num_Vehicles_Modeled -> 0 | W66: ='Financial Model'!X106*Comp_V1_Num_Vehicles_Modeled -> 0 | X66: ='Financial Model'!Y106*Comp_V1_Num_Vehicles_Modeled -> 0 | Y66: ='Financial Model'!Z106*Comp_V1_Num_Vehicles_Modeled -> 0 | Z66: ='Financial Model'!AA106*Comp_V1_Num_Vehicles_Modeled -> 0 | AA66: ='Financial Model'!AB106*Comp_V1_Num_Vehicles_Modeled -> 0 | AB66: ='Financial Model'!AC106*Comp_V1_Num_Vehicles_Modeled -> 0 | AC66: 0
B67: Taxes & Fees | C67: ='Financial Model'!D107*Comp_V1_Num_Vehicles_Modeled -> 0 | D67: ='Financial Model'!E107*Comp_V1_Num_Vehicles_Modeled -> 0 | E67: ='Financial Model'!F107*Comp_V1_Num_Vehicles_Modeled -> 0 | F67: ='Financial Model'!G107*Comp_V1_Num_Vehicles_Modeled -> 0 | G67: ='Financial Model'!H107*Comp_V1_Num_Vehicles_Modeled -> 0 | H67: ='Financial Model'!I107*Comp_V1_Num_Vehicles_Modeled -> 0 | I67: ='Financial Model'!J107*Comp_V1_Num_Vehicles_Modeled -> 0 | J67: ='Financial Model'!K107*Comp_V1_Num_Vehicles_Modeled -> 0 | K67: ='Financial Model'!L107*Comp_V1_Num_Vehicles_Modeled -> 0 | L67: ='Financial Model'!M107*Comp_V1_Num_Vehicles_Modeled -> 0 | M67: ='Financial Model'!N107*Comp_V1_Num_Vehicles_Modeled -> 0 | N67: ='Financial Model'!O107*Comp_V1_Num_Vehicles_Modeled -> 0 | O67: ='Financial Model'!P107*Comp_V1_Num_Vehicles_Modeled -> 0 | P67: ='Financial Model'!Q107*Comp_V1_Num_Vehicles_Modeled -> 0 | Q67: ='Financial Model'!R107*Comp_V1_Num_Vehicles_Modeled -> 0 | R67: ='Financial Model'!S107*Comp_V1_Num_Vehicles_Modeled -> 0 | S67: ='Financial Model'!T107*Comp_V1_Num_Vehicles_Modeled -> 0 | T67: ='Financial Model'!U107*Comp_V1_Num_Vehicles_Modeled -> 0 | U67: ='Financial Model'!V107*Comp_V1_Num_Vehicles_Modeled -> 0 | V67: ='Financial Model'!W107*Comp_V1_Num_Vehicles_Modeled -> 0 | W67: ='Financial Model'!X107*Comp_V1_Num_Vehicles_Modeled -> 0 | X67: ='Financial Model'!Y107*Comp_V1_Num_Vehicles_Modeled -> 0 | Y67: ='Financial Model'!Z107*Comp_V1_Num_Vehicles_Modeled -> 0 | Z67: ='Financial Model'!AA107*Comp_V1_Num_Vehicles_Modeled -> 0 | AA67: ='Financial Model'!AB107*Comp_V1_Num_Vehicles_Modeled -> 0 | AB67: ='Financial Model'!AC107*Comp_V1_Num_Vehicles_Modeled -> 0 | AC67: 0
B68: Insurance | C68: ='Financial Model'!D108*Comp_V1_Num_Vehicles_Modeled -> 0 | D68: ='Financial Model'!E108*Comp_V1_Num_Vehicles_Modeled -> 0 | E68: ='Financial Model'!F108*Comp_V1_Num_Vehicles_Modeled -> 0 | F68: ='Financial Model'!G108*Comp_V1_Num_Vehicles_Modeled -> 0 | G68: ='Financial Model'!H108*Comp_V1_Num_Vehicles_Modeled -> 0 | H68: ='Financial Model'!I108*Comp_V1_Num_Vehicles_Modeled -> 0 | I68: ='Financial Model'!J108*Comp_V1_Num_Vehicles_Modeled -> 0 | J68: ='Financial Model'!K108*Comp_V1_Num_Vehicles_Modeled -> 0 | K68: ='Financial Model'!L108*Comp_V1_Num_Vehicles_Modeled -> 0 | L68: ='Financial Model'!M108*Comp_V1_Num_Vehicles_Modeled -> 0 | M68: ='Financial Model'!N108*Comp_V1_Num_Vehicles_Modeled -> 0 | N68: ='Financial Model'!O108*Comp_V1_Num_Vehicles_Modeled -> 0 | O68: ='Financial Model'!P108*Comp_V1_Num_Vehicles_Modeled -> 0 | P68: ='Financial Model'!Q108*Comp_V1_Num_Vehicles_Modeled -> 0 | Q68: ='Financial Model'!R108*Comp_V1_Num_Vehicles_Modeled -> 0 | R68: ='Financial Model'!S108*Comp_V1_Num_Vehicles_Modeled -> 0 | S68: ='Financial Model'!T108*Comp_V1_Num_Vehicles_Modeled -> 0 | T68: ='Financial Model'!U108*Comp_V1_Num_Vehicles_Modeled -> 0 | U68: ='Financial Model'!V108*Comp_V1_Num_Vehicles_Modeled -> 0 | V68: ='Financial Model'!W108*Comp_V1_Num_Vehicles_Modeled -> 0 | W68: ='Financial Model'!X108*Comp_V1_Num_Vehicles_Modeled -> 0 | X68: ='Financial Model'!Y108*Comp_V1_Num_Vehicles_Modeled -> 0 | Y68: ='Financial Model'!Z108*Comp_V1_Num_Vehicles_Modeled -> 0 | Z68: ='Financial Model'!AA108*Comp_V1_Num_Vehicles_Modeled -> 0 | AA68: ='Financial Model'!AB108*Comp_V1_Num_Vehicles_Modeled -> 0 | AB68: ='Financial Model'!AC108*Comp_V1_Num_Vehicles_Modeled -> 0 | AC68: 0
B69: Carbon | C69: ='Financial Model'!D114*Comp_V1_Num_Vehicles_Modeled -> 0 | D69: ='Financial Model'!E114*Comp_V1_Num_Vehicles_Modeled -> 0 | E69: ='Financial Model'!F114*Comp_V1_Num_Vehicles_Modeled -> 0 | F69: ='Financial Model'!G114*Comp_V1_Num_Vehicles_Modeled -> 0 | G69: ='Financial Model'!H114*Comp_V1_Num_Vehicles_Modeled -> 0 | H69: ='Financial Model'!I114*Comp_V1_Num_Vehicles_Modeled -> 0 | I69: ='Financial Model'!J114*Comp_V1_Num_Vehicles_Modeled -> 0 | J69: ='Financial Model'!K114*Comp_V1_Num_Vehicles_Modeled -> 0 | K69: ='Financial Model'!L114*Comp_V1_Num_Vehicles_Modeled -> 0 | L69: ='Financial Model'!M114*Comp_V1_Num_Vehicles_Modeled -> 0 | M69: ='Financial Model'!N114*Comp_V1_Num_Vehicles_Modeled -> 0 | N69: ='Financial Model'!O114*Comp_V1_Num_Vehicles_Modeled -> 0 | O69: ='Financial Model'!P114*Comp_V1_Num_Vehicles_Modeled -> 0 | P69: ='Financial Model'!Q114*Comp_V1_Num_Vehicles_Modeled -> 0 | Q69: ='Financial Model'!R114*Comp_V1_Num_Vehicles_Modeled -> 0 | R69: ='Financial Model'!S114*Comp_V1_Num_Vehicles_Modeled -> 0 | S69: ='Financial Model'!T114*Comp_V1_Num_Vehicles_Modeled -> 0 | T69: ='Financial Model'!U114*Comp_V1_Num_Vehicles_Modeled -> 0 | U69: ='Financial Model'!V114*Comp_V1_Num_Vehicles_Modeled -> 0 | V69: ='Financial Model'!W114*Comp_V1_Num_Vehicles_Modeled -> 0 | W69: ='Financial Model'!X114*Comp_V1_Num_Vehicles_Modeled -> 0 | X69: ='Financial Model'!Y114*Comp_V1_Num_Vehicles_Modeled -> 0 | Y69: ='Financial Model'!Z114*Comp_V1_Num_Vehicles_Modeled -> 0 | Z69: ='Financial Model'!AA114*Comp_V1_Num_Vehicles_Modeled -> 0 | AA69: ='Financial Model'!AB114*Comp_V1_Num_Vehicles_Modeled -> 0 | AB69: ='Financial Model'!AC114*Comp_V1_Num_Vehicles_Modeled -> 0 | AC69: 0
B70: Vehicle Total | C70: =SUM(C62:C69) -> 0 | D70: 0 | E70: 0 | F70: 0 | G70: 0 | H70: 0 | I70: 0 | J70: 0 | K70: 0 | L70: 0 | M70: 0 | N70: 0 | O70: 0 | P70: 0 | Q70: 0 | R70: 0 | S70: 0 | T70: 0 | U70: 0 | V70: 0 | W70: 0 | X70: 0 | Y70: 0 | Z70: 0 | AA70: 0 | AB70: 0 | AC70: 0
B71: Vehicle Total - Check | C71: ='Financial Model'!D117*Comp_V1_Num_Vehicles_Modeled -> 0 | D71: ='Financial Model'!E117*Comp_V1_Num_Vehicles_Modeled -> 0 | E71: ='Financial Model'!F117*Comp_V1_Num_Vehicles_Modeled -> 0 | F71: ='Financial Model'!G117*Comp_V1_Num_Vehicles_Modeled -> 0 | G71: ='Financial Model'!H117*Comp_V1_Num_Vehicles_Modeled -> 0 | H71: ='Financial Model'!I117*Comp_V1_Num_Vehicles_Modeled -> 0 | I71: ='Financial Model'!J117*Comp_V1_Num_Vehicles_Modeled -> 0 | J71: ='Financial Model'!K117*Comp_V1_Num_Vehicles_Modeled -> 0 | K71: ='Financial Model'!L117*Comp_V1_Num_Vehicles_Modeled -> 0 | L71: ='Financial Model'!M117*Comp_V1_Num_Vehicles_Modeled -> 0 | M71: ='Financial Model'!N117*Comp_V1_Num_Vehicles_Modeled -> 0 | N71: ='Financial Model'!O117*Comp_V1_Num_Vehicles_Modeled -> 0 | O71: ='Financial Model'!P117*Comp_V1_Num_Vehicles_Modeled -> 0 | P71: ='Financial Model'!Q117*Comp_V1_Num_Vehicles_Modeled -> 0 | Q71: ='Financial Model'!R117*Comp_V1_Num_Vehicles_Modeled -> 0 | R71: ='Financial Model'!S117*Comp_V1_Num_Vehicles_Modeled -> 0 | S71: ='Financial Model'!T117*Comp_V1_Num_Vehicles_Modeled -> 0 | T71: ='Financial Model'!U117*Comp_V1_Num_Vehicles_Modeled -> 0 | U71: ='Financial Model'!V117*Comp_V1_Num_Vehicles_Modeled -> 0 | V71: ='Financial Model'!W117*Comp_V1_Num_Vehicles_Modeled -> 0 | W71: ='Financial Model'!X117*Comp_V1_Num_Vehicles_Modeled -> 0 | X71: ='Financial Model'!Y117*Comp_V1_Num_Vehicles_Modeled -> 0 | Y71: ='Financial Model'!Z117*Comp_V1_Num_Vehicles_Modeled -> 0 | Z71: ='Financial Model'!AA117*Comp_V1_Num_Vehicles_Modeled -> 0 | AA71: ='Financial Model'!AB117*Comp_V1_Num_Vehicles_Modeled -> 0 | AB71: ='Financial Model'!AC117*Comp_V1_Num_Vehicles_Modeled -> 0 | AC71: 0
B72: Charging Infrastructure | C72: ='Financial Model'!D139 -> 0 | D72: ='Financial Model'!E139 -> 0 | E72: ='Financial Model'!F139 -> 0 | F72: ='Financial Model'!G139 -> 0 | G72: ='Financial Model'!H139 -> 0 | H72: ='Financial Model'!I139 -> 0 | I72: ='Financial Model'!J139 -> 0 | J72: ='Financial Model'!K139 -> 0 | K72: ='Financial Model'!L139 -> 0 | L72: ='Financial Model'!M139 -> 0 | M72: ='Financial Model'!N139 -> 0 | N72: ='Financial Model'!O139 -> 0 | O72: ='Financial Model'!P139 -> 0 | P72: ='Financial Model'!Q139 -> 0 | Q72: ='Financial Model'!R139 -> 0 | R72: ='Financial Model'!S139 -> 0 | S72: ='Financial Model'!T139 -> 0 | T72: ='Financial Model'!U139 -> 0 | U72: ='Financial Model'!V139 -> 0 | V72: ='Financial Model'!W139 -> 0 | W72: ='Financial Model'!X139 -> 0 | X72: ='Financial Model'!Y139 -> 0 | Y72: ='Financial Model'!Z139 -> 0 | Z72: ='Financial Model'!AA139 -> 0 | AA72: ='Financial Model'!AB139 -> 0 | AB72: ='Financial Model'!AC139 -> 0 | AC72: 0
B73: Grand Total | C73: =C70+C72 -> 0 | D73: 0 | E73: 0 | F73: 0 | G73: 0 | H73: 0 | I73: 0 | J73: 0 | K73: 0 | L73: 0 | M73: 0 | N73: 0 | O73: 0 | P73: 0 | Q73: 0 | R73: 0 | S73: 0 | T73: 0 | U73: 0 | V73: 0 | W73: 0 | X73: 0 | Y73: 0 | Z73: 0 | AA73: 0 | AB73: 0 | AC73: 0
B74: Discount Factor | C74: ='Financial Model'!D118 -> 1 | D74: ='Financial Model'!E118 -> 1 | E74: ='Financial Model'!F118 -> 1 | F74: ='Financial Model'!G118 -> 1 | G74: ='Financial Model'!H118 -> 1 | H74: ='Financial Model'!I118 -> 1 | I74: ='Financial Model'!J118 -> 1 | J74: ='Financial Model'!K118 -> 1 | K74: ='Financial Model'!L118 -> 1 | L74: ='Financial Model'!M118 -> 1 | M74: ='Financial Model'!N118 -> 1 | N74: ='Financial Model'!O118 -> 1 | O74: ='Financial Model'!P118 -> 1 | P74: ='Financial Model'!Q118 -> 1 | Q74: ='Financial Model'!R118 -> 1 | R74: ='Financial Model'!S118 -> 1 | S74: ='Financial Model'!T118 -> 1 | T74: ='Financial Model'!U118 -> 1 | U74: ='Financial Model'!V118 -> 1 | V74: ='Financial Model'!W118 -> 1 | W74: ='Financial Model'!X118 -> 1 | X74: ='Financial Model'!Y118 -> 1 | Y74: ='Financial Model'!Z118 -> 1 | Z74: ='Financial Model'!AA118 -> 1 | AA74: ='Financial Model'!AB118 -> 1 | AB74: ='Financial Model'!AC118 -> 1
B75: NPV Total | C75: =C73*C74 -> 0 | D75: 0 | E75: 0 | F75: 0 | G75: 0 | H75: 0 | I75: 0 | J75: 0 | K75: 0 | L75: 0 | M75: 0 | N75: 0 | O75: 0 | P75: 0 | Q75: 0 | R75: 0 | S75: 0 | T75: 0 | U75: 0 | V75: 0 | W75: 0 | X75: 0 | Y75: 0 | Z75: 0 | AA75: 0 | AB75: 0 | AC75: =SUM(C75:AB75) -> 0

Sheet Results (hidden)
A1: Results - Dashboard for Rapid Vehicle Electrification
A2: ="Procurement Name: " & Procurement_Name -> 
B3: =Base_V1_Type_Ex&" (Baseline)" -> 2021 Ford Mustang Mach-E BEV (Baseline)
A4: Procurement Type | B4: =_Base_V1_Ownership_Structure -> Purchase (Cash)
A5: Number of Vehicles Procured | B5: =Base_V1_Num_Vehicles_Modeled -> 1
A6: Years of Use/Ownership | B6: =Base_V1_Years_Usage_Modeled -> 7
A7: =Constant_Distance_Metric & "s Procured" -> Miles Procured | B7: =Base_V1_Years_Usage_Modeled*Base_V1_VMT_Modeled*Base_V1_Num_Vehicles_Modeled -> 84000
A8: Total NPV Vehicle and Operating Cost | B8: =SUM(B9:B12) -> 43785.9785
A9: Total Tax Incentives Captured | B9: =IF(Base_V1_Tax_Incentives_Monetized="Yes",(Base_V1_Federal_Tax_Incentives_Modeled*Base_V1_Num_Vehicles_Modeled)+IF(Base_V1_State_Tax_Incentive_Cap_Modeled=0,Base_V1_State_Tax_Incentives_Modeled*Base_V1_Num_Vehicles_Modeled,MIN(Base_V1_State_Tax_Incentive_Cap_Modeled,Base_V1_State_Tax_Incentives_Modeled*Base_V1_Num_Vehicles_Modeled)),0) -> 0
A10: Total Non-Tax Incentive Captured | B10: =Base_V1_Other_Incentives_Modeled*Base_V1_Num_Vehicles_Modeled -> 0
A11: Total Discounts Captured | B11: =IF(_Base_V1_Pricing_Approach="MSRP Less Discounts",Base_V1_Discounts_Modeled*Base_V1_Num_Vehicles_Modeled,0) -> 0
A12: NPV Vehicle Total Cost less Incentives and Discounts | B12: =-Base_V1_Annualized_Cost_Ownership_Ex*Base_V1_Years_Usage_Modeled*Base_V1_Num_Vehicles_Modeled -> 43785.9785
A13: NPV Total Cost of Infrastructure | B13: =-Base_Inf_Annualized_Cost_Ownership_Ex*Base_V1_Years_Usage_Modeled -> 0
A14: Total NPV Cost | B14: =SUM(B12:B13) -> 43785.9785
A15: ="Total NPV Cost / " & Constant_Distance_Metric -> Total NPV Cost / Mile | B15: =B14/B7 -> 0.5212616488

Sheet Financial Model (hidden)
A1: Financial Models - Dashboard for Rapid Vehicle Electrification
D2: Year 0 | E2: Year 1 | F2: Year 2 | G2: Year 3 | H2: Year 4 | I2: Year 5 | J2: Year 6 | K2: Year 7 | L2: Year 8 | M2: Year 9 | N2: Year 10 | O2: Year 11 | P2: Year 12 | Q2: Year 13 | R2: Year 14 | S2: Year 15 | T2: Year 16 | U2: Year 17 | V2: Year 18 | W2: Year 19 | X2: Year 20 | Y2: Year 21 | Z2: Year 22 | AA2: Year 23 | AB2: Year 24 | AC2: Year 25
B3: Baseline Vehicle 1
D4: Year 0 | E4: Year 1 | F4: Year 2 | G4: Year 3 | H4: Year 4 | I4: Year 5 | J4: Year 6 | K4: Year 7 | L4: Year 8 | M4: Year 9 | N4: Year 10 | O4: Year 11 | P4: Year 12 | Q4: Year 13 | R4: Year 14 | S4: Year 15 | T4: Year 16 | U4: Year 17 | V4: Year 18 | W4: Year 19 | X4: Year 20 | Y4: Year 21 | Z4: Year 22 | AA4: Year 23 | AB4: Year 24 | AC4: Year 25
B5: Depreciation Calculations
B6: Fair Market Value - BEV | D6: =IF(_Base_V1_Vehicle_Drivetrain="BEV",Base_V1_Base_Price_Ex,0) -> 42895 | E6: =IF(_Base_V1_Vehicle_Vehicle_Class=Const_Passenger_Light_Duty, IF(_Base_V1_Vehicle_Drivetrain="BEV",MAX(IF(_Base_V1_Vehicle_Drivetrain="BEV",Reg_BEV_Const_Ex+Reg_BEV_Age_Coef_Ex*(COLUMN(E4)-COLUMN($D4))+Reg_BEV_Agesq_Coef_Ex*((COLUMN(E4)-COLUMN($D4))^2)+Reg_BEV_MSRP_Coef_Ex*Base_V1_Base_Price_Ex+Reg_BEV_Range_Coef_Ex*Constant_Baseline_Electric_Range+Reg_BEV_Mileage_Coef_Ex*Base_V1_VMT_Modeled*(COLUMN(E4)-COLUMN($D4)),0),300),0), IF(COLUMN(E4)-COLUMN($D4)=1, 'Financial Model'!D6*0.77, 'Financial Model'!D6*0.85)) -> 28663.37046 | F6: =IF(_Base_V1_Vehicle_Vehicle_Class=Const_Passenger_Light_Duty, IF(_Base_V1_Vehicle_Drivetrain="BEV",MAX(IF(_Base_V1_Vehicle_Drivetrain="BEV",Reg_BEV_Const_Ex+Reg_BEV_Age_Coef_Ex*(COLUMN(F4)-COLUMN($D4))+Reg_BEV_Agesq_Coef_Ex*((COLUMN(F4)-COLUMN($D4))^2)+Reg_BEV_MSRP_Coef_Ex*Base_V1_Base_Price_Ex+Reg_BEV_Range_Coef_Ex*Constant_Baseline_Electric_Range+Reg_BEV_Mileage_Coef_Ex*Base_V1_VMT_Modeled*(COLUMN(F4)-COLUMN($D4)),0),300),0), IF(COLUMN(F4)-COLUMN($D4)=1, 'Financial Model'!E6*0.77, 'Financial Model'!E6*0.85)) -> 26289.38574 | G6: =IF(_Base_V1_Vehicle_Vehicle_Class=Const_Passenger_Light_Duty, IF(_Base_V1_Vehicle_Drivetrain="BEV",MAX(IF(_Base_V1_Vehicle_Drivetrain="BEV",Reg_BEV_Const_Ex+Reg_BEV_Age_Coef_Ex*(COLUMN(G4)-COLUMN($D4))+Reg_BEV_Agesq_Coef_Ex*((COLUMN(G4)-COLUMN($D4))^2)+Reg_BEV_MSRP_Coef_Ex*Base_V1_Base_Price_Ex+Reg_BEV_Range_Coef_Ex*Constant_Baseline_Electric_Range+Reg_BEV_Mileage_Coef_Ex*Base_V1_VMT_Modeled*(COLUMN(G4)-COLUMN($D4)),0),300),0), IF(COLUMN(G4)-COLUMN($D4)=1, 'Financial Model'!F6*0.77, 'Financial Model'!F6*0.85)) -> 23844.72134 | H6: =IF(_Base_V1_Vehicle_Vehicle_Class=Const_Passenger_Light_Duty, IF(_Base_V1_Vehicle_Drivetrain="BEV",MAX(IF(_Base_V1_Vehicle_Drivetrain="BEV",Reg_BEV_Const_Ex+Reg_BEV_Age_Coef_Ex*(COLUMN(H4)-COLUMN($D4))+Reg_BEV_Agesq_Coef_Ex*((COLUMN(H4)-COLUMN($D4))^2)+Reg_BEV_MSRP_Coef_Ex*Base_V1_Base_Price_Ex+Reg_BEV_Range_Coef_Ex*Constant_Baseline_Electric_Range+Reg_BEV_Mileage_Coef_Ex*Base_V1_VMT_Modeled*(COLUMN(H4)-COLUMN($D4)),0),300),0), IF(COLUMN(H4)-COLUMN($D4)=1, 'Financial Model'!G6*0.77, 'Financial Model'!G6*0.85)) -> 21329.37726 | I6: =IF(_Base_V1_Vehicle_Vehicle_Class=Const_Passenger_Light_Duty, IF(_Base_V1_Vehicle_Drivetrain="BEV",MAX(IF(_Base_V1_Vehicle_Drivetrain="BEV",Reg_BEV_Const_Ex+Reg_BEV_Age_Coef_Ex*(COLUMN(I4)-COLUMN($D4))+Reg_BEV_Agesq_Coef_Ex*((COLUMN(I4)-COLUMN($D4))^2)+Reg_BEV_MSRP_Coef_Ex*Base_V1_Base_Price_Ex+Reg_BEV_Range_Coef_Ex*Constant_Baseline_Electric_Range+Reg_BEV_Mileage_Coef_Ex*Base_V1_VMT_Modeled*(COLUMN(I4)-COLUMN($D4)),0),300),0), IF(COLUMN(I4)-COLUMN($D4)=1, 'Financial Model'!H6*0.77, 'Financial Model'!H6*0.85)) -> 18743.3535 | J6: =IF($H6-$I6=0,0,MAX((1-($H6-$I6)/$H6)*I6,300)) -> 16470.86533 | K6: 14473.89896 | L6: 12719.04948 | M6: 11176.96206 | N6: 9821.840951 | O6: 8631.017902 | P6: 7584.573034 | Q6: 6665.001598 | R6: 5856.921161 | S6: 5146.814293 | T6: 4522.802448 | U6: 3974.447264 | V6: 3492.575949 | W6: 3069.127844 | X6: 2697.019581 | Y6: 2370.026597 | Z6: 2082.679009 | AA6: 1830.170118 | AB6: 1608.275997 | AC6: 1413.284841
B7: Fair Market Value - PHEV | D7: =IF(_Base_V1_Vehicle_Drivetrain="PHEV",Base_V1_Base_Price_Ex,0) -> 0 | E7: =IF(_Base_V1_Vehicle_Vehicle_Class=Const_Passenger_Light_Duty,IF(_Base_V1_Vehicle_Drivetrain="PHEV",MAX(IF(_Base_V1_Vehicle_Drivetrain="PHEV",Reg_PHEV_Const_Ex+Reg_PHEV_Age_Coef_Ex*(COLUMN(E4)-COLUMN($D4))+Reg_PHEV_Agesq_Coef_Ex*((COLUMN(E4)-COLUMN($D4))^2)+Reg_PHEV_MSRP_Coef_Ex*Base_V1_Base_Price_Ex+Reg_PHEV_Range_Coef_Ex*Constant_Baseline_Electric_Range+Reg_PHEV_Mileage_Coef_Ex*Base_V1_VMT_Modeled*(COLUMN(E4)-COLUMN($D4)),0),300),0),IF(COLUMN(E4)-COLUMN($D4)=1, 'Financial Model'!D7*0.77, 'Financial Model'!D7*0.85)) -> 0 | F7: =IF(_Base_V1_Vehicle_Vehicle_Class=Const_Passenger_Light_Duty,IF(_Base_V1_Vehicle_Drivetrain="PHEV",MAX(IF(_Base_V1_Vehicle_Drivetrain="PHEV",Reg_PHEV_Const_Ex+Reg_PHEV_Age_Coef_Ex*(COLUMN(F4)-COLUMN($D4))+Reg_PHEV_Agesq_Coef_Ex*((COLUMN(F4)-COLUMN($D4))^2)+Reg_PHEV_MSRP_Coef_Ex*Base_V1_Base_Price_Ex+Reg_PHEV_Range_Coef_Ex*Constant_Baseline_Electric_Range+Reg_PHEV_Mileage_Coef_Ex*Base_V1_VMT_Modeled*(COLUMN(F4)-COLUMN($D4)),0),300),0),IF(COLUMN(F4)-COLUMN($D4)=1, 'Financial Model'!E7*0.77, 'Financial Model'!E7*0.85)) -> 0 | G7: =IF(_Base_V1_Vehicle_Vehicle_Class=Const_Passenger_Light_Duty,IF(_Base_V1_Vehicle_Drivetrain="PHEV",MAX(IF(_Base_V1_Vehicle_Drivetrain="PHEV",Reg_PHEV_Const_Ex+Reg_PHEV_Age_Coef_Ex*(COLUMN(G4)-COLUMN($D4))+Reg_PHEV_Agesq_Coef_Ex*((COLUMN(G4)-COLUMN($D4))^2)+Reg_PHEV_MSRP_Coef_Ex*Base_V1_Base_Price_Ex+Reg_PHEV_Range_Coef_Ex*Constant_Baseline_Electric_Range+Reg_PHEV_Mileage_Coef_Ex*Base_V1_VMT_Modeled*(COLUMN(G4)-COLUMN($D4)),0),300),0),IF(COLUMN(G4)-COLUMN($D4)=1, 'Financial Model'!F7*0.77, 'Financial Model'!F7*0.85)) -> 0 | H7: =IF(_Base_V1_Vehicle_Vehicle_Class=Const_Passenger_Light_Duty,IF(_Base_V1_Vehicle_Drivetrain="PHEV",MAX(IF(_Base_V1_Vehicle_Drivetrain="PHEV",Reg_PHEV_Const_Ex+Reg_PHEV_Age_Coef_Ex*(COLUMN(H4)-COLUMN($D4))+Reg_PHEV_Agesq_Coef_Ex*((COLUMN(H4)-COLUMN($D4))^2)+Reg_PHEV_MSRP_Coef_Ex*Base_V1_Base_Price_Ex+Reg_PHEV_Range_Coef_Ex*Constant_Baseline_Electric_Range+Reg_PHEV_Mileage_Coef_Ex*Base_V1_VMT_Modeled*(COLUMN(H4)-COLUMN($D4)),0),300),0),IF(COLUMN(H4)-COLUMN($D4)=1, 'Financial Model'!G7*0.77, 'Financial Model'!G7*0.85)) -> 0 | I7: =IF(_Base_V1_Vehicle_Vehicle_Class=Const_Passenger_Light_Duty,IF(_Base_V1_Vehicle_Drivetrain="PHEV",MAX(IF(_Base_V1_Vehicle_Drivetrain="PHEV",Reg_PHEV_Const_Ex+Reg_PHEV_Age_Coef_Ex*(COLUMN(I4)-COLUMN($D4))+Reg_PHEV_Agesq_Coef_Ex*((COLUMN(I4)-COLUMN($D4))^2)+Reg_PHEV_MSRP_Coef_Ex*Base_V1_Base_Price_Ex+Reg_PHEV_Range_Coef_Ex*Constant_Baseline_Electric_Range+Reg_PHEV_Mileage_Coef_Ex*Base_V1_VMT_Modeled*(COLUMN(I4)-COLUMN($D4)),0),300),0),IF(COLUMN(I4)-COLUMN($D4)=1, 'Financial Model'!H7*0.77, 'Financial Model'!H7*0.85)) -> 0 | J7: =IF($H7-$I7=0,0,MAX((1-($H7-$I7)/$H7)*I7,300)) -> 0 | K7: 0 | L7: 0 | M7: 0 | N7: 0 | O7: 0 | P7: 0 | Q7: 0 | R7: 0 | S7: 0 | T7: 0 | U7: 0 | V7: 0 | W7: 0 | X7: 0 | Y7: 0 | Z7: =IF($H7-$I7=0,0,MAX((1-($H7-$I7)/$H7)*Y7,300)) -> 0 | AA7: 0 | AB7: 0 | AC7: 0
B8: Fair Market Value - ICE | D8: =IF(_Base_V1_Vehicle_Drivetrain="ICE",Base_V1_Base_Price_Ex,0) -> 0 | E8: =IF(_Base_V1_Vehicle_Vehicle_Class=Const_Passenger_Light_Duty, IF(_Base_V1_Vehicle_Drivetrain="ICE",MAX(IF(_Base_V1_Vehicle_Drivetrain="ICE",Reg_ICE_Const_Ex+Reg_ICE_Age_Coef_Ex*(COLUMN(E4)-COLUMN($D4))+Reg_ICE_Agesq_Coef_Ex*(COLUMN(E4)-COLUMN($D4))^2+Reg_ICE_MSRP_Coef_Ex*Base_V1_Base_Price_Ex+Reg_ICE_MPG_Coef_Ex*Constant_Baseline_Fuel_Economy_Gas_City+Reg_ICE_Mileage_Coef_Ex*Base_V1_VMT_Modeled*(COLUMN(E4)-COLUMN($D4)),0),300),0), IF(COLUMN(E4)-COLUMN($D4)=1, 'Financial Model'!D8*0.77, 'Financial Model'!D8*0.85)) -> 0 | F8: =IF(_Base_V1_Vehicle_Vehicle_Class=Const_Passenger_Light_Duty, IF(_Base_V1_Vehicle_Drivetrain="ICE",MAX(IF(_Base_V1_Vehicle_Drivetrain="ICE",Reg_ICE_Const_Ex+Reg_ICE_Age_Coef_Ex*(COLUMN(F4)-COLUMN($D4))+Reg_ICE_Agesq_Coef_Ex*(COLUMN(F4)-COLUMN($D4))^2+Reg_ICE_MSRP_Coef_Ex*Base_V1_Base_Price_Ex+Reg_ICE_MPG_Coef_Ex*Constant_Baseline_Fuel_Economy_Gas_City+Reg_ICE_Mileage_Coef_Ex*Base_V1_VMT_Modeled*(COLUMN(F4)-COLUMN($D4)),0),300),0), IF(COLUMN(F4)-COLUMN($D4)=1, 'Financial Model'!E8*0.77, 'Financial Model'!E8*0.85)) -> 0 | G8: =IF(_Base_V1_Vehicle_Vehicle_Class=Const_Passenger_Light_Duty, IF(_Base_V1_Vehicle_Drivetrain="ICE",MAX(IF(_Base_V1_Vehicle_Drivetrain="ICE",Reg_ICE_Const_Ex+Reg_ICE_Age_Coef_Ex*(COLUMN(G4)-COLUMN($D4))+Reg_ICE_Agesq_Coef_Ex*(COLUMN(G4)-COLUMN($D4))^2+Reg_ICE_MSRP_Coef_Ex*Base_V1_Base_Price_Ex+Reg_ICE_MPG_Coef_Ex*Constant_Baseline_Fuel_Economy_Gas_City+Reg_ICE_Mileage_Coef_Ex*Base_V1_VMT_Modeled*(COLUMN(G4)-COLUMN($D4)),0),300),0), IF(COLUMN(G4)-COLUMN($D4)=1, 'Financial Model'!F8*0.77, 'Financial Model'!F8*0.85)) -> 0 | H8: =IF(_Base_V1_Vehicle_Vehicle_Class=Const_Passenger_Light_Duty, IF(_Base_V1_Vehicle_Drivetrain="ICE",MAX(IF(_Base_V1_Vehicle_Drivetrain="ICE",Reg_ICE_Const_Ex+Reg_ICE_Age_Coef_Ex*(COLUMN(H4)-COLUMN($D4))+Reg_ICE_Agesq_Coef_Ex*(COLUMN(H4)-COLUMN($D4))^2+Reg_ICE_MSRP_Coef_Ex*Base_V1_Base_Price_Ex+Reg_ICE_MPG_Coef_Ex*Constant_Baseline_Fuel_Economy_Gas_City+Reg_ICE_Mileage_Coef_Ex*Base_V1_VMT_Modeled*(COLUMN(H4)-COLUMN($D4)),0),300),0), IF(COLUMN(H4)-COLUMN($D4)=1, 'Financial Model'!G8*0.77, 'Financial Model'!G8*0.85)) -> 0 | I8: =IF(_Base_V1_Vehicle_Vehicle_Class=Const_Passenger_Light_Duty, IF(_Base_V1_Vehicle_Drivetrain="ICE",MAX(IF(_Base_V1_Vehicle_Drivetrain="ICE",Reg_ICE_Const_Ex+Reg_ICE_Age_Coef_Ex*(COLUMN(I4)-COLUMN($D4))+Reg_ICE_Agesq_Coef_Ex*(COLUMN(I4)-COLUMN($D4))^2+Reg_ICE_MSRP_Coef_Ex*Base_V1_Base_Price_Ex+Reg_ICE_MPG_Coef_Ex*Constant_Baseline_Fuel_Economy_Gas_City+Reg_ICE_Mileage_Coef_Ex*Base_V1_VMT_Modeled*(COLUMN(I4)-COLUMN($D4)),0),300),0), IF(COLUMN(I4)-COLUMN($D4)=1, 'Financial Model'!H8*0.77, 'Financial Model'!H8*0.85)) -> 0 | J8: 0 | K8: 0 | L8: 0 | M8: 0 | N8: 0 | O8: 0 | P8: 0 | Q8: 0 | R8: 0 | S8: 0 | T8: 0 | U8: 0 | V8: 0 | W8: 0 | X8: 0 | Y8: 0 | Z8: 0 | AA8: 0 | AB8: 0 | AC8: 0
B10: Capital and Financing Costs
B11: Cash
B12: Cash Payment | D12: =IF(AND(Base_V1_Has_Cash_Purchase_Ex=TRUE,Base_V1_Has_Loan_Ex=FALSE,Base_V1_Has_Lease_Ex=FALSE,COLUMN(D4)-COLUMN($D4)=0),-(Base_V1_Base_Price_Ex-IF(Base_V1_Tax_Incentives_Monetized="Yes",Base_V1_Federal_Tax_Incentives_Modeled+IF(Base_V1_State_Tax_Incentive_Cap_Modeled=0,Base_V1_State_Tax_Incentives_Modeled,MIN(Base_V1_State_Tax_Incentive_Cap_Modeled,Base_V1_State_Tax_Incentives_Modeled*Base_V1_Num_Vehicles_Modeled)/Base_V1_Num_Vehicles_Modeled),0)-Base_V1_Other_Incentives_Modeled),IF(AND(Base_V1_Has_Cash_Purchase_Ex=TRUE,OR(Base_V1_Has_Loan_Ex=TRUE,Base_V1_Has_Lease_Ex=TRUE),COLUMN(D4)-COLUMN($D4)=Base_V1_Lease_Term_Modeled),IF(ISERROR(FIND("Tax",_Base_V1_Ownership_Structure,1)),-SUM(D6:D8),-Base_V1_Lease_Residual_Price_Modeled),0)) -> -42895 | E12: 0 | F12: 0 | G12: 0 | H12: 0 | I12: 0 | J12: 0 | K12: 0 | L12: 0 | M12: 0 | N12: 0 | O12: 0 | P12: 0 | Q12: 0 | R12: 0 | S12: 0 | T12: 0 | U12: 0 | V12: 0 | W12: 0 | X12: 0 | Y12: 0 | Z12: 0 | AA12: 0 | AB12: 0 | AC12: 0
B13: Lease
B14: Down Payment | D14: =IF(Base_V1_Has_Lease_Ex=TRUE,-Base_V1_Down_Payment_Modeled,0) -> 0
B15: Acquisition Fee | D15: =IF(Base_V1_Has_Lease_Ex=TRUE,-Base_V1_Lease_Acquisition_Fee_Modeled,0) -> 0
B16: Disposition Charge | D16: =IF(AND(Base_V1_Has_Lease_Ex=TRUE,((COLUMN(D4)-COLUMN($D4))=Base_V1_Lease_Term_Modeled)),-Base_V1_Lease_Disposition_Fee_Modeled,0) -> 0 | E16: 0 | F16: 0 | G16: 0 | H16: 0 | I16: 0 | J16: 0 | K16: 0 | L16: 0 | M16: 0 | N16: 0 | O16: 0 | P16: 0 | Q16: 0 | R16: 0 | S16: 0 | T16: 0 | U16: 0 | V16: 0 | W16: 0 | X16: 0 | Y16: 0 | Z16: 0 | AA16: 0 | AB16: 0 | AC16: 0
B17: Lease Payments | E17: =IF(Base_V1_Has_Lease_Ex=TRUE,IF((COLUMN(E4)-COLUMN($E4))<Base_V1_Lease_Term_Modeled,-PMT(Base_V1_Lease_APR_Modeled/12,Base_V1_Lease_Term_Modeled*12,-(Base_V1_Base_Price_Ex-IF(Base_V1_Tax_Incentives_Monetized="Yes",Base_V1_Federal_Tax_Incentives_Modeled+IF(Base_V1_State_Tax_Incentive_Cap_Modeled=0,Base_V1_State_Tax_Incentives_Modeled,MIN(Base_V1_State_Tax_Incentive_Cap_Modeled,Base_V1_State_Tax_Incentives_Modeled*Base_V1_Num_Vehicles_Modeled)/Base_V1_Num_Vehicles_Modeled),0)-Base_V1_Other_Incentives_Modeled-Base_V1_Down_Payment_Modeled)+Base_V1_Lease_Residual_Price_Modeled,0)*12,0),0) -> 0 | F17: 0 | G17: 0 | H17: 0 | I17: 0 | J17: 0 | K17: 0 | L17: 0 | M17: 0 | N17: 0 | O17: 0 | P17: 0 | Q17: 0 | R17: 0 | S17: 0 | T17: 0 | U17: 0 | V17: 0 | W17: 0 | X17: 0 | Y17: 0 | Z17: 0 | AA17: 0 | AB17: 0 | AC17: 0
B18: Principal Payments | E18: =IF(Base_V1_Has_Lease_Ex=TRUE,IF((COLUMN(E4)-COLUMN($E4))<Base_V1_Lease_Term_Modeled,-PPMT(Base_V1_Lease_APR_Modeled/12,(COLUMN(E4)-COLUMN($D4))*12,Base_V1_Lease_Term_Modeled*12,-(Base_V1_Base_Price_Ex-IF(Base_V1_Tax_Incentives_Monetized="Yes",Base_V1_Federal_Tax_Incentives_Modeled+IF(Base_V1_State_Tax_Incentive_Cap_Modeled=0,Base_V1_State_Tax_Incentives_Modeled,MIN(Base_V1_State_Tax_Incentive_Cap_Modeled,Base_V1_State_Tax_Incentives_Modeled*Base_V1_Num_Vehicles_Modeled)/Base_V1_Num_Vehicles_Modeled),0)-Base_V1_Other_Incentives_Modeled-Base_V1_Down_Payment_Modeled)+Base_V1_Lease_Residual_Price_Modeled,0)*12,0),0) -> 0 | F18: 0 | G18: 0 | H18: 0 | I18: 0 | J18: 0 | K18: 0 | L18: 0 | M18: 0 | N18: 0 | O18: 0 | P18: 0 | Q18: 0 | R18: 0 | S18: 0 | T18: 0 | U18: 0 | V18: 0 | W18: 0 | X18: 0 | Y18: 0 | Z18: 0 | AA18: 0 | AB18: 0 | AC18: 0
B19: Interest Payments | E19: =IF(Base_V1_Has_Lease_Ex=TRUE,IF((COLUMN(E4)-COLUMN($E4))<Base_V1_Lease_Term_Modeled,-IPMT(Base_V1_Lease_APR_Modeled/12,(COLUMN(E4)-COLUMN($D4))*12,Base_V1_Lease_Term_Modeled*12,-(Base_V1_Base_Price_Ex-IF(Base_V1_Tax_Incentives_Monetized="Yes",Base_V1_Federal_Tax_Incentives_Modeled+IF(Base_V1_State_Tax_Incentive_Cap_Modeled=0,Base_V1_State_Tax_Incentives_Modeled,MIN(Base_V1_State_Tax_Incentive_Cap_Modeled,Base_V1_State_Tax_Incentives_Modeled*Base_V1_Num_Vehicles_Modeled)/Base_V1_Num_Vehicles_Modeled),0)-Base_V1_Other_Incentives_Modeled-Base_V1_Down_Payment_Modeled)+Base_V1_Lease_Residual_Price_Modeled,0)*12,0),0) -> 0 | F19: 0 | G19: 0 | H19: 0 | I19: 0 | J19: 0 | K19: 0 | L19: 0 | M19: 0 | N19: 0 | O19: 0 | P19: 0 | Q19: 0 | R19: 0 | S19: 0 | T19: 0 | U19: 0 | V19: 0 | W19: 0 | X19: 0 | Y19: 0 | Z19: 0 | AA19: 0 | AB19: 0 | AC19: 0
B20: TRAC Value Adjustment | E20: =IF(ISERROR(FIND("TRAC",_Base_V1_Ownership_Structure,1)),0,IF(Base_V1_Has_Loan_Ex=TRUE,0,IF((COLUMN(E4)-COLUMN($D4))=Base_V1_Lease_Term_Modeled,SUM(E6:E8)-Base_V1_Lease_Residual_Price_Modeled,0))) -> 0 | F20: 0 | G20: 0 | H20: 0 | I20: 0 | J20: 0 | K20: 0 | L20: 0 | M20: 0 | N20: 0 | O20: 0 | P20: 0 | Q20: 0 | R20: 0 | S20: 0 | T20: 0 | U20: 0 | V20: 0 | W20: 0 | X20: 0 | Y20: 0 | Z20: 0 | AA20: 0 | AB20: 0 | AC20: 0
B21: FMV Mileage Adjustment | E21: =MIN(0,MAX(-Base_V1_Lease_Residual_Price_Modeled+SUM(E6:E8),IF(IFERROR(IF(FIND("FMV",_Base_V1_Ownership_Structure,1)>0,TRUE,FALSE),FALSE),IF((COLUMN(E4)-COLUMN($D4))=Base_V1_Lease_Term_Modeled,(Base_V1_Lease_Mileage_Inc_Modeled-Base_V1_VMT_Modeled)*(COLUMN(E4)-COLUMN($D4))*Base_V1_Lease_Mileage_Cost_Modeled,0),0))) -> 0 | F21: 0 | G21: 0 | H21: 0 | I21: 0 | J21: 0 | K21: 0 | L21: 0 | M21: 0 | N21: 0 | O21: 0 | P21: 0 | Q21: 0 | R21: 0 | S21: 0 | T21: 0 | U21: 0 | V21: 0 | W21: 0 | X21: 0 | Y21: 0 | Z21: 0 | AA21: 0 | AB21: 0 | AC21: 0
B22: Subtotal Lease Cash Flows | D22: =SUM(D14:D17)+SUM(D20:D21) -> 0 | E22: =SUM(E14:E17)+SUM(E20:E21) -> 0 | F22: 0 | G22: 0 | H22: 0 | I22: 0 | J22: 0 | K22: 0 | L22: 0 | M22: 0 | N22: 0 | O22: 0 | P22: 0 | Q22: 0 | R22: 0 | S22: 0 | T22: 0 | U22: 0 | V22: 0 | W22: 0 | X22: 0 | Y22: 0 | Z22: 0 | AA22: 0 | AB22: 0 | AC22: 0
B23: Loan
B24: Down Payment | D24: =IF(AND(Base_V1_Has_Loan_Ex=TRUE,Base_V1_Has_Lease_Ex=FALSE),-Base_V1_Down_Payment_Modeled,0) -> 0
B25: Loan Payments | E25: =IF(Base_V1_Has_Loan_Ex=TRUE,IF(AND((COLUMN(E4)-COLUMN($E4))<Base_V1_Loan_Term_Modeled+Base_V1_Lease_Term_Modeled,(COLUMN(E4)-COLUMN($E4))>=Base_V1_Lease_Term_Modeled),PMT(Base_V1_Loan_APR_Modeled,Base_V1_Loan_Term_Modeled,IF(Base_V1_Has_Lease_Ex=TRUE,SUM(OFFSET($D4,0,Comp_V1_Lease_Term_Modeled,3,1)),Base_V1_Base_Price_Ex-IF(Base_V1_Tax_Incentives_Monetized="Yes",Base_V1_Federal_Tax_Incentives_Modeled+IF(Base_V1_State_Tax_Incentive_Cap_Modeled=0,Base_V1_State_Tax_Incentives_Modeled,MIN(Base_V1_State_Tax_Incentive_Cap_Modeled,Base_V1_State_Tax_Incentives_Modeled*Base_V1_Num_Vehicles_Modeled)/Base_V1_Num_Vehicles_Modeled),0)-Base_V1_Other_Incentives_Modeled-Base_V1_Down_Payment_Modeled),0),0),0) -> 0 | F25: 0 | G25: 0 | H25: 0 | I25: 0 | J25: 0 | K25: 0 | L25: 0 | M25: 0 | N25: 0 | O25: 0 | P25: 0 | Q25: 0 | R25: 0 | S25: 0 | T25: 0 | U25: 0 | V25: 0 | W25: 0 | X25: 0 | Y25: 0 | Z25: 0 | AA25: 0 | AB25: 0 | AC25: 0
B26: Principal Payments | E26: =IF(Base_V1_Has_Loan_Ex=TRUE,IF(AND((COLUMN(E4)-COLUMN($E4))<Base_V1_Loan_Term_Modeled+Base_V1_Lease_Term_Modeled,(COLUMN(E4)-COLUMN($E4))>=Base_V1_Lease_Term_Modeled),PPMT(Base_V1_Loan_APR_Modeled,IF(Base_V1_Has_Lease_Ex=TRUE,(COLUMN(E4)-COLUMN($D4)-Base_V1_Lease_Term_Modeled),(COLUMN(E4)-COLUMN($D4))),Base_V1_Loan_Term_Modeled,IF(Base_V1_Has_Lease_Ex=TRUE,SUM(OFFSET($D4,0,Comp_V1_Lease_Term_Modeled,3,1)),Base_V1_Base_Price_Ex-IF(Base_V1_Tax_Incentives_Monetized="Yes",Base_V1_Federal_Tax_Incentives_Modeled+IF(Base_V1_State_Tax_Incentive_Cap_Modeled=0,Base_V1_State_Tax_Incentives_Modeled,MIN(Base_V1_State_Tax_Incentive_Cap_Modeled,Base_V1_State_Tax_Incentives_Modeled*Base_V1_Num_Vehicles_Modeled)/Base_V1_Num_Vehicles_Modeled),0)-Base_V1_Other_Incentives_Modeled-Base_V1_Down_Payment_Modeled),0),0),0) -> 0 | F26: 0 | G26: 0 | H26: 0 | I26: 0 | J26: 0 | K26: 0 | L26: 0 | M26: 0 | N26: 0 | O26: 0 | P26: 0 | Q26: 0 | R26: 0 | S26: 0 | T26: 0 | U26: 0 | V26: 0 | W26: 0 | X26: 0 | Y26: 0 | Z26: 0 | AA26: 0 | AB26: 0 | AC26: 0
B27: Interest Payments | E27: =IF(Base_V1_Has_Loan_Ex=TRUE,IF(AND((COLUMN(E4)-COLUMN($E4))<Base_V1_Loan_Term_Modeled+Base_V1_Lease_Term_Modeled,(COLUMN(E4)-COLUMN($E4))>=Base_V1_Lease_Term_Modeled),IPMT(Base_V1_Loan_APR_Modeled,IF(Base_V1_Has_Lease_Ex=TRUE,(COLUMN(E4)-COLUMN($D4)-Base_V1_Lease_Term),(COLUMN(E4)-COLUMN($D4))),Base_V1_Loan_Term_Modeled,IF(Base_V1_Has_Lease_Ex=TRUE,SUM(OFFSET($D4,0,Comp_V1_Lease_Term_Modeled,3,1)),Base_V1_Base_Price_Ex-IF(Base_V1_Tax_Incentives_Monetized="Yes",Base_V1_Federal_Tax_Incentives_Modeled+IF(Base_V1_State_Tax_Incentive_Cap_Modeled=0,Base_V1_State_Tax_Incentives_Modeled,MIN(Base_V1_State_Tax_Incentive_Cap_Modeled,Base_V1_State_Tax_Incentives_Modeled*Base_V1_Num_Vehicles_Modeled)/Base_V1_Num_Vehicles_Modeled),0)-Base_V1_Other_Incentives_Modeled-Base_V1_Down_Payment_Modeled),0),0),0) -> 0 | F27: 0 | G27: 0 | H27: 0 | I27: 0 | J27: 0 | K27: 0 | L27: 0 | M27: 0 | N27: 0 | O27: 0 | P27: 0 | Q27: 0 | R27: 0 | S27: 0 | T27: 0 | U27: 0 | V27: 0 | W27: 0 | X27: 0 | Y27: 0 | Z27: 0 | AA27: 0 | AB27: 0 | AC27: 0
B28: Subtotal Loan Cash Flows | D28: =SUM(D24:D25) -> 0 | E28: =SUM(E24:E25) -> 0 | F28: 0 | G28: 0 | H28: 0 | I28: 0 | J28: 0 | K28: 0 | L28: 0 | M28: 0 | N28: 0 | O28: 0 | P28: 0 | Q28: 0 | R28: 0 | S28: 0 | T28: 0 | U28: 0 | V28: 0 | W28: 0 | X28: 0 | Y28: 0 | Z28: 0 | AA28: 0 | AB28: 0 | AC28: 0
B29: Terminal Value | E29: =IF(OR(Base_V1_Has_Loan_Ex=TRUE,Base_V1_Has_Cash_Purchase_Ex=TRUE),IF((COLUMN(E4)-COLUMN($D4))=Base_V1_Years_Usage_Modeled,SUM(E6:E8),0),0) -> 0 | F29: 0 | G29: 0 | H29: 0 | I29: 0 | J29: 0 | K29: 14473.89896 | L29: 0 | M29: 0 | N29: 0 | O29: 0 | P29: 0 | Q29: 0 | R29: 0 | S29: 0 | T29: 0 | U29: 0 | V29: 0 | W29: 0 | X29: 0 | Y29: 0 | Z29: 0 | AA29: 0 | AB29: 0 | AC29: 0
B31: Total Capital and Financing Costs | D31: =D12+D22+D28+D29 -> -42895 | E31: =E12+E22+E28+E29 -> 0 | F31: =F12+F22+F28+F29 -> 0 | G31: 0 | H31: 0 | I31: 0 | J31: 0 | K31: 14473.89896 | L31: 0 | M31: 0 | N31: 0 | O31: 0 | P31: 0 | Q31: 0 | R31: 0 | S31: 0 | T31: 0 | U31: 0 | V31: 0 | W31: 0 | X31: 0 | Y31: 0 | Z31: 0 | AA31: 0 | AB31: 0 | AC31: 0
B33: Fuel and Operating Costs
B34: Fuel Cost | E34: =IF(COLUMN(E4)-COLUMN($E4)<Base_V1_Years_Usage_Modeled,-((Base_V1_Gas_Diesel_Usage_Ex*IF(Base_V1_Fuel_Type_Ex="Diesel", Diesel_Price_Modeled, Gasoline_Price_Modeled)*IF(_Market="U.S.", 'Data - Energy Inflation'!D$4, 'Data - Energy Inflation'!D$7))+(Base_V1_Electricity_Usage_Ex*IF(_Market="U.S.", 'Data - Energy Inflation'!D$6, 'Data - Energy Inflation'!D$8))*(Base_Percent_Home_Charging_Modeled*Electricity_Price_Modeled+Base_Percent_Public_Charging_Modeled*Public_Charging_Price_Modeled+Base_Percent_En_Route_Charging_Modeled*En_Route_Charging_Price_Modeled)),0) -> -357.9511923 | F34: =IF(COLUMN(F4)-COLUMN($E4)<Base_V1_Years_Usage_Modeled,-((Base_V1_Gas_Diesel_Usage_Ex*IF(Base_V1_Fuel_Type_Ex="Diesel", Diesel_Price_Modeled, Gasoline_Price_Modeled)*IF(_Market="U.S.", 'Data - Energy Inflation'!E$4, 'Data - Energy Inflation'!E$7))+(Base_V1_Electricity_Usage_Ex*IF(_Market="U.S.", 'Data - Energy Inflation'!E$6, 'Data - Energy Inflation'!E$8))*(Base_Percent_Home_Charging_Modeled*Electricity_Price_Modeled+Base_Percent_Public_Charging_Modeled*Public_Charging_Price_Modeled+Base_Percent_En_Route_Charging_Modeled*En_Route_Charging_Price_Modeled)),0) -> -373.8595061 | G34: =IF(COLUMN(G4)-COLUMN($E4)<Base_V1_Years_Usage_Modeled,-((Base_V1_Gas_Diesel_Usage_Ex*IF(Base_V1_Fuel_Type_Ex="Diesel", Diesel_Price_Modeled, Gasoline_Price_Modeled)*IF(_Market="U.S.", 'Data - Energy Inflation'!F$4, 'Data - Energy Inflation'!F$7))+(Base_V1_Electricity_Usage_Ex*IF(_Market="U.S.", 'Data - Energy Inflation'!F$6, 'Data - Energy Inflation'!F$8))*(Base_Percent_Home_Charging_Modeled*Electricity_Price_Modeled+Base_Percent_Public_Charging_Modeled*Public_Charging_Price_Modeled+Base_Percent_En_Route_Charging_Modeled*En_Route_Charging_Price_Modeled)),0) -> -365.9255114 | H34: =IF(COLUMN(H4)-COLUMN($E4)<Base_V1_Years_Usage_Modeled,-((Base_V1_Gas_Diesel_Usage_Ex*IF(Base_V1_Fuel_Type_Ex="Diesel", Diesel_Price_Modeled, Gasoline_Price_Modeled)*IF(_Market="U.S.", 'Data - Energy Inflation'!G$4, 'Data - Energy Inflation'!G$7))+(Base_V1_Electricity_Usage_Ex*IF(_Market="U.S.", 'Data - Energy Inflation'!G$6, 'Data - Energy Inflation'!G$8))*(Base_Percent_Home_Charging_Modeled*Electricity_Price_Modeled+Base_Percent_Public_Charging_Modeled*Public_Charging_Price_Modeled+Base_Percent_En_Route_Charging_Modeled*En_Route_Charging_Price_Modeled)),0) -> -359.0069637 | I34: =IF(COLUMN(I4)-COLUMN($E4)<Base_V1_Years_Usage_Modeled,-((Base_V1_Gas_Diesel_Usage_Ex*IF(Base_V1_Fuel_Type_Ex="Diesel", Diesel_Price_Modeled, Gasoline_Price_Modeled)*IF(_Market="U.S.", 'Data - Energy Inflation'!H$4, 'Data - Energy Inflation'!H$7))+(Base_V1_Electricity_Usage_Ex*IF(_Market="U.S.", 'Data - Energy Inflation'!H$6, 'Data - Energy Inflation'!H$8))*(Base_Percent_Home_Charging_Modeled*Electricity_Price_Modeled+Base_Percent_Public_Charging_Modeled*Public_Charging_Price_Modeled+Base_Percent_En_Route_Charging_Modeled*En_Route_Charging_Price_Modeled)),0) -> -353.7101889 | J34: =IF(COLUMN(J4)-COLUMN($E4)<Base_V1_Years_Usage_Modeled,-((Base_V1_Gas_Diesel_Usage_Ex*IF(Base_V1_Fuel_Type_Ex="Diesel", Diesel_Price_Modeled, Gasoline_Price_Modeled)*IF(_Market="U.S.", 'Data - Energy Inflation'!I$4, 'Data - Energy Inflation'!I$7))+(Base_V1_Electricity_Usage_Ex*IF(_Market="U.S.", 'Data - Energy Inflation'!I$6, 'Data - Energy Inflation'!I$8))*(Base_Percent_Home_Charging_Modeled*Electricity_Price_Modeled+Base_Percent_Public_Charging_Modeled*Public_Charging_Price_Modeled+Base_Percent_En_Route_Charging_Modeled*En_Route_Charging_Price_Modeled)),0) -> -353.5583224 | K34: =IF(COLUMN(K4)-COLUMN($E4)<Base_V1_Years_Usage_Modeled,-((Base_V1_Gas_Diesel_Usage_Ex*IF(Base_V1_Fuel_Type_Ex="Diesel", Diesel_Price_Modeled, Gasoline_Price_Modeled)*IF(_Market="U.S.", 'Data - Energy Inflation'!J$4, 'Data - Energy Inflation'!J$7))+(Base_V1_Electricity_Usage_Ex*IF(_Market="U.S.", 'Data - Energy Inflation'!J$6, 'Data - Energy Inflation'!J$8))*(Base_Percent_Home_Charging_Modeled*Electricity_Price_Modeled+Base_Percent_Public_Charging_Modeled*Public_Charging_Price_Modeled+Base_Percent_En_Route_Charging_Modeled*En_Route_Charging_Price_Modeled)),0) -> -355.850971 | L34: =IF(COLUMN(L4)-COLUMN($E4)<Base_V1_Years_Usage_Modeled,-((Base_V1_Gas_Diesel_Usage_Ex*IF(Base_V1_Fuel_Type_Ex="Diesel", Diesel_Price_Modeled, Gasoline_Price_Modeled)*IF(_Market="U.S.", 'Data - Energy Inflation'!K$4, 'Data - Energy Inflation'!K$7))+(Base_V1_Electricity_Usage_Ex*IF(_Market="U.S.", 'Data - Energy Inflation'!K$6, 'Data - Energy Inflation'!K$8))*(Base_Percent_Home_Charging_Modeled*Electricity_Price_Modeled+Base_Percent_Public_Charging_Modeled*Public_Charging_Price_Modeled+Base_Percent_En_Route_Charging_Modeled*En_Route_Charging_Price_Modeled)),0) -> 0 | M34: =IF(COLUMN(M4)-COLUMN($E4)<Base_V1_Years_Usage_Modeled,-((Base_V1_Gas_Diesel_Usage_Ex*IF(Base_V1_Fuel_Type_Ex="Diesel", Diesel_Price_Modeled, Gasoline_Price_Modeled)*IF(_Market="U.S.", 'Data - Energy Inflation'!L$4, 'Data - Energy Inflation'!L$7))+(Base_V1_Electricity_Usage_Ex*IF(_Market="U.S.", 'Data - Energy Inflation'!L$6, 'Data - Energy Inflation'!L$8))*(Base_Percent_Home_Charging_Modeled*Electricity_Price_Modeled+Base_Percent_Public_Charging_Modeled*Public_Charging_Price_Modeled+Base_Percent_En_Route_Charging_Modeled*En_Route_Charging_Price_Modeled)),0) -> 0 | N34: =IF(COLUMN(N4)-COLUMN($E4)<Base_V1_Years_Usage_Modeled,-((Base_V1_Gas_Diesel_Usage_Ex*IF(Base_V1_Fuel_Type_Ex="Diesel", Diesel_Price_Modeled, Gasoline_Price_Modeled)*IF(_Market="U.S.", 'Data - Energy Inflation'!M$4, 'Data - Energy Inflation'!M$7))+(Base_V1_Electricity_Usage_Ex*IF(_Market="U.S.", 'Data - Energy Inflation'!M$6, 'Data - Energy Inflation'!M$8))*(Base_Percent_Home_Charging_Modeled*Electricity_Price_Modeled+Base_Percent_Public_Charging_Modeled*Public_Charging_Price_Modeled+Base_Percent_En_Route_Charging_Modeled*En_Route_Charging_Price_Modeled)),0) -> 0 | O34: =IF(COLUMN(O4)-COLUMN($E4)<Base_V1_Years_Usage_Modeled,-((Base_V1_Gas_Diesel_Usage_Ex*IF(Base_V1_Fuel_Type_Ex="Diesel", Diesel_Price_Modeled, Gasoline_Price_Modeled)*IF(_Market="U.S.", 'Data - Energy Inflation'!N$4, 'Data - Energy Inflation'!N$7))+(Base_V1_Electricity_Usage_Ex*IF(_Market="U.S.", 'Data - Energy Inflation'!N$6, 'Data - Energy Inflation'!N$8))*(Base_Percent_Home_Charging_Modeled*Electricity_Price_Modeled+Base_Percent_Public_Charging_Modeled*Public_Charging_Price_Modeled+Base_Percent_En_Route_Charging_Modeled*En_Route_Charging_Price_Modeled)),0) -> 0 | P34: =IF(COLUMN(P4)-COLUMN($E4)<Base_V1_Years_Usage_Modeled,-((Base_V1_Gas_Diesel_Usage_Ex*IF(Base_V1_Fuel_Type_Ex="Diesel", Diesel_Price_Modeled, Gasoline_Price_Modeled)*IF(_Market="U.S.", 'Data - Energy Inflation'!O$4, 'Data - Energy Inflation'!O$7))+(Base_V1_Electricity_Usage_Ex*IF(_Market="U.S.", 'Data - Energy Inflation'!O$6, 'Data - Energy Inflation'!O$8))*(Base_Percent_Home_Charging_Modeled*Electricity_Price_Modeled+Base_Percent_Public_Charging_Modeled*Public_Charging_Price_Modeled+Base_Percent_En_Route_Charging_Modeled*En_Route_Charging_Price_Modeled)),0) -> 0 | Q34: =IF(COLUMN(Q4)-COLUMN($E4)<Base_V1_Years_Usage_Modeled,-((Base_V1_Gas_Diesel_Usage_Ex*IF(Base_V1_Fuel_Type_Ex="Diesel", Diesel_Price_Modeled, Gasoline_Price_Modeled)*IF(_Market="U.S.", 'Data - Energy Inflation'!P$4, 'Data - Energy Inflation'!P$7))+(Base_V1_Electricity_Usage_Ex*IF(_Market="U.S.", 'Data - Energy Inflation'!P$6, 'Data - Energy Inflation'!P$8))*(Base_Percent_Home_Charging_Modeled*Electricity_Price_Modeled+Base_Percent_Public_Charging_Modeled*Public_Charging_Price_Modeled+Base_Percent_En_Route_Charging_Modeled*En_Route_Charging_Price_Modeled)),0) -> 0 | R34: =IF(COLUMN(R4)-COLUMN($E4)<Base_V1_Years_Usage_Modeled,-((Base_V1_Gas_Diesel_Usage_Ex*IF(Base_V1_Fuel_Type_Ex="Diesel", Diesel_Price_Modeled, Gasoline_Price_Modeled)*IF(_Market="U.S.", 'Data - Energy Inflation'!Q$4, 'Data - Energy Inflation'!Q$7))+(Base_V1_Electricity_Usage_Ex*IF(_Market="U.S.", 'Data - Energy Inflation'!Q$6, 'Data - Energy Inflation'!Q$8))*(Base_Percent_Home_Charging_Modeled*Electricity_Price_Modeled+Base_Percent_Public_Charging_Modeled*Public_Charging_Price_Modeled+Base_Percent_En_Route_Charging_Modeled*En_Route_Charging_Price_Modeled)),0) -> 0 | S34: =IF(COLUMN(S4)-COLUMN($E4)<Base_V1_Years_Usage_Modeled,-((Base_V1_Gas_Diesel_Usage_Ex*IF(Base_V1_Fuel_Type_Ex="Diesel", Diesel_Price_Modeled, Gasoline_Price_Modeled)*IF(_Market="U.S.", 'Data - Energy Inflation'!R$4, 'Data - Energy Inflation'!R$7))+(Base_V1_Electricity_Usage_Ex*IF(_Market="U.S.", 'Data - Energy Inflation'!R$6, 'Data - Energy Inflation'!R$8))*(Base_Percent_Home_Charging_Modeled*Electricity_Price_Modeled+Base_Percent_Public_Charging_Modeled*Public_Charging_Price_Modeled+Base_Percent_En_Route_Charging_Modeled*En_Route_Charging_Price_Modeled)),0) -> 0 | T34: =IF(COLUMN(T4)-COLUMN($E4)<Base_V1_Years_Usage_Modeled,-((Base_V1_Gas_Diesel_Usage_Ex*IF(Base_V1_Fuel_Type_Ex="Diesel", Diesel_Price_Modeled, Gasoline_Price_Modeled)*IF(_Market="U.S.", 'Data - Energy Inflation'!S$4, 'Data - Energy Inflation'!S$7))+(Base_V1_Electricity_Usage_Ex*IF(_Market="U.S.", 'Data - Energy Inflation'!S$6, 'Data - Energy Inflation'!S$8))*(Base_Percent_Home_Charging_Modeled*Electricity_Price_Modeled+Base_Percent_Public_Charging_Modeled*Public_Charging_Price_Modeled+Base_Percent_En_Route_Charging_Modeled*En_Route_Charging_Price_Modeled)),0) -> 0 | U34: =IF(COLUMN(U4)-COLUMN($E4)<Base_V1_Years_Usage_Modeled,-((Base_V1_Gas_Diesel_Usage_Ex*IF(Base_V1_Fuel_Type_Ex="Diesel", Diesel_Price_Modeled, Gasoline_Price_Modeled)*IF(_Market="U.S.", 'Data - Energy Inflation'!T$4, 'Data - Energy Inflation'!T$7))+(Base_V1_Electricity_Usage_Ex*IF(_Market="U.S.", 'Data - Energy Inflation'!T$6, 'Data - Energy Inflation'!T$8))*(Base_Percent_Home_Charging_Modeled*Electricity_Price_Modeled+Base_Percent_Public_Charging_Modeled*Public_Charging_Price_Modeled+Base_Percent_En_Route_Charging_Modeled*En_Route_Charging_Price_Modeled)),0) -> 0 | V34: =IF(COLUMN(V4)-COLUMN($E4)<Base_V1_Years_Usage_Modeled,-((Base_V1_Gas_Diesel_Usage_Ex*IF(Base_V1_Fuel_Type_Ex="Diesel", Diesel_Price_Modeled, Gasoline_Price_Modeled)*IF(_Market="U.S.", 'Data - Energy Inflation'!U$4, 'Data - Energy Inflation'!U$7))+(Base_V1_Electricity_Usage_Ex*IF(_Market="U.S.", 'Data - Energy Inflation'!U$6, 'Data - Energy Inflation'!U$8))*(Base_Percent_Home_Charging_Modeled*Electricity_Price_Modeled+Base_Percent_Public_Charging_Modeled*Public_Charging_Price_Modeled+Base_Percent_En_Route_Charging_Modeled*En_Route_Charging_Price_Modeled)),0) -> 0 | W34: =IF(COLUMN(W4)-COLUMN($E4)<Base_V1_Years_Usage_Modeled,-((Base_V1_Gas_Diesel_Usage_Ex*IF(Base_V1_Fuel_Type_Ex="Diesel", Diesel_Price_Modeled, Gasoline_Price_Modeled)*IF(_Market="U.S.", 'Data - Energy Inflation'!V$4, 'Data - Energy Inflation'!V$7))+(Base_V1_Electricity_Usage_Ex*IF(_Market="U.S.", 'Data - Energy Inflation'!V$6, 'Data - Energy Inflation'!V$8))*(Base_Percent_Home_Charging_Modeled*Electricity_Price_Modeled+Base_Percent_Public_Charging_Modeled*Public_Charging_Price_Modeled+Base_Percent_En_Route_Charging_Modeled*En_Route_Charging_Price_Modeled)),0) -> 0 | X34: =IF(COLUMN(X4)-COLUMN($E4)<Base_V1_Years_Usage_Modeled,-((Base_V1_Gas_Diesel_Usage_Ex*IF(Base_V1_Fuel_Type_Ex="Diesel", Diesel_Price_Modeled, Gasoline_Price_Modeled)*IF(_Market="U.S.", 'Data - Energy Inflation'!W$4, 'Data - Energy Inflation'!W$7))+(Base_V1_Electricity_Usage_Ex*IF(_Market="U.S.", 'Data - Energy Inflation'!W$6, 'Data - Energy Inflation'!W$8))*(Base_Percent_Home_Charging_Modeled*Electricity_Price_Modeled+Base_Percent_Public_Charging_Modeled*Public_Charging_Price_Modeled+Base_Percent_En_Route_Charging_Modeled*En_Route_Charging_Price_Modeled)),0) -> 0 | Y34: =IF(COLUMN(Y4)-COLUMN($E4)<Base_V1_Years_Usage_Modeled,-((Base_V1_Gas_Diesel_Usage_Ex*IF(Base_V1_Fuel_Type_Ex="Diesel", Diesel_Price_Modeled, Gasoline_Price_Modeled)*IF(_Market="U.S.", 'Data - Energy Inflation'!X$4, 'Data - Energy Inflation'!X$7))+(Base_V1_Electricity_Usage_Ex*IF(_Market="U.S.", 'Data - Energy Inflation'!X$6, 'Data - Energy Inflation'!X$8))*(Base_Percent_Home_Charging_Modeled*Electricity_Price_Modeled+Base_Percent_Public_Charging_Modeled*Public_Charging_Price_Modeled+Base_Percent_En_Route_Charging_Modeled*En_Route_Charging_Price_Modeled)),0) -> 0 | Z34: =IF(COLUMN(Z4)-COLUMN($E4)<Base_V1_Years_Usage_Modeled,-((Base_V1_Gas_Diesel_Usage_Ex*IF(Base_V1_Fuel_Type_Ex="Diesel", Diesel_Price_Modeled, Gasoline_Price_Modeled)*IF(_Market="U.S.", 'Data - Energy Inflation'!Y$4, 'Data - Energy Inflation'!Y$7))+(Base_V1_Electricity_Usage_Ex*IF(_Market="U.S.", 'Data - Energy Inflation'!Y$6, 'Data - Energy Inflation'!Y$8))*(Base_Percent_Home_Charging_Modeled*Electricity_Price_Modeled+Base_Percent_Public_Charging_Modeled*Public_Charging_Price_Modeled+Base_Percent_En_Route_Charging_Modeled*En_Route_Charging_Price_Modeled)),0) -> 0 | AA34: =IF(COLUMN(AA4)-COLUMN($E4)<Base_V1_Years_Usage_Modeled,-((Base_V1_Gas_Diesel_Usage_Ex*IF(Base_V1_Fuel_Type_Ex="Diesel", Diesel_Price_Modeled, Gasoline_Price_Modeled)*IF(_Market="U.S.", 'Data - Energy Inflation'!Z$4, 'Data - Energy Inflation'!Z$7))+(Base_V1_Electricity_Usage_Ex*IF(_Market="U.S.", 'Data - Energy Inflation'!Z$6, 'Data - Energy Inflation'!Z$8))*(Base_Percent_Home_Charging_Modeled*Electricity_Price_Modeled+Base_Percent_Public_Charging_Modeled*Public_Charging_Price_Modeled+Base_Percent_En_Route_Charging_Modeled*En_Route_Charging_Price_Modeled)),0) -> 0 | AB34: =IF(COLUMN(AB4)-COLUMN($E4)<Base_V1_Years_Usage_Modeled,-((Base_V1_Gas_Diesel_Usage_Ex*IF(Base_V1_Fuel_Type_Ex="Diesel", Diesel_Price_Modeled, Gasoline_Price_Modeled)*IF(_Market="U.S.", 'Data - Energy Inflation'!AA$4, 'Data - Energy Inflation'!AA$7))+(Base_V1_Electricity_Usage_Ex*IF(_Market="U.S.", 'Data - Energy Inflation'!AA$6, 'Data - Energy Inflation'!AA$8))*(Base_Percent_Home_Charging_Modeled*Electricity_Price_Modeled+Base_Percent_Public_Charging_Modeled*Public_Charging_Price_Modeled+Base_Percent_En_Route_Charging_Modeled*En_Route_Charging_Price_Modeled)),0) -> 0 | AC34: =IF(COLUMN(AC4)-COLUMN($E4)<Base_V1_Years_Usage_Modeled,-((Base_V1_Gas_Diesel_Usage_Ex*IF(Base_V1_Fuel_Type_Ex="Diesel", Diesel_Price_Modeled, Gasoline_Price_Modeled)*IF(_Market="U.S.", 'Data - Energy Inflation'!AB$4, 'Data - Energy Inflation'!AB$7))+(Base_V1_Electricity_Usage_Ex*IF(_Market="U.S.", 'Data - Energy Inflation'!AB$6, 'Data - Energy Inflation'!AB$8))*(Base_Percent_Home_Charging_Modeled*Electricity_Price_Modeled+Base_Percent_Public_Charging_Modeled*Public_Charging_Price_Modeled+Base_Percent_En_Route_Charging_Modeled*En_Route_Charging_Price_Modeled)),0) -> 0
B35: Maintenance and Repair Cost | E35: =-IF(_Base_V1_Maint_Repair_Cost_Use_Default="Yes",IF(COLUMN(E4)-COLUMN($E4)<Base_V1_Years_Usage_Modeled,VLOOKUP(_Base_V1_Vehicle_Vehicle_Class & _Base_V1_Vehicle_Drivetrain & _Market,DB_Maint_Repair_Costs[],COLUMN(E4)-COLUMN($E4)+COLUMN(DB_Maint_Repair_Costs[[#Headers],[Year 1 ]]),FALSE)*Base_V1_VMT_Modeled,0),IF(AND(COLUMN(E4)-COLUMN($E4)<Base_V1_Years_Usage_Modeled,COLUMN(E4)-COLUMN($E4)<5),Base_V1_Maint_Repair_Cost_Year_1_Modeled*Base_V1_VMT_Modeled,IF(AND(COLUMN(E4)-COLUMN($E4)<Base_V1_Years_Usage_Modeled,COLUMN(E4)-COLUMN($E4)>=5),Base_V1_Maint_Repair_Cost_Year_5_Modeled*Base_V1_VMT_Modeled,0)))*'Data General Inflation'!D$3 -> -480 | F35: =-IF(_Base_V1_Maint_Repair_Cost_Use_Default="Yes",IF(COLUMN(F4)-COLUMN($E4)<Base_V1_Years_Usage_Modeled,VLOOKUP(_Base_V1_Vehicle_Vehicle_Class & _Base_V1_Vehicle_Drivetrain & _Market,DB_Maint_Repair_Costs[],COLUMN(F4)-COLUMN($E4)+COLUMN(DB_Maint_Repair_Costs[[#Headers],[Year 1 ]]),FALSE)*Base_V1_VMT_Modeled,0),IF(AND(COLUMN(F4)-COLUMN($E4)<Base_V1_Years_Usage_Modeled,COLUMN(F4)-COLUMN($E4)<5),Base_V1_Maint_Repair_Cost_Year_1_Modeled*Base_V1_VMT_Modeled,IF(AND(COLUMN(F4)-COLUMN($E4)<Base_V1_Years_Usage_Modeled,COLUMN(F4)-COLUMN($E4)>=5),Base_V1_Maint_Repair_Cost_Year_5_Modeled*Base_V1_VMT_Modeled,0)))*'Data General Inflation'!E$3 -> -490.56 | G35: =-IF(_Base_V1_Maint_Repair_Cost_Use_Default="Yes",IF(COLUMN(G4)-COLUMN($E4)<Base_V1_Years_Usage_Modeled,VLOOKUP(_Base_V1_Vehicle_Vehicle_Class & _Base_V1_Vehicle_Drivetrain & _Market,DB_Maint_Repair_Costs[],COLUMN(G4)-COLUMN($E4)+COLUMN(DB_Maint_Repair_Costs[[#Headers],[Year 1 ]]),FALSE)*Base_V1_VMT_Modeled,0),IF(AND(COLUMN(G4)-COLUMN($E4)<Base_V1_Years_Usage_Modeled,COLUMN(G4)-COLUMN($E4)<5),Base_V1_Maint_Repair_Cost_Year_1_Modeled*Base_V1_VMT_Modeled,IF(AND(COLUMN(G4)-COLUMN($E4)<Base_V1_Years_Usage_Modeled,COLUMN(G4)-COLUMN($E4)>=5),Base_V1_Maint_Repair_Cost_Year_5_Modeled*Base_V1_VMT_Modeled,0)))*'Data General Inflation'!F$3 -> -501.35232 | H35: =-IF(_Base_V1_Maint_Repair_Cost_Use_Default="Yes",IF(COLUMN(H4)-COLUMN($E4)<Base_V1_Years_Usage_Modeled,VLOOKUP(_Base_V1_Vehicle_Vehicle_Class & _Base_V1_Vehicle_Drivetrain & _Market,DB_Maint_Repair_Costs[],COLUMN(H4)-COLUMN($E4)+COLUMN(DB_Maint_Repair_Costs[[#Headers],[Year 1 ]]),FALSE)*Base_V1_VMT_Modeled,0),IF(AND(COLUMN(H4)-COLUMN($E4)<Base_V1_Years_Usage_Modeled,COLUMN(H4)-COLUMN($E4)<5),Base_V1_Maint_Repair_Cost_Year_1_Modeled*Base_V1_VMT_Modeled,IF(AND(COLUMN(H4)-COLUMN($E4)<Base_V1_Years_Usage_Modeled,COLUMN(H4)-COLUMN($E4)>=5),Base_V1_Maint_Repair_Cost_Year_5_Modeled*Base_V1_VMT_Modeled,0)))*'Data General Inflation'!G$3 -> -512.382071 | I35: =-IF(_Base_V1_Maint_Repair_Cost_Use_Default="Yes",IF(COLUMN(I4)-COLUMN($E4)<Base_V1_Years_Usage_Modeled,VLOOKUP(_Base_V1_Vehicle_Vehicle_Class & _Base_V1_Vehicle_Drivetrain & _Market,DB_Maint_Repair_Costs[],COLUMN(I4)-COLUMN($E4)+COLUMN(DB_Maint_Repair_Costs[[#Headers],[Year 1 ]]),FALSE)*Base_V1_VMT_Modeled,0),IF(AND(COLUMN(I4)-COLUMN($E4)<Base_V1_Years_Usage_Modeled,COLUMN(I4)-COLUMN($E4)<5),Base_V1_Maint_Repair_Cost_Year_1_Modeled*Base_V1_VMT_Modeled,IF(AND(COLUMN(I4)-COLUMN($E4)<Base_V1_Years_Usage_Modeled,COLUMN(I4)-COLUMN($E4)>=5),Base_V1_Maint_Repair_Cost_Year_5_Modeled*Base_V1_VMT_Modeled,0)))*'Data General Inflation'!H$3 -> -523.6544766 | J35: =-IF(_Base_V1_Maint_Repair_Cost_Use_Default="Yes",IF(COLUMN(J4)-COLUMN($E4)<Base_V1_Years_Usage_Modeled,VLOOKUP(_Base_V1_Vehicle_Vehicle_Class & _Base_V1_Vehicle_Drivetrain & _Market,DB_Maint_Repair_Costs[],COLUMN(J4)-COLUMN($E4)+COLUMN(DB_Maint_Repair_Costs[[#Headers],[Year 1 ]]),FALSE)*Base_V1_VMT_Modeled,0),IF(AND(COLUMN(J4)-COLUMN($E4)<Base_V1_Years_Usage_Modeled,COLUMN(J4)-COLUMN($E4)<5),Base_V1_Maint_Repair_Cost_Year_1_Modeled*Base_V1_VMT_Modeled,IF(AND(COLUMN(J4)-COLUMN($E4)<Base_V1_Years_Usage_Modeled,COLUMN(J4)-COLUMN($E4)>=5),Base_V1_Maint_Repair_Cost_Year_5_Modeled*Base_V1_VMT_Modeled,0)))*'Data General Inflation'!I$3 -> -695.7273376 | K35: =-IF(_Base_V1_Maint_Repair_Cost_Use_Default="Yes",IF(COLUMN(K4)-COLUMN($E4)<Base_V1_Years_Usage_Modeled,VLOOKUP(_Base_V1_Vehicle_Vehicle_Class & _Base_V1_Vehicle_Drivetrain & _Market,DB_Maint_Repair_Costs[],COLUMN(K4)-COLUMN($E4)+COLUMN(DB_Maint_Repair_Costs[[#Headers],[Year 1 ]]),FALSE)*Base_V1_VMT_Modeled,0),IF(AND(COLUMN(K4)-COLUMN($E4)<Base_V1_Years_Usage_Modeled,COLUMN(K4)-COLUMN($E4)<5),Base_V1_Maint_Repair_Cost_Year_1_Modeled*Base_V1_VMT_Modeled,IF(AND(COLUMN(K4)-COLUMN($E4)<Base_V1_Years_Usage_Modeled,COLUMN(K4)-COLUMN($E4)>=5),Base_V1_Maint_Repair_Cost_Year_5_Modeled*Base_V1_VMT_Modeled,0)))*'Data General Inflation'!J$3 -> -711.033339 | L35: =-IF(_Base_V1_Maint_Repair_Cost_Use_Default="Yes",IF(COLUMN(L4)-COLUMN($E4)<Base_V1_Years_Usage_Modeled,VLOOKUP(_Base_V1_Vehicle_Vehicle_Class & _Base_V1_Vehicle_Drivetrain & _Market,DB_Maint_Repair_Costs[],COLUMN(L4)-COLUMN($E4)+COLUMN(DB_Maint_Repair_Costs[[#Headers],[Year 1 ]]),FALSE)*Base_V1_VMT_Modeled,0),IF(AND(COLUMN(L4)-COLUMN($E4)<Base_V1_Years_Usage_Modeled,COLUMN(L4)-COLUMN($E4)<5),Base_V1_Maint_Repair_Cost_Year_1_Modeled*Base_V1_VMT_Modeled,IF(AND(COLUMN(L4)-COLUMN($E4)<Base_V1_Years_Usage_Modeled,COLUMN(L4)-COLUMN($E4)>=5),Base_V1_Maint_Repair_Cost_Year_5_Modeled*Base_V1_VMT_Modeled,0)))*'Data General Inflation'!K$3 -> 0 | M35: =-IF(_Base_V1_Maint_Repair_Cost_Use_Default="Yes",IF(COLUMN(M4)-COLUMN($E4)<Base_V1_Years_Usage_Modeled,VLOOKUP(_Base_V1_Vehicle_Vehicle_Class & _Base_V1_Vehicle_Drivetrain & _Market,DB_Maint_Repair_Costs[],COLUMN(M4)-COLUMN($E4)+COLUMN(DB_Maint_Repair_Costs[[#Headers],[Year 1 ]]),FALSE)*Base_V1_VMT_Modeled,0),IF(AND(COLUMN(M4)-COLUMN($E4)<Base_V1_Years_Usage_Modeled,COLUMN(M4)-COLUMN($E4)<5),Base_V1_Maint_Repair_Cost_Year_1_Modeled*Base_V1_VMT_Modeled,IF(AND(COLUMN(M4)-COLUMN($E4)<Base_V1_Years_Usage_Modeled,COLUMN(M4)-COLUMN($E4)>=5),Base_V1_Maint_Repair_Cost_Year_5_Modeled*Base_V1_VMT_Modeled,0)))*'Data General Inflation'!L$3 -> 0 | N35: =-IF(_Base_V1_Maint_Repair_Cost_Use_Default="Yes",IF(COLUMN(N4)-COLUMN($E4)<Base_V1_Years_Usage_Modeled,VLOOKUP(_Base_V1_Vehicle_Vehicle_Class & _Base_V1_Vehicle_Drivetrain & _Market,DB_Maint_Repair_Costs[],COLUMN(N4)-COLUMN($E4)+COLUMN(DB_Maint_Repair_Costs[[#Headers],[Year 1 ]]),FALSE)*Base_V1_VMT_Modeled,0),IF(AND(COLUMN(N4)-COLUMN($E4)<Base_V1_Years_Usage_Modeled,COLUMN(N4)-COLUMN($E4)<5),Base_V1_Maint_Repair_Cost_Year_1_Modeled*Base_V1_VMT_Modeled,IF(AND(COLUMN(N4)-COLUMN($E4)<Base_V1_Years_Usage_Modeled,COLUMN(N4)-COLUMN($E4)>=5),Base_V1_Maint_Repair_Cost_Year_5_Modeled*Base_V1_VMT_Modeled,0)))*'Data General Inflation'!M$3 -> 0 | O35: =-IF(_Base_V1_Maint_Repair_Cost_Use_Default="Yes",IF(COLUMN(O4)-COLUMN($E4)<Base_V1_Years_Usage_Modeled,VLOOKUP(_Base_V1_Vehicle_Vehicle_Class & _Base_V1_Vehicle_Drivetrain & _Market,DB_Maint_Repair_Costs[],COLUMN(O4)-COLUMN($E4)+COLUMN(DB_Maint_Repair_Costs[[#Headers],[Year 1 ]]),FALSE)*Base_V1_VMT_Modeled,0),IF(AND(COLUMN(O4)-COLUMN($E4)<Base_V1_Years_Usage_Modeled,COLUMN(O4)-COLUMN($E4)<5),Base_V1_Maint_Repair_Cost_Year_1_Modeled*Base_V1_VMT_Modeled,IF(AND(COLUMN(O4)-COLUMN($E4)<Base_V1_Years_Usage_Modeled,COLUMN(O4)-COLUMN($E4)>=5),Base_V1_Maint_Repair_Cost_Year_5_Modeled*Base_V1_VMT_Modeled,0)))*'Data General Inflation'!N$3 -> 0 | P35: =-IF(_Base_V1_Maint_Repair_Cost_Use_Default="Yes",IF(COLUMN(P4)-COLUMN($E4)<Base_V1_Years_Usage_Modeled,VLOOKUP(_Base_V1_Vehicle_Vehicle_Class & _Base_V1_Vehicle_Drivetrain & _Market,DB_Maint_Repair_Costs[],COLUMN(P4)-COLUMN($E4)+COLUMN(DB_Maint_Repair_Costs[[#Headers],[Year 1 ]]),FALSE)*Base_V1_VMT_Modeled,0),IF(AND(COLUMN(P4)-COLUMN($E4)<Base_V1_Years_Usage_Modeled,COLUMN(P4)-COLUMN($E4)<5),Base_V1_Maint_Repair_Cost_Year_1_Modeled*Base_V1_VMT_Modeled,IF(AND(COLUMN(P4)-COLUMN($E4)<Base_V1_Years_Usage_Modeled,COLUMN(P4)-COLUMN($E4)>=5),Base_V1_Maint_Repair_Cost_Year_5_Modeled*Base_V1_VMT_Modeled,0)))*'Data General Inflation'!O$3 -> 0 | Q35: =-IF(_Base_V1_Maint_Repair_Cost_Use_Default="Yes",IF(COLUMN(Q4)-COLUMN($E4)<Base_V1_Years_Usage_Modeled,VLOOKUP(_Base_V1_Vehicle_Vehicle_Class & _Base_V1_Vehicle_Drivetrain & _Market,DB_Maint_Repair_Costs[],COLUMN(Q4)-COLUMN($E4)+COLUMN(DB_Maint_Repair_Costs[[#Headers],[Year 1 ]]),FALSE)*Base_V1_VMT_Modeled,0),IF(AND(COLUMN(Q4)-COLUMN($E4)<Base_V1_Years_Usage_Modeled,COLUMN(Q4)-COLUMN($E4)<5),Base_V1_Maint_Repair_Cost_Year_1_Modeled*Base_V1_VMT_Modeled,IF(AND(COLUMN(Q4)-COLUMN($E4)<Base_V1_Years_Usage_Modeled,COLUMN(Q4)-COLUMN($E4)>=5),Base_V1_Maint_Repair_Cost_Year_5_Modeled*Base_V1_VMT_Modeled,0)))*'Data General Inflation'!P$3 -> 0 | R35: =-IF(_Base_V1_Maint_Repair_Cost_Use_Default="Yes",IF(COLUMN(R4)-COLUMN($E4)<Base_V1_Years_Usage_Modeled,VLOOKUP(_Base_V1_Vehicle_Vehicle_Class & _Base_V1_Vehicle_Drivetrain & _Market,DB_Maint_Repair_Costs[],COLUMN(R4)-COLUMN($E4)+COLUMN(DB_Maint_Repair_Costs[[#Headers],[Year 1 ]]),FALSE)*Base_V1_VMT_Modeled,0),IF(AND(COLUMN(R4)-COLUMN($E4)<Base_V1_Years_Usage_Modeled,COLUMN(R4)-COLUMN($E4)<5),Base_V1_Maint_Repair_Cost_Year_1_Modeled*Base_V1_VMT_Modeled,IF(AND(COLUMN(R4)-COLUMN($E4)<Base_V1_Years_Usage_Modeled,COLUMN(R4)-COLUMN($E4)>=5),Base_V1_Maint_Repair_Cost_Year_5_Modeled*Base_V1_VMT_Modeled,0)))*'Data General Inflation'!Q$3 -> 0 | S35: =-IF(_Base_V1_Maint_Repair_Cost_Use_Default="Yes",IF(COLUMN(S4)-COLUMN($E4)<Base_V1_Years_Usage_Modeled,VLOOKUP(_Base_V1_Vehicle_Vehicle_Class & _Base_V1_Vehicle_Drivetrain & _Market,DB_Maint_Repair_Costs[],COLUMN(S4)-COLUMN($E4)+COLUMN(DB_Maint_Repair_Costs[[#Headers],[Year 1 ]]),FALSE)*Base_V1_VMT_Modeled,0),IF(AND(COLUMN(S4)-COLUMN($E4)<Base_V1_Years_Usage_Modeled,COLUMN(S4)-COLUMN($E4)<5),Base_V1_Maint_Repair_Cost_Year_1_Modeled*Base_V1_VMT_Modeled,IF(AND(COLUMN(S4)-COLUMN($E4)<Base_V1_Years_Usage_Modeled,COLUMN(S4)-COLUMN($E4)>=5),Base_V1_Maint_Repair_Cost_Year_5_Modeled*Base_V1_VMT_Modeled,0)))*'Data General Inflation'!R$3 -> 0 | T35: =-IF(_Base_V1_Maint_Repair_Cost_Use_Default="Yes",IF(COLUMN(T4)-COLUMN($E4)<Base_V1_Years_Usage_Modeled,VLOOKUP(_Base_V1_Vehicle_Vehicle_Class & _Base_V1_Vehicle_Drivetrain & _Market,DB_Maint_Repair_Costs[],COLUMN(T4)-COLUMN($E4)+COLUMN(DB_Maint_Repair_Costs[[#Headers],[Year 1 ]]),FALSE)*Base_V1_VMT_Modeled,0),IF(AND(COLUMN(T4)-COLUMN($E4)<Base_V1_Years_Usage_Modeled,COLUMN(T4)-COLUMN($E4)<5),Base_V1_Maint_Repair_Cost_Year_1_Modeled*Base_V1_VMT_Modeled,IF(AND(COLUMN(T4)-COLUMN($E4)<Base_V1_Years_Usage_Modeled,COLUMN(T4)-COLUMN($E4)>=5),Base_V1_Maint_Repair_Cost_Year_5_Modeled*Base_V1_VMT_Modeled,0)))*'Data General Inflation'!S$3 -> 0 | U35: =-IF(_Base_V1_Maint_Repair_Cost_Use_Default="Yes",IF(COLUMN(U4)-COLUMN($E4)<Base_V1_Years_Usage_Modeled,VLOOKUP(_Base_V1_Vehicle_Vehicle_Class & _Base_V1_Vehicle_Drivetrain & _Market,DB_Maint_Repair_Costs[],COLUMN(U4)-COLUMN($E4)+COLUMN(DB_Maint_Repair_Costs[[#Headers],[Year 1 ]]),FALSE)*Base_V1_VMT_Modeled,0),IF(AND(COLUMN(U4)-COLUMN($E4)<Base_V1_Years_Usage_Modeled,COLUMN(U4)-COLUMN($E4)<5),Base_V1_Maint_Repair_Cost_Year_1_Modeled*Base_V1_VMT_Modeled,IF(AND(COLUMN(U4)-COLUMN($E4)<Base_V1_Years_Usage_Modeled,COLUMN(U4)-COLUMN($E4)>=5),Base_V1_Maint_Repair_Cost_Year_5_Modeled*Base_V1_VMT_Modeled,0)))*'Data General Inflation'!T$3 -> 0 | V35: =-IF(_Base_V1_Maint_Repair_Cost_Use_Default="Yes",IF(COLUMN(V4)-COLUMN($E4)<Base_V1_Years_Usage_Modeled,VLOOKUP(_Base_V1_Vehicle_Vehicle_Class & _Base_V1_Vehicle_Drivetrain & _Market,DB_Maint_Repair_Costs[],COLUMN(V4)-COLUMN($E4)+COLUMN(DB_Maint_Repair_Costs[[#Headers],[Year 1 ]]),FALSE)*Base_V1_VMT_Modeled,0),IF(AND(COLUMN(V4)-COLUMN($E4)<Base_V1_Years_Usage_Modeled,COLUMN(V4)-COLUMN($E4)<5),Base_V1_Maint_Repair_Cost_Year_1_Modeled*Base_V1_VMT_Modeled,IF(AND(COLUMN(V4)-COLUMN($E4)<Base_V1_Years_Usage_Modeled,COLUMN(V4)-COLUMN($E4)>=5),Base_V1_Maint_Repair_Cost_Year_5_Modeled*Base_V1_VMT_Modeled,0)))*'Data General Inflation'!U$3 -> 0 | W35: =-IF(_Base_V1_Maint_Repair_Cost_Use_Default="Yes",IF(COLUMN(W4)-COLUMN($E4)<Base_V1_Years_Usage_Modeled,VLOOKUP(_Base_V1_Vehicle_Vehicle_Class & _Base_V1_Vehicle_Drivetrain & _Market,DB_Maint_Repair_Costs[],COLUMN(W4)-COLUMN($E4)+COLUMN(DB_Maint_Repair_Costs[[#Headers],[Year 1 ]]),FALSE)*Base_V1_VMT_Modeled,0),IF(AND(COLUMN(W4)-COLUMN($E4)<Base_V1_Years_Usage_Modeled,COLUMN(W4)-COLUMN($E4)<5),Base_V1_Maint_Repair_Cost_Year_1_Modeled*Base_V1_VMT_Modeled,IF(AND(COLUMN(W4)-COLUMN($E4)<Base_V1_Years_Usage_Modeled,COLUMN(W4)-COLUMN($E4)>=5),Base_V1_Maint_Repair_Cost_Year_5_Modeled*Base_V1_VMT_Modeled,0)))*'Data General Inflation'!V$3 -> 0 | X35: =-IF(_Base_V1_Maint_Repair_Cost_Use_Default="Yes",IF(COLUMN(X4)-COLUMN($E4)<Base_V1_Years_Usage_Modeled,VLOOKUP(_Base_V1_Vehicle_Vehicle_Class & _Base_V1_Vehicle_Drivetrain & _Market,DB_Maint_Repair_Costs[],COLUMN(X4)-COLUMN($E4)+COLUMN(DB_Maint_Repair_Costs[[#Headers],[Year 1 ]]),FALSE)*Base_V1_VMT_Modeled,0),IF(AND(COLUMN(X4)-COLUMN($E4)<Base_V1_Years_Usage_Modeled,COLUMN(X4)-COLUMN($E4)<5),Base_V1_Maint_Repair_Cost_Year_1_Modeled*Base_V1_VMT_Modeled,IF(AND(COLUMN(X4)-COLUMN($E4)<Base_V1_Years_Usage_Modeled,COLUMN(X4)-COLUMN($E4)>=5),Base_V1_Maint_Repair_Cost_Year_5_Modeled*Base_V1_VMT_Modeled,0)))*'Data General Inflation'!W$3 -> 0 | Y35: =-IF(_Base_V1_Maint_Repair_Cost_Use_Default="Yes",IF(COLUMN(Y4)-COLUMN($E4)<Base_V1_Years_Usage_Modeled,VLOOKUP(_Base_V1_Vehicle_Vehicle_Class & _Base_V1_Vehicle_Drivetrain & _Market,DB_Maint_Repair_Costs[],COLUMN(Y4)-COLUMN($E4)+COLUMN(DB_Maint_Repair_Costs[[#Headers],[Year 1 ]]),FALSE)*Base_V1_VMT_Modeled,0),IF(AND(COLUMN(Y4)-COLUMN($E4)<Base_V1_Years_Usage_Modeled,COLUMN(Y4)-COLUMN($E4)<5),Base_V1_Maint_Repair_Cost_Year_1_Modeled*Base_V1_VMT_Modeled,IF(AND(COLUMN(Y4)-COLUMN($E4)<Base_V1_Years_Usage_Modeled,COLUMN(Y4)-COLUMN($E4)>=5),Base_V1_Maint_Repair_Cost_Year_5_Modeled*Base_V1_VMT_Modeled,0)))*'Data General Inflation'!X$3 -> 0 | Z35: =-IF(_Base_V1_Maint_Repair_Cost_Use_Default="Yes",IF(COLUMN(Z4)-COLUMN($E4)<Base_V1_Years_Usage_Modeled,VLOOKUP(_Base_V1_Vehicle_Vehicle_Class & _Base_V1_Vehicle_Drivetrain & _Market,DB_Maint_Repair_Costs[],COLUMN(Z4)-COLUMN($E4)+COLUMN(DB_Maint_Repair_Costs[[#Headers],[Year 1 ]]),FALSE)*Base_V1_VMT_Modeled,0),IF(AND(COLUMN(Z4)-COLUMN($E4)<Base_V1_Years_Usage_Modeled,COLUMN(Z4)-COLUMN($E4)<5),Base_V1_Maint_Repair_Cost_Year_1_Modeled*Base_V1_VMT_Modeled,IF(AND(COLUMN(Z4)-COLUMN($E4)<Base_V1_Years_Usage_Modeled,COLUMN(Z4)-COLUMN($E4)>=5),Base_V1_Maint_Repair_Cost_Year_5_Modeled*Base_V1_VMT_Modeled,0)))*'Data General Inflation'!Y$3 -> 0 | AA35: =-IF(_Base_V1_Maint_Repair_Cost_Use_Default="Yes",IF(COLUMN(AA4)-COLUMN($E4)<Base_V1_Years_Usage_Modeled,VLOOKUP(_Base_V1_Vehicle_Vehicle_Class & _Base_V1_Vehicle_Drivetrain & _Market,DB_Maint_Repair_Costs[],COLUMN(AA4)-COLUMN($E4)+COLUMN(DB_Maint_Repair_Costs[[#Headers],[Year 1 ]]),FALSE)*Base_V1_VMT_Modeled,0),IF(AND(COLUMN(AA4)-COLUMN($E4)<Base_V1_Years_Usage_Modeled,COLUMN(AA4)-COLUMN($E4)<5),Base_V1_Maint_Repair_Cost_Year_1_Modeled*Base_V1_VMT_Modeled,IF(AND(COLUMN(AA4)-COLUMN($E4)<Base_V1_Years_Usage_Modeled,COLUMN(AA4)-COLUMN($E4)>=5),Base_V1_Maint_Repair_Cost_Year_5_Modeled*Base_V1_VMT_Modeled,0)))*'Data General Inflation'!Z$3 -> 0 | AB35: =-IF(_Base_V1_Maint_Repair_Cost_Use_Default="Yes",IF(COLUMN(AB4)-COLUMN($E4)<Base_V1_Years_Usage_Modeled,VLOOKUP(_Base_V1_Vehicle_Vehicle_Class & _Base_V1_Vehicle_Drivetrain & _Market,DB_Maint_Repair_Costs[],COLUMN(AB4)-COLUMN($E4)+COLUMN(DB_Maint_Repair_Costs[[#Headers],[Year 1 ]]),FALSE)*Base_V1_VMT_Modeled,0),IF(AND(COLUMN(AB4)-COLUMN($E4)<Base_V1_Years_Usage_Modeled,COLUMN(AB4)-COLUMN($E4)<5),Base_V1_Maint_Repair_Cost_Year_1_Modeled*Base_V1_VMT_Modeled,IF(AND(COLUMN(AB4)-COLUMN($E4)<Base_V1_Years_Usage_Modeled,COLUMN(AB4)-COLUMN($E4)>=5),Base_V1_Maint_Repair_Cost_Year_5_Modeled*Base_V1_VMT_Modeled,0)))*'Data General Inflation'!AA$3 -> 0 | AC35: =-IF(_Base_V1_Maint_Repair_Cost_Use_Default="Yes",IF(COLUMN(AC4)-COLUMN($E4)<Base_V1_Years_Usage_Modeled,VLOOKUP(_Base_V1_Vehicle_Vehicle_Class & _Base_V1_Vehicle_Drivetrain & _Market,DB_Maint_Repair_Costs[],COLUMN(AC4)-COLUMN($E4)+COLUMN(DB_Maint_Repair_Costs[[#Headers],[Year 1 ]]),FALSE)*Base_V1_VMT_Modeled,0),IF(AND(COLUMN(AC4)-COLUMN($E4)<Base_V1_Years_Usage_Modeled,COLUMN(AC4)-COLUMN($E4)<5),Base_V1_Maint_Repair_Cost_Year_1_Modeled*Base_V1_VMT_Modeled,IF(AND(COLUMN(AC4)-COLUMN($E4)<Base_V1_Years_Usage_Modeled,COLUMN(AC4)-COLUMN($E4)>=5),Base_V1_Maint_Repair_Cost_Year_5_Modeled*Base_V1_VMT_Modeled,0)))*'Data General Inflation'!AB$3 -> 0
B36: Taxes and Fees | D36: =-Base_V1_Initial_Taxes_Fees_Modeled-(Base_V1_Initial_Percent_Base_Price_Modeled*Base_V1_Base_Price_Ex) -> 0 | E36: =-IF(COLUMN(E4)-COLUMN($E4)<Base_V1_Years_Usage_Modeled,Base_V1_Taxes_Fees_Modeled,0)*'Data General Inflation'!D$3 -> 0 | F36: =-IF(COLUMN(F4)-COLUMN($E4)<Base_V1_Years_Usage_Modeled,Base_V1_Taxes_Fees_Modeled,0)*'Data General Inflation'!E$3 -> 0 | G36: =-IF(COLUMN(G4)-COLUMN($E4)<Base_V1_Years_Usage_Modeled,Base_V1_Taxes_Fees_Modeled,0)*'Data General Inflation'!F$3 -> 0 | H36: =-IF(COLUMN(H4)-COLUMN($E4)<Base_V1_Years_Usage_Modeled,Base_V1_Taxes_Fees_Modeled,0)*'Data General Inflation'!G$3 -> 0 | I36: =-IF(COLUMN(I4)-COLUMN($E4)<Base_V1_Years_Usage_Modeled,Base_V1_Taxes_Fees_Modeled,0)*'Data General Inflation'!H$3 -> 0 | J36: =-IF(COLUMN(J4)-COLUMN($E4)<Base_V1_Years_Usage_Modeled,Base_V1_Taxes_Fees_Modeled,0)*'Data General Inflation'!I$3 -> 0 | K36: =-IF(COLUMN(K4)-COLUMN($E4)<Base_V1_Years_Usage_Modeled,Base_V1_Taxes_Fees_Modeled,0)*'Data General Inflation'!J$3 -> 0 | L36: =-IF(COLUMN(L4)-COLUMN($E4)<Base_V1_Years_Usage_Modeled,Base_V1_Taxes_Fees_Modeled,0)*'Data General Inflation'!K$3 -> 0 | M36: =-IF(COLUMN(M4)-COLUMN($E4)<Base_V1_Years_Usage_Modeled,Base_V1_Taxes_Fees_Modeled,0)*'Data General Inflation'!L$3 -> 0 | N36: =-IF(COLUMN(N4)-COLUMN($E4)<Base_V1_Years_Usage_Modeled,Base_V1_Taxes_Fees_Modeled,0)*'Data General Inflation'!M$3 -> 0 | O36: =-IF(COLUMN(O4)-COLUMN($E4)<Base_V1_Years_Usage_Modeled,Base_V1_Taxes_Fees_Modeled,0)*'Data General Inflation'!N$3 -> 0 | P36: =-IF(COLUMN(P4)-COLUMN($E4)<Base_V1_Years_Usage_Modeled,Base_V1_Taxes_Fees_Modeled,0)*'Data General Inflation'!O$3 -> 0 | Q36: =-IF(COLUMN(Q4)-COLUMN($E4)<Base_V1_Years_Usage_Modeled,Base_V1_Taxes_Fees_Modeled,0)*'Data General Inflation'!P$3 -> 0 | R36: =-IF(COLUMN(R4)-COLUMN($E4)<Base_V1_Years_Usage_Modeled,Base_V1_Taxes_Fees_Modeled,0)*'Data General Inflation'!Q$3 -> 0 | S36: =-IF(COLUMN(S4)-COLUMN($E4)<Base_V1_Years_Usage_Modeled,Base_V1_Taxes_Fees_Modeled,0)*'Data General Inflation'!R$3 -> 0 | T36: =-IF(COLUMN(T4)-COLUMN($E4)<Base_V1_Years_Usage_Modeled,Base_V1_Taxes_Fees_Modeled,0)*'Data General Inflation'!S$3 -> 0 | U36: =-IF(COLUMN(U4)-COLUMN($E4)<Base_V1_Years_Usage_Modeled,Base_V1_Taxes_Fees_Modeled,0)*'Data General Inflation'!T$3 -> 0 | V36: =-IF(COLUMN(V4)-COLUMN($E4)<Base_V1_Years_Usage_Modeled,Base_V1_Taxes_Fees_Modeled,0)*'Data General Inflation'!U$3 -> 0 | W36: =-IF(COLUMN(W4)-COLUMN($E4)<Base_V1_Years_Usage_Modeled,Base_V1_Taxes_Fees_Modeled,0)*'Data General Inflation'!V$3 -> 0 | X36: =-IF(COLUMN(X4)-COLUMN($E4)<Base_V1_Years_Usage_Modeled,Base_V1_Taxes_Fees_Modeled,0)*'Data General Inflation'!W$3 -> 0 | Y36: =-IF(COLUMN(Y4)-COLUMN($E4)<Base_V1_Years_Usage_Modeled,Base_V1_Taxes_Fees_Modeled,0)*'Data General Inflation'!X$3 -> 0 | Z36: =-IF(COLUMN(Z4)-COLUMN($E4)<Base_V1_Years_Usage_Modeled,Base_V1_Taxes_Fees_Modeled,0)*'Data General Inflation'!Y$3 -> 0 | AA36: =-IF(COLUMN(AA4)-COLUMN($E4)<Base_V1_Years_Usage_Modeled,Base_V1_Taxes_Fees_Modeled,0)*'Data General Inflation'!Z$3 -> 0 | AB36: =-IF(COLUMN(AB4)-COLUMN($E4)<Base_V1_Years_Usage_Modeled,Base_V1_Taxes_Fees_Modeled,0)*'Data General Inflation'!AA$3 -> 0 | AC36: =-IF(COLUMN(AC4)-COLUMN($E4)<Base_V1_Years_Usage_Modeled,Base_V1_Taxes_Fees_Modeled,0)*'Data General Inflation'!AB$3 -> 0
B37: Insurance Cost | E37: =-IF(COLUMN(E4)-COLUMN($E4)<Base_V1_Years_Usage_Modeled,Base_V1_Insurance_Cost_Modeled,0)*'Data General Inflation'!D$3 -> -1194 | F37: =-IF(COLUMN(F4)-COLUMN($E4)<Base_V1_Years_Usage_Modeled,Base_V1_Insurance_Cost_Modeled,0)*'Data General Inflation'!E$3 -> -1220.268 | G37: =-IF(COLUMN(G4)-COLUMN($E4)<Base_V1_Years_Usage_Modeled,Base_V1_Insurance_Cost_Modeled,0)*'Data General Inflation'!F$3 -> -1247.113896 | H37: =-IF(COLUMN(H4)-COLUMN($E4)<Base_V1_Years_Usage_Modeled,Base_V1_Insurance_Cost_Modeled,0)*'Data General Inflation'!G$3 -> -1274.550402 | I37: =-IF(COLUMN(I4)-COLUMN($E4)<Base_V1_Years_Usage_Modeled,Base_V1_Insurance_Cost_Modeled,0)*'Data General Inflation'!H$3 -> -1302.590511 | J37: =-IF(COLUMN(J4)-COLUMN($E4)<Base_V1_Years_Usage_Modeled,Base_V1_Insurance_Cost_Modeled,0)*'Data General Inflation'!I$3 -> -1331.247502 | K37: =-IF(COLUMN(K4)-COLUMN($E4)<Base_V1_Years_Usage_Modeled,Base_V1_Insurance_Cost_Modeled,0)*'Data General Inflation'!J$3 -> -1360.534947 | L37: =-IF(COLUMN(L4)-COLUMN($E4)<Base_V1_Years_Usage_Modeled,Base_V1_Insurance_Cost_Modeled,0)*'Data General Inflation'!K$3 -> 0 | M37: =-IF(COLUMN(M4)-COLUMN($E4)<Base_V1_Years_Usage_Modeled,Base_V1_Insurance_Cost_Modeled,0)*'Data General Inflation'!L$3 -> 0 | N37: =-IF(COLUMN(N4)-COLUMN($E4)<Base_V1_Years_Usage_Modeled,Base_V1_Insurance_Cost_Modeled,0)*'Data General Inflation'!M$3 -> 0 | O37: =-IF(COLUMN(O4)-COLUMN($E4)<Base_V1_Years_Usage_Modeled,Base_V1_Insurance_Cost_Modeled,0)*'Data General Inflation'!N$3 -> 0 | P37: =-IF(COLUMN(P4)-COLUMN($E4)<Base_V1_Years_Usage_Modeled,Base_V1_Insurance_Cost_Modeled,0)*'Data General Inflation'!O$3 -> 0 | Q37: =-IF(COLUMN(Q4)-COLUMN($E4)<Base_V1_Years_Usage_Modeled,Base_V1_Insurance_Cost_Modeled,0)*'Data General Inflation'!P$3 -> 0 | R37: =-IF(COLUMN(R4)-COLUMN($E4)<Base_V1_Years_Usage_Modeled,Base_V1_Insurance_Cost_Modeled,0)*'Data General Inflation'!Q$3 -> 0 | S37: =-IF(COLUMN(S4)-COLUMN($E4)<Base_V1_Years_Usage_Modeled,Base_V1_Insurance_Cost_Modeled,0)*'Data General Inflation'!R$3 -> 0 | T37: =-IF(COLUMN(T4)-COLUMN($E4)<Base_V1_Years_Usage_Modeled,Base_V1_Insurance_Cost_Modeled,0)*'Data General Inflation'!S$3 -> 0 | U37: =-IF(COLUMN(U4)-COLUMN($E4)<Base_V1_Years_Usage_Modeled,Base_V1_Insurance_Cost_Modeled,0)*'Data General Inflation'!T$3 -> 0 | V37: =-IF(COLUMN(V4)-COLUMN($E4)<Base_V1_Years_Usage_Modeled,Base_V1_Insurance_Cost_Modeled,0)*'Data General Inflation'!U$3 -> 0 | W37: =-IF(COLUMN(W4)-COLUMN($E4)<Base_V1_Years_Usage_Modeled,Base_V1_Insurance_Cost_Modeled,0)*'Data General Inflation'!V$3 -> 0 | X37: =-IF(COLUMN(X4)-COLUMN($E4)<Base_V1_Years_Usage_Modeled,Base_V1_Insurance_Cost_Modeled,0)*'Data General Inflation'!W$3 -> 0 | Y37: =-IF(COLUMN(Y4)-COLUMN($E4)<Base_V1_Years_Usage_Modeled,Base_V1_Insurance_Cost_Modeled,0)*'Data General Inflation'!X$3 -> 0 | Z37: =-IF(COLUMN(Z4)-COLUMN($E4)<Base_V1_Years_Usage_Modeled,Base_V1_Insurance_Cost_Modeled,0)*'Data General Inflation'!Y$3 -> 0 | AA37: =-IF(COLUMN(AA4)-COLUMN($E4)<Base_V1_Years_Usage_Modeled,Base_V1_Insurance_Cost_Modeled,0)*'Data General Inflation'!Z$3 -> 0 | AB37: =-IF(COLUMN(AB4)-COLUMN($E4)<Base_V1_Years_Usage_Modeled,Base_V1_Insurance_Cost_Modeled,0)*'Data General Inflation'!AA$3 -> 0 | AC37: =-IF(COLUMN(AC4)-COLUMN($E4)<Base_V1_Years_Usage_Modeled,Base_V1_Insurance_Cost_Modeled,0)*'Data General Inflation'!AB$3 -> 0
B38: Subtotal Fuel and Operating Costs | D38: =SUM(D34:D37) -> 0 | E38: -2031.951192 | F38: -2084.687506 | G38: -2114.391727 | H38: -2145.939437 | I38: -2179.955176 | J38: -2380.533162 | K38: -2427.419257 | L38: 0 | M38: 0 | N38: 0 | O38: 0 | P38: 0 | Q38: 0 | R38: 0 | S38: 0 | T38: 0 | U38: 0 | V38: 0 | W38: 0 | X38: 0 | Y38: 0 | Z38: 0 | AA38: 0 | AB38: 0 | AC38: 0
B40: Other Costs
B41: Cost of Carbon | E41: =-IF(COLUMN(E4)-COLUMN($E4)<Base_V1_Years_Usage_Modeled,Base_V1_CO2_Ex/2204.62*Carbon_Price_Modeled,0) -> 0 | F41: 0 | G41: 0 | H41: 0 | I41: 0 | J41: 0 | K41: 0 | L41: 0 | M41: 0 | N41: 0 | O41: 0 | P41: 0 | Q41: 0 | R41: 0 | S41: 0 | T41: 0 | U41: 0 | V41: 0 | W41: 0 | X41: 0 | Y41: 0 | Z41: 0 | AA41: 0 | AB41: 0 | AC41: 0
B42: Cost of Downtime from Public Charging | E42: =-IF(AND(COLUMN(E5)-COLUMN($E5)<Base_V1_Years_Usage_Modeled, Cost_of_Downtime_from_Charging_Modeled<>0, Base_Station_Max_Power_Modeled<>0),(Base_V1_Electricity_Usage_Ex*Base_Percent_Public_Charging_Modeled)/Base_Station_Max_Power_Modeled*Cost_of_Downtime_from_Charging_Modeled, 0) -> 0 | F42: 0 | G42: 0 | H42: 0 | I42: 0 | J42: 0 | K42: 0 | L42: 0 | M42: 0 | N42: 0 | O42: 0 | P42: 0 | Q42: 0 | R42: 0 | S42: 0 | T42: 0 | U42: 0 | V42: 0 | W42: 0 | X42: 0 | Y42: 0 | Z42: 0 | AA42: 0 | AB42: 0 | AC42: 0
B43: Subtotal Other Costs | D43: =SUM(D41:D42) -> 0 | E43: =SUM(E41:E42) -> 0 | F43: =SUM(F41:F42) -> 0 | G43: 0 | H43: 0 | I43: 0 | J43: 0 | K43: 0 | L43: 0 | M43: 0 | N43: 0 | O43: 0 | P43: 0 | Q43: 0 | R43: 0 | S43: 0 | T43: 0 | U43: 0 | V43: 0 | W43: 0 | X43: 0 | Y43: 0 | Z43: 0 | AA43: 0 | AB43: 0 | AC43: 0
B45: Total Discounted Costs
B46: Total Annual Costs | D46: =D31+D38+D43 -> -42895 | E46: -2031.951192 | F46: -2084.687506 | G46: -2114.391727 | H46: -2145.939437 | I46: -2179.955176 | J46: -2380.533162 | K46: 12046.4797 | L46: 0 | M46: 0 | N46: 0 | O46: 0 | P46: 0 | Q46: 0 | R46: 0 | S46: 0 | T46: 0 | U46: 0 | V46: 0 | W46: 0 | X46: 0 | Y46: 0 | Z46: 0 | AA46: 0 | AB46: 0 | AC46: 0
B47: Discount Factor | C47: =Base_Discount_Rate_Modeled -> 0 | D47: =(1/(1+$C47))^(COLUMN(D4)-COLUMN($D4)) -> 1 | E47: 1 | F47: 1 | G47: 1 | H47: 1 | I47: 1 | J47: 1 | K47: 1 | L47: 1 | M47: 1 | N47: 1 | O47: 1 | P47: 1 | Q47: 1 | R47: 1 | S47: 1 | T47: 1 | U47: 1 | V47: 1 | W47: 1 | X47: 1 | Y47: 1 | Z47: 1 | AA47: 1 | AB47: 1 | AC47: 1
B48: Discounted Total | D48: =D46*D47 -> -42895 | E48: =E46*E47 -> -2031.951192 | F48: =F46*F47 -> -2084.687506 | G48: -2114.391727 | H48: -2145.939437 | I48: -2179.955176 | J48: -2380.533162 | K48: 12046.4797 | L48: 0 | M48: 0 | N48: 0 | O48: 0 | P48: 0 | Q48: 0 | R48: 0 | S48: 0 | T48: 0 | U48: 0 | V48: 0 | W48: 0 | X48: 0 | Y48: 0 | Z48: 0 | AA48: 0 | AB48: 0 | AC48: 0
B49: Cumulative Discounted Total | D49: =IF((COLUMN(D4)-COLUMN($D4))<=Base_V1_Years_Usage_Modeled,C49+D48,0) -> -42895 | E49: -44926.95119 | F49: -47011.6387 | G49: -49126.03043 | H49: -51271.96986 | I49: -53451.92504 | J49: -55832.4582 | K49: -43785.9785 | L49: 0 | M49: 0 | N49: 0 | O49: 0 | P49: 0 | Q49: 0 | R49: 0 | S49: 0 | T49: 0 | U49: 0 | V49: 0 | W49: 0 | X49: 0 | Y49: 0 | Z49: 0 | AA49: 0 | AB49: 0 | AC49: 0
B50: Annualized NPV Total Cost of Ownership | D50: =OFFSET($D49,0,Base_V1_Years_Usage_Modeled)/Base_V1_Years_Usage_Modeled -> -6255.139786
B52: Baseline EV Infrastructure
D53: Year 0 | E53: Year 1 | F53: Year 2 | G53: Year 3 | H53: Year 4 | I53: Year 5 | J53: Year 6 | K53: Year 7 | L53: Year 8 | M53: Year 9 | N53: Year 10 | O53: Year 11 | P53: Year 12 | Q53: Year 13 | R53: Year 14 | S53: Year 15 | T53: Year 16 | U53: Year 17 | V53: Year 18 | W53: Year 19 | X53: Year 20 | Y53: Year 21 | Z53: Year 22 | AA53: Year 23 | AB53: Year 24 | AC53: Year 25
B54: Capital and Financing Costs
B55: Cash
B56: Cash Payment | D56: =IF(AND(Base_Inf_Has_Cash_Purchase_Ex=TRUE,_Base_Include_Charging="Yes"),-Base_Num_Stations_Modeled*Base_Station_Cost_Modeled,0) -> 0
B57: Loan
B58: Down Payment | D58: =IF(AND(Base_Inf_Has_Cash_Purchase_Ex=FALSE,_Base_Include_Charging="Yes"),-Base_Inf_Down_Payment_Modeled,0) -> 0
B59: Loan Payments | E59: =IF(AND(Base_Inf_Has_Cash_Purchase_Ex=FALSE,_Base_Include_Charging="Yes",(COLUMN(E53)-COLUMN($E53))<Base_Inf_Loan_Term_Modeled),PMT(Base_Inf_Loan_APR_Modeled,Base_Inf_Loan_Term_Modeled,(Base_Num_Stations_Modeled*Base_Station_Cost_Modeled)-Base_Inf_Down_Payment_Modeled,0),0) -> 0 | F59: 0 | G59: 0 | H59: 0 | I59: 0 | J59: 0 | K59: 0 | L59: 0 | M59: 0 | N59: 0 | O59: 0 | P59: 0 | Q59: 0 | R59: 0 | S59: 0 | T59: 0 | U59: 0 | V59: 0 | W59: 0 | X59: 0 | Y59: 0 | Z59: 0 | AA59: 0 | AB59: 0 | AC59: 0
B60: Subtotal Loan Cash Flows | D60: =SUM(D58:D59) -> 0 | E60: =SUM(E58:E59) -> 0 | F60: 0 | G60: 0 | H60: 0 | I60: 0 | J60: 0 | K60: 0 | L60: 0 | M60: 0 | N60: 0 | O60: 0 | P60: 0 | Q60: 0 | R60: 0 | S60: 0 | T60: 0 | U60: 0 | V60: 0 | W60: 0 | X60: 0 | Y60: 0 | Z60: 0 | AA60: 0 | AB60: 0 | AC60: 0
B62: Total Capital and Financing Costs | D62: =D56+D60 -> 0 | E62: =E56+E60 -> 0 | F62: 0 | G62: 0 | H62: 0 | I62: 0 | J62: 0 | K62: 0 | L62: 0 | M62: 0 | N62: 0 | O62: 0 | P62: 0 | Q62: 0 | R62: 0 | S62: 0 | T62: 0 | U62: 0 | V62: 0 | W62: 0 | X62: 0 | Y62: 0 | Z62: 0 | AA62: 0 | AB62: 0 | AC62: 0
B64: Operating Costs
B65: Maintenance Cost | E65: =-IF(AND(COLUMN(E53)-COLUMN($E53)<Base_V1_Years_Usage_Modeled,_Base_Include_Charging="Yes"),Base_Station_Maint_Cost_Modeled*Base_Num_Stations_Modeled,0)*'Data General Inflation'!D$3 -> 0 | F65: =-IF(AND(COLUMN(F53)-COLUMN($E53)<Base_V1_Years_Usage_Modeled,_Base_Include_Charging="Yes"),Base_Station_Maint_Cost_Modeled*Base_Num_Stations_Modeled,0)*'Data General Inflation'!E$3 -> 0 | G65: =-IF(AND(COLUMN(G53)-COLUMN($E53)<Base_V1_Years_Usage_Modeled,_Base_Include_Charging="Yes"),Base_Station_Maint_Cost_Modeled*Base_Num_Stations_Modeled,0)*'Data General Inflation'!F$3 -> 0 | H65: =-IF(AND(COLUMN(H53)-COLUMN($E53)<Base_V1_Years_Usage_Modeled,_Base_Include_Charging="Yes"),Base_Station_Maint_Cost_Modeled*Base_Num_Stations_Modeled,0)*'Data General Inflation'!G$3 -> 0 | I65: =-IF(AND(COLUMN(I53)-COLUMN($E53)<Base_V1_Years_Usage_Modeled,_Base_Include_Charging="Yes"),Base_Station_Maint_Cost_Modeled*Base_Num_Stations_Modeled,0)*'Data General Inflation'!H$3 -> 0 | J65: =-IF(AND(COLUMN(J53)-COLUMN($E53)<Base_V1_Years_Usage_Modeled,_Base_Include_Charging="Yes"),Base_Station_Maint_Cost_Modeled*Base_Num_Stations_Modeled,0)*'Data General Inflation'!I$3 -> 0 | K65: =-IF(AND(COLUMN(K53)-COLUMN($E53)<Base_V1_Years_Usage_Modeled,_Base_Include_Charging="Yes"),Base_Station_Maint_Cost_Modeled*Base_Num_Stations_Modeled,0)*'Data General Inflation'!J$3 -> 0 | L65: =-IF(AND(COLUMN(L53)-COLUMN($E53)<Base_V1_Years_Usage_Modeled,_Base_Include_Charging="Yes"),Base_Station_Maint_Cost_Modeled*Base_Num_Stations_Modeled,0)*'Data General Inflation'!K$3 -> 0 | M65: =-IF(AND(COLUMN(M53)-COLUMN($E53)<Base_V1_Years_Usage_Modeled,_Base_Include_Charging="Yes"),Base_Station_Maint_Cost_Modeled*Base_Num_Stations_Modeled,0)*'Data General Inflation'!L$3 -> 0 | N65: =-IF(AND(COLUMN(N53)-COLUMN($E53)<Base_V1_Years_Usage_Modeled,_Base_Include_Charging="Yes"),Base_Station_Maint_Cost_Modeled*Base_Num_Stations_Modeled,0)*'Data General Inflation'!M$3 -> 0 | O65: =-IF(AND(COLUMN(O53)-COLUMN($E53)<Base_V1_Years_Usage_Modeled,_Base_Include_Charging="Yes"),Base_Station_Maint_Cost_Modeled*Base_Num_Stations_Modeled,0)*'Data General Inflation'!N$3 -> 0 | P65: =-IF(AND(COLUMN(P53)-COLUMN($E53)<Base_V1_Years_Usage_Modeled,_Base_Include_Charging="Yes"),Base_Station_Maint_Cost_Modeled*Base_Num_Stations_Modeled,0)*'Data General Inflation'!O$3 -> 0 | Q65: =-IF(AND(COLUMN(Q53)-COLUMN($E53)<Base_V1_Years_Usage_Modeled,_Base_Include_Charging="Yes"),Base_Station_Maint_Cost_Modeled*Base_Num_Stations_Modeled,0)*'Data General Inflation'!P$3 -> 0 | R65: =-IF(AND(COLUMN(R53)-COLUMN($E53)<Base_V1_Years_Usage_Modeled,_Base_Include_Charging="Yes"),Base_Station_Maint_Cost_Modeled*Base_Num_Stations_Modeled,0)*'Data General Inflation'!Q$3 -> 0 | S65: =-IF(AND(COLUMN(S53)-COLUMN($E53)<Base_V1_Years_Usage_Modeled,_Base_Include_Charging="Yes"),Base_Station_Maint_Cost_Modeled*Base_Num_Stations_Modeled,0)*'Data General Inflation'!R$3 -> 0 | T65: =-IF(AND(COLUMN(T53)-COLUMN($E53)<Base_V1_Years_Usage_Modeled,_Base_Include_Charging="Yes"),Base_Station_Maint_Cost_Modeled*Base_Num_Stations_Modeled,0)*'Data General Inflation'!S$3 -> 0 | U65: =-IF(AND(COLUMN(U53)-COLUMN($E53)<Base_V1_Years_Usage_Modeled,_Base_Include_Charging="Yes"),Base_Station_Maint_Cost_Modeled*Base_Num_Stations_Modeled,0)*'Data General Inflation'!T$3 -> 0 | V65: =-IF(AND(COLUMN(V53)-COLUMN($E53)<Base_V1_Years_Usage_Modeled,_Base_Include_Charging="Yes"),Base_Station_Maint_Cost_Modeled*Base_Num_Stations_Modeled,0)*'Data General Inflation'!U$3 -> 0 | W65: =-IF(AND(COLUMN(W53)-COLUMN($E53)<Base_V1_Years_Usage_Modeled,_Base_Include_Charging="Yes"),Base_Station_Maint_Cost_Modeled*Base_Num_Stations_Modeled,0)*'Data General Inflation'!V$3 -> 0 | X65: =-IF(AND(COLUMN(X53)-COLUMN($E53)<Base_V1_Years_Usage_Modeled,_Base_Include_Charging="Yes"),Base_Station_Maint_Cost_Modeled*Base_Num_Stations_Modeled,0)*'Data General Inflation'!W$3 -> 0 | Y65: =-IF(AND(COLUMN(Y53)-COLUMN($E53)<Base_V1_Years_Usage_Modeled,_Base_Include_Charging="Yes"),Base_Station_Maint_Cost_Modeled*Base_Num_Stations_Modeled,0)*'Data General Inflation'!X$3 -> 0 | Z65: =-IF(AND(COLUMN(Z53)-COLUMN($E53)<Base_V1_Years_Usage_Modeled,_Base_Include_Charging="Yes"),Base_Station_Maint_Cost_Modeled*Base_Num_Stations_Modeled,0)*'Data General Inflation'!Y$3 -> 0 | AA65: =-IF(AND(COLUMN(AA53)-COLUMN($E53)<Base_V1_Years_Usage_Modeled,_Base_Include_Charging="Yes"),Base_Station_Maint_Cost_Modeled*Base_Num_Stations_Modeled,0)*'Data General Inflation'!Z$3 -> 0 | AB65: =-IF(AND(COLUMN(AB53)-COLUMN($E53)<Base_V1_Years_Usage_Modeled,_Base_Include_Charging="Yes"),Base_Station_Maint_Cost_Modeled*Base_Num_Stations_Modeled,0)*'Data General Inflation'!AA$3 -> 0 | AC65: =-IF(AND(COLUMN(AC53)-COLUMN($E53)<Base_V1_Years_Usage_Modeled,_Base_Include_Charging="Yes"),Base_Station_Maint_Cost_Modeled*Base_Num_Stations_Modeled,0)*'Data General Inflation'!AB$3 -> 0
B66: Subtotal Operating Costs | E66: =SUM(E65:E65) -> 0 | F66: 0 | G66: 0 | H66: 0 | I66: 0 | J66: 0 | K66: 0 | L66: 0 | M66: 0 | N66: 0 | O66: 0 | P66: 0 | Q66: 0 | R66: 0 | S66: 0 | T66: 0 | U66: 0 | V66: 0 | W66: 0 | X66: 0 | Y66: 0 | Z66: 0 | AA66: 0 | AB66: 0 | AC66: 0
B67: Total Discounted Costs
B68: Total Annual Costs | D68: =D62+D66 -> 0 | E68: =E62+E66 -> 0 | F68: 0 | G68: 0 | H68: 0 | I68: 0 | J68: 0 | K68: 0 | L68: 0 | M68: 0 | N68: 0 | O68: 0 | P68: 0 | Q68: 0 | R68: 0 | S68: 0 | T68: 0 | U68: 0 | V68: 0 | W68: 0 | X68: 0 | Y68: 0 | Z68: 0 | AA68: 0 | AB68: 0 | AC68: 0
B69: Discount Factor | C69: =Base_Discount_Rate_Modeled -> 0 | D69: =(1/(1+$C69))^(COLUMN(D53)-COLUMN($D53)) -> 1 | E69: 1 | F69: 1 | G69: 1 | H69: 1 | I69: 1 | J69: 1 | K69: 1 | L69: 1 | M69: 1 | N69: 1 | O69: 1 | P69: 1 | Q69: 1 | R69: 1 | S69: 1 | T69: 1 | U69: 1 | V69: 1 | W69: 1 | X69: 1 | Y69: 1 | Z69: 1 | AA69: 1 | AB69: 1 | AC69: 1
B70: Discounted Total | D70: =D68*D69 -> 0 | E70: =E68*E69 -> 0 | F70: =F68*F69 -> 0 | G70: 0 | H70: 0 | I70: 0 | J70: 0 | K70: 0 | L70: 0 | M70: 0 | N70: 0 | O70: 0 | P70: 0 | Q70: 0 | R70: 0 | S70: 0 | T70: 0 | U70: 0 | V70: 0 | W70: 0 | X70: 0 | Y70: 0 | Z70: 0 | AA70: 0 | AB70: 0 | AC70: 0
B71: Cumulative Discounted Total | D71: =IF((COLUMN(D53)-COLUMN($D53))<=Base_V1_Years_Usage_Modeled,C71+D70,0) -> 0 | E71: 0 | F71: 0 | G71: 0 | H71: 0 | I71: 0 | J71: 0 | K71: 0 | L71: 0 | M71: 0 | N71: 0 | O71: 0 | P71: 0 | Q71: 0 | R71: 0 | S71: 0 | T71: 0 | U71: 0 | V71: 0 | W71: 0 | X71: 0 | Y71: 0 | Z71: 0 | AA71: 0 | AB71: 0 | AC71: 0
B72: Annualized NPV Total Cost of Ownership | D72: =OFFSET($D71,0,Base_V1_Years_Usage_Modeled)/Base_V1_Years_Usage_Modeled -> 0
B74: Comparison Vehicle 1
D75: Year 0 | E75: Year 1 | F75: Year 2 | G75: Year 3 | H75: Year 4 | I75: Year 5 | J75: Year 6 | K75: Year 7 | L75: Year 8 | M75: Year 9 | N75: Year 10 | O75: Year 11 | P75: Year 12 | Q75: Year 13 | R75: Year 14 | S75: Year 15 | T75: Year 16 | U75: Year 17 | V75: Year 18 | W75: Year 19 | X75: Year 20 | Y75: Year 21 | Z75: Year 22 | AA75: Year 23 | AB75: Year 24 | AC75: Year 25
B76: Depreciation Calculations
B77: Fair Market Value - BEV | D77: =IF(_Comp_V1_Vehicle_Drivetrain="BEV",Comp_V1_Base_Price_Ex,0) -> 0 | E77: =IF(_Comp_V1_Vehicle_Vehicle_Class=Const_Passenger_Light_Duty, IF(_Comp_V1_Vehicle_Drivetrain="BEV",MAX(IF(_Comp_V1_Vehicle_Drivetrain="BEV",Reg_BEV_Const_Ex+Reg_BEV_Age_Coef_Ex*(COLUMN(E75)-COLUMN($D75))+Reg_BEV_Agesq_Coef_Ex*((COLUMN(E75)-COLUMN($D75))^2)+Reg_BEV_MSRP_Coef_Ex*Comp_V1_Base_Price_Ex+Reg_BEV_Range_Coef_Ex*Constant_Comparison_Electric_Range+Reg_BEV_Mileage_Coef_Ex*Comp_V1_VMT_Modeled*(COLUMN(E75)-COLUMN($D75)),0),300),0), IF(COLUMN(E75)-COLUMN($D75)=1, 'Financial Model'!D77*0.77, 'Financial Model'!D77*0.85)) -> 0 | F77: =IF(_Comp_V1_Vehicle_Vehicle_Class=Const_Passenger_Light_Duty, IF(_Comp_V1_Vehicle_Drivetrain="BEV",MAX(IF(_Comp_V1_Vehicle_Drivetrain="BEV",Reg_BEV_Const_Ex+Reg_BEV_Age_Coef_Ex*(COLUMN(F75)-COLUMN($D75))+Reg_BEV_Agesq_Coef_Ex*((COLUMN(F75)-COLUMN($D75))^2)+Reg_BEV_MSRP_Coef_Ex*Comp_V1_Base_Price_Ex+Reg_BEV_Range_Coef_Ex*Constant_Comparison_Electric_Range+Reg_BEV_Mileage_Coef_Ex*Comp_V1_VMT_Modeled*(COLUMN(F75)-COLUMN($D75)),0),300),0), IF(COLUMN(F75)-COLUMN($D75)=1, 'Financial Model'!E77*0.77, 'Financial Model'!E77*0.85)) -> 0 | G77: =IF(_Comp_V1_Vehicle_Vehicle_Class=Const_Passenger_Light_Duty, IF(_Comp_V1_Vehicle_Drivetrain="BEV",MAX(IF(_Comp_V1_Vehicle_Drivetrain="BEV",Reg_BEV_Const_Ex+Reg_BEV_Age_Coef_Ex*(COLUMN(G75)-COLUMN($D75))+Reg_BEV_Agesq_Coef_Ex*((COLUMN(G75)-COLUMN($D75))^2)+Reg_BEV_MSRP_Coef_Ex*Comp_V1_Base_Price_Ex+Reg_BEV_Range_Coef_Ex*Constant_Comparison_Electric_Range+Reg_BEV_Mileage_Coef_Ex*Comp_V1_VMT_Modeled*(COLUMN(G75)-COLUMN($D75)),0),300),0), IF(COLUMN(G75)-COLUMN($D75)=1, 'Financial Model'!F77*0.77, 'Financial Model'!F77*0.85)) -> 0 | H77: =IF(_Comp_V1_Vehicle_Vehicle_Class=Const_Passenger_Light_Duty, IF(_Comp_V1_Vehicle_Drivetrain="BEV",MAX(IF(_Comp_V1_Vehicle_Drivetrain="BEV",Reg_BEV_Const_Ex+Reg_BEV_Age_Coef_Ex*(COLUMN(H75)-COLUMN($D75))+Reg_BEV_Agesq_Coef_Ex*((COLUMN(H75)-COLUMN($D75))^2)+Reg_BEV_MSRP_Coef_Ex*Comp_V1_Base_Price_Ex+Reg_BEV_Range_Coef_Ex*Constant_Comparison_Electric_Range+Reg_BEV_Mileage_Coef_Ex*Comp_V1_VMT_Modeled*(COLUMN(H75)-COLUMN($D75)),0),300),0), IF(COLUMN(H75)-COLUMN($D75)=1, 'Financial Model'!G77*0.77, 'Financial Model'!G77*0.85)) -> 0 | I77: =IF(_Comp_V1_Vehicle_Vehicle_Class=Const_Passenger_Light_Duty, IF(_Comp_V1_Vehicle_Drivetrain="BEV",MAX(IF(_Comp_V1_Vehicle_Drivetrain="BEV",Reg_BEV_Const_Ex+Reg_BEV_Age_Coef_Ex*(COLUMN(I75)-COLUMN($D75))+Reg_BEV_Agesq_Coef_Ex*((COLUMN(I75)-COLUMN($D75))^2)+Reg_BEV_MSRP_Coef_Ex*Comp_V1_Base_Price_Ex+Reg_BEV_Range_Coef_Ex*Constant_Comparison_Electric_Range+Reg_BEV_Mileage_Coef_Ex*Comp_V1_VMT_Modeled*(COLUMN(I75)-COLUMN($D75)),0),300),0), IF(COLUMN(I75)-COLUMN($D75)=1, 'Financial Model'!H77*0.77, 'Financial Model'!H77*0.85)) -> 0 | J77: =IF($H77-$I77=0,0,MAX((1-($H77-$I77)/$H77)*I77,300)) -> 0 | K77: 0 | L77: 0 | M77: 0 | N77: 0 | O77: 0 | P77: 0 | Q77: 0 | R77: 0 | S77: 0 | T77: 0 | U77: 0 | V77: 0 | W77: 0 | X77: 0 | Y77: 0 | Z77: =IF($H77-$I77=0,0,MAX((1-($H77-$I77)/$H77)*Y77,300)) -> 0 | AA77: 0 | AB77: 0 | AC77: 0
B78: Fair Market Value - PHEV | D78: =IF(_Comp_V1_Vehicle_Drivetrain="PHEV",Comp_V1_Base_Price_Ex,0) -> 0 | E78: =IF(_Comp_V1_Vehicle_Vehicle_Class=Const_Passenger_Light_Duty, IF(_Comp_V1_Vehicle_Drivetrain="PHEV",MAX(IF(_Comp_V1_Vehicle_Drivetrain="PHEV",Reg_PHEV_Const_Ex+Reg_PHEV_Age_Coef_Ex*(COLUMN(E75)-COLUMN($D75))+Reg_PHEV_Agesq_Coef_Ex*((COLUMN(E75)-COLUMN($D75))^2)+Reg_PHEV_MSRP_Coef_Ex*Comp_V1_Base_Price_Ex+Reg_PHEV_Range_Coef_Ex*Constant_Comparison_Electric_Range+Reg_PHEV_Mileage_Coef_Ex*Comp_V1_VMT_Modeled*(COLUMN(E75)-COLUMN($D75)),0),300),0),IF(COLUMN(E75)-COLUMN($D75)=1, 'Financial Model'!D78*0.77, 'Financial Model'!D78*0.85)) -> 0 | F78: =IF(_Comp_V1_Vehicle_Vehicle_Class=Const_Passenger_Light_Duty, IF(_Comp_V1_Vehicle_Drivetrain="PHEV",MAX(IF(_Comp_V1_Vehicle_Drivetrain="PHEV",Reg_PHEV_Const_Ex+Reg_PHEV_Age_Coef_Ex*(COLUMN(F75)-COLUMN($D75))+Reg_PHEV_Agesq_Coef_Ex*((COLUMN(F75)-COLUMN($D75))^2)+Reg_PHEV_MSRP_Coef_Ex*Comp_V1_Base_Price_Ex+Reg_PHEV_Range_Coef_Ex*Constant_Comparison_Electric_Range+Reg_PHEV_Mileage_Coef_Ex*Comp_V1_VMT_Modeled*(COLUMN(F75)-COLUMN($D75)),0),300),0),IF(COLUMN(F75)-COLUMN($D75)=1, 'Financial Model'!E78*0.77, 'Financial Model'!E78*0.85)) -> 0 | G78: =IF(_Comp_V1_Vehicle_Vehicle_Class=Const_Passenger_Light_Duty, IF(_Comp_V1_Vehicle_Drivetrain="PHEV",MAX(IF(_Comp_V1_Vehicle_Drivetrain="PHEV",Reg_PHEV_Const_Ex+Reg_PHEV_Age_Coef_Ex*(COLUMN(G75)-COLUMN($D75))+Reg_PHEV_Agesq_Coef_Ex*((COLUMN(G75)-COLUMN($D75))^2)+Reg_PHEV_MSRP_Coef_Ex*Comp_V1_Base_Price_Ex+Reg_PHEV_Range_Coef_Ex*Constant_Comparison_Electric_Range+Reg_PHEV_Mileage_Coef_Ex*Comp_V1_VMT_Modeled*(COLUMN(G75)-COLUMN($D75)),0),300),0),IF(COLUMN(G75)-COLUMN($D75)=1, 'Financial Model'!F78*0.77, 'Financial Model'!F78*0.85)) -> 0 | H78: =IF(_Comp_V1_Vehicle_Vehicle_Class=Const_Passenger_Light_Duty, IF(_Comp_V1_Vehicle_Drivetrain="PHEV",MAX(IF(_Comp_V1_Vehicle_Drivetrain="PHEV",Reg_PHEV_Const_Ex+Reg_PHEV_Age_Coef_Ex*(COLUMN(H75)-COLUMN($D75))+Reg_PHEV_Agesq_Coef_Ex*((COLUMN(H75)-COLUMN($D75))^2)+Reg_PHEV_MSRP_Coef_Ex*Comp_V1_Base_Price_Ex+Reg_PHEV_Range_Coef_Ex*Constant_Comparison_Electric_Range+Reg_PHEV_Mileage_Coef_Ex*Comp_V1_VMT_Modeled*(COLUMN(H75)-COLUMN($D75)),0),300),0),IF(COLUMN(H75)-COLUMN($D75)=1, 'Financial Model'!G78*0.77, 'Financial Model'!G78*0.85)) -> 0 | I78: =IF(_Comp_V1_Vehicle_Vehicle_Class=Const_Passenger_Light_Duty, IF(_Comp_V1_Vehicle_Drivetrain="PHEV",MAX(IF(_Comp_V1_Vehicle_Drivetrain="PHEV",Reg_PHEV_Const_Ex+Reg_PHEV_Age_Coef_Ex*(COLUMN(I75)-COLUMN($D75))+Reg_PHEV_Agesq_Coef_Ex*((COLUMN(I75)-COLUMN($D75))^2)+Reg_PHEV_MSRP_Coef_Ex*Comp_V1_Base_Price_Ex+Reg_PHEV_Range_Coef_Ex*Constant_Comparison_Electric_Range+Reg_PHEV_Mileage_Coef_Ex*Comp_V1_VMT_Modeled*(COLUMN(I75)-COLUMN($D75)),0),300),0),IF(COLUMN(I75)-COLUMN($D75)=1, 'Financial Model'!H78*0.77, 'Financial Model'!H78*0.85)) -> 0 | J78: 0 | K78: 0 | L78: 0 | M78: 0 | N78: 0 | O78: 0 | P78: 0 | Q78: 0 | R78: 0 | S78: 0 | T78: 0 | U78: 0 | V78: 0 | W78: 0 | X78: 0 | Y78: 0 | Z78: 0 | AA78: 0 | AB78: 0 | AC78: 0
B79: Fair Market Value - ICE | D79: =IF(_Comp_V1_Vehicle_Drivetrain="ICE",Comp_V1_Base_Price_Ex,0) -> 0 | E79: =IF(_Comp_V1_Vehicle_Vehicle_Class=Const_Passenger_Light_Duty, IF(_Comp_V1_Vehicle_Drivetrain="ICE",MAX(IF(_Comp_V1_Vehicle_Drivetrain="ICE",Reg_ICE_Const_Ex+Reg_ICE_Age_Coef_Ex*(COLUMN(E75)-COLUMN($D75))+Reg_ICE_Agesq_Coef_Ex*(COLUMN(E75)-COLUMN($D75))^2+Reg_ICE_MSRP_Coef_Ex*Comp_V1_Base_Price_Ex+Reg_ICE_MPG_Coef_Ex*Constant_Comparison_Fuel_Economy_Gas_City+Reg_ICE_Mileage_Coef_Ex*Comp_V1_VMT_Modeled*(COLUMN(E75)-COLUMN($D75)),0),300),0), IF(COLUMN(E75)-COLUMN($D75)=1, 'Financial Model'!D79*0.77, 'Financial Model'!D79*0.85)) -> 0 | F79: =IF(_Comp_V1_Vehicle_Vehicle_Class=Const_Passenger_Light_Duty, IF(_Comp_V1_Vehicle_Drivetrain="ICE",MAX(IF(_Comp_V1_Vehicle_Drivetrain="ICE",Reg_ICE_Const_Ex+Reg_ICE_Age_Coef_Ex*(COLUMN(F75)-COLUMN($D75))+Reg_ICE_Agesq_Coef_Ex*(COLUMN(F75)-COLUMN($D75))^2+Reg_ICE_MSRP_Coef_Ex*Comp_V1_Base_Price_Ex+Reg_ICE_MPG_Coef_Ex*Constant_Comparison_Fuel_Economy_Gas_City+Reg_ICE_Mileage_Coef_Ex*Comp_V1_VMT_Modeled*(COLUMN(F75)-COLUMN($D75)),0),300),0), IF(COLUMN(F75)-COLUMN($D75)=1, 'Financial Model'!E79*0.77, 'Financial Model'!E79*0.85)) -> 0 | G79: =IF(_Comp_V1_Vehicle_Vehicle_Class=Const_Passenger_Light_Duty, IF(_Comp_V1_Vehicle_Drivetrain="ICE",MAX(IF(_Comp_V1_Vehicle_Drivetrain="ICE",Reg_ICE_Const_Ex+Reg_ICE_Age_Coef_Ex*(COLUMN(G75)-COLUMN($D75))+Reg_ICE_Agesq_Coef_Ex*(COLUMN(G75)-COLUMN($D75))^2+Reg_ICE_MSRP_Coef_Ex*Comp_V1_Base_Price_Ex+Reg_ICE_MPG_Coef_Ex*Constant_Comparison_Fuel_Economy_Gas_City+Reg_ICE_Mileage_Coef_Ex*Comp_V1_VMT_Modeled*(COLUMN(G75)-COLUMN($D75)),0),300),0), IF(COLUMN(G75)-COLUMN($D75)=1, 'Financial Model'!F79*0.77, 'Financial Model'!F79*0.85)) -> 0 | H79: =IF(_Comp_V1_Vehicle_Vehicle_Class=Const_Passenger_Light_Duty, IF(_Comp_V1_Vehicle_Drivetrain="ICE",MAX(IF(_Comp_V1_Vehicle_Drivetrain="ICE",Reg_ICE_Const_Ex+Reg_ICE_Age_Coef_Ex*(COLUMN(H75)-COLUMN($D75))+Reg_ICE_Agesq_Coef_Ex*(COLUMN(H75)-COLUMN($D75))^2+Reg_ICE_MSRP_Coef_Ex*Comp_V1_Base_Price_Ex+Reg_ICE_MPG_Coef_Ex*Constant_Comparison_Fuel_Economy_Gas_City+Reg_ICE_Mileage_Coef_Ex*Comp_V1_VMT_Modeled*(COLUMN(H75)-COLUMN($D75)),0),300),0), IF(COLUMN(H75)-COLUMN($D75)=1, 'Financial Model'!G79*0.77, 'Financial Model'!G79*0.85)) -> 0 | I79: =IF(_Comp_V1_Vehicle_Vehicle_Class=Const_Passenger_Light_Duty, IF(_Comp_V1_Vehicle_Drivetrain="ICE",MAX(IF(_Comp_V1_Vehicle_Drivetrain="ICE",Reg_ICE_Const_Ex+Reg_ICE_Age_Coef_Ex*(COLUMN(I75)-COLUMN($D75))+Reg_ICE_Agesq_Coef_Ex*(COLUMN(I75)-COLUMN($D75))^2+Reg_ICE_MSRP_Coef_Ex*Comp_V1_Base_Price_Ex+Reg_ICE_MPG_Coef_Ex*Constant_Comparison_Fuel_Economy_Gas_City+Reg_ICE_Mileage_Coef_Ex*Comp_V1_VMT_Modeled*(COLUMN(I75)-COLUMN($D75)),0),300),0), IF(COLUMN(I75)-COLUMN($D75)=1, 'Financial Model'!H79*0.77, 'Financial Model'!H79*0.85)) -> 0 | J79: 0 | K79: 0 | L79: 0 | M79: 0 | N79: 0 | O79: 0 | P79: 0 | Q79: 0 | R79: 0 | S79: 0 | T79: 0 | U79: 0 | V79: 0 | W79: 0 | X79: 0 | Y79: 0 | Z79: 0 | AA79: 0 | AB79: 0 | AC79: 0
B81: Capital and Financing Costs
B82: Cash
B83: Cash Payment | D83: =IF(AND(Comp_V1_Has_Cash_Purchase_Ex=TRUE,Comp_V1_Has_Loan_Ex=FALSE,Comp_V1_Has_Lease_Ex=FALSE,COLUMN(D75)-COLUMN($D75)=0),-(Comp_V1_Base_Price_Ex-IF(Comp_V1_Tax_Incentives_Monetized="Yes",Comp_V1_Federal_Tax_Incentives_Modeled+IF(Comp_V1_State_Tax_Incentive_Cap_Modeled=0,Comp_V1_State_Tax_Incentives_Modeled,MIN(Comp_V1_State_Tax_Incentive_Cap_Modeled,Comp_V1_State_Tax_Incentives_Modeled*Comp_V1_Num_Vehicles_Modeled)/Comp_V1_Num_Vehicles_Modeled),0)-Comp_V1_Other_Incentives_Modeled),IF(AND(Comp_V1_Has_Cash_Purchase_Ex=TRUE,OR(Comp_V1_Has_Loan_Ex=TRUE,Comp_V1_Has_Lease_Ex=TRUE),COLUMN(D75)-COLUMN($D75)=Comp_V1_Lease_Term_Modeled),IF(ISERROR(FIND("Tax",_Comp_V1_Ownership_Structure,1)),-SUM(D77:D79),-Comp_V1_Lease_Residual_Price_Modeled),0)) -> 0 | E83: 0 | F83: 0 | G83: 0 | H83: 0 | I83: 0 | J83: 0 | K83: 0 | L83: 0 | M83: 0 | N83: 0 | O83: 0 | P83: 0 | Q83: 0 | R83: 0 | S83: 0 | T83: 0 | U83: 0 | V83: 0 | W83: 0 | X83: 0 | Y83: 0 | Z83: 0 | AA83: 0 | AB83: 0 | AC83: 0
B84: Lease
B85: Down Payment | D85: =IF(Comp_V1_Has_Lease_Ex=TRUE,-Comp_V1_Down_Payment_Modeled,0) -> 0
B86: Acquisition Fee | D86: =IF(Comp_V1_Has_Lease_Ex=TRUE,-Comp_V1_Lease_Acquisition_Fee_Modeled,0) -> 0
B87: Disposition Charge | D87: =IF(AND(Comp_V1_Has_Lease_Ex=TRUE,((COLUMN(D75)-COLUMN($D75))=Comp_V1_Lease_Term_Modeled)),-Comp_V1_Lease_Disposition_Fee_Modeled,0) -> 0 | E87: 0 | F87: 0 | G87: 0 | H87: 0 | I87: 0 | J87: 0 | K87: 0 | L87: 0 | M87: 0 | N87: 0 | O87: 0 | P87: 0 | Q87: 0 | R87: 0 | S87: 0 | T87: 0 | U87: 0 | V87: 0 | W87: 0 | X87: 0 | Y87: 0 | Z87: 0 | AA87: 0 | AB87: 0 | AC87: 0
B88: Lease Payments | E88: =IF(Comp_V1_Has_Lease_Ex=TRUE,IF((COLUMN(E75)-COLUMN($E75))<Comp_V1_Lease_Term_Modeled,-PMT(Comp_V1_Lease_APR_Modeled/12,Comp_V1_Lease_Term_Modeled*12,-(Comp_V1_Base_Price_Ex-IF(Comp_V1_Tax_Incentives_Monetized="Yes",Comp_V1_Federal_Tax_Incentives_Modeled+IF(Comp_V1_State_Tax_Incentive_Cap_Modeled=0,Comp_V1_State_Tax_Incentives_Modeled,MIN(Comp_V1_State_Tax_Incentive_Cap_Modeled,Comp_V1_State_Tax_Incentives_Modeled*Comp_V1_Num_Vehicles_Modeled)/Comp_V1_Num_Vehicles_Modeled),0)-Comp_V1_Other_Incentives_Modeled-Comp_V1_Down_Payment_Modeled)+Comp_V1_Lease_Residual_Price_Modeled,0)*12,0),0) -> 0 | F88: 0 | G88: 0 | H88: 0 | I88: 0 | J88: 0 | K88: 0 | L88: 0 | M88: 0 | N88: 0 | O88: 0 | P88: 0 | Q88: 0 | R88: 0 | S88: 0 | T88: 0 | U88: 0 | V88: 0 | W88: 0 | X88: 0 | Y88: 0 | Z88: 0 | AA88: 0 | AB88: 0 | AC88: 0
B89: Principal Payments | E89: =IF(Comp_V1_Has_Lease_Ex=TRUE,IF((COLUMN(E75)-COLUMN($E75))<Comp_V1_Lease_Term_Modeled,-PPMT(Comp_V1_Lease_APR_Modeled/12,(COLUMN(E75)-COLUMN($D75))*12,Comp_V1_Lease_Term_Modeled*12,-(Comp_V1_Base_Price_Ex-IF(Comp_V1_Tax_Incentives_Monetized="Yes",Comp_V1_Federal_Tax_Incentives_Modeled+IF(Comp_V1_State_Tax_Incentive_Cap_Modeled=0,Comp_V1_State_Tax_Incentives_Modeled,MIN(Comp_V1_State_Tax_Incentive_Cap_Modeled,Comp_V1_State_Tax_Incentives_Modeled*Comp_V1_Num_Vehicles_Modeled)/Comp_V1_Num_Vehicles_Modeled),0)-Comp_V1_Other_Incentives_Modeled-Comp_V1_Down_Payment_Modeled)+Comp_V1_Lease_Residual_Price_Modeled,0)*12,0),0) -> 0 | F89: 0 | G89: 0 | H89: 0 | I89: 0 | J89: 0 | K89: 0 | L89: 0 | M89: 0 | N89: 0 | O89: 0 | P89: 0 | Q89: 0 | R89: 0 | S89: 0 | T89: 0 | U89: 0 | V89: 0 | W89: 0 | X89: 0 | Y89: 0 | Z89: 0 | AA89: 0 | AB89: 0 | AC89: 0
B90: Interest Payments | E90: =IF(Comp_V1_Has_Lease_Ex=TRUE,IF((COLUMN(E75)-COLUMN($E75))<Comp_V1_Lease_Term_Modeled,-IPMT(Comp_V1_Lease_APR_Modeled/12,(COLUMN(E75)-COLUMN($D75))*12,Comp_V1_Lease_Term_Modeled*12,-(Comp_V1_Base_Price_Ex-IF(Comp_V1_Tax_Incentives_Monetized="Yes",Comp_V1_Federal_Tax_Incentives_Modeled+IF(Comp_V1_State_Tax_Incentive_Cap_Modeled=0,Comp_V1_State_Tax_Incentives_Modeled,MIN(Comp_V1_State_Tax_Incentive_Cap_Modeled,Comp_V1_State_Tax_Incentives_Modeled*Comp_V1_Num_Vehicles_Modeled)/Comp_V1_Num_Vehicles_Modeled),0)-Comp_V1_Other_Incentives_Modeled-Comp_V1_Down_Payment_Modeled)+Comp_V1_Lease_Residual_Price_Modeled,0)*12,0),0) -> 0 | F90: 0 | G90: 0 | H90: 0 | I90: 0 | J90: 0 | K90: 0 | L90: 0 | M90: 0 | N90: 0 | O90: 0 | P90: 0 | Q90: 0 | R90: 0 | S90: 0 | T90: 0 | U90: 0 | V90: 0 | W90: 0 | X90: 0 | Y90: 0 | Z90: 0 | AA90: 0 | AB90: 0 | AC90: 0
B91: TRAC Value Adjustment | E91: =IF(ISERROR(FIND("TRAC",_Comp_V1_Ownership_Structure,1)),0,IF(Comp_V1_Has_Loan_Ex=TRUE,0,IF((COLUMN(E75)-COLUMN($D75))=Comp_V1_Lease_Term_Modeled,SUM(E77:E79)-Comp_V1_Lease_Residual_Price_Modeled,0))) -> 0 | F91: 0 | G91: 0 | H91: 0 | I91: 0 | J91: 0 | K91: 0 | L91: 0 | M91: 0 | N91: 0 | O91: 0 | P91: 0 | Q91: 0 | R91: 0 | S91: 0 | T91: 0 | U91: 0 | V91: 0 | W91: 0 | X91: 0 | Y91: 0 | Z91: 0 | AA91: 0 | AB91: 0 | AC91: 0
B92: FMV Mileage Adjustment | E92: =MIN(0,MAX(-Comp_V1_Lease_Residual_Price_Modeled+SUM(E77:E79),IF(IFERROR(IF(FIND("FMV",_Comp_V1_Ownership_Structure,1)>0,TRUE,FALSE),FALSE),IF((COLUMN(E75)-COLUMN($D75))=Comp_V1_Lease_Term_Modeled,(Comp_V1_Lease_Mileage_Inc_Modeled-Comp_V1_VMT_Modeled)*(COLUMN(E75)-COLUMN($D75))*Comp_V1_Lease_Mileage_Cost_Modeled,0),0))) -> 0 | F92: 0 | G92: 0 | H92: 0 | I92: 0 | J92: 0 | K92: 0 | L92: 0 | M92: 0 | N92: 0 | O92: 0 | P92: 0 | Q92: 0 | R92: 0 | S92: 0 | T92: 0 | U92: 0 | V92: 0 | W92: 0 | X92: 0 | Y92: 0 | Z92: 0 | AA92: 0 | AB92: 0 | AC92: 0
B93: Subtotal Lease Cash Flows | D93: =SUM(D85:D88)+SUM(D91:D92) -> 0 | E93: =SUM(E85:E88)+SUM(E91:E92) -> 0 | F93: 0 | G93: 0 | H93: 0 | I93: 0 | J93: 0 | K93: 0 | L93: 0 | M93: 0 | N93: 0 | O93: 0 | P93: 0 | Q93: 0 | R93: 0 | S93: 0 | T93: 0 | U93: 0 | V93: 0 | W93: 0 | X93: 0 | Y93: 0 | Z93: 0 | AA93: 0 | AB93: 0 | AC93: 0
B94: Loan
B95: Down Payment | D95: =IF(AND(Comp_V1_Has_Loan_Ex=TRUE,Comp_V1_Has_Lease_Ex=FALSE),-Comp_V1_Down_Payment_Modeled,0) -> 0
B96: Loan Payments | E96: =IF(Comp_V1_Has_Loan_Ex=TRUE,IF(AND((COLUMN(E75)-COLUMN($E75))<Comp_V1_Loan_Term_Modeled+Comp_V1_Lease_Term_Modeled,(COLUMN(E75)-COLUMN($E75))>=Comp_V1_Lease_Term_Modeled),PMT(Comp_V1_Loan_APR_Modeled,Comp_V1_Loan_Term_Modeled,IF(Comp_V1_Has_Lease_Ex=TRUE,SUM(OFFSET($D77,0,Comp_V1_Lease_Term_Modeled,3,1)),Comp_V1_Base_Price_Ex-IF(Comp_V1_Tax_Incentives_Monetized="Yes",Comp_V1_Federal_Tax_Incentives_Modeled+IF(Comp_V1_State_Tax_Incentive_Cap_Modeled=0,Comp_V1_State_Tax_Incentives_Modeled,MIN(Comp_V1_State_Tax_Incentive_Cap_Modeled,Comp_V1_State_Tax_Incentives_Modeled*Comp_V1_Num_Vehicles_Modeled)/Comp_V1_Num_Vehicles_Modeled),0)-Comp_V1_Other_Incentives_Modeled-Comp_V1_Down_Payment_Modeled),0),0),0) -> 0 | F96: 0 | G96: 0 | H96: 0 | I96: 0 | J96: 0 | K96: 0 | L96: 0 | M96: 0 | N96: 0 | O96: 0 | P96: 0 | Q96: 0 | R96: 0 | S96: 0 | T96: 0 | U96: 0 | V96: 0 | W96: 0 | X96: 0 | Y96: 0 | Z96: 0 | AA96: 0 | AB96: 0 | AC96: 0
B97: Principal Payments | E97: =IF(Comp_V1_Has_Loan_Ex=TRUE,IF(AND((COLUMN(E75)-COLUMN($E75))<Comp_V1_Loan_Term_Modeled+Comp_V1_Lease_Term_Modeled,(COLUMN(E75)-COLUMN($E75))>=Comp_V1_Lease_Term_Modeled),PPMT(Comp_V1_Loan_APR_Modeled,IF(Comp_V1_Has_Lease_Ex=TRUE,(COLUMN(E75)-COLUMN($D75)-Comp_V1_Lease_Term_Modeled),(COLUMN(E75)-COLUMN($D75))),Comp_V1_Loan_Term_Modeled,IF(Comp_V1_Has_Lease_Ex=TRUE,SUM(OFFSET($D77,0,Comp_V1_Lease_Term_Modeled,3,1)),Comp_V1_Base_Price_Ex-IF(Comp_V1_Tax_Incentives_Monetized="Yes",Comp_V1_Federal_Tax_Incentives_Modeled+IF(Comp_V1_State_Tax_Incentive_Cap_Modeled=0,Comp_V1_State_Tax_Incentives_Modeled,MIN(Comp_V1_State_Tax_Incentive_Cap_Modeled,Comp_V1_State_Tax_Incentives_Modeled*Comp_V1_Num_Vehicles_Modeled)/Comp_V1_Num_Vehicles_Modeled),0)-Comp_V1_Other_Incentives_Modeled-Comp_V1_Down_Payment_Modeled),0),0),0) -> 0 | F97: 0 | G97: 0 | H97: 0 | I97: 0 | J97: 0 | K97: 0 | L97: 0 | M97: 0 | N97: 0 | O97: 0 | P97: 0 | Q97: 0 | R97: 0 | S97: 0 | T97: 0 | U97: 0 | V97: 0 | W97: 0 | X97: 0 | Y97: 0 | Z97: 0 | AA97: 0 | AB97: 0 | AC97: 0
B98: Interest Payments | E98: =IF(Comp_V1_Has_Loan_Ex=TRUE,IF(AND((COLUMN(E75)-COLUMN($E75))<Comp_V1_Loan_Term_Modeled+Comp_V1_Lease_Term_Modeled,(COLUMN(E75)-COLUMN($E75))>=Comp_V1_Lease_Term_Modeled),IPMT(Comp_V1_Loan_APR_Modeled,IF(Comp_V1_Has_Lease_Ex=TRUE,(COLUMN(E75)-COLUMN($D75)-Comp_V1_Lease_Term),(COLUMN(E75)-COLUMN($D75))),Comp_V1_Loan_Term_Modeled,IF(Comp_V1_Has_Lease_Ex=TRUE,SUM(OFFSET($D77,0,Comp_V1_Lease_Term_Modeled,3,1)),Comp_V1_Base_Price_Ex-IF(Comp_V1_Tax_Incentives_Monetized="Yes",Comp_V1_Federal_Tax_Incentives_Modeled+IF(Comp_V1_State_Tax_Incentive_Cap_Modeled=0,Comp_V1_State_Tax_Incentives_Modeled,MIN(Comp_V1_State_Tax_Incentive_Cap_Modeled,Comp_V1_State_Tax_Incentives_Modeled*Comp_V1_Num_Vehicles_Modeled)/Comp_V1_Num_Vehicles_Modeled),0)-Comp_V1_Other_Incentives_Modeled-Comp_V1_Down_Payment_Modeled),0),0),0) -> 0 | F98: 0 | G98: 0 | H98: 0 | I98: 0 | J98: 0 | K98: 0 | L98: 0 | M98: 0 | N98: 0 | O98: 0 | P98: 0 | Q98: 0 | R98: 0 | S98: 0 | T98: 0 | U98: 0 | V98: 0 | W98: 0 | X98: 0 | Y98: 0 | Z98: 0 | AA98: 0 | AB98: 0 | AC98: 0
B99: Subtotal Loan Cash Flows | D99: =SUM(D95:D96) -> 0 | E99: =SUM(E95:E96) -> 0 | F99: 0 | G99: 0 | H99: 0 | I99: 0 | J99: 0 | K99: 0 | L99: 0 | M99: 0 | N99: 0 | O99: 0 | P99: 0 | Q99: 0 | R99: 0 | S99: 0 | T99: 0 | U99: 0 | V99: 0 | W99: 0 | X99: 0 | Y99: 0 | Z99: 0 | AA99: 0 | AB99: 0 | AC99: 0
B100: Terminal Value | E100: =IF(OR(Comp_V1_Has_Loan_Ex=TRUE,Comp_V1_Has_Cash_Purchase_Ex=TRUE),IF((COLUMN(E75)-COLUMN($D75))=Comp_V1_Years_Usage_Modeled,SUM(E77:E79),0),0) -> 0 | F100: 0 | G100: 0 | H100: 0 | I100: 0 | J100: 0 | K100: 0 | L100: 0 | M100: 0 | N100: 0 | O100: 0 | P100: 0 | Q100: 0 | R100: 0 | S100: 0 | T100: 0 | U100: 0 | V100: 0 | W100: 0 | X100: 0 | Y100: 0 | Z100: 0 | AA100: 0 | AB100: 0 | AC100: 0
B102: Total Capital and Financing Costs | D102: =D83+D93+D99+D100 -> 0 | E102: 0 | F102: 0 | G102: 0 | H102: 0 | I102: 0 | J102: 0 | K102: 0 | L102: 0 | M102: 0 | N102: 0 | O102: 0 | P102: 0 | Q102: 0 | R102: 0 | S102: 0 | T102: 0 | U102: 0 | V102: 0 | W102: 0 | X102: 0 | Y102: 0 | Z102: 0 | AA102: 0 | AB102: 0 | AC102: 0
B104: Fuel and Operating Costs
B105: Fuel Cost | E105: =IF(COLUMN(E75)-COLUMN($E75)<Comp_V1_Years_Usage_Modeled,-((Comp_V1_Gas_Usage_Ex*IF(Comp_V1_Fuel_Type_Ex="Diesel", Diesel_Price_Modeled, Gasoline_Price_Modeled)*IF(_Market="U.S.", 'Data - Energy Inflation'!D$4, 'Data - Energy Inflation'!D$7))+(Comp_V1_Electricity_Usage_Ex*IF(_Market="U.S.", 'Data - Energy Inflation'!D$6, 'Data - Energy Inflation'!D$8))*(Comp_Percent_Home_Charging_Modeled*Electricity_Price_Modeled+Comp_Percent_Public_Charging_Modeled*Public_Charging_Price_Modeled+Comp_Percent_En_Route_Charging_Modeled*En_Route_Charging_Price_Modeled)),0) -> 0 | F105: =IF(COLUMN(F75)-COLUMN($E75)<Comp_V1_Years_Usage_Modeled,-((Comp_V1_Gas_Usage_Ex*IF(Comp_V1_Fuel_Type_Ex="Diesel", Diesel_Price_Modeled, Gasoline_Price_Modeled)*IF(_Market="U.S.", 'Data - Energy Inflation'!E$4, 'Data - Energy Inflation'!E$7))+(Comp_V1_Electricity_Usage_Ex*IF(_Market="U.S.", 'Data - Energy Inflation'!E$6, 'Data - Energy Inflation'!E$8))*(Comp_Percent_Home_Charging_Modeled*Electricity_Price_Modeled+Comp_Percent_Public_Charging_Modeled*Public_Charging_Price_Modeled+Comp_Percent_En_Route_Charging_Modeled*En_Route_Charging_Price_Modeled)),0) -> 0 | G105: =IF(COLUMN(G75)-COLUMN($E75)<Comp_V1_Years_Usage_Modeled,-((Comp_V1_Gas_Usage_Ex*IF(Comp_V1_Fuel_Type_Ex="Diesel", Diesel_Price_Modeled, Gasoline_Price_Modeled)*IF(_Market="U.S.", 'Data - Energy Inflation'!F$4, 'Data - Energy Inflation'!F$7))+(Comp_V1_Electricity_Usage_Ex*IF(_Market="U.S.", 'Data - Energy Inflation'!F$6, 'Data - Energy Inflation'!F$8))*(Comp_Percent_Home_Charging_Modeled*Electricity_Price_Modeled+Comp_Percent_Public_Charging_Modeled*Public_Charging_Price_Modeled+Comp_Percent_En_Route_Charging_Modeled*En_Route_Charging_Price_Modeled)),0) -> 0 | H105: =IF(COLUMN(H75)-COLUMN($E75)<Comp_V1_Years_Usage_Modeled,-((Comp_V1_Gas_Usage_Ex*IF(Comp_V1_Fuel_Type_Ex="Diesel", Diesel_Price_Modeled, Gasoline_Price_Modeled)*IF(_Market="U.S.", 'Data - Energy Inflation'!G$4, 'Data - Energy Inflation'!G$7))+(Comp_V1_Electricity_Usage_Ex*IF(_Market="U.S.", 'Data - Energy Inflation'!G$6, 'Data - Energy Inflation'!G$8))*(Comp_Percent_Home_Charging_Modeled*Electricity_Price_Modeled+Comp_Percent_Public_Charging_Modeled*Public_Charging_Price_Modeled+Comp_Percent_En_Route_Charging_Modeled*En_Route_Charging_Price_Modeled)),0) -> 0 | I105: =IF(COLUMN(I75)-COLUMN($E75)<Comp_V1_Years_Usage_Modeled,-((Comp_V1_Gas_Usage_Ex*IF(Comp_V1_Fuel_Type_Ex="Diesel", Diesel_Price_Modeled, Gasoline_Price_Modeled)*IF(_Market="U.S.", 'Data - Energy Inflation'!H$4, 'Data - Energy Inflation'!H$7))+(Comp_V1_Electricity_Usage_Ex*IF(_Market="U.S.", 'Data - Energy Inflation'!H$6, 'Data - Energy Inflation'!H$8))*(Comp_Percent_Home_Charging_Modeled*Electricity_Price_Modeled+Comp_Percent_Public_Charging_Modeled*Public_Charging_Price_Modeled+Comp_Percent_En_Route_Charging_Modeled*En_Route_Charging_Price_Modeled)),0) -> 0 | J105: =IF(COLUMN(J75)-COLUMN($E75)<Comp_V1_Years_Usage_Modeled,-((Comp_V1_Gas_Usage_Ex*IF(Comp_V1_Fuel_Type_Ex="Diesel", Diesel_Price_Modeled, Gasoline_Price_Modeled)*IF(_Market="U.S.", 'Data - Energy Inflation'!I$4, 'Data - Energy Inflation'!I$7))+(Comp_V1_Electricity_Usage_Ex*IF(_Market="U.S.", 'Data - Energy Inflation'!I$6, 'Data - Energy Inflation'!I$8))*(Comp_Percent_Home_Charging_Modeled*Electricity_Price_Modeled+Comp_Percent_Public_Charging_Modeled*Public_Charging_Price_Modeled+Comp_Percent_En_Route_Charging_Modeled*En_Route_Charging_Price_Modeled)),0) -> 0 | K105: =IF(COLUMN(K75)-COLUMN($E75)<Comp_V1_Years_Usage_Modeled,-((Comp_V1_Gas_Usage_Ex*IF(Comp_V1_Fuel_Type_Ex="Diesel", Diesel_Price_Modeled, Gasoline_Price_Modeled)*IF(_Market="U.S.", 'Data - Energy Inflation'!J$4, 'Data - Energy Inflation'!J$7))+(Comp_V1_Electricity_Usage_Ex*IF(_Market="U.S.", 'Data - Energy Inflation'!J$6, 'Data - Energy Inflation'!J$8))*(Comp_Percent_Home_Charging_Modeled*Electricity_Price_Modeled+Comp_Percent_Public_Charging_Modeled*Public_Charging_Price_Modeled+Comp_Percent_En_Route_Charging_Modeled*En_Route_Charging_Price_Modeled)),0) -> 0 | L105: =IF(COLUMN(L75)-COLUMN($E75)<Comp_V1_Years_Usage_Modeled,-((Comp_V1_Gas_Usage_Ex*IF(Comp_V1_Fuel_Type_Ex="Diesel", Diesel_Price_Modeled, Gasoline_Price_Modeled)*IF(_Market="U.S.", 'Data - Energy Inflation'!K$4, 'Data - Energy Inflation'!K$7))+(Comp_V1_Electricity_Usage_Ex*IF(_Market="U.S.", 'Data - Energy Inflation'!K$6, 'Data - Energy Inflation'!K$8))*(Comp_Percent_Home_Charging_Modeled*Electricity_Price_Modeled+Comp_Percent_Public_Charging_Modeled*Public_Charging_Price_Modeled+Comp_Percent_En_Route_Charging_Modeled*En_Route_Charging_Price_Modeled)),0) -> 0 | M105: =IF(COLUMN(M75)-COLUMN($E75)<Comp_V1_Years_Usage_Modeled,-((Comp_V1_Gas_Usage_Ex*IF(Comp_V1_Fuel_Type_Ex="Diesel", Diesel_Price_Modeled, Gasoline_Price_Modeled)*IF(_Market="U.S.", 'Data - Energy Inflation'!L$4, 'Data - Energy Inflation'!L$7))+(Comp_V1_Electricity_Usage_Ex*IF(_Market="U.S.", 'Data - Energy Inflation'!L$6, 'Data - Energy Inflation'!L$8))*(Comp_Percent_Home_Charging_Modeled*Electricity_Price_Modeled+Comp_Percent_Public_Charging_Modeled*Public_Charging_Price_Modeled+Comp_Percent_En_Route_Charging_Modeled*En_Route_Charging_Price_Modeled)),0) -> 0 | N105: =IF(COLUMN(N75)-COLUMN($E75)<Comp_V1_Years_Usage_Modeled,-((Comp_V1_Gas_Usage_Ex*IF(Comp_V1_Fuel_Type_Ex="Diesel", Diesel_Price_Modeled, Gasoline_Price_Modeled)*IF(_Market="U.S.", 'Data - Energy Inflation'!M$4, 'Data - Energy Inflation'!M$7))+(Comp_V1_Electricity_Usage_Ex*IF(_Market="U.S.", 'Data - Energy Inflation'!M$6, 'Data - Energy Inflation'!M$8))*(Comp_Percent_Home_Charging_Modeled*Electricity_Price_Modeled+Comp_Percent_Public_Charging_Modeled*Public_Charging_Price_Modeled+Comp_Percent_En_Route_Charging_Modeled*En_Route_Charging_Price_Modeled)),0) -> 0 | O105: =IF(COLUMN(O75)-COLUMN($E75)<Comp_V1_Years_Usage_Modeled,-((Comp_V1_Gas_Usage_Ex*IF(Comp_V1_Fuel_Type_Ex="Diesel", Diesel_Price_Modeled, Gasoline_Price_Modeled)*IF(_Market="U.S.", 'Data - Energy Inflation'!N$4, 'Data - Energy Inflation'!N$7))+(Comp_V1_Electricity_Usage_Ex*IF(_Market="U.S.", 'Data - Energy Inflation'!N$6, 'Data - Energy Inflation'!N$8))*(Comp_Percent_Home_Charging_Modeled*Electricity_Price_Modeled+Comp_Percent_Public_Charging_Modeled*Public_Charging_Price_Modeled+Comp_Percent_En_Route_Charging_Modeled*En_Route_Charging_Price_Modeled)),0) -> 0 | P105: =IF(COLUMN(P75)-COLUMN($E75)<Comp_V1_Years_Usage_Modeled,-((Comp_V1_Gas_Usage_Ex*IF(Comp_V1_Fuel_Type_Ex="Diesel", Diesel_Price_Modeled, Gasoline_Price_Modeled)*IF(_Market="U.S.", 'Data - Energy Inflation'!O$4, 'Data - Energy Inflation'!O$7))+(Comp_V1_Electricity_Usage_Ex*IF(_Market="U.S.", 'Data - Energy Inflation'!O$6, 'Data - Energy Inflation'!O$8))*(Comp_Percent_Home_Charging_Modeled*Electricity_Price_Modeled+Comp_Percent_Public_Charging_Modeled*Public_Charging_Price_Modeled+Comp_Percent_En_Route_Charging_Modeled*En_Route_Charging_Price_Modeled)),0) -> 0 | Q105: =IF(COLUMN(Q75)-COLUMN($E75)<Comp_V1_Years_Usage_Modeled,-((Comp_V1_Gas_Usage_Ex*IF(Comp_V1_Fuel_Type_Ex="Diesel", Diesel_Price_Modeled, Gasoline_Price_Modeled)*IF(_Market="U.S.", 'Data - Energy Inflation'!P$4, 'Data - Energy Inflation'!P$7))+(Comp_V1_Electricity_Usage_Ex*IF(_Market="U.S.", 'Data - Energy Inflation'!P$6, 'Data - Energy Inflation'!P$8))*(Comp_Percent_Home_Charging_Modeled*Electricity_Price_Modeled+Comp_Percent_Public_Charging_Modeled*Public_Charging_Price_Modeled+Comp_Percent_En_Route_Charging_Modeled*En_Route_Charging_Price_Modeled)),0) -> 0 | R105: =IF(COLUMN(R75)-COLUMN($E75)<Comp_V1_Years_Usage_Modeled,-((Comp_V1_Gas_Usage_Ex*IF(Comp_V1_Fuel_Type_Ex="Diesel", Diesel_Price_Modeled, Gasoline_Price_Modeled)*IF(_Market="U.S.", 'Data - Energy Inflation'!Q$4, 'Data - Energy Inflation'!Q$7))+(Comp_V1_Electricity_Usage_Ex*IF(_Market="U.S.", 'Data - Energy Inflation'!Q$6, 'Data - Energy Inflation'!Q$8))*(Comp_Percent_Home_Charging_Modeled*Electricity_Price_Modeled+Comp_Percent_Public_Charging_Modeled*Public_Charging_Price_Modeled+Comp_Percent_En_Route_Charging_Modeled*En_Route_Charging_Price_Modeled)),0) -> 0 | S105: =IF(COLUMN(S75)-COLUMN($E75)<Comp_V1_Years_Usage_Modeled,-((Comp_V1_Gas_Usage_Ex*IF(Comp_V1_Fuel_Type_Ex="Diesel", Diesel_Price_Modeled, Gasoline_Price_Modeled)*IF(_Market="U.S.", 'Data - Energy Inflation'!R$4, 'Data - Energy Inflation'!R$7))+(Comp_V1_Electricity_Usage_Ex*IF(_Market="U.S.", 'Data - Energy Inflation'!R$6, 'Data - Energy Inflation'!R$8))*(Comp_Percent_Home_Charging_Modeled*Electricity_Price_Modeled+Comp_Percent_Public_Charging_Modeled*Public_Charging_Price_Modeled+Comp_Percent_En_Route_Charging_Modeled*En_Route_Charging_Price_Modeled)),0) -> 0 | T105: =IF(COLUMN(T75)-COLUMN($E75)<Comp_V1_Years_Usage_Modeled,-((Comp_V1_Gas_Usage_Ex*IF(Comp_V1_Fuel_Type_Ex="Diesel", Diesel_Price_Modeled, Gasoline_Price_Modeled)*IF(_Market="U.S.", 'Data - Energy Inflation'!S$4, 'Data - Energy Inflation'!S$7))+(Comp_V1_Electricity_Usage_Ex*IF(_Market="U.S.", 'Data - Energy Inflation'!S$6, 'Data - Energy Inflation'!S$8))*(Comp_Percent_Home_Charging_Modeled*Electricity_Price_Modeled+Comp_Percent_Public_Charging_Modeled*Public_Charging_Price_Modeled+Comp_Percent_En_Route_Charging_Modeled*En_Route_Charging_Price_Modeled)),0) -> 0 | U105: =IF(COLUMN(U75)-COLUMN($E75)<Comp_V1_Years_Usage_Modeled,-((Comp_V1_Gas_Usage_Ex*IF(Comp_V1_Fuel_Type_Ex="Diesel", Diesel_Price_Modeled, Gasoline_Price_Modeled)*IF(_Market="U.S.", 'Data - Energy Inflation'!T$4, 'Data - Energy Inflation'!T$7))+(Comp_V1_Electricity_Usage_Ex*IF(_Market="U.S.", 'Data - Energy Inflation'!T$6, 'Data - Energy Inflation'!T$8))*(Comp_Percent_Home_Charging_Modeled*Electricity_Price_Modeled+Comp_Percent_Public_Charging_Modeled*Public_Charging_Price_Modeled+Comp_Percent_En_Route_Charging_Modeled*En_Route_Charging_Price_Modeled)),0) -> 0 | V105: =IF(COLUMN(V75)-COLUMN($E75)<Comp_V1_Years_Usage_Modeled,-((Comp_V1_Gas_Usage_Ex*IF(Comp_V1_Fuel_Type_Ex="Diesel", Diesel_Price_Modeled, Gasoline_Price_Modeled)*IF(_Market="U.S.", 'Data - Energy Inflation'!U$4, 'Data - Energy Inflation'!U$7))+(Comp_V1_Electricity_Usage_Ex*IF(_Market="U.S.", 'Data - Energy Inflation'!U$6, 'Data - Energy Inflation'!U$8))*(Comp_Percent_Home_Charging_Modeled*Electricity_Price_Modeled+Comp_Percent_Public_Charging_Modeled*Public_Charging_Price_Modeled+Comp_Percent_En_Route_Charging_Modeled*En_Route_Charging_Price_Modeled)),0) -> 0 | W105: =IF(COLUMN(W75)-COLUMN($E75)<Comp_V1_Years_Usage_Modeled,-((Comp_V1_Gas_Usage_Ex*IF(Comp_V1_Fuel_Type_Ex="Diesel", Diesel_Price_Modeled, Gasoline_Price_Modeled)*IF(_Market="U.S.", 'Data - Energy Inflation'!V$4, 'Data - Energy Inflation'!V$7))+(Comp_V1_Electricity_Usage_Ex*IF(_Market="U.S.", 'Data - Energy Inflation'!V$6, 'Data - Energy Inflation'!V$8))*(Comp_Percent_Home_Charging_Modeled*Electricity_Price_Modeled+Comp_Percent_Public_Charging_Modeled*Public_Charging_Price_Modeled+Comp_Percent_En_Route_Charging_Modeled*En_Route_Charging_Price_Modeled)),0) -> 0 | X105: =IF(COLUMN(X75)-COLUMN($E75)<Comp_V1_Years_Usage_Modeled,-((Comp_V1_Gas_Usage_Ex*IF(Comp_V1_Fuel_Type_Ex="Diesel", Diesel_Price_Modeled, Gasoline_Price_Modeled)*IF(_Market="U.S.", 'Data - Energy Inflation'!W$4, 'Data - Energy Inflation'!W$7))+(Comp_V1_Electricity_Usage_Ex*IF(_Market="U.S.", 'Data - Energy Inflation'!W$6, 'Data - Energy Inflation'!W$8))*(Comp_Percent_Home_Charging_Modeled*Electricity_Price_Modeled+Comp_Percent_Public_Charging_Modeled*Public_Charging_Price_Modeled+Comp_Percent_En_Route_Charging_Modeled*En_Route_Charging_Price_Modeled)),0) -> 0 | Y105: =IF(COLUMN(Y75)-COLUMN($E75)<Comp_V1_Years_Usage_Modeled,-((Comp_V1_Gas_Usage_Ex*IF(Comp_V1_Fuel_Type_Ex="Diesel", Diesel_Price_Modeled, Gasoline_Price_Modeled)*IF(_Market="U.S.", 'Data - Energy Inflation'!X$4, 'Data - Energy Inflation'!X$7))+(Comp_V1_Electricity_Usage_Ex*IF(_Market="U.S.", 'Data - Energy Inflation'!X$6, 'Data - Energy Inflation'!X$8))*(Comp_Percent_Home_Charging_Modeled*Electricity_Price_Modeled+Comp_Percent_Public_Charging_Modeled*Public_Charging_Price_Modeled+Comp_Percent_En_Route_Charging_Modeled*En_Route_Charging_Price_Modeled)),0) -> 0 | Z105: =IF(COLUMN(Z75)-COLUMN($E75)<Comp_V1_Years_Usage_Modeled,-((Comp_V1_Gas_Usage_Ex*IF(Comp_V1_Fuel_Type_Ex="Diesel", Diesel_Price_Modeled, Gasoline_Price_Modeled)*IF(_Market="U.S.", 'Data - Energy Inflation'!Y$4, 'Data - Energy Inflation'!Y$7))+(Comp_V1_Electricity_Usage_Ex*IF(_Market="U.S.", 'Data - Energy Inflation'!Y$6, 'Data - Energy Inflation'!Y$8))*(Comp_Percent_Home_Charging_Modeled*Electricity_Price_Modeled+Comp_Percent_Public_Charging_Modeled*Public_Charging_Price_Modeled+Comp_Percent_En_Route_Charging_Modeled*En_Route_Charging_Price_Modeled)),0) -> 0 | AA105: =IF(COLUMN(AA75)-COLUMN($E75)<Comp_V1_Years_Usage_Modeled,-((Comp_V1_Gas_Usage_Ex*IF(Comp_V1_Fuel_Type_Ex="Diesel", Diesel_Price_Modeled, Gasoline_Price_Modeled)*IF(_Market="U.S.", 'Data - Energy Inflation'!Z$4, 'Data - Energy Inflation'!Z$7))+(Comp_V1_Electricity_Usage_Ex*IF(_Market="U.S.", 'Data - Energy Inflation'!Z$6, 'Data - Energy Inflation'!Z$8))*(Comp_Percent_Home_Charging_Modeled*Electricity_Price_Modeled+Comp_Percent_Public_Charging_Modeled*Public_Charging_Price_Modeled+Comp_Percent_En_Route_Charging_Modeled*En_Route_Charging_Price_Modeled)),0) -> 0 | AB105: =IF(COLUMN(AB75)-COLUMN($E75)<Comp_V1_Years_Usage_Modeled,-((Comp_V1_Gas_Usage_Ex*IF(Comp_V1_Fuel_Type_Ex="Diesel", Diesel_Price_Modeled, Gasoline_Price_Modeled)*IF(_Market="U.S.", 'Data - Energy Inflation'!AA$4, 'Data - Energy Inflation'!AA$7))+(Comp_V1_Electricity_Usage_Ex*IF(_Market="U.S.", 'Data - Energy Inflation'!AA$6, 'Data - Energy Inflation'!AA$8))*(Comp_Percent_Home_Charging_Modeled*Electricity_Price_Modeled+Comp_Percent_Public_Charging_Modeled*Public_Charging_Price_Modeled+Comp_Percent_En_Route_Charging_Modeled*En_Route_Charging_Price_Modeled)),0) -> 0 | AC105: =IF(COLUMN(AC75)-COLUMN($E75)<Comp_V1_Years_Usage_Modeled,-((Comp_V1_Gas_Usage_Ex*IF(Comp_V1_Fuel_Type_Ex="Diesel", Diesel_Price_Modeled, Gasoline_Price_Modeled)*IF(_Market="U.S.", 'Data - Energy Inflation'!AB$4, 'Data - Energy Inflation'!AB$7))+(Comp_V1_Electricity_Usage_Ex*IF(_Market="U.S.", 'Data - Energy Inflation'!AB$6, 'Data - Energy Inflation'!AB$8))*(Comp_Percent_Home_Charging_Modeled*Electricity_Price_Modeled+Comp_Percent_Public_Charging_Modeled*Public_Charging_Price_Modeled+Comp_Percent_En_Route_Charging_Modeled*En_Route_Charging_Price_Modeled)),0) -> 0
B106: Maintenance and Repair Cost | E106: =-IF(_Comp_V1_Maint_Repair_Cost_Use_Default="Yes",IF(COLUMN(E75)-COLUMN($E75)<Comp_V1_Years_Usage_Modeled,VLOOKUP(_Comp_V1_Vehicle_Vehicle_Class & _Comp_V1_Vehicle_Drivetrain & _Market,DB_Maint_Repair_Costs[],COLUMN(E75)-COLUMN($E75)+COLUMN(DB_Maint_Repair_Costs[[#Headers],[Year 1 ]]),FALSE)*Comp_V1_VMT_Modeled,0),IF(AND(COLUMN(E75)-COLUMN($E75)<Comp_V1_Years_Usage_Modeled,COLUMN(E75)-COLUMN($E75)<5),Comp_V1_Maint_Repair_Cost_Year_1_Modeled*Comp_V1_VMT_Modeled,IF(AND(COLUMN(E75)-COLUMN($E75)<Comp_V1_Years_Usage_Modeled,COLUMN(E75)-COLUMN($E75)>=5),Comp_V1_Maint_Repair_Cost_Year_5_Modeled*Comp_V1_VMT_Modeled,0)))*'Data General Inflation'!D$3 -> 0 | F106: =-IF(_Comp_V1_Maint_Repair_Cost_Use_Default="Yes",IF(COLUMN(F75)-COLUMN($E75)<Comp_V1_Years_Usage_Modeled,VLOOKUP(_Comp_V1_Vehicle_Vehicle_Class & _Comp_V1_Vehicle_Drivetrain & _Market,DB_Maint_Repair_Costs[],COLUMN(F75)-COLUMN($E75)+COLUMN(DB_Maint_Repair_Costs[[#Headers],[Year 1 ]]),FALSE)*Comp_V1_VMT_Modeled,0),IF(AND(COLUMN(F75)-COLUMN($E75)<Comp_V1_Years_Usage_Modeled,COLUMN(F75)-COLUMN($E75)<5),Comp_V1_Maint_Repair_Cost_Year_1_Modeled*Comp_V1_VMT_Modeled,IF(AND(COLUMN(F75)-COLUMN($E75)<Comp_V1_Years_Usage_Modeled,COLUMN(F75)-COLUMN($E75)>=5),Comp_V1_Maint_Repair_Cost_Year_5_Modeled*Comp_V1_VMT_Modeled,0)))*'Data General Inflation'!E$3 -> 0 | G106: =-IF(_Comp_V1_Maint_Repair_Cost_Use_Default="Yes",IF(COLUMN(G75)-COLUMN($E75)<Comp_V1_Years_Usage_Modeled,VLOOKUP(_Comp_V1_Vehicle_Vehicle_Class & _Comp_V1_Vehicle_Drivetrain & _Market,DB_Maint_Repair_Costs[],COLUMN(G75)-COLUMN($E75)+COLUMN(DB_Maint_Repair_Costs[[#Headers],[Year 1 ]]),FALSE)*Comp_V1_VMT_Modeled,0),IF(AND(COLUMN(G75)-COLUMN($E75)<Comp_V1_Years_Usage_Modeled,COLUMN(G75)-COLUMN($E75)<5),Comp_V1_Maint_Repair_Cost_Year_1_Modeled*Comp_V1_VMT_Modeled,IF(AND(COLUMN(G75)-COLUMN($E75)<Comp_V1_Years_Usage_Modeled,COLUMN(G75)-COLUMN($E75)>=5),Comp_V1_Maint_Repair_Cost_Year_5_Modeled*Comp_V1_VMT_Modeled,0)))*'Data General Inflation'!F$3 -> 0 | H106: =-IF(_Comp_V1_Maint_Repair_Cost_Use_Default="Yes",IF(COLUMN(H75)-COLUMN($E75)<Comp_V1_Years_Usage_Modeled,VLOOKUP(_Comp_V1_Vehicle_Vehicle_Class & _Comp_V1_Vehicle_Drivetrain & _Market,DB_Maint_Repair_Costs[],COLUMN(H75)-COLUMN($E75)+COLUMN(DB_Maint_Repair_Costs[[#Headers],[Year 1 ]]),FALSE)*Comp_V1_VMT_Modeled,0),IF(AND(COLUMN(H75)-COLUMN($E75)<Comp_V1_Years_Usage_Modeled,COLUMN(H75)-COLUMN($E75)<5),Comp_V1_Maint_Repair_Cost_Year_1_Modeled*Comp_V1_VMT_Modeled,IF(AND(COLUMN(H75)-COLUMN($E75)<Comp_V1_Years_Usage_Modeled,COLUMN(H75)-COLUMN($E75)>=5),Comp_V1_Maint_Repair_Cost_Year_5_Modeled*Comp_V1_VMT_Modeled,0)))*'Data General Inflation'!G$3 -> 0 | I106: =-IF(_Comp_V1_Maint_Repair_Cost_Use_Default="Yes",IF(COLUMN(I75)-COLUMN($E75)<Comp_V1_Years_Usage_Modeled,VLOOKUP(_Comp_V1_Vehicle_Vehicle_Class & _Comp_V1_Vehicle_Drivetrain & _Market,DB_Maint_Repair_Costs[],COLUMN(I75)-COLUMN($E75)+COLUMN(DB_Maint_Repair_Costs[[#Headers],[Year 1 ]]),FALSE)*Comp_V1_VMT_Modeled,0),IF(AND(COLUMN(I75)-COLUMN($E75)<Comp_V1_Years_Usage_Modeled,COLUMN(I75)-COLUMN($E75)<5),Comp_V1_Maint_Repair_Cost_Year_1_Modeled*Comp_V1_VMT_Modeled,IF(AND(COLUMN(I75)-COLUMN($E75)<Comp_V1_Years_Usage_Modeled,COLUMN(I75)-COLUMN($E75)>=5),Comp_V1_Maint_Repair_Cost_Year_5_Modeled*Comp_V1_VMT_Modeled,0)))*'Data General Inflation'!H$3 -> 0 | J106: =-IF(_Comp_V1_Maint_Repair_Cost_Use_Default="Yes",IF(COLUMN(J75)-COLUMN($E75)<Comp_V1_Years_Usage_Modeled,VLOOKUP(_Comp_V1_Vehicle_Vehicle_Class & _Comp_V1_Vehicle_Drivetrain & _Market,DB_Maint_Repair_Costs[],COLUMN(J75)-COLUMN($E75)+COLUMN(DB_Maint_Repair_Costs[[#Headers],[Year 1 ]]),FALSE)*Comp_V1_VMT_Modeled,0),IF(AND(COLUMN(J75)-COLUMN($E75)<Comp_V1_Years_Usage_Modeled,COLUMN(J75)-COLUMN($E75)<5),Comp_V1_Maint_Repair_Cost_Year_1_Modeled*Comp_V1_VMT_Modeled,IF(AND(COLUMN(J75)-COLUMN($E75)<Comp_V1_Years_Usage_Modeled,COLUMN(J75)-COLUMN($E75)>=5),Comp_V1_Maint_Repair_Cost_Year_5_Modeled*Comp_V1_VMT_Modeled,0)))*'Data General Inflation'!I$3 -> 0 | K106: =-IF(_Comp_V1_Maint_Repair_Cost_Use_Default="Yes",IF(COLUMN(K75)-COLUMN($E75)<Comp_V1_Years_Usage_Modeled,VLOOKUP(_Comp_V1_Vehicle_Vehicle_Class & _Comp_V1_Vehicle_Drivetrain & _Market,DB_Maint_Repair_Costs[],COLUMN(K75)-COLUMN($E75)+COLUMN(DB_Maint_Repair_Costs[[#Headers],[Year 1 ]]),FALSE)*Comp_V1_VMT_Modeled,0),IF(AND(COLUMN(K75)-COLUMN($E75)<Comp_V1_Years_Usage_Modeled,COLUMN(K75)-COLUMN($E75)<5),Comp_V1_Maint_Repair_Cost_Year_1_Modeled*Comp_V1_VMT_Modeled,IF(AND(COLUMN(K75)-COLUMN($E75)<Comp_V1_Years_Usage_Modeled,COLUMN(K75)-COLUMN($E75)>=5),Comp_V1_Maint_Repair_Cost_Year_5_Modeled*Comp_V1_VMT_Modeled,0)))*'Data General Inflation'!J$3 -> 0 | L106: =-IF(_Comp_V1_Maint_Repair_Cost_Use_Default="Yes",IF(COLUMN(L75)-COLUMN($E75)<Comp_V1_Years_Usage_Modeled,VLOOKUP(_Comp_V1_Vehicle_Vehicle_Class & _Comp_V1_Vehicle_Drivetrain & _Market,DB_Maint_Repair_Costs[],COLUMN(L75)-COLUMN($E75)+COLUMN(DB_Maint_Repair_Costs[[#Headers],[Year 1 ]]),FALSE)*Comp_V1_VMT_Modeled,0),IF(AND(COLUMN(L75)-COLUMN($E75)<Comp_V1_Years_Usage_Modeled,COLUMN(L75)-COLUMN($E75)<5),Comp_V1_Maint_Repair_Cost_Year_1_Modeled*Comp_V1_VMT_Modeled,IF(AND(COLUMN(L75)-COLUMN($E75)<Comp_V1_Years_Usage_Modeled,COLUMN(L75)-COLUMN($E75)>=5),Comp_V1_Maint_Repair_Cost_Year_5_Modeled*Comp_V1_VMT_Modeled,0)))*'Data General Inflation'!K$3 -> 0 | M106: =-IF(_Comp_V1_Maint_Repair_Cost_Use_Default="Yes",IF(COLUMN(M75)-COLUMN($E75)<Comp_V1_Years_Usage_Modeled,VLOOKUP(_Comp_V1_Vehicle_Vehicle_Class & _Comp_V1_Vehicle_Drivetrain & _Market,DB_Maint_Repair_Costs[],COLUMN(M75)-COLUMN($E75)+COLUMN(DB_Maint_Repair_Costs[[#Headers],[Year 1 ]]),FALSE)*Comp_V1_VMT_Modeled,0),IF(AND(COLUMN(M75)-COLUMN($E75)<Comp_V1_Years_Usage_Modeled,COLUMN(M75)-COLUMN($E75)<5),Comp_V1_Maint_Repair_Cost_Year_1_Modeled*Comp_V1_VMT_Modeled,IF(AND(COLUMN(M75)-COLUMN($E75)<Comp_V1_Years_Usage_Modeled,COLUMN(M75)-COLUMN($E75)>=5),Comp_V1_Maint_Repair_Cost_Year_5_Modeled*Comp_V1_VMT_Modeled,0)))*'Data General Inflation'!L$3 -> 0 | N106: =-IF(_Comp_V1_Maint_Repair_Cost_Use_Default="Yes",IF(COLUMN(N75)-COLUMN($E75)<Comp_V1_Years_Usage_Modeled,VLOOKUP(_Comp_V1_Vehicle_Vehicle_Class & _Comp_V1_Vehicle_Drivetrain & _Market,DB_Maint_Repair_Costs[],COLUMN(N75)-COLUMN($E75)+COLUMN(DB_Maint_Repair_Costs[[#Headers],[Year 1 ]]),FALSE)*Comp_V1_VMT_Modeled,0),IF(AND(COLUMN(N75)-COLUMN($E75)<Comp_V1_Years_Usage_Modeled,COLUMN(N75)-COLUMN($E75)<5),Comp_V1_Maint_Repair_Cost_Year_1_Modeled*Comp_V1_VMT_Modeled,IF(AND(COLUMN(N75)-COLUMN($E75)<Comp_V1_Years_Usage_Modeled,COLUMN(N75)-COLUMN($E75)>=5),Comp_V1_Maint_Repair_Cost_Year_5_Modeled*Comp_V1_VMT_Modeled,0)))*'Data General Inflation'!M$3 -> 0 | O106: =-IF(_Comp_V1_Maint_Repair_Cost_Use_Default="Yes",IF(COLUMN(O75)-COLUMN($E75)<Comp_V1_Years_Usage_Modeled,VLOOKUP(_Comp_V1_Vehicle_Vehicle_Class & _Comp_V1_Vehicle_Drivetrain & _Market,DB_Maint_Repair_Costs[],COLUMN(O75)-COLUMN($E75)+COLUMN(DB_Maint_Repair_Costs[[#Headers],[Year 1 ]]),FALSE)*Comp_V1_VMT_Modeled,0),IF(AND(COLUMN(O75)-COLUMN($E75)<Comp_V1_Years_Usage_Modeled,COLUMN(O75)-COLUMN($E75)<5),Comp_V1_Maint_Repair_Cost_Year_1_Modeled*Comp_V1_VMT_Modeled,IF(AND(COLUMN(O75)-COLUMN($E75)<Comp_V1_Years_Usage_Modeled,COLUMN(O75)-COLUMN($E75)>=5),Comp_V1_Maint_Repair_Cost_Year_5_Modeled*Comp_V1_VMT_Modeled,0)))*'Data General Inflation'!N$3 -> 0 | P106: =-IF(_Comp_V1_Maint_Repair_Cost_Use_Default="Yes",IF(COLUMN(P75)-COLUMN($E75)<Comp_V1_Years_Usage_Modeled,VLOOKUP(_Comp_V1_Vehicle_Vehicle_Class & _Comp_V1_Vehicle_Drivetrain & _Market,DB_Maint_Repair_Costs[],COLUMN(P75)-COLUMN($E75)+COLUMN(DB_Maint_Repair_Costs[[#Headers],[Year 1 ]]),FALSE)*Comp_V1_VMT_Modeled,0),IF(AND(COLUMN(P75)-COLUMN($E75)<Comp_V1_Years_Usage_Modeled,COLUMN(P75)-COLUMN($E75)<5),Comp_V1_Maint_Repair_Cost_Year_1_Modeled*Comp_V1_VMT_Modeled,IF(AND(COLUMN(P75)-COLUMN($E75)<Comp_V1_Years_Usage_Modeled,COLUMN(P75)-COLUMN($E75)>=5),Comp_V1_Maint_Repair_Cost_Year_5_Modeled*Comp_V1_VMT_Modeled,0)))*'Data General Inflation'!O$3 -> 0 | Q106: =-IF(_Comp_V1_Maint_Repair_Cost_Use_Default="Yes",IF(COLUMN(Q75)-COLUMN($E75)<Comp_V1_Years_Usage_Modeled,VLOOKUP(_Comp_V1_Vehicle_Vehicle_Class & _Comp_V1_Vehicle_Drivetrain & _Market,DB_Maint_Repair_Costs[],COLUMN(Q75)-COLUMN($E75)+COLUMN(DB_Maint_Repair_Costs[[#Headers],[Year 1 ]]),FALSE)*Comp_V1_VMT_Modeled,0),IF(AND(COLUMN(Q75)-COLUMN($E75)<Comp_V1_Years_Usage_Modeled,COLUMN(Q75)-COLUMN($E75)<5),Comp_V1_Maint_Repair_Cost_Year_1_Modeled*Comp_V1_VMT_Modeled,IF(AND(COLUMN(Q75)-COLUMN($E75)<Comp_V1_Years_Usage_Modeled,COLUMN(Q75)-COLUMN($E75)>=5),Comp_V1_Maint_Repair_Cost_Year_5_Modeled*Comp_V1_VMT_Modeled,0)))*'Data General Inflation'!P$3 -> 0 | R106: =-IF(_Comp_V1_Maint_Repair_Cost_Use_Default="Yes",IF(COLUMN(R75)-COLUMN($E75)<Comp_V1_Years_Usage_Modeled,VLOOKUP(_Comp_V1_Vehicle_Vehicle_Class & _Comp_V1_Vehicle_Drivetrain & _Market,DB_Maint_Repair_Costs[],COLUMN(R75)-COLUMN($E75)+COLUMN(DB_Maint_Repair_Costs[[#Headers],[Year 1 ]]),FALSE)*Comp_V1_VMT_Modeled,0),IF(AND(COLUMN(R75)-COLUMN($E75)<Comp_V1_Years_Usage_Modeled,COLUMN(R75)-COLUMN($E75)<5),Comp_V1_Maint_Repair_Cost_Year_1_Modeled*Comp_V1_VMT_Modeled,IF(AND(COLUMN(R75)-COLUMN($E75)<Comp_V1_Years_Usage_Modeled,COLUMN(R75)-COLUMN($E75)>=5),Comp_V1_Maint_Repair_Cost_Year_5_Modeled*Comp_V1_VMT_Modeled,0)))*'Data General Inflation'!Q$3 -> 0 | S106: =-IF(_Comp_V1_Maint_Repair_Cost_Use_Default="Yes",IF(COLUMN(S75)-COLUMN($E75)<Comp_V1_Years_Usage_Modeled,VLOOKUP(_Comp_V1_Vehicle_Vehicle_Class & _Comp_V1_Vehicle_Drivetrain & _Market,DB_Maint_Repair_Costs[],COLUMN(S75)-COLUMN($E75)+COLUMN(DB_Maint_Repair_Costs[[#Headers],[Year 1 ]]),FALSE)*Comp_V1_VMT_Modeled,0),IF(AND(COLUMN(S75)-COLUMN($E75)<Comp_V1_Years_Usage_Modeled,COLUMN(S75)-COLUMN($E75)<5),Comp_V1_Maint_Repair_Cost_Year_1_Modeled*Comp_V1_VMT_Modeled,IF(AND(COLUMN(S75)-COLUMN($E75)<Comp_V1_Years_Usage_Modeled,COLUMN(S75)-COLUMN($E75)>=5),Comp_V1_Maint_Repair_Cost_Year_5_Modeled*Comp_V1_VMT_Modeled,0)))*'Data General Inflation'!R$3 -> 0 | T106: =-IF(_Comp_V1_Maint_Repair_Cost_Use_Default="Yes",IF(COLUMN(T75)-COLUMN($E75)<Comp_V1_Years_Usage_Modeled,VLOOKUP(_Comp_V1_Vehicle_Vehicle_Class & _Comp_V1_Vehicle_Drivetrain & _Market,DB_Maint_Repair_Costs[],COLUMN(T75)-COLUMN($E75)+COLUMN(DB_Maint_Repair_Costs[[#Headers],[Year 1 ]]),FALSE)*Comp_V1_VMT_Modeled,0),IF(AND(COLUMN(T75)-COLUMN($E75)<Comp_V1_Years_Usage_Modeled,COLUMN(T75)-COLUMN($E75)<5),Comp_V1_Maint_Repair_Cost_Year_1_Modeled*Comp_V1_VMT_Modeled,IF(AND(COLUMN(T75)-COLUMN($E75)<Comp_V1_Years_Usage_Modeled,COLUMN(T75)-COLUMN($E75)>=5),Comp_V1_Maint_Repair_Cost_Year_5_Modeled*Comp_V1_VMT_Modeled,0)))*'Data General Inflation'!S$3 -> 0 | U106: =-IF(_Comp_V1_Maint_Repair_Cost_Use_Default="Yes",IF(COLUMN(U75)-COLUMN($E75)<Comp_V1_Years_Usage_Modeled,VLOOKUP(_Comp_V1_Vehicle_Vehicle_Class & _Comp_V1_Vehicle_Drivetrain & _Market,DB_Maint_Repair_Costs[],COLUMN(U75)-COLUMN($E75)+COLUMN(DB_Maint_Repair_Costs[[#Headers],[Year 1 ]]),FALSE)*Comp_V1_VMT_Modeled,0),IF(AND(COLUMN(U75)-COLUMN($E75)<Comp_V1_Years_Usage_Modeled,COLUMN(U75)-COLUMN($E75)<5),Comp_V1_Maint_Repair_Cost_Year_1_Modeled*Comp_V1_VMT_Modeled,IF(AND(COLUMN(U75)-COLUMN($E75)<Comp_V1_Years_Usage_Modeled,COLUMN(U75)-COLUMN($E75)>=5),Comp_V1_Maint_Repair_Cost_Year_5_Modeled*Comp_V1_VMT_Modeled,0)))*'Data General Inflation'!T$3 -> 0 | V106: =-IF(_Comp_V1_Maint_Repair_Cost_Use_Default="Yes",IF(COLUMN(V75)-COLUMN($E75)<Comp_V1_Years_Usage_Modeled,VLOOKUP(_Comp_V1_Vehicle_Vehicle_Class & _Comp_V1_Vehicle_Drivetrain & _Market,DB_Maint_Repair_Costs[],COLUMN(V75)-COLUMN($E75)+COLUMN(DB_Maint_Repair_Costs[[#Headers],[Year 1 ]]),FALSE)*Comp_V1_VMT_Modeled,0),IF(AND(COLUMN(V75)-COLUMN($E75)<Comp_V1_Years_Usage_Modeled,COLUMN(V75)-COLUMN($E75)<5),Comp_V1_Maint_Repair_Cost_Year_1_Modeled*Comp_V1_VMT_Modeled,IF(AND(COLUMN(V75)-COLUMN($E75)<Comp_V1_Years_Usage_Modeled,COLUMN(V75)-COLUMN($E75)>=5),Comp_V1_Maint_Repair_Cost_Year_5_Modeled*Comp_V1_VMT_Modeled,0)))*'Data General Inflation'!U$3 -> 0 | W106: =-IF(_Comp_V1_Maint_Repair_Cost_Use_Default="Yes",IF(COLUMN(W75)-COLUMN($E75)<Comp_V1_Years_Usage_Modeled,VLOOKUP(_Comp_V1_Vehicle_Vehicle_Class & _Comp_V1_Vehicle_Drivetrain & _Market,DB_Maint_Repair_Costs[],COLUMN(W75)-COLUMN($E75)+COLUMN(DB_Maint_Repair_Costs[[#Headers],[Year 1 ]]),FALSE)*Comp_V1_VMT_Modeled,0),IF(AND(COLUMN(W75)-COLUMN($E75)<Comp_V1_Years_Usage_Modeled,COLUMN(W75)-COLUMN($E75)<5),Comp_V1_Maint_Repair_Cost_Year_1_Modeled*Comp_V1_VMT_Modeled,IF(AND(COLUMN(W75)-COLUMN($E75)<Comp_V1_Years_Usage_Modeled,COLUMN(W75)-COLUMN($E75)>=5),Comp_V1_Maint_Repair_Cost_Year_5_Modeled*Comp_V1_VMT_Modeled,0)))*'Data General Inflation'!V$3 -> 0 | X106: =-IF(_Comp_V1_Maint_Repair_Cost_Use_Default="Yes",IF(COLUMN(X75)-COLUMN($E75)<Comp_V1_Years_Usage_Modeled,VLOOKUP(_Comp_V1_Vehicle_Vehicle_Class & _Comp_V1_Vehicle_Drivetrain & _Market,DB_Maint_Repair_Costs[],COLUMN(X75)-COLUMN($E75)+COLUMN(DB_Maint_Repair_Costs[[#Headers],[Year 1 ]]),FALSE)*Comp_V1_VMT_Modeled,0),IF(AND(COLUMN(X75)-COLUMN($E75)<Comp_V1_Years_Usage_Modeled,COLUMN(X75)-COLUMN($E75)<5),Comp_V1_Maint_Repair_Cost_Year_1_Modeled*Comp_V1_VMT_Modeled,IF(AND(COLUMN(X75)-COLUMN($E75)<Comp_V1_Years_Usage_Modeled,COLUMN(X75)-COLUMN($E75)>=5),Comp_V1_Maint_Repair_Cost_Year_5_Modeled*Comp_V1_VMT_Modeled,0)))*'Data General Inflation'!W$3 -> 0 | Y106: =-IF(_Comp_V1_Maint_Repair_Cost_Use_Default="Yes",IF(COLUMN(Y75)-COLUMN($E75)<Comp_V1_Years_Usage_Modeled,VLOOKUP(_Comp_V1_Vehicle_Vehicle_Class & _Comp_V1_Vehicle_Drivetrain & _Market,DB_Maint_Repair_Costs[],COLUMN(Y75)-COLUMN($E75)+COLUMN(DB_Maint_Repair_Costs[[#Headers],[Year 1 ]]),FALSE)*Comp_V1_VMT_Modeled,0),IF(AND(COLUMN(Y75)-COLUMN($E75)<Comp_V1_Years_Usage_Modeled,COLUMN(Y75)-COLUMN($E75)<5),Comp_V1_Maint_Repair_Cost_Year_1_Modeled*Comp_V1_VMT_Modeled,IF(AND(COLUMN(Y75)-COLUMN($E75)<Comp_V1_Years_Usage_Modeled,COLUMN(Y75)-COLUMN($E75)>=5),Comp_V1_Maint_Repair_Cost_Year_5_Modeled*Comp_V1_VMT_Modeled,0)))*'Data General Inflation'!X$3 -> 0 | Z106: =-IF(_Comp_V1_Maint_Repair_Cost_Use_Default="Yes",IF(COLUMN(Z75)-COLUMN($E75)<Comp_V1_Years_Usage_Modeled,VLOOKUP(_Comp_V1_Vehicle_Vehicle_Class & _Comp_V1_Vehicle_Drivetrain & _Market,DB_Maint_Repair_Costs[],COLUMN(Z75)-COLUMN($E75)+COLUMN(DB_Maint_Repair_Costs[[#Headers],[Year 1 ]]),FALSE)*Comp_V1_VMT_Modeled,0),IF(AND(COLUMN(Z75)-COLUMN($E75)<Comp_V1_Years_Usage_Modeled,COLUMN(Z75)-COLUMN($E75)<5),Comp_V1_Maint_Repair_Cost_Year_1_Modeled*Comp_V1_VMT_Modeled,IF(AND(COLUMN(Z75)-COLUMN($E75)<Comp_V1_Years_Usage_Modeled,COLUMN(Z75)-COLUMN($E75)>=5),Comp_V1_Maint_Repair_Cost_Year_5_Modeled*Comp_V1_VMT_Modeled,0)))*'Data General Inflation'!Y$3 -> 0 | AA106: =-IF(_Comp_V1_Maint_Repair_Cost_Use_Default="Yes",IF(COLUMN(AA75)-COLUMN($E75)<Comp_V1_Years_Usage_Modeled,VLOOKUP(_Comp_V1_Vehicle_Vehicle_Class & _Comp_V1_Vehicle_Drivetrain & _Market,DB_Maint_Repair_Costs[],COLUMN(AA75)-COLUMN($E75)+COLUMN(DB_Maint_Repair_Costs[[#Headers],[Year 1 ]]),FALSE)*Comp_V1_VMT_Modeled,0),IF(AND(COLUMN(AA75)-COLUMN($E75)<Comp_V1_Years_Usage_Modeled,COLUMN(AA75)-COLUMN($E75)<5),Comp_V1_Maint_Repair_Cost_Year_1_Modeled*Comp_V1_VMT_Modeled,IF(AND(COLUMN(AA75)-COLUMN($E75)<Comp_V1_Years_Usage_Modeled,COLUMN(AA75)-COLUMN($E75)>=5),Comp_V1_Maint_Repair_Cost_Year_5_Modeled*Comp_V1_VMT_Modeled,0)))*'Data General Inflation'!Z$3 -> 0 | AB106: =-IF(_Comp_V1_Maint_Repair_Cost_Use_Default="Yes",IF(COLUMN(AB75)-COLUMN($E75)<Comp_V1_Years_Usage_Modeled,VLOOKUP(_Comp_V1_Vehicle_Vehicle_Class & _Comp_V1_Vehicle_Drivetrain & _Market,DB_Maint_Repair_Costs[],COLUMN(AB75)-COLUMN($E75)+COLUMN(DB_Maint_Repair_Costs[[#Headers],[Year 1 ]]),FALSE)*Comp_V1_VMT_Modeled,0),IF(AND(COLUMN(AB75)-COLUMN($E75)<Comp_V1_Years_Usage_Modeled,COLUMN(AB75)-COLUMN($E75)<5),Comp_V1_Maint_Repair_Cost_Year_1_Modeled*Comp_V1_VMT_Modeled,IF(AND(COLUMN(AB75)-COLUMN($E75)<Comp_V1_Years_Usage_Modeled,COLUMN(AB75)-COLUMN($E75)>=5),Comp_V1_Maint_Repair_Cost_Year_5_Modeled*Comp_V1_VMT_Modeled,0)))*'Data General Inflation'!AA$3 -> 0 | AC106: =-IF(_Comp_V1_Maint_Repair_Cost_Use_Default="Yes",IF(COLUMN(AC75)-COLUMN($E75)<Comp_V1_Years_Usage_Modeled,VLOOKUP(_Comp_V1_Vehicle_Vehicle_Class & _Comp_V1_Vehicle_Drivetrain & _Market,DB_Maint_Repair_Costs[],COLUMN(AC75)-COLUMN($E75)+COLUMN(DB_Maint_Repair_Costs[[#Headers],[Year 1 ]]),FALSE)*Comp_V1_VMT_Modeled,0),IF(AND(COLUMN(AC75)-COLUMN($E75)<Comp_V1_Years_Usage_Modeled,COLUMN(AC75)-COLUMN($E75)<5),Comp_V1_Maint_Repair_Cost_Year_1_Modeled*Comp_V1_VMT_Modeled,IF(AND(COLUMN(AC75)-COLUMN($E75)<Comp_V1_Years_Usage_Modeled,COLUMN(AC75)-COLUMN($E75)>=5),Comp_V1_Maint_Repair_Cost_Year_5_Modeled*Comp_V1_VMT_Modeled,0)))*'Data General Inflation'!AB$3 -> 0
B107: Taxes and Fees | D107: =-Comp_V1_Initial_Taxes_Fees_Modeled-(Comp_V1_Initial_Percent_Base_Price_Modeled*Comp_V1_Base_Price_Ex) -> 0 | E107: =-IF(COLUMN(E75)-COLUMN($E75)<Comp_V1_Years_Usage_Modeled,Comp_V1_Taxes_Fees_Modeled,0)*'Data General Inflation'!D$3 -> 0 | F107: =-IF(COLUMN(F75)-COLUMN($E75)<Comp_V1_Years_Usage_Modeled,Comp_V1_Taxes_Fees_Modeled,0)*'Data General Inflation'!E$3 -> 0 | G107: =-IF(COLUMN(G75)-COLUMN($E75)<Comp_V1_Years_Usage_Modeled,Comp_V1_Taxes_Fees_Modeled,0)*'Data General Inflation'!F$3 -> 0 | H107: =-IF(COLUMN(H75)-COLUMN($E75)<Comp_V1_Years_Usage_Modeled,Comp_V1_Taxes_Fees_Modeled,0)*'Data General Inflation'!G$3 -> 0 | I107: =-IF(COLUMN(I75)-COLUMN($E75)<Comp_V1_Years_Usage_Modeled,Comp_V1_Taxes_Fees_Modeled,0)*'Data General Inflation'!H$3 -> 0 | J107: =-IF(COLUMN(J75)-COLUMN($E75)<Comp_V1_Years_Usage_Modeled,Comp_V1_Taxes_Fees_Modeled,0)*'Data General Inflation'!I$3 -> 0 | K107: =-IF(COLUMN(K75)-COLUMN($E75)<Comp_V1_Years_Usage_Modeled,Comp_V1_Taxes_Fees_Modeled,0)*'Data General Inflation'!J$3 -> 0 | L107: =-IF(COLUMN(L75)-COLUMN($E75)<Comp_V1_Years_Usage_Modeled,Comp_V1_Taxes_Fees_Modeled,0)*'Data General Inflation'!K$3 -> 0 | M107: =-IF(COLUMN(M75)-COLUMN($E75)<Comp_V1_Years_Usage_Modeled,Comp_V1_Taxes_Fees_Modeled,0)*'Data General Inflation'!L$3 -> 0 | N107: =-IF(COLUMN(N75)-COLUMN($E75)<Comp_V1_Years_Usage_Modeled,Comp_V1_Taxes_Fees_Modeled,0)*'Data General Inflation'!M$3 -> 0 | O107: =-IF(COLUMN(O75)-COLUMN($E75)<Comp_V1_Years_Usage_Modeled,Comp_V1_Taxes_Fees_Modeled,0)*'Data General Inflation'!N$3 -> 0 | P107: =-IF(COLUMN(P75)-COLUMN($E75)<Comp_V1_Years_Usage_Modeled,Comp_V1_Taxes_Fees_Modeled,0)*'Data General Inflation'!O$3 -> 0 | Q107: =-IF(COLUMN(Q75)-COLUMN($E75)<Comp_V1_Years_Usage_Modeled,Comp_V1_Taxes_Fees_Modeled,0)*'Data General Inflation'!P$3 -> 0 | R107: =-IF(COLUMN(R75)-COLUMN($E75)<Comp_V1_Years_Usage_Modeled,Comp_V1_Taxes_Fees_Modeled,0)*'Data General Inflation'!Q$3 -> 0 | S107: =-IF(COLUMN(S75)-COLUMN($E75)<Comp_V1_Years_Usage_Modeled,Comp_V1_Taxes_Fees_Modeled,0)*'Data General Inflation'!R$3 -> 0 | T107: =-IF(COLUMN(T75)-COLUMN($E75)<Comp_V1_Years_Usage_Modeled,Comp_V1_Taxes_Fees_Modeled,0)*'Data General Inflation'!S$3 -> 0 | U107: =-IF(COLUMN(U75)-COLUMN($E75)<Comp_V1_Years_Usage_Modeled,Comp_V1_Taxes_Fees_Modeled,0)*'Data General Inflation'!T$3 -> 0 | V107: =-IF(COLUMN(V75)-COLUMN($E75)<Comp_V1_Years_Usage_Modeled,Comp_V1_Taxes_Fees_Modeled,0)*'Data General Inflation'!U$3 -> 0 | W107: =-IF(COLUMN(W75)-COLUMN($E75)<Comp_V1_Years_Usage_Modeled,Comp_V1_Taxes_Fees_Modeled,0)*'Data General Inflation'!V$3 -> 0 | X107: =-IF(COLUMN(X75)-COLUMN($E75)<Comp_V1_Years_Usage_Modeled,Comp_V1_Taxes_Fees_Modeled,0)*'Data General Inflation'!W$3 -> 0 | Y107: =-IF(COLUMN(Y75)-COLUMN($E75)<Comp_V1_Years_Usage_Modeled,Comp_V1_Taxes_Fees_Modeled,0)*'Data General Inflation'!X$3 -> 0 | Z107: =-IF(COLUMN(Z75)-COLUMN($E75)<Comp_V1_Years_Usage_Modeled,Comp_V1_Taxes_Fees_Modeled,0)*'Data General Inflation'!Y$3 -> 0 | AA107: =-IF(COLUMN(AA75)-COLUMN($E75)<Comp_V1_Years_Usage_Modeled,Comp_V1_Taxes_Fees_Modeled,0)*'Data General Inflation'!Z$3 -> 0 | AB107: =-IF(COLUMN(AB75)-COLUMN($E75)<Comp_V1_Years_Usage_Modeled,Comp_V1_Taxes_Fees_Modeled,0)*'Data General Inflation'!AA$3 -> 0 | AC107: =-IF(COLUMN(AC75)-COLUMN($E75)<Comp_V1_Years_Usage_Modeled,Comp_V1_Taxes_Fees_Modeled,0)*'Data General Inflation'!AB$3 -> 0
B108: Insurance Cost | E108: =-IF(COLUMN(E75)-COLUMN($E75)<Comp_V1_Years_Usage_Modeled,Comp_V1_Insurance_Cost_Modeled,0)*'Data General Inflation'!D$3 -> 0 | F108: =-IF(COLUMN(F75)-COLUMN($E75)<Comp_V1_Years_Usage_Modeled,Comp_V1_Insurance_Cost_Modeled,0)*'Data General Inflation'!E$3 -> 0 | G108: =-IF(COLUMN(G75)-COLUMN($E75)<Comp_V1_Years_Usage_Modeled,Comp_V1_Insurance_Cost_Modeled,0)*'Data General Inflation'!F$3 -> 0 | H108: =-IF(COLUMN(H75)-COLUMN($E75)<Comp_V1_Years_Usage_Modeled,Comp_V1_Insurance_Cost_Modeled,0)*'Data General Inflation'!G$3 -> 0 | I108: =-IF(COLUMN(I75)-COLUMN($E75)<Comp_V1_Years_Usage_Modeled,Comp_V1_Insurance_Cost_Modeled,0)*'Data General Inflation'!H$3 -> 0 | J108: =-IF(COLUMN(J75)-COLUMN($E75)<Comp_V1_Years_Usage_Modeled,Comp_V1_Insurance_Cost_Modeled,0)*'Data General Inflation'!I$3 -> 0 | K108: =-IF(COLUMN(K75)-COLUMN($E75)<Comp_V1_Years_Usage_Modeled,Comp_V1_Insurance_Cost_Modeled,0)*'Data General Inflation'!J$3 -> 0 | L108: =-IF(COLUMN(L75)-COLUMN($E75)<Comp_V1_Years_Usage_Modeled,Comp_V1_Insurance_Cost_Modeled,0)*'Data General Inflation'!K$3 -> 0 | M108: =-IF(COLUMN(M75)-COLUMN($E75)<Comp_V1_Years_Usage_Modeled,Comp_V1_Insurance_Cost_Modeled,0)*'Data General Inflation'!L$3 -> 0 | N108: =-IF(COLUMN(N75)-COLUMN($E75)<Comp_V1_Years_Usage_Modeled,Comp_V1_Insurance_Cost_Modeled,0)*'Data General Inflation'!M$3 -> 0 | O108: =-IF(COLUMN(O75)-COLUMN($E75)<Comp_V1_Years_Usage_Modeled,Comp_V1_Insurance_Cost_Modeled,0)*'Data General Inflation'!N$3 -> 0 | P108: =-IF(COLUMN(P75)-COLUMN($E75)<Comp_V1_Years_Usage_Modeled,Comp_V1_Insurance_Cost_Modeled,0)*'Data General Inflation'!O$3 -> 0 | Q108: =-IF(COLUMN(Q75)-COLUMN($E75)<Comp_V1_Years_Usage_Modeled,Comp_V1_Insurance_Cost_Modeled,0)*'Data General Inflation'!P$3 -> 0 | R108: =-IF(COLUMN(R75)-COLUMN($E75)<Comp_V1_Years_Usage_Modeled,Comp_V1_Insurance_Cost_Modeled,0)*'Data General Inflation'!Q$3 -> 0 | S108: =-IF(COLUMN(S75)-COLUMN($E75)<Comp_V1_Years_Usage_Modeled,Comp_V1_Insurance_Cost_Modeled,0)*'Data General Inflation'!R$3 -> 0 | T108: =-IF(COLUMN(T75)-COLUMN($E75)<Comp_V1_Years_Usage_Modeled,Comp_V1_Insurance_Cost_Modeled,0)*'Data General Inflation'!S$3 -> 0 | U108: =-IF(COLUMN(U75)-COLUMN($E75)<Comp_V1_Years_Usage_Modeled,Comp_V1_Insurance_Cost_Modeled,0)*'Data General Inflation'!T$3 -> 0 | V108: =-IF(COLUMN(V75)-COLUMN($E75)<Comp_V1_Years_Usage_Modeled,Comp_V1_Insurance_Cost_Modeled,0)*'Data General Inflation'!U$3 -> 0 | W108: =-IF(COLUMN(W75)-COLUMN($E75)<Comp_V1_Years_Usage_Modeled,Comp_V1_Insurance_Cost_Modeled,0)*'Data General Inflation'!V$3 -> 0 | X108: =-IF(COLUMN(X75)-COLUMN($E75)<Comp_V1_Years_Usage_Modeled,Comp_V1_Insurance_Cost_Modeled,0)*'Data General Inflation'!W$3 -> 0 | Y108: =-IF(COLUMN(Y75)-COLUMN($E75)<Comp_V1_Years_Usage_Modeled,Comp_V1_Insurance_Cost_Modeled,0)*'Data General Inflation'!X$3 -> 0 | Z108: =-IF(COLUMN(Z75)-COLUMN($E75)<Comp_V1_Years_Usage_Modeled,Comp_V1_Insurance_Cost_Modeled,0)*'Data General Inflation'!Y$3 -> 0 | AA108: =-IF(COLUMN(AA75)-COLUMN($E75)<Comp_V1_Years_Usage_Modeled,Comp_V1_Insurance_Cost_Modeled,0)*'Data General Inflation'!Z$3 -> 0 | AB108: =-IF(COLUMN(AB75)-COLUMN($E75)<Comp_V1_Years_Usage_Modeled,Comp_V1_Insurance_Cost_Modeled,0)*'Data General Inflation'!AA$3 -> 0 | AC108: =-IF(COLUMN(AC75)-COLUMN($E75)<Comp_V1_Years_Usage_Modeled,Comp_V1_Insurance_Cost_Modeled,0)*'Data General Inflation'!AB$3 -> 0
B109: Subtotal Fuel and Operating Costs | D109: =SUM(D105:D108) -> 0 | E109: 0 | F109: 0 | G109: 0 | H109: 0 | I109: 0 | J109: 0 | K109: 0 | L109: 0 | M109: 0 | N109: 0 | O109: 0 | P109: 0 | Q109: 0 | R109: 0 | S109: 0 | T109: 0 | U109: 0 | V109: 0 | W109: 0 | X109: 0 | Y109: 0 | Z109: 0 | AA109: 0 | AB109: 0 | AC109: 0
B111: Other Costs
B112: Cost of Carbon | E112: =-IF(COLUMN(E75)-COLUMN($E75)<Comp_V1_Years_Usage_Modeled,Comp_V1_CO2_Ex/2204.62*Carbon_Price_Modeled,0) -> 0 | F112: 0 | G112: 0 | H112: 0 | I112: 0 | J112: 0 | K112: 0 | L112: 0 | M112: 0 | N112: 0 | O112: 0 | P112: 0 | Q112: 0 | R112: 0 | S112: 0 | T112: 0 | U112: 0 | V112: 0 | W112: 0 | X112: 0 | Y112: 0 | Z112: 0 | AA112: 0 | AB112: 0 | AC112: 0
B113: Cost of Downtime from Public Charging | E113: =-IF(AND(COLUMN(E76)-COLUMN($E76)<Comp_V1_Years_Usage_Modeled, Cost_of_Downtime_from_Charging_Modeled<>0, Comp_Station_Max_Power_Modeled<>0),(Comp_V1_Electricity_Usage_Ex*Comp_Percent_Public_Charging_Modeled)/Comp_Station_Max_Power_Modeled*Cost_of_Downtime_from_Charging, 0) -> 0 | F113: 0 | G113: 0 | H113: 0 | I113: 0 | J113: 0 | K113: 0 | L113: 0 | M113: 0 | N113: 0 | O113: 0 | P113: 0 | Q113: 0 | R113: 0 | S113: 0 | T113: 0 | U113: 0 | V113: 0 | W113: 0 | X113: 0 | Y113: 0 | Z113: 0 | AA113: 0 | AB113: 0 | AC113: 0
B114: Subtotal Other Costs | D114: =SUM(D112:D113) -> 0 | E114: =SUM(E112:E113) -> 0 | F114: =SUM(F112:F113) -> 0 | G114: 0 | H114: 0 | I114: 0 | J114: 0 | K114: 0 | L114: 0 | M114: 0 | N114: 0 | O114: 0 | P114: 0 | Q114: 0 | R114: 0 | S114: 0 | T114: 0 | U114: 0 | V114: 0 | W114: 0 | X114: 0 | Y114: 0 | Z114: 0 | AA114: 0 | AB114: 0 | AC114: 0
B116: Total Discounted Costs
B117: Total Annual Costs | D117: =D102+D109+D114 -> 0 | E117: 0 | F117: 0 | G117: 0 | H117: 0 | I117: 0 | J117: 0 | K117: 0 | L117: 0 | M117: 0 | N117: 0 | O117: 0 | P117: 0 | Q117: 0 | R117: 0 | S117: 0 | T117: 0 | U117: 0 | V117: 0 | W117: 0 | X117: 0 | Y117: 0 | Z117: 0 | AA117: 0 | AB117: 0 | AC117: 0
B118: Discount Factor | C118: =Comp_Discount_Rate_Modeled -> 0 | D118: =(1/(1+$C118))^(COLUMN(D75)-COLUMN($D75)) -> 1 | E118: 1 | F118: 1 | G118: 1 | H118: 1 | I118: 1 | J118: 1 | K118: 1 | L118: 1 | M118: 1 | N118: 1 | O118: 1 | P118: 1 | Q118: 1 | R118: 1 | S118: 1 | T118: 1 | U118: 1 | V118: 1 | W118: 1 | X118: 1 | Y118: 1 | Z118: 1 | AA118: 1 | AB118: 1 | AC118: 1
B119: Discounted Total | D119: =D117*D118 -> 0 | E119: =E117*E118 -> 0 | F119: =F117*F118 -> 0 | G119: 0 | H119: 0 | I119: 0 | J119: 0 | K119: 0 | L119: 0 | M119: 0 | N119: 0 | O119: 0 | P119: 0 | Q119: 0 | R119: 0 | S119: 0 | T119: 0 | U119: 0 | V119: 0 | W119: 0 | X119: 0 | Y119: 0 | Z119: 0 | AA119: 0 | AB119: 0 | AC119: 0
B120: Cumulative Discounted Total | D120: =IF((COLUMN(D75)-COLUMN($D75))<=Comp_V1_Years_Usage_Modeled,C120+D119,0) -> 0 | E120: 0 | F120: 0 | G120: 0 | H120: 0 | I120: 0 | J120: 0 | K120: 0 | L120: 0 | M120: 0 | N120: 0 | O120: 0 | P120: 0 | Q120: 0 | R120: 0 | S120: 0 | T120: 0 | U120: 0 | V120: 0 | W120: 0 | X120: 0 | Y120: 0 | Z120: 0 | AA120: 0 | AB120: 0 | AC120: 0
B121: Annualized NPV Total Cost of Ownership | D121: =OFFSET($D120,0,Comp_V1_Years_Usage_Modeled)/Comp_V1_Years_Usage_Modeled -> 
B123: Comparison EV Infrastructure
D124: Year 0 | E124: Year 1 | F124: Year 2 | G124: Year 3 | H124: Year 4 | I124: Year 5 | J124: Year 6 | K124: Year 7 | L124: Year 8 | M124: Year 9 | N124: Year 10 | O124: Year 11 | P124: Year 12 | Q124: Year 13 | R124: Year 14 | S124: Year 15 | T124: Year 16 | U124: Year 17 | V124: Year 18 | W124: Year 19 | X124: Year 20 | Y124: Year 21 | Z124: Year 22 | AA124: Year 23 | AB124: Year 24 | AC124: Year 25
B125: Capital and Financing Costs
B126: Cash
B127: Cash Payment | D127: =IF(AND(Comp_Inf_Has_Cash_Purchase_Ex=TRUE,_Comp_Include_Charging="Yes"),-Comp_Num_Stations_Modeled*Comp_Station_Cost_Modeled,0) -> 0
B128: Loan
B129: Down Payment | D129: =IF(AND(Comp_Inf_Has_Cash_Purchase_Ex=FALSE,_Comp_Include_Charging="Yes"),-Comp_Inf_Down_Payment_Modeled,0) -> 0
B130: Loan Payments | E130: =IF(AND(Comp_Inf_Has_Cash_Purchase_Ex=FALSE,_Comp_Include_Charging="Yes",(COLUMN(E124)-COLUMN($E124))<Comp_Inf_Loan_Term_Modeled),PMT(Comp_Inf_Loan_APR_Modeled,Comp_Inf_Loan_Term_Modeled,(Comp_Num_Stations_Modeled*Comp_Station_Cost_Modeled)-Comp_Inf_Down_Payment_Modeled,0),0) -> 0 | F130: 0 | G130: 0 | H130: 0 | I130: 0 | J130: 0 | K130: 0 | L130: 0 | M130: 0 | N130: 0 | O130: 0 | P130: 0 | Q130: 0 | R130: 0 | S130: 0 | T130: 0 | U130: 0 | V130: 0 | W130: 0 | X130: 0 | Y130: 0 | Z130: 0 | AA130: 0 | AB130: 0 | AC130: 0
B131: Subtotal Loan Cash Flows | D131: =SUM(D129:D130) -> 0 | E131: 0 | F131: 0 | G131: 0 | H131: 0 | I131: 0 | J131: 0 | K131: 0 | L131: 0 | M131: 0 | N131: 0 | O131: 0 | P131: 0 | Q131: 0 | R131: 0 | S131: 0 | T131: 0 | U131: 0 | V131: 0 | W131: 0 | X131: 0 | Y131: 0 | Z131: 0 | AA131: 0 | AB131: 0 | AC131: 0
B133: Total Capital and Financing Costs | D133: =D127+D131 -> 0 | E133: =E127+E131 -> 0 | F133: 0 | G133: 0 | H133: 0 | I133: 0 | J133: 0 | K133: 0 | L133: 0 | M133: 0 | N133: 0 | O133: 0 | P133: 0 | Q133: 0 | R133: 0 | S133: 0 | T133: 0 | U133: 0 | V133: 0 | W133: 0 | X133: 0 | Y133: 0 | Z133: 0 | AA133: 0 | AB133: 0 | AC133: 0
B135: Operating Costs
